Workbook

Sheet Cadastro de Produtos em Linha
B3: Cadastro de Produtos em Linha (20.07.20)
B4: Ref. | C4: Descrição | D4: Qtde. na emb. | E4: Cubagem | F4: Peso da Embalagem
A7: 1 | C7: PINO MULTIPLICADOR BIPOLAR BR/PR (4 POTES C/ 20 PÇS) | D7: 80 | E7: 0.0243 | F7: 2.82
A8: 111 | B8: 806 | C8: CORDÃO PROLONGADOR BIPOLAR PRETO 10 MTS | D8: 15 | E8: 0.016796 | F8: 5.248
A9: 108 | B9: 803 | C9: CORDÃO PROLONGADOR BIPOLAR BRANCO 10 MTS | D9: 15 | E9: 0.016796 | F9: 5.248
A10: 4
A11: 106 | B11: 801 | C11: CORDÃO PROLONGADOR BIPOLAR BRANCO 3 MTS | D11: 20 | E11: 0.016796 | F11: 2.958
A12: 107 | B12: 802 | C12: CORDÃO PROLONGADOR BIPOLAR BRANCO 5 MTS | D12: 20 | E12: 0.016796 | F12: 4.238
A13: 7
A14: 8 | C14: PINO MULTIPLICADOR TRIPOLAR BR/PR (4 POTES C/ 20 PÇS) | D14: 80 | E14: 0.0243 | F14: 2.99
A15: 109 | B15: 804 | C15: CORDÃO PROLONGADOR BIPOLAR PRETO 3 MTS | D15: 20 | E15: 0.016796 | F15: 2.958
A16: 110 | B16: 805 | C16: CORDÃO PROLONGADOR BIPOLAR PRETO 5 MTS | D16: 20 | E16: 0.016796 | F16: 4.238
A17: 11
A18: 114 | B18: 853 | C18: CORDÃO PROLONGADOR TRIPOLAR BRANCO 10 MTS | D18: 15 | E18: 0.016796 | F18: 8.49
A19: 112 | B19: 851 | C19: CORDÃO PROLONGADOR TRIPOLAR BRANCO 3 MTS | D19: 20 | E19: 0.016796 | F19: 4.48
A20: 14
A21: 15 | C21: PINO EM BARRA FRONTAL BIPOLAR BR/PR 4 PTS C/ 12 PCS | D21: 48 | E21: 0.0243 | F21: 2.796
A22: 113 | B22: 852 | C22: CORDÃO PROLONGADOR TRIPOLAR BRANCO 5 MTS | D22: 20 | E22: 0.016796 | F22: 6.8
A23: 117 | B23: 856 | C23: CORDÃO PROLONGADOR TRIPOLAR PRETO 10 MTS | D23: 15 | E23: 0.016796 | F23: 8.49
A24: 18
A25: 115 | B25: 854 | C25: CORDÃO PROLONGADOR TRIPOLAR PRETO 3 MTS | D25: 20 | E25: 0.016796 | F25: 4.48
A26: 116 | B26: 855 | C26: CORDÃO PROLONGADOR TRIPOLAR PRETO 5 MTS | D26: 20 | E26: 0.016796 | F26: 6.8
A27: 21
A28: 22 | C28: PINO EM BARRA FRONTAL TRIPOLAR BR/PR 4 PTS C/ 12 PCS | D28: 48 | E28: 0.0243 | F28: 3.228
A29: 69 | B29: 604 | C29: EXTENSAO COMPACT BIPOLAR BRANCA 10 MTS | D29: 15 | E29: 0.02 | F29: 5.383
A30: 66 | B30: 601 | C30: EXTENSAO COMPACT BIPOLAR BRANCA 2 MTS | D30: 20 | E30: 0.017 | F30: 2.418
A31: 25
A32: 67 | B32: 602 | C32: EXTENSAO COMPACT BIPOLAR BRANCA 3 MTS | D32: 20 | E32: 0.017 | F32: 3.018
A33: 68 | B33: 603 | C33: EXTENSAO COMPACT BIPOLAR BRANCA 5 MTS | D33: 20 | E33: 0.02 | F33: 4.338
A34: 28
A35: 29 | C35: PINO MACHO DESMONTAVEL BIPOLAR BR/PR (4 POTES C/ 60 PCS) | D35: 240 | E35: 0.0204 | F35: 4.136
A36: 73 | B36: 608 | C36: EXTENSAO COMPACT BIPOLAR PRETA 10 MTS | D36: 15 | E36: 0.02 | F36: 5.383
A37: 70 | B37: 605 | C37: EXTENSAO COMPACT BIPOLAR PRETA 2 MTS | D37: 20 | E37: 0.017 | F37: 2.418
A38: 32
A39: 71 | B39: 606 | C39: EXTENSAO COMPACT BIPOLAR PRETA 3 MTS | D39: 20 | E39: 0.017 | F39: 3.018
A40: 72 | B40: 607 | C40: EXTENSAO COMPACT BIPOLAR PRETA 5 MTS | D40: 20 | E40: 0.02 | F40: 4.338
A41: 35
A42: 36 | C42: PINO MACHO DESMONTAVEL TRIPOLAR BR/PR (4 POTES C/ 60 PCS) | D42: 240 | E42: 0.0204 | F42: 4.76
A43: 81 | B43: 654 | C43: EXTENSAO COMPACT TRIPOLAR BRANCA 10 MTS | D43: 15 | E43: 0.021736 | F43: 11.382
A44: 78 | B44: 651 | C44: EXTENSAO COMPACT TRIPOLAR BRANCA 2 MTS | D44: 20 | E44: 0.02 | F44: 2.712
A45: 39
A46: 79 | B46: 652 | C46: EXTENSAO COMPACT TRIPOLAR BRANCA 3 MTS | D46: 20 | E46: 0.01976 | F46: 5.18
A47: 80 | B47: 653 | C47: EXTENSAO COMPACT TRIPOLAR BRANCA 5 MTS | D47: 20 | E47: 0.021736 | F47: 7.36
A48: 42
A49: 43 | C49: PINO ADAPTADOR BIPOLAR BR/PR 4 PTS C/ 45 PCS | D49: 180 | E49: 0.0243 | F49: 5.12
A50: 85 | B50: 658 | C50: EXTENSAO COMPACT TRIPOLAR PRETA 10 MTS | D50: 15 | E50: 0.021736 | F50: 10.5
A51: 82 | B51: 655 | C51: EXTENSAO COMPACT TRIPOLAR PRETA 2 MTS | D51: 20 | E51: 0.01976 | F51: 3.412
A52: 46
A53: 83 | B53: 656 | C53: EXTENSAO COMPACT TRIPOLAR PRETA 3 MTS | D53: 20 | E53: 0.01976 | F53: 4.732
A54: 84 | B54: 657 | C54: EXTENSAO COMPACT TRIPOLAR PRETA 5 MTS | D54: 20 | E54: 0.021736 | F54: 7.43
A55: 49
A56: 50 | C56: TOMADA DESMONTAVEL TRIPOLAR BR/PR (4 POTES C/ 30 PCS) | D56: 120 | E56: 0.0204 | F56: 3.06
A57: 143 | B57: 624 | C57: EXTENSÃO ENERGY BIPOLAR BRANCA 10 MTS 2P 10A/250V~ | D57: 15 | E57: 0.0168 | F57: 6.077
A58: 140 | B58: 621 | C58: EXTENSÃO ENERGY BIPOLAR BRANCA 2 MTS 2P 10A/250V~ | D58: 20 | E58: 0.0168 | F58: 2.791
A59: 53
A60: 141 | B60: 622 | C60: EXTENSÃO ENERGY BIPOLAR BRANCA 3 MTS 2P 10A/250V~ | D60: 20 | E60: 0.0168 | F60: 3.318
A61: 142 | B61: 623 | C61: EXTENSÃO ENERGY BIPOLAR BRANCA 5 MTS 2P 10A/250V~ | D61: 20 | E61: 0.0168 | F61: 4.521
A62: 56
A63: 147 | B63: 628 | C63: EXTENSÃO ENERGY BIPOLAR PRETA 10 MTS 2P 10A/250V~ | D63: 15 | E63: 0.0168 | F63: 6.077
A64: 144 | B64: 625 | C64: EXTENSÃO ENERGY BIPOLAR PRETA 2 MTS 2P 10A/250V~ | D64: 20 | E64: 0.0168 | F64: 2.791
A65: 145 | B65: 626 | C65: EXTENSÃO ENERGY BIPOLAR PRETA 3 MTS 2P 10A/250V~ | D65: 20 | E65: 0.0168 | F65: 3.318
A66: 146 | B66: 627 | C66: EXTENSÃO ENERGY BIPOLAR PRETA 5 MTS 2P 10A/250V~ | D66: 20 | E66: 0.0168 | F66: 4.521
A67: 98 | B67: 711 | C67: FILTRO DE LINHA BIVOLT FULL ENERGY BRANCO 3T CINTA | D67: 20 | E67: 0.021736 | F67: 3.86
A68: 90 | B68: 701 | C68: FILTRO DE LINHA BIVOLT FULL ENERGY BRANCO 3T FLOW PACK | D68: 20 | E68: 0.021736 | F68: 3.702
A69: 63
A70: 64
A71: 65
A72: 99 | B72: 712 | C72: FILTRO DE LINHA BIVOLT FULL ENERGY BRANCO 4T CINTA | D72: 20 | E72: 0.021736 | F72: 4.14
A73: 91 | B73: 702 | C73: FILTRO DE LINHA BIVOLT FULL ENERGY BRANCO 4T FLOW PACK | D73: 20 | E73: 0.021736 | F73: 4
A74: 100 | B74: 713 | C74: FILTRO DE LINHA BIVOLT FULL ENERGY BRANCO 5T CINTA | D74: 20 | E74: 0.022 | F74: 4.61
A75: 92 | B75: 703 | C75: FILTRO DE LINHA BIVOLT FULL ENERGY BRANCO 5T FLOW PACK | D75: 20 | E75: 0.021736 | F75: 4.42
A76: 101 | B76: 714 | C76: FILTRO DE LINHA BIVOLT FULL ENERGY BRANCO 6T CINTA | D76: 20 | E76: 0.02952 | F76: 4.88
A77: 93 | B77: 704 | C77: FILTRO DE LINHA BIVOLT FULL ENERGY BRANCO 6T FLOW PACK | D77: 20 | E77: 0.02952 | F77: 4.81
A78: 102 | B78: 715 | C78: FILTRO DE LINHA BIVOLT FULL ENERGY PRETO 3T CINTA | D78: 20 | E78: 0.021736 | F78: 3.71
A79: 94 | B79: 705 | C79: FILTRO DE LINHA BIVOLT FULL ENERGY PRETO 3T FLOW PACK | D79: 20 | E79: 0.021736 | F79: 3.702
A80: 74
A81: 75
A82: 76
A83: 77
A84: 103 | B84: 716 | C84: FILTRO DE LINHA BIVOLT FULL ENERGY PRETO 4T CINTA | D84: 20 | E84: 0.021736 | F84: 4.342
A85: 95 | B85: 706 | C85: FILTRO DE LINHA BIVOLT FULL ENERGY PRETO 4T FLOW PACK | D85: 20 | E85: 0.021736 | F85: 3.97
A86: 104 | B86: 717 | C86: FILTRO DE LINHA BIVOLT FULL ENERGY PRETO 5T CINTA | D86: 20 | E86: 0.022 | F86: 4.61
A87: 96 | B87: 707 | C87: FILTRO DE LINHA BIVOLT FULL ENERGY PRETO 5T FLOW PACK | D87: 20 | E87: 0.022 | F87: 4.568
A88: 105 | B88: 718 | C88: FILTRO DE LINHA BIVOLT FULL ENERGY PRETO 6T CINTA | D88: 20 | E88: 0.02952 | F88: 4.92
A89: 97 | B89: 708 | C89: FILTRO DE LINHA BIVOLT FULL ENERGY PRETO 6T FLOW PACK | D89: 20 | E89: 0.02952 | F89: 4.83
A90: 124 | B90: 3101 | C90: LUMINÁRIA TARTARUGA FLORENÇA BRANCA | D90: 20 | E90: 0.059 | F90: 4.31
A91: 125 | B91: 3102 | C91: LUMINÁRIA TARTARUGA FLORENÇA PRETA | D91: 20 | E91: 0.059 | F91: 4.315
A92: 86
A93: 87
A94: 88
A95: 89
A96: 44 | B96: 202 | C96: PINO ADAPTADOR BIPOLAR BRANCO GRANEL | D96: 100 | E96: 0.0088 | F96: 2.43
A97: 47 | B97: 205 | C97: PINO ADAPTADOR BIPOLAR BRANCO INDIVIDUAL | D97: 100 | E97: 0.021736 | F97: 2.91
A98: 45 | B98: 203 | C98: PINO ADAPTADOR BIPOLAR PRETO GRANEL | D98: 100 | E98: 0.0088 | F98: 2.41
A99: 48 | B99: 206 | C99: PINO ADAPTADOR BIPOLAR PRETO INDIVIDUAL | D99: 100 | E99: 0.021736 | F99: 2.862
A100: 16 | B100: 52 | C100: PINO EM BARRA FRONTAL BIPOLAR BRANCO GRANEL | D100: 100 | E100: 0.0243 | F100: 4.493
A101: 19 | B101: 55 | C101: PINO EM BARRA FRONTAL BIPOLAR BRANCO INDIVIDUAL | D101: 100 | E101: 0.047376 | F101: 4.934
A102: 17 | B102: 53 | C102: PINO EM BARRA FRONTAL BIPOLAR PRETO GRANEL | D102: 100 | E102: 0.0243 | F102: 4.493
A103: 20 | B103: 56 | C103: PINO EM BARRA FRONTAL BIPOLAR PRETO INDIVIDUAL | D103: 100 | E103: 0.047376 | F103: 4.934
A104: 23 | B104: 62 | C104: PINO EM BARRA FRONTAL TRIPOLAR BRANCO GRANEL | D104: 100 | E104: 0.0243 | F104: 5.393
A105: 26 | B105: 65 | C105: PINO EM BARRA FRONTAL TRIPOLAR BRANCO INDIVIDUAL | D105: 100 | E105: 0.047376 | F105: 5.706
A106: 24 | B106: 63 | C106: PINO EM BARRA FRONTAL TRIPOLAR PRETO GRANEL | D106: 100 | E106: 0.0243 | F106: 5.393
A107: 27 | B107: 66 | C107: PINO EM BARRA FRONTAL TRIPOLAR PRETO INDIVIDUAL | D107: 100 | E107: 0.047376 | F107: 5.706
A108: 30 | B108: 102 | C108: PINO MACHO DESMONTÁVEL BIPOLAR BRANCO GRANEL | D108: 100 | E108: 0.004 | F108: 1.41
A109: 33 | B109: 105 | C109: PINO MACHO DESMONTAVEL BIPOLAR BRANCO INDIVIDUAL | D109: 100 | E109: 0.01976 | F109: 1.667
A110: 31 | B110: 103 | C110: PINO MACHO DESMONTÁVEL BIPOLAR PRETO GRANEL | D110: 100 | E110: 0.004 | F110: 1.41
A111: 34 | B111: 106 | C111: PINO MACHO DESMONTAVEL BIPOLAR PRETO INDIVIDUAL | D111: 100 | E111: 0.0088 | F111: 1.76
A112: 37 | B112: 152 | C112: PINO MACHO DESMONTÁVEL TRIPOLAR BRANCO GRANEL | D112: 100 | E112: 0.004 | F112: 1.825
A113: 40 | B113: 155 | C113: PINO MACHO DESMONTAVEL TRIPOLAR BRANCO INDIVIDUAL | D113: 100 | E113: 0.0088 | F113: 2.19
A114: 38 | B114: 153 | C114: PINO MACHO DESMONTÁVEL TRIPOLAR PRETO GRANEL | D114: 100 | E114: 0.004 | F114: 1.79
A115: 41 | B115: 156 | C115: PINO MACHO DESMONTAVEL TRIPOLAR PRETO INDIVIDUAL | D115: 100 | E115: 0.0088 | F115: 2.2
A116: 2 | B116: 2 | C116: PINO MULTIPLICADOR BIPOLAR BRANCO GRANEL | D116: 100 | E116: 0.0204 | F116: 3.04
A117: 5 | B117: 5 | C117: PINO MULTIPLICADOR BIPOLAR BRANCO INDIVIDUAL | D117: 100 | E117: 0.02952 | F117: 3.3
A118: 3 | B118: 3 | C118: PINO MULTIPLICADOR BIPOLAR PRETO GRANEL | D118: 100 | E118: 0.0204 | F118: 3.04
A119: 6 | B119: 6 | C119: PINO MULTIPLICADOR BIPOLAR PRETO INDIVIDUAL | D119: 100 | E119: 0.02952 | F119: 3.3
A120: 9 | B120: 12 | C120: PINO MULTIPLICADOR TRIPOLAR BRANCO GRANEL | D120: 100 | E120: 0.0204 | F120: 3.07
A121: 12 | B121: 15 | C121: PINO MULTIPLICADOR TRIPOLAR BRANCO INDIVIDUAL | D121: 100 | E121: 0.02952 | F121: 3.47
A122: 10 | B122: 13 | C122: PINO MULTIPLICADOR TRIPOLAR PRETO GRANEL | D122: 100 | E122: 0.0204 | F122: 3.07
A123: 13 | B123: 16 | C123: PINO MULTIPLICADOR TRIPOLAR PRETO INDIVIDUAL | D123: 100 | E123: 0.02952 | F123: 3.47
A124: 126 | B124: 3151 | C124: PLAFONIER BÉRGAMO BRANCO E-27 | D124: 30 | E124: 0.022 | F124: 1.65
A125: 127 | B125: 3152 | C125: PLAFONIER BÉRGAMO PRETO E-27 | D125: 30 | E125: 0.022 | F125: 1.66
A126: 130 | B126: 3203 | C126: SPOT DUPLO ALETADO NÁPOLES BRANCO E-27 | D126: 12 | E126: 0.047376 | F126: 2.76
A127: 131 | B127: 3204 | C127: SPOT DUPLO ALETADO NÁPOLES PRETO E-27 | D127: 12 | E127: 0.047376 | F127: 2.78
A128: 122
A129: 123
A130: 138 | B130: 3211 | C130: SPOT DUPLO TRANSLUCIDO NÁPOLES BRANCO E-27 | D130: 12 | E130: 0.047 | F130: 3.61
A131: 134 | B131: 3207 | C131: SPOT DUPLO VENTILADO NÁPOLES BRANCO E-27 | D131: 12 | E131: 0.047 | F131: 3.22
A132: 135 | B132: 3208 | C132: SPOT DUPLO VENTILADO NÁPOLES PRETO E-27 | D132: 12 | E132: 0.047 | F132: 3.112
A133: 129 | B133: 3202 | C133: SPOT SIMPLES ALETADO NÁPOLES PRETO E-27 | D133: 24 | E133: 0.047376 | F133: 3.112
A134: 128 | C134: SPOT SIMPLES ALETADO NÁPOLES BRANCO E-27 | D134: 24 | E134: 0.047376 | F134: 3.08
A135: 132 | B135: 3205 | C135: SPOT SIMPLES VENTILADO NÁPOLES BRANCO E-27 | D135: 24 | E135: 0.047376 | F135: 3.472
A136: 133 | B136: 3206 | C136: SPOT SIMPLES VENTILADO NÁPOLES PRETO E-27 | D136: 24 | E136: 0.047376 | F136: 3.472
A137: 51 | B137: 252 | C137: TOMADA DESMONTÁVEL TRIPOLAR BRANCA GRANEL | D137: 100 | E137: 0.0068 | F137: 1.92
A138: 54 | B138: 255 | C138: TOMADA DESMONTÁVEL TRIPOLAR BRANCA INDIVIDUAL | D138: 100 | E138: 0.016796 | F138: 2.55
A139: 52 | B139: 253 | C139: TOMADA DESMONTÁVEL TRIPOLAR PRETA GRANEL | D139: 100 | E139: 0.0068 | F139: 2.07
A140: 55 | B140: 256 | C140: TOMADA DESMONTÁVEL TRIPOLAR PRETA INDIVIDUAL | D140: 100 | E140: 0.016796 | F140: 2.61
A141: 118 | B141: 901 | C141: TOMADA EM BARRA TRIPOLAR 3T BRANCA | D141: 20 | E141: 0.017 | F141: 1.464
A142: 136 | C142: SPOT SIMPLES TRANSLUCIDO NÁPOLES BRANCO E-27 | D142: 24 | E142: 0.047 | F142: 3.736
A143: 137 | C143: SPOT SIMPLES TRANSLUCIDO NÁPOLES PRETO E-27 | D143: 24 | E143: 0.047 | F143: 3.736
A144: 120 | B144: 903 | C144: TOMADA EM BARRA TRIPOLAR 3T PRETA | D144: 20 | E144: 0.017 | F144: 1.464
A145: 139 | C145: SPOT DUPLO TRANSLUCIDO NÁPOLES PRETO E-27 | D145: 12 | E145: 0.047 | F145: 3.472
A146: 119 | B146: 902 | C146: TOMADA EM BARRA TRIPOLAR 4T BRANCA | D146: 20 | E146: 0.017 | F146: 1.728
A147: 121 | B147: 904 | C147: TOMADA EM BARRA TRIPOLAR 4T PRETA | D147: 20 | E147: 0.017 | F147: 1.728
A148: 57 | B148: 212 | C148: PINO ADAPTADOR TRIPOLAR BRANCO GRANEL | D148: 100 | E148: 0.0088 | F148: 2.43
A149: 58 | B149: 215 | C149: PINO ADAPTADOR TRIPOLAR BRANCO INDIVIDUAL | D149: 100 | E149: 0.021736 | F149: 2.91
A150: 59 | B150: 213 | C150: PINO ADAPTADOR TRIPOLAR PRETO GRANEL | D150: 100 | E150: 0.0088 | F150: 2.41
A151: 60 | B151: 216 | C151: PINO ADAPTADOR TRIPOLAR PRETO INDIVIDUAL | D151: 100 | E151: 0.021736 | F151: 2.862
A152: 61 | B152: 112 | C152: PINO MACHO 90º 10A BIPOLAR BRANCO GRANEL | D152: 100 | E152: 0.0107 | F152: 2.06
A153: 62 | B153: 113 | C153: PINO MACHO 90º 10A BIPOLAR PRETO GRANEL | D153: 100 | E153: 0.0107 | F153: 2.06
A154: 148 | B154: 115 | C154: PINO MACHO 90º 10A BIPOLAR BRANCO INDIVIDUAL | D154: 100 | E154: 0.0217 | F154: 2.532
A155: 149 | B155: 116 | C155: PINO MACHO 90º 10A BIPOLAR PRETO INDIVIDUAL | D155: 100 | E155: 0.0217 | F155: 2.532
A156: 150 | B156: 122 | C156: PINO MACHO 90º 20A BIPOLAR BRANCO GRANEL | D156: 100 | E156: 0.011 | F156: 2.624
A157: 151 | B157: 123 | C157: PINO MACHO 90º 20A BIPOLAR PRETO GRANEL | D157: 100 | E157: 0.011 | F157: 2.624
A158: 152 | B158: 125 | C158: PINO MACHO 90º 20A BIPOLAR BRANCO INDIVIDUAL | D158: 100 | E158: 0.0217 | F158: 3.03
A159: 153 | B159: 126 | C159: PINO MACHO 90º 20A BIPOLAR PRETO INDIVIDUAL | D159: 100 | E159: 0.0217 | F159: 3.03
A160: 154 | B160: 162 | C160: PINO MACHO 90º 10A TRIPOLAR BRANCO GRANEL | D160: 100 | E160: 0.017 | F160: 2.37
A161: 155 | B161: 163 | C161: PINO MACHO 90º 10A TRIPOLAR PRETO GRANEL | D161: 100 | E161: 0.017 | F161: 2.37
A162: 156 | B162: 165 | C162: PINO MACHO 90º 10A TRIPOLAR BRANCO INDIVIDUAL | D162: 100 | E162: 0.0217 | F162: 2.812
A163: 157 | B163: 166 | C163: PINO MACHO 90º 10A TRIPOLAR PRETO INDIVIDUAL | D163: 100 | E163: 0.0217 | F163: 2.812
A164: 158 | B164: 172 | C164: PINO MACHO 90º 20A TRIPOLAR BRANCO GRANEL | D164: 100 | E164: 0.011 | F164: 2.992
A165: 159 | B165: 173 | C165: PINO MACHO 90º 20A TRIPOLAR PRETO GRANEL | D165: 100 | E165: 0.011 | F165: 2.992
A166: 160 | B166: 175 | C166: PINO MACHO 90º 20A TRIPOLAR BRANCO INDIVIDUAL | D166: 100 | E166: 0.0217 | F166: 3.428
A167: 161 | B167: 176 | C167: PINO MACHO 90º 20A TRIPOLAR PRETO INDIVIDUAL | D167: 100 | E167: 0.0217 | F167: 3.428
A168: 162
A169: 163
A170: 164
A171: 165
A172: 166
A173: 167
A174: 168
A175: 169
A176: 170
A177: 171
A178: 172
A179: 173
A180: 174
A181: 175
A182: 176
A183: 177
A184: 178
A185: 179
A186: 180
A187: 181
A188: 182
A189: 183
A190: 184
A191: 185
A192: 186
A193: 187
A194: 188
A195: 189
A196: 190
A197: 191
A198: 192
A199: 193
A200: 194
A201: 195
A202: 196
A203: 197
A204: 198
... 253 more rows

Sheet Tabela de Fretes (hidden)
A2: Tabela de Fretes (01.06.14)
B3: Valor do metro cúbico de frete
A4: Retira | B4: 0
A5: Rio de Janeiro | B5: 0.05
A6: São Paulo | B6: 0.02
A7: São Paulo Interior | B7: 0.05
A8: Bahia | B8: 0.1

Sheet Aferi (Variáveis)
A3: AFERI - Variáveis
A4: Prazo
A5: 1 | B5: 2 | C5: 3 | D5: 4 | E5: 5
A6: 30 | B6: 40 | C6: 50 | D6: 60 | E6: 70 | G6: =IF(A6>0,A6,"") -> 30 | H6: =IF(B6>0,B6,"") -> 40 | I6: =IF(C6>0,C6,"") -> 50 | J6: =IF(D6>0,D6,"") -> 60 | K6: =IF(E6>0,E6,"") -> 70 | L6: =IF(A8>0,A8,"") ->  | M6: =IF(B8>0,B8,"") ->  | N6: =IF(C8>0,C8,"") ->  | O6: =IF(D8>0,D8,"") ->  | P6: =IF(E8>0,E8,"") -> 
A7: 6 | B7: 7 | C7: 8 | D7: 9 | E7: 10
I8: =ROUND(IF(SUM(G6:P6)>0,AVERAGE(G6:P6),0),0) -> 50
A10: Prazo médio | B10: Frete | C10: ICMS | D10: Comissão | E10: Condições
A12: =I8 -> 50 | B12: São Paulo | C12: 7 | D12: 5 | E12: 70 | G12: 18 | H12: ='Tabela de Fretes'!A4 -> Retira | J12: 100 | K12: =IF(E12="",J12,E12) -> 70
G13: 12 | H13: ='Tabela de Fretes'!A5 -> Rio de Janeiro | J13: 30
G14: 7 | H14: ='Tabela de Fretes'!A6 -> São Paulo | J14: 50
B15: =IF(B12="",1,0) -> 0 | C15: =IF(C12="",1,0) -> 0 | D15: =IF(D12="",1,0) -> 0 | E15: =IF(E12="",1,0) -> 0 | G15: ALC | H15: ='Tabela de Fretes'!A7 -> São Paulo Interior | J15: 70
B16: =SUM(B15:E15) -> 0 | G16: ZFM | H16: ='Tabela de Fretes'!A8 -> Bahia | J16: 100
A17: 2008-01-01 | B17: 2008-11-30 | G17: EXP | H17: ='Tabela de Fretes'!A9 -> 0
B18: =IF(B16>0,A17,B17) -> 2008-11-30 | G18: Venda para Exportar | H18: ='Tabela de Fretes'!A10 -> 0
G19: ICMS | H19: ='Tabela de Fretes'!A11 -> 0
F20: =IF(IF(C12="",18,C12)="ICMS",18,IF(C12="",18,C12)) -> 7 | G20: ALC | H20: ='Tabela de Fretes'!A12 -> 0
G21: ZFM | H21: ='Tabela de Fretes'!A13 -> 0
G22: Exportação | H22: ='Tabela de Fretes'!A14 -> 0
G23: AO | H23: ='Tabela de Fretes'!A15 -> 0
G24: 7 | H24: ='Tabela de Fretes'!A16 -> 0 | K24: =IF(B12="",K25,B12) -> São Paulo
G25: 12 | H25: ='Tabela de Fretes'!A17 -> 0 | K25: São Paulo Interior
G26: 18 | H26: ='Tabela de Fretes'!A18 -> 0
H27: ='Tabela de Fretes'!A19 -> 0
H28: ='Tabela de Fretes'!A20 -> 0
H29: ='Tabela de Fretes'!A21 -> 0
H30: ='Tabela de Fretes'!A22 -> 0
H31: ='Tabela de Fretes'!A23 -> 0
H32: ='Tabela de Fretes'!A24 -> 0
H33: ='Tabela de Fretes'!A25 -> 0
H34: ='Tabela de Fretes'!A26 -> 0
H35: ='Tabela de Fretes'!A27 -> 0
H36: ='Tabela de Fretes'!A28 -> 0
H37: ='Tabela de Fretes'!A29 -> 0
H38: ='Tabela de Fretes'!A30 -> 0
H39: ='Tabela de Fretes'!A31 -> 0
H40: ='Tabela de Fretes'!A32 -> 0
H41: ='Tabela de Fretes'!A33 -> 0
H42: ='Tabela de Fretes'!A34 -> 0
H43: ='Tabela de Fretes'!A35 -> 0
H44: ='Tabela de Fretes'!A36 -> 0
H45: ='Tabela de Fretes'!A37 -> 0
H46: ='Tabela de Fretes'!A38 -> 0
H47: ='Tabela de Fretes'!A39 -> 0
H48: ='Tabela de Fretes'!A40 -> 0
H49: ='Tabela de Fretes'!A41 -> 0
H50: ='Tabela de Fretes'!A42 -> 0

Sheet Custo Básico dos Produtos (hidden)
B1: Custo Básico dos Produtos (Revisto em 01.08.18)
B4: Produtos | D4: Custo básico | K4: Preço Mínimo | L4: IPI
B5: Ref. | C5: Descrição | D5: 1 | E5: Ref. | F5: 2 | G5: Ref. | H5: 3 | J5: Total
M6: PREÇO ANTIGO | P6: PREÇO ANTIGO C 8% | R6: Preço antigo até 07.05.17 | S6: PREÇO ANTIGO | T6: DIF EM R$ | U6: PRECO NOVO
A7: 1 | C7: PINO MULTIPLICADOR BIPOLAR BR/PR (4 POTES C/ 20 PÇS) | D7: 0.7726461045 | H7: 0.33 | I7: 0.587 | J7: 0 | K7: 1 | L7: 15 | M7: 0 | O7: =M7*10% -> 0 | P7: =M7+O7 -> 0 | R7: PINO MULTIPLICADOR BIPOLAR BR/PR (4 POTES C/ 20 PÇS) | S7: 0 | T7: =P7-S7 -> 0 | U7: 0
A8: 2 | B8: 2 | C8: PINO MULTIPLICADOR BIPOLAR BRANCO GRANEL | D8: 0.5932731699 | H8: 0.25 | I8: 0.425 | J8: 1.46999853 | K8: 1 | L8: 15 | M8: 1.3999986 | N8: =J8/M8-1 -> 0.05 | O8: =M8*5% -> 0.06999993 | P8: =M8+O8 -> 1.46999853 | Q8: 2 | R8: PINO MULTIPLICADOR BIPOLAR BRANCO GRANEL | S8: 0.68423 | T8: =P8-S8 -> 0.78576853 | U8: 0.7389684
A9: 3 | B9: 3 | C9: PINO MULTIPLICADOR BIPOLAR PRETO GRANEL | D9: 0.5932731699 | H9: 0.25 | I9: 0.425 | J9: 1.46999853 | K9: 1 | L9: 15 | M9: 1.3999986 | N9: =J9/M9-1 -> 0.05 | O9: =M9*5% -> 0.06999993 | P9: 1.46999853 | Q9: 3 | R9: PINO MULTIPLICADOR BIPOLAR PRETO GRANEL | S9: 0.68423 | T9: 0.78576853 | U9: 0.7389684
A10: 4 | J10: 0 | M10: 0 | O10: 0 | P10: 0 | S10: 0 | T10: 0 | U10: 0
A11: 5 | B11: 5 | C11: PINO MULTIPLICADOR BIPOLAR BRANCA INDIVIDUAL | D11: 0.6489463199 | H11: 0.25 | I11: 0.529 | J11: 1.713441114 | K11: 1 | L11: 15 | M11: 1.63184868 | N11: 0.05 | O11: 0.081592434 | P11: 1.713441114 | Q11: 5 | R11: PINO MULTIPLICADOR BIPOLAR BRANCA INDIVIDUAL | S11: 0.797544 | T11: 0.915897114 | U11: 0.86134752
A12: 6 | B12: 6 | C12: PINO MULTIPLICADOR BIPOLAR PRETO INDIVIDUAL | D12: 0.6489463199 | H12: 0.25 | I12: 0.529 | J12: 1.713441114 | K12: 1 | L12: 15 | M12: 1.63184868 | N12: 0.05 | O12: 0.081592434 | P12: 1.713441114 | Q12: 6 | R12: PINO MULTIPLICADOR BIPOLAR PRETO INDIVIDUAL | S12: 0.797544 | T12: 0.915897114 | U12: 0.86134752
A13: 7 | J13: 0 | M13: 0 | O13: 0 | P13: 0 | S13: 0 | T13: 0 | U13: 0
A14: 8 | C14: PINO MULTIPLICADOR TRIPOLAR BR/PR (4 POTES C/ 20 PÇS) | D14: 0.923687542 | H14: 0.4 | I14: 0.715 | J14: 0 | K14: 1 | L14: 15 | M14: 0 | O14: 0 | P14: 0 | R14: PINO MULTIPLICADOR TRIPOLAR BR/PR (4 POTES C/ 20 PÇS) | S14: 0 | T14: 0 | U14: 0
A15: 9 | B15: 12 | C15: PINO MULTIPLICADOR TRIPOLAR BRANCO GRANEL | D15: 0.7442413199 | H15: 0.3 | I15: 0.552 | J15: 1.881964854 | K15: 1 | L15: 15 | M15: 1.79234748 | N15: 0.05 | O15: 0.089617374 | P15: 1.881964854 | Q15: 12 | R15: PINO MULTIPLICADOR TRIPOLAR BRANCO GRANEL | S15: 0.875984 | T15: 1.005980854 | U15: 0.94606272
A16: 10 | B16: 13 | C16: PINO MULTIPLICADOR TRIPOLAR PRETO GRANEL | D16: 0.7442413199 | H16: 0.3 | I16: 0.552 | J16: 1.881964854 | K16: 1 | L16: 15 | M16: 1.79234748 | N16: 0.05 | O16: 0.089617374 | P16: 1.881964854 | Q16: 13 | R16: PINO MULTIPLICADOR TRIPOLAR PRETO GRANEL | S16: 0.875984 | T16: 1.005980854 | U16: 0.94606272
A17: 11 | J17: 0 | M17: 0 | O17: 0 | P17: 0 | S17: 0 | T17: 0 | U17: 0
A18: 12 | B18: 15 | C18: PINO MULTIPLICADOR TRIPOLAR BRANCO INDIVIDUAL | D18: 0.7996213199 | H18: 0.3 | I18: 0.656 | J18: 2.124496836 | K18: 1 | L18: 15 | M18: 2.02333032 | N18: 0.05 | O18: 0.101166516 | P18: 2.124496836 | Q18: 15 | R18: PINO MULTIPLICADOR TRIPOLAR BRANCO INDIVIDUAL | S18: 0.988874 | T18: 1.135622836 | U18: 1.06798392
A19: 13 | B19: 16 | C19: PINO MULTIPLICADOR TRIPOLAR PRETO INDIVIDUAL | D19: 0.7996213199 | H19: 0.3 | I19: 0.656 | J19: 2.124496836 | K19: 1 | L19: 15 | M19: 2.02333032 | N19: 0.05 | O19: 0.101166516 | P19: 2.124496836 | Q19: 16 | R19: PINO MULTIPLICADOR TRIPOLAR PRETO INDIVIDUAL | S19: 0.988874 | T19: 1.135622836 | U19: 1.06798392
A20: 14 | J20: 0 | M20: 0 | O20: 0 | P20: 0 | S20: 0 | T20: 0 | U20: 0
A21: 15 | C21: PINO EM BARRA FRONTAL BIPOLAR BR/PR 4 PTS C/ 12 PCS | D21: 1.319935085 | I21: 1.204 | J21: 0 | K21: 1 | L21: 15 | M21: 0 | O21: 0 | P21: 0 | R21: PINO EM BARRA FRONTAL BIPOLAR BR/PR 4 PTS C/ 12 PCS | S21: 0 | T21: 0 | U21: 0
A22: 16 | B22: 52 | C22: PINO EM BARRA FRONTAL BIPOLAR BRANCO GRANEL | D22: 1.02181632 | I22: 0.922 | J22: 2.011769298 | K22: 1 | L22: 15 | M22: 1.91597076 | N22: 0.05 | O22: 0.095798538 | P22: 2.011769298 | Q22: 52 | R22: PINO EM BARRA FRONTAL BIPOLAR BRANCO GRANEL | S22: 0.936404 | T22: 1.075365298 | U22: 1.01131632
A23: 17 | B23: 53 | C23: PINO EM BARRA FRONTAL BIPOLAR PRETO GRANEL | D23: 1.02181632 | I23: 0.922 | J23: 2.011769298 | K23: 1 | L23: 15 | M23: 1.91597076 | N23: 0.05 | O23: 0.095798538 | P23: 2.011769298 | Q23: 53 | R23: PINO EM BARRA FRONTAL BIPOLAR PRETO GRANEL | S23: 0.936404 | T23: 1.075365298 | U23: 1.01131632
A24: 18 | J24: 0 | M24: 0 | O24: 0 | P24: 0 | S24: 0 | T24: 0 | U24: 0
A25: 19 | B25: 55 | C25: PINO EM BARRA FRONTAL BIPOLAR BRANCO INDIVIDUAL | D25: 1.08059632 | I25: 1.016 | J25: 2.272064256 | K25: 1 | L25: 15 | M25: 2.16387072 | N25: 0.05 | O25: 0.108193536 | P25: 2.272064256 | Q25: 55 | R25: PINO EM BARRA FRONTAL BIPOLAR BRANCO INDIVIDUAL | S25: 1.057562 | T25: 1.214502256 | U25: 1.14216696
A26: 20 | B26: 56 | C26: PINO EM BARRA FRONTAL BIPOLAR PRETO INDIVIDUAL | D26: 1.08059632 | I26: 1.016 | J26: 2.272064256 | K26: 1 | L26: 15 | M26: 2.16387072 | N26: 0.05 | O26: 0.108193536 | P26: 2.272064256 | Q26: 56 | R26: PINO EM BARRA FRONTAL BIPOLAR PRETO INDIVIDUAL | S26: 1.057562 | T26: 1.214502256 | U26: 1.14216696
A27: 21 | J27: 0 | M27: 0 | O27: 0 | P27: 0 | S27: 0 | T27: 0 | U27: 0
A28: 22 | C28: PINO EM BARRA FRONTAL TRIPOLAR BR/PR 4 PTS C/ 12 PCS | D28: 1.630635085 | I28: 1.546 | J28: 0 | K28: 1 | L28: 15 | M28: 0 | O28: 0 | P28: 0 | R28: PINO EM BARRA FRONTAL TRIPOLAR BR/PR 4 PTS C/ 12 PCS | S28: 0 | T28: 0 | U28: 0
A29: 23 | B29: 62 | C29: PINO EM BARRA FRONTAL TRIPOLAR BRANCO GRANEL | D29: 1.33251632 | I29: 1.264 | J29: 2.801311128 | K29: 1 | L29: 15 | M29: 2.66791536 | N29: 0.05 | O29: 0.133395768 | P29: 2.801311128 | Q29: 62 | R29: PINO EM BARRA FRONTAL TRIPOLAR BRANCO GRANEL | S29: 1.303906 | T29: 1.497405128 | U29: 1.40821848
A30: 24 | B30: 63 | C30: PINO EM BARRA FRONTAL TRIPOLAR PRETO GRANEL | D30: 1.33251632 | I30: 1.264 | J30: 2.801311128 | K30: 1 | L30: 15 | M30: 2.66791536 | N30: 0.05 | O30: 0.133395768 | P30: 2.801311128 | Q30: 63 | R30: PINO EM BARRA FRONTAL TRIPOLAR PRETO GRANEL | S30: 1.303906 | T30: 1.497405128 | U30: 1.40821848
A31: 25 | J31: 0 | M31: 0 | O31: 0 | P31: 0 | S31: 0 | T31: 0 | U31: 0
A32: 26 | B32: 65 | C32: PINO EM BARRA FRONTAL TRIPOLAR BRANCO INDIVIDUAL | D32: 1.39129632 | I32: 1.358 | J32: 3.061381554 | K32: 1 | L32: 15 | M32: 2.91560148 | N32: 0.05 | O32: 0.145780074 | P32: 3.061381554 | Q32: 65 | R32: PINO EM BARRA FRONTAL TRIPOLAR BRANCO INDIVIDUAL | S32: 1.424958 | T32: 1.636423554 | U32: 1.53895464
A33: 27 | B33: 66 | C33: PINO EM BARRA FRONTAL TRIPOLAR PRETO INDIVIDUAL | D33: 1.39129632 | I33: 1.358 | J33: 3.061381554 | K33: 1 | L33: 15 | M33: 2.91560148 | N33: 0.05 | O33: 0.145780074 | P33: 3.061381554 | Q33: 66 | R33: PINO EM BARRA FRONTAL TRIPOLAR PRETO INDIVIDUAL | S33: 1.424958 | T33: 1.636423554 | U33: 1.53895464
A34: 28 | J34: 0 | M34: 0 | O34: 0 | P34: 0 | S34: 0 | T34: 0 | U34: 0
A35: 29 | C35: PINO MACHO DESMONTAVEL BIPOLAR BR/PR (4 POTES C/ 60 PCS) | D35: 0.5765685939 | I35: 0.589 | J35: 0 | K35: 1 | L35: 15 | M35: 0 | O35: 0 | P35: 0 | R35: PINO MACHO DESMONTAVEL BIPOLAR BR/PR (4 POTES C/ 60 PCS) | S35: 0 | T35: 0 | U35: 0
A36: 30 | B36: 102 | C36: PINO MACHO DESMONTÁVEL BIPOLAR BRANCO GRANEL | D36: 0.5574973999 | I36: 0.538 | J36: 1.200822084 | K36: 1 | L36: 15 | M36: 1.14364008 | N36: 0.05 | O36: 0.057182004 | P36: 1.200822084 | Q36: 102 | R36: PINO MACHO DESMONTÁVEL BIPOLAR BRANCO GRANEL | S36: 0.558938 | T36: 0.641884084 | U36: 0.60365304
A37: 31 | B37: 103 | C37: PINO MACHO DESMONTÁVEL BIPOLAR PRETO GRANEL | D37: 0.5574973999 | I37: 0.538 | J37: 1.200822084 | K37: 1 | L37: 15 | M37: 1.14364008 | N37: 0.05 | O37: 0.057182004 | P37: 1.200822084 | Q37: 103 | R37: PINO MACHO DESMONTÁVEL BIPOLAR PRETO GRANEL | S37: 0.558938 | T37: 0.641884084 | U37: 0.60365304
A38: 32 | J38: 0 | M38: 0 | O38: 0 | P38: 0 | S38: 0 | T38: 0 | U38: 0
A39: 33 | B39: 105 | C39: PINO MACHO DESMONTAVEL BIPOLAR BRANCO INDIVIDUAL | D39: 0.6018873999 | I39: 0.636 | J39: 1.418530806 | K39: 1 | L39: 15 | M39: 1.35098172 | N39: 0.05 | O39: 0.067549086 | P39: 1.418530806 | Q39: 105 | R39: PINO MACHO DESMONTAVEL BIPOLAR BRANCO INDIVIDUAL | S39: 0.660274 | T39: 0.758256806 | U39: 0.71309592
A40: 34 | B40: 106 | C40: PINO MACHO DESMONTAVEL BIPOLAR PRETO INDIVIDUAL | D40: 0.6018873999 | I40: 0.636 | J40: 1.418530806 | K40: 1 | L40: 15 | M40: 1.35098172 | N40: 0.05 | O40: 0.067549086 | P40: 1.418530806 | Q40: 106 | R40: PINO MACHO DESMONTAVEL BIPOLAR PRETO INDIVIDUAL | S40: 0.660274 | T40: 0.758256806 | U40: 0.71309592
A41: 35 | J41: 0 | M41: 0 | O41: 0 | P41: 0 | S41: 0 | T41: 0 | U41: 0
A42: 36 | C42: PINO MACHO DESMONTAVEL TRIPOLAR BR/PR (4 POTES C/ 60 PCS) | D42: 0.7828915041 | I42: 0.81 | J42: 0 | K42: 1 | L42: 15 | M42: 0 | O42: 0 | P42: 0 | R42: PINO MACHO DESMONTAVEL TRIPOLAR BR/PR (4 POTES C/ 60 PCS) | S42: 0 | T42: 0 | U42: 0
A43: 37 | B43: 152 | C43: PINO MACHO DESMONTÁVEL TRIPOLAR BRANCO GRANEL | D43: 0.7638203101 | I43: 0.747 | J43: 1.6783767 | K43: 1 | L43: 15 | M43: 1.598454 | N43: 0.05 | O43: 0.0799227 | P43: 1.6783767 | Q43: 152 | R43: PINO MACHO DESMONTÁVEL TRIPOLAR BRANCO GRANEL | S43: 0.78122 | T43: 0.8971567 | U43: 0.8437176
A44: 38 | B44: 153 | C44: PINO MACHO DESMONTÁVEL TRIPOLAR PRETO GRANEL | D44: 0.7638203101 | I44: 0.747 | J44: 1.6783767 | K44: 1 | L44: 15 | M44: 1.598454 | N44: 0.05 | O44: 0.0799227 | P44: 1.6783767 | Q44: 153 | R44: PINO MACHO DESMONTÁVEL TRIPOLAR PRETO GRANEL | S44: 0.78122 | T44: 0.8971567 | U44: 0.8437176
A45: 39 | J45: 0 | M45: 0 | O45: 0 | P45: 0 | S45: 0 | T45: 0 | U45: 0
A46: 40 | B46: 155 | C46: PINO MACHO DESMONTAVEL TRIPOLAR BRANCO INDIVIDUAL | D46: 0.8082103101 | I46: 0.845 | J46: 1.896309954 | K46: 1 | L46: 15 | M46: 1.80600948 | N46: 0.05 | O46: 0.090300474 | P46: 1.896309954 | Q46: 155 | R46: PINO MACHO DESMONTAVEL TRIPOLAR BRANCO INDIVIDUAL | S46: 0.882662 | T46: 1.013647954 | U46: 0.95327496
A47: 41 | B47: 156 | C47: PINO MACHO DESMONTAVEL TRIPOLAR PRETO INDIVIDUAL | D47: 0.8082103101 | I47: 0.845 | J47: 1.896309954 | K47: 1 | L47: 15 | M47: 1.80600948 | N47: 0.05 | O47: 0.090300474 | P47: 1.896309954 | Q47: 156 | R47: PINO MACHO DESMONTAVEL TRIPOLAR PRETO INDIVIDUAL | S47: 0.885948 | T47: 1.010361954 | U47: 0.95682384
A48: 42 | J48: 0 | M48: 0 | O48: 0 | P48: 0 | S48: 0 | T48: 0 | U48: 0
A49: 43 | C49: PINO ADAPTADOR BIPOLAR BR/PR 4 PTS C/ 45 PCS | D49: 0.7902611298 | I49: 0.716 | J49: 0 | K49: 1 | L49: 15 | M49: 0 | O49: 0 | P49: 0 | R49: PINO ADAPTADOR BIPOLAR BR/PR 4 PTS C/ 45 PCS | S49: 0 | T49: 0 | U49: 0
A50: 44 | B50: 202 | C50: PINO ADAPTADOR BIPOLAR BRANCO GRANEL | D50: 0.7413163199 | H50: 0.05 | I50: 0.639 | J50: 1.576351854 | K50: 1 | L50: 15 | M50: 1.50128748 | N50: 0.05 | O50: 0.075064374 | P50: 1.576351854 | Q50: 202 | R50: PINO ADAPTADOR BIPOLAR BRANCO GRANEL | S50: 0.733732 | T50: 0.842619854 | U50: 0.79243056
A51: 45 | B51: 203 | C51: PINO ADAPTADOR BIPOLAR PRETO GRANEL | D51: 0.7413163199 | H51: 0.05 | I51: 0.639 | J51: 1.576351854 | K51: 1 | L51: 15 | M51: 1.50128748 | N51: 0.05 | O51: 0.075064374 | P51: 1.576351854 | Q51: 203 | R51: PINO ADAPTADOR BIPOLAR PRETO GRANEL | S51: 0.733732 | T51: 0.842619854 | U51: 0.79243056
A52: 46 | J52: 0 | M52: 0 | O52: 0 | P52: 0 | S52: 0 | T52: 0 | U52: 0
A53: 47 | B53: 205 | C53: PINO ADAPTADOR BIPOLAR BRANCO INDIVIDUAL | D53: 0.7895063199 | H53: 0.05 | I53: 0.737 | J53: 1.800210258 | K53: 1 | L53: 15 | M53: 1.71448596 | N53: 0.05 | O53: 0.085724298 | P53: 1.800210258 | Q53: 205 | R53: PINO ADAPTADOR BIPOLAR BRANCO INDIVIDUAL | S53: 0.83793 | T53: 0.962280258 | U53: 0.9049644
A54: 48 | B54: 206 | C54: PINO ADAPTADOR BIPOLAR PRETO INDIVIDUAL | D54: 0.7895063199 | H54: 0.05 | I54: 0.737 | J54: 1.800210258 | K54: 1 | L54: 15 | M54: 1.71448596 | N54: 0.05 | O54: 0.085724298 | P54: 1.800210258 | Q54: 206 | R54: PINO ADAPTADOR BIPOLAR PRETO INDIVIDUAL | S54: 0.83793 | T54: 0.962280258 | U54: 0.9049644
A55: 49 | J55: 0 | M55: 0 | O55: 0 | P55: 0 | S55: 0 | T55: 0 | U55: 0
A56: 50 | C56: TOMADA DESMONTAVEL TRIPOLAR BR/PR/CZ (4 POTES C/ 30 PCS) | D56: 0.692114554 | I56: 0.602 | J56: 0 | K56: 1 | L56: 15 | M56: 0 | O56: 0 | P56: 0 | R56: TOMADA DESMONTAVEL TRIPOLAR BR/PR/CZ (4 POTES C/ 30 PCS) | S56: 0 | T56: 0 | U56: 0
A57: 51 | B57: 252 | C57: TOMADA DESMONTÁVEL TRIPOLAR BRANCA GRANEL | D57: 0.6215611053 | I57: 0.491 | J57: 1.134098658 | K57: 1 | L57: 15 | M57: 1.08009396 | N57: 0.05 | O57: 0.054004698 | P57: 1.134098658 | Q57: 252 | R57: TOMADA DESMONTÁVEL TRIPOLAR BRANCA GRANEL | S57: 0.52788 | T57: 0.606218658 | U57: 0.5701104
A58: 52 | B58: 253 | C58: TOMADA DESMONTÁVEL TRIPOLAR PRETA GRANEL | D58: 0.6215611053 | I58: 0.491 | J58: 1.134098658 | K58: 1 | L58: 15 | M58: 1.08009396 | N58: 0.05 | O58: 0.054004698 | P58: 1.134098658 | Q58: 253 | R58: TOMADA DESMONTÁVEL TRIPOLAR PRETA GRANEL | S58: 0.52788 | T58: 0.606218658 | U58: 0.5701104
A59: 53 | J59: 0 | M59: 0 | O59: 0 | P59: 0 | S59: 0 | T59: 0 | U59: 0
A60: 54 | B60: 255 | C60: TOMADA DESMONTÁVEL BRANCA TRIPOLAR INDIVIDUAL | D60: 0.6686511053 | I60: 0.586 | J60: 1.357720056 | K60: 1 | L60: 15 | M60: 1.29306672 | N60: 0.05 | O60: 0.064653336 | P60: 1.357720056 | Q60: 255 | R60: TOMADA DESMONTÁVEL BRANCA TRIPOLAR INDIVIDUAL | S60: 0.631972 | T60: 0.725748056 | U60: 0.68252976
A61: 55 | B61: 256 | C61: TOMADA DESMONTÁVEL PRETA TRIPOLAR INDIVIDUAL | D61: 0.6686511053 | I61: 0.586 | J61: 1.357720056 | K61: 1 | L61: 15 | M61: 1.29306672 | N61: 0.05 | O61: 0.064653336 | P61: 1.357720056 | Q61: 256 | R61: TOMADA DESMONTÁVEL PRETA TRIPOLAR INDIVIDUAL | S61: 0.631972 | T61: 0.725748056 | U61: 0.68252976
A62: 56 | J62: 0 | M62: 0 | O62: 0 | P62: 0 | S62: 0 | T62: 0 | U62: 0
A63: 57 | B63: 212 | C63: PINO ADAPTADOR TRIPOLAR BRANCO GRANEL | D63: 0.741 | H63: 0.05 | I63: 0.639 | J63: 1.576289484 | K63: 1 | L63: 15 | M63: 1.50122808 | O63: 0.075061404 | P63: 1.576289484 | S63: 0 | T63: 1.576289484 | U63: 0
A64: 58 | B64: 215 | C64: PINO ADAPTADOR TRIPOLAR BRANCO INDIVIDUAL | D64: 0.79 | H64: 0.05 | I64: 0.639 | J64: 1.800272628 | K64: 1 | L64: 15 | M64: 1.71454536 | O64: 0.085727268 | P64: 1.800272628 | S64: 0 | T64: 1.800272628 | U64: 0
A65: 59 | B65: 213 | C65: PINO ADAPTADOR TRIPOLAR PRETO GRANEL | D65: 0.741 | H65: 0.05 | I65: 0.737 | J65: 1.576289484 | K65: 1 | L65: 15 | M65: 1.50122808 | O65: 0.075061404 | P65: 1.576289484 | S65: 0 | T65: 1.576289484 | U65: 0
A66: 60 | B66: 216 | C66: PINO ADAPTADOR TRIPOLAR PRETO INDIVIDUAL | D66: 0.79 | H66: 0.05 | I66: 0.737 | J66: 1.800272628 | K66: 1 | L66: 15 | M66: 1.71454536 | O66: 0.085727268 | P66: 1.800272628 | S66: 0 | T66: 1.800272628 | U66: 0
A67: 61 | J67: 0 | M67: 0 | O67: 0 | P67: 0 | S67: 0 | T67: 0 | U67: 0
A68: 62 | J68: 0 | M68: 0 | O68: 0 | P68: 0 | S68: 0 | T68: 0 | U68: 0
A69: 63 | J69: 0 | M69: 0 | O69: 0 | P69: 0 | S69: 0 | T69: 0 | U69: 0
A70: 64 | J70: 0 | M70: 0 | O70: 0 | P70: 0 | S70: 0 | T70: 0 | U70: 0
A71: 65 | J71: 0 | M71: 0 | O71: 0 | P71: 0 | S71: 0 | T71: 0 | U71: 0
A72: 66 | B72: 601 | C72: EXTENSAO COMPACT BIPOLAR BRANCA 2 MTS | D72: 2.767114636 | I72: 2.145 | J72: 4.970285145 | K72: 1 | L72: 5 | M72: 4.7336049 | N72: 0.05 | O72: 0.236680245 | P72: =M72+O72 -> 4.970285145 | Q72: 601 | R72: EXTENSAO COMPACT BIPOLAR BRANCA 2 MTS | S72: 2.435244 | T72: =P72-S72 -> 2.535041145 | U72: 2.63006352
A73: 67 | B73: 602 | C73: EXTENSAO COMPACT BIPOLAR BRANCA 3 MTS | D73: 3.489514636 | I73: 2.674 | J73: 5.831338716 | K73: 1 | L73: 5 | M73: 5.55365592 | N73: =J73/M73-1 -> 0.05 | O73: =M73*5% -> 0.277682796 | P73: 5.831338716 | Q73: 602 | R73: EXTENSAO COMPACT BIPOLAR BRANCA 3 MTS | S73: 2.857124 | T73: 2.974214716 | U73: 3.08569392
A74: 68 | B74: 603 | C74: EXTENSAO COMPACT BIPOLAR BRANCA 5 MTS | D74: 4.183614636 | I74: 3.569 | J74: 7.865194932 | K74: 1 | L74: 5 | M74: 7.49066184 | N74: 0.05 | O74: 0.374533092 | P74: 7.865194932 | Q74: 603 | R74: EXTENSAO COMPACT BIPOLAR BRANCA 5 MTS | S74: 3.85363 | T74: 4.011564932 | U74: 4.1619204
A75: 69 | B75: 604 | C75: EXTENSAO COMPACT BIPOLAR BRANCA 10 MTS | D75: 6.57105647 | I75: 5.726 | J75: 12.83371341 | K75: 1 | L75: 5 | M75: 11.99412468 | N75: 0.07 | O75: =M75*7% -> 0.8395887276 | P75: 12.83371341 | Q75: 604 | R75: EXTENSAO COMPACT BIPOLAR BRANCA 10 MTS | S75: 6.170472 | T75: 6.663241408 | U75: 6.66410976
A76: 70 | B76: 605 | C76: EXTENSAO COMPACT BIPOLAR PRETA 2 MTS | D76: 2.762114636 | I76: 2.145 | J76: 4.970285145 | K76: 1 | L76: 5 | M76: 4.7336049 | N76: 0.05 | O76: 0.236680245 | P76: 4.970285145 | Q76: 605 | R76: EXTENSAO COMPACT BIPOLAR PRETA 2 MTS | S76: 2.435244 | T76: 2.535041145 | U76: 2.63006352
A77: 71 | B77: 606 | C77: EXTENSAO COMPACT BIPOLAR PRETA 3 MTS | D77: 3.207114636 | I77: 2.674 | J77: 5.831338716 | K77: 1 | L77: 5 | M77: 5.55365592 | N77: 0.05 | O77: 0.277682796 | P77: 5.831338716 | Q77: 606 | R77: EXTENSAO COMPACT BIPOLAR PRETA 3 MTS | S77: 2.857124 | T77: 2.974214716 | U77: 3.08569392
A78: 72 | B78: 607 | C78: EXTENSAO COMPACT BIPOLAR PRETA 5 MTS | D78: 4.183614636 | I78: 3.569 | J78: 7.865194932 | K78: 1 | L78: 5 | M78: 7.49066184 | N78: 0.05 | O78: 0.374533092 | P78: 7.865194932 | Q78: 607 | R78: EXTENSAO COMPACT BIPOLAR PRETA 5 MTS | S78: 3.85363 | T78: 4.011564932 | U78: 4.1619204
A79: 73 | B79: 608 | C79: EXTENSAO COMPACT BIPOLAR PRETA 10 MTS | D79: 6.57105647 | I79: 5.726 | J79: 12.83371341 | K79: 1 | L79: 5 | M79: 11.99412468 | N79: 0.07 | O79: =M79*7% -> 0.8395887276 | P79: 12.83371341 | Q79: 608 | R79: EXTENSAO COMPACT BIPOLAR PRETA 10 MTS | S79: 6.170472 | T79: 6.663241408 | U79: 6.66410976
A80: 74 | J80: 0 | M80: 0 | O80: 0 | P80: 0 | S80: 0 | T80: 0 | U80: 0
A81: 75 | J81: 0 | M81: 0 | O81: 0 | P81: 0 | S81: 0 | T81: 0 | U81: 0
A82: 76 | J82: 0 | M82: 0 | O82: 0 | P82: 0 | S82: 0 | T82: 0 | U82: 0
A83: 77 | J83: 0 | M83: 0 | O83: 0 | P83: 0 | S83: 0 | T83: 0 | U83: 0
A84: 78 | B84: 651 | C84: EXTENSAO COMPACT TRIPOLAR BRANCA 2 MTS | D84: 3.502933312 | I84: 3.162 | J84: 7.075760265 | K84: 1 | L84: 5 | M84: 6.7388193 | N84: 0.05 | O84: 0.336940965 | P84: 7.075760265 | Q84: 651 | R84: EXTENSAO COMPACT TRIPOLAR BRANCA 2 MTS | S84: 3.466836 | T84: 3.608924265 | U84: 3.74418288
A85: 79 | B85: 652 | C85: EXTENSAO COMPACT TRIPOLAR BRANCA 3 MTS | D85: 4.262914636 | I85: 3.889 | J85: 8.67021813 | K85: 1 | L85: 5 | M85: 8.2573506 | N85: 0.05 | O85: 0.41286753 | P85: 8.67021813 | Q85: 652 | R85: EXTENSAO COMPACT TRIPOLAR BRANCA 3 MTS | S85: 4.248056 | T85: 4.42216213 | U85: 4.58790048
A86: 80 | B86: 653 | C86: EXTENSAO COMPACT TRIPOLAR BRANCA 5 MTS | D86: 5.855414636 | I86: 5.398 | J86: 12.24984902 | K86: 1 | L86: 5 | M86: 11.66652288 | N86: 0.05 | O86: 0.583326144 | P86: 12.24984902 | Q86: 653 | R86: EXTENSAO COMPACT TRIPOLAR BRANCA 5 MTS | S86: 6.001932 | T86: 6.247917024 | U86: 6.48208656
A87: 81 | B87: 654 | C87: EXTENSAO COMPACT TRIPOLAR BRANCA 10 MTS | D87: 9.83731647 | I87: 9.088 | J87: 21.68473346 | K87: 1 | L87: 5 | M87: 20.26610604 | N87: 0.07 | O87: =M87*7% -> 1.418627423 | P87: 21.68473346 | Q87: 654 | R87: EXTENSAO COMPACT TRIPOLAR BRANCA 10 MTS | S87: 10.426054 | T87: 11.25867946 | U87: 11.26013832
A88: 82 | B88: 655 | C88: EXTENSAO COMPACT TRIPOLAR PRETA 2 MTS | D88: 3.502933312 | I88: 3.162 | J88: 7.075760265 | K88: 1 | L88: 5 | M88: 6.7388193 | N88: 0.05 | O88: 0.336940965 | P88: 7.075760265 | Q88: 655 | R88: EXTENSAO COMPACT TRIPOLAR PRETA 2 MTS | S88: 3.466836 | T88: 3.608924265 | U88: 3.74418288
A89: 83 | B89: 656 | C89: EXTENSAO COMPACT TRIPOLAR PRETA 3 MTS | D89: 4.262914636 | I89: 3.889 | J89: 8.67021813 | K89: 1 | L89: 5 | M89: 8.2573506 | N89: 0.05 | O89: 0.41286753 | P89: 8.67021813 | Q89: 656 | R89: EXTENSAO COMPACT TRIPOLAR PRETA 3 MTS | S89: 4.248056 | T89: 4.42216213 | U89: 4.58790048
A90: 84 | B90: 657 | C90: EXTENSAO COMPACT TRIPOLAR PRETA 5 MTS | D90: 5.855414636 | I90: 5.398 | J90: 12.24984902 | K90: 1 | L90: 5 | M90: 11.66652288 | N90: 0.05 | O90: 0.583326144 | P90: 12.24984902 | Q90: 657 | R90: EXTENSAO COMPACT TRIPOLAR PRETA 5 MTS | S90: 6.001932 | T90: 6.247917024 | U90: 6.48208656
A91: 85 | B91: 658 | C91: EXTENSAO COMPACT TRIPOLAR PRETA 10 MTS | D91: 9.83731647 | I91: 9.088 | J91: 21.68473346 | K91: 1 | L91: 5 | M91: 20.26610604 | N91: 0.07 | O91: =M91*7% -> 1.418627423 | P91: 21.68473346 | Q91: 658 | R91: EXTENSAO COMPACT TRIPOLAR PRETA 10 MTS | S91: 10.426054 | T91: 11.25867946 | U91: 11.26013832
A92: 86 | J92: 0 | M92: 0 | O92: 0 | P92: 0 | S92: 0 | T92: 0 | U92: 0
A93: 87 | J93: 0 | M93: 0 | O93: 0 | P93: 0 | S93: 0 | T93: 0 | U93: 0
A94: 88 | J94: 0 | M94: 0 | O94: 0 | P94: 0 | S94: 0 | T94: 0 | U94: 0
A95: 89 | J95: 0 | M95: 0 | O95: 0 | P95: 0 | S95: 0 | T95: 0 | U95: 0
A96: 90 | B96: 701 | C96: FILTRO DE LINHA BIVOLT FULL ENERGY BRANCO 3T FLOW PACK | D96: 4.680466412 | H96: 0.5 | I96: 4.556 | J96: 9.239398746 | K96: 1 | L96: 15 | M96: 8.634952099 | N96: 0.07 | O96: =M96*7% -> 0.6044466469 | P96: 9.239398746 | Q96: 701 | R96: FILTRO DE LINHA BIVOLT FULL ENERGY BRANCO 3T FLOW PACK | S96: 5.195696 | T96: 4.043702746 | U96: 5.61135168
A97: 91 | B97: 702 | C97: FILTRO DE LINHA BIVOLT FULL ENERGY BRANCO 4T FLOW PACK | D97: 5.043478005 | H97: 0.5 | I97: 4.857 | J97: 9.83674676 | K97: 1 | L97: 15 | M97: 9.193221271 | N97: 0.07 | O97: =M97*7% -> 0.643525489 | P97: 9.83674676 | Q97: 702 | R97: FILTRO DE LINHA BIVOLT FULL ENERGY BRANCO 4T FLOW PACK | S97: 5.53161 | T97: 4.30513676 | U97: 5.9741388
A98: 92 | B98: 703 | C98: FILTRO DE LINHA BIVOLT FULL ENERGY BRANCO 5T FLOW PACK | D98: 5.429784157 | H98: 0.5 | I98: 5.188 | J98: 10.45672529 | K98: 1 | L98: 15 | M98: 9.772640458 | N98: 0.07 | O98: 0.6840848321 | P98: 10.45672529 | Q98: 703 | R98: FILTRO DE LINHA BIVOLT FULL ENERGY BRANCO 5T FLOW PACK | S98: 5.880244 | T98: 4.57648129 | U98: 6.35066352
A99: 93 | B99: 704 | C99: FILTRO DE LINHA BIVOLT FULL ENERGY BRANCO 6T FLOW PACK | D99: 5.818181189 | H99: 0.5 | I99: 5.497 | J99: 11.00713211 | K99: 1 | L99: 15 | M99: 10.28703936 | N99: 0.07 | O99: 0.7200927551 | P99: 11.00713211 | Q99: 704 | R99: FILTRO DE LINHA BIVOLT FULL ENERGY BRANCO 6T FLOW PACK | S99: 6.189764 | T99: 4.817368113 | U99: 6.68494512
A100: 94 | B100: 705 | C100: FILTRO DE LINHA BIVOLT FULL ENERGY PRETO 3T FLOW PACK | D100: 4.680466412 | H100: 0.5 | I100: 4.556 | J100: 9.239398746 | K100: 1 | L100: 15 | M100: 8.634952099 | N100: 0.07 | O100: 0.6044466469 | P100: 9.239398746 | Q100: 705 | R100: FILTRO DE LINHA BIVOLT FULL ENERGY PRETO 3T FLOW PACK | S100: 5.195696 | T100: 4.043702746 | U100: 5.61135168
A101: 95 | B101: 706 | C101: FILTRO DE LINHA BIVOLT FULL ENERGY PRETO 4T FLOW PACK | D101: 5.043478005 | H101: 0.5 | I101: 4.857 | J101: 9.83674676 | K101: 1 | L101: 15 | M101: 9.193221271 | N101: 0.07 | O101: 0.643525489 | P101: 9.83674676 | Q101: 706 | R101: FILTRO DE LINHA BIVOLT FULL ENERGY PRETO 4T FLOW PACK | S101: 5.53161 | T101: 4.30513676 | U101: 5.9741388
A102: 96 | B102: 707 | C102: FILTRO DE LINHA BIVOLT FULL ENERGY PRETO 5T FLOW PACK | D102: 5.408669157 | H102: 0.5 | I102: 5.188 | J102: 10.45672529 | K102: 1 | L102: 15 | M102: 9.772640458 | N102: 0.07 | O102: 0.6840848321 | P102: 10.45672529 | Q102: 707 | R102: FILTRO DE LINHA BIVOLT FULL ENERGY PRETO 5T FLOW PACK | S102: 5.880244 | T102: 4.57648129 | U102: 6.35066352
A103: 97 | B103: 708 | C103: FILTRO DE LINHA BIVOLT FULL ENERGY PRETO 6T FLOW PACK | D103: 5.818181189 | H103: 0.5 | I103: 5.497 | J103: 11.00713211 | K103: 1 | L103: 15 | M103: 10.28703936 | N103: 0.07 | O103: 0.7200927551 | P103: 11.00713211 | Q103: 708 | R103: FILTRO DE LINHA BIVOLT FULL ENERGY PRETO 6T FLOW PACK | S103: 6.189764 | T103: 4.817368113 | U103: 6.68494512
A104: 98 | C104: FILTRO DE LINHA BIVOLT FULL ENERGY BRANCO 3T CINTA | D104: 4.853566412 | H104: 0.5 | I104: 4.650294475 | J104: 0 | K104: 1 | L104: 15 | M104: 0 | O104: 0 | P104: 0 | Q104: 711 | R104: FILTRO DE LINHA BIVOLT FULL ENERGY BRANCO 3T CINTA | S104: 0 | T104: 0 | U104: 0
A105: 99 | C105: FILTRO DE LINHA BIVOLT FULL ENERGY BRANCO 4T CINTA | D105: 5.216578005 | H105: 0.5 | I105: 4.999326125 | J105: 0 | K105: 1 | L105: 15 | M105: 0 | O105: 0 | P105: 0 | Q105: 712 | R105: FILTRO DE LINHA BIVOLT FULL ENERGY BRANCO 4T CINTA | S105: 0 | T105: 0 | U105: 0
A106: 100 | C106: FILTRO DE LINHA BIVOLT FULL ENERGY BRANCO 5T CINTA | D106: 5.591669157 | H106: 0.5 | I106: 5.366558547 | J106: 0 | K106: 1 | L106: 15 | M106: 0 | O106: 0 | P106: 0 | Q106: 713 | R106: FILTRO DE LINHA BIVOLT FULL ENERGY BRANCO 5T CINTA | S106: 0 | T106: 0 | U106: 0
A107: 101 | C107: FILTRO DE LINHA BIVOLT FULL ENERGY BRANCO 6T CINTA | D107: 6.012181189 | H107: 0.5 | I107: 5.67801337 | J107: 0 | K107: 1 | L107: 15 | M107: 0 | O107: 0 | P107: 0 | Q107: 714 | R107: FILTRO DE LINHA BIVOLT FULL ENERGY BRANCO 6T CINTA | S107: 0 | T107: 0 | U107: 0
A108: 102 | C108: FILTRO DE LINHA BIVOLT FULL ENERGY PRETO 3T CINTA | D108: 4.853566412 | H108: 0.5 | I108: 4.650294475 | J108: 0 | K108: 1 | L108: 15 | M108: 0 | O108: 0 | P108: 0 | Q108: 715 | R108: FILTRO DE LINHA BIVOLT FULL ENERGY PRETO 3T CINTA | S108: 0 | T108: 0 | U108: 0
A109: 103 | C109: FILTRO DE LINHA BIVOLT FULL ENERGY PRETO 4T CINTA | D109: 5.216578005 | H109: 0.5 | I109: 4.999326125 | J109: 0 | K109: 1 | L109: 15 | M109: 0 | O109: 0 | P109: 0 | Q109: 716 | R109: FILTRO DE LINHA BIVOLT FULL ENERGY PRETO 4T CINTA | S109: 0 | T109: 0 | U109: 0
A110: 104 | C110: FILTRO DE LINHA BIVOLT FULL ENERGY PRETO 5T CINTA | D110: 5.602669157 | H110: 0.5 | I110: 5.366558547 | J110: 0 | K110: 1 | L110: 15 | M110: 0 | O110: 0 | P110: 0 | Q110: 717 | R110: FILTRO DE LINHA BIVOLT FULL ENERGY PRETO 5T CINTA | S110: 0 | T110: 0 | U110: 0
A111: 105 | C111: FILTRO DE LINHA BIVOLT FULL ENERGY PRETO 6T CINTA | D111: 6.012181189 | H111: 0.5 | I111: 5.67801337 | J111: 0 | K111: 1 | L111: 15 | M111: 0 | O111: 0 | P111: 0 | Q111: 718 | R111: FILTRO DE LINHA BIVOLT FULL ENERGY PRETO 6T CINTA | S111: 0 | T111: 0 | U111: 0
A112: 106 | B112: 801 | C112: CORDÃO PROLONGADOR BIPOLAR BRANCO 3 MTS | D112: 3.018698724 | I112: 2.629 | J112: 5.503785651 | K112: 1 | L112: 5 | M112: 5.24170062 | N112: 0.05 | O112: 0.262085031 | P112: 5.503785651 | Q112: 801 | R112: CORDÃO PROLONGADOR BIPOLAR BRANCO 3 MTS | S112: 2.69664 | T112: 2.807145651 | U112: 2.9123712
A113: 107 | B113: 802 | C113: CORDÃO PROLONGADOR BIPOLAR BRANCO 5 MTS | D113: 4.001755897 | I113: 3.523 | J113: 7.537641867 | K113: 1 | L113: 5 | M113: 7.17870654 | N113: 0.05 | O113: 0.358935327 | P113: 7.537641867 | Q113: 802 | R113: CORDÃO PROLONGADOR BIPOLAR BRANCO 5 MTS | S113: 3.693146 | T113: 3.844495867 | U113: 3.98859768
A114: 108 | B114: 803 | C114: CORDÃO PROLONGADOR BIPOLAR BRANCO 10 MTS | D114: 9.913485826 | I114: 5.711 | J114: 12.28705897 | K114: 1 | L114: 5 | M114: 11.70196092 | N114: 0.05 | O114: 0.585098046 | P114: 12.28705897 | Q114: 803 | R114: CORDÃO PROLONGADOR BIPOLAR BRANCO 10 MTS | S114: 6.020164 | T114: 6.266894966 | U114: 6.50177712
A115: 109 | B115: 804 | C115: CORDÃO PROLONGADOR BIPOLAR PRETO 3 MTS | D115: 3.018698724 | I115: 2.629 | J115: 5.503785651 | K115: 1 | L115: 5 | M115: 5.24170062 | N115: 0.05 | O115: 0.262085031 | P115: 5.503785651 | Q115: 804 | R115: CORDÃO PROLONGADOR BIPOLAR PRETO 3 MTS | S115: 2.69664 | T115: 2.807145651 | U115: 2.9123712
A116: 110 | B116: 805 | C116: CORDÃO PROLONGADOR BIPOLAR PRETO 5 MTS | D116: 4.001888397 | I116: 3.524 | J116: 7.53829902 | K116: 1 | L116: 5 | M116: 7.1793324 | N116: 0.05 | O116: 0.35896662 | P116: 7.53829902 | Q116: 805 | R116: CORDÃO PROLONGADOR BIPOLAR PRETO 5 MTS | S116: 3.693464 | T116: 3.84483502 | U116: 3.98894112
A117: 111 | B117: 806 | C117: CORDÃO PROLONGADOR BIPOLAR PRETO 10 MTS | D117: 9.913485826 | I117: 5.711 | J117: 12.28705897 | K117: 1 | L117: 5 | M117: 11.70196092 | N117: 0.05 | O117: 0.585098046 | P117: 12.28705897 | Q117: 806 | R117: CORDÃO PROLONGADOR BIPOLAR PRETO 10 MTS | S117: 6.020164 | T117: 6.266894966 | U117: 6.50177712
A118: 112 | B118: 851 | C118: CORDÃO PROLONGADOR TRIPOLAR BRANCO 3 MTS | D118: 4.196445911 | I118: 3.895 | J118: 8.404749864 | K118: 1 | L118: 5 | M118: 8.00452368 | N118: 0.05 | O118: 0.400226184 | P118: 8.404749864 | Q118: 851 | R118: CORDÃO PROLONGADOR TRIPOLAR BRANCO 3 MTS | S118: 4.117994 | T118: 4.286755864 | U118: 4.44743352
A119: 113 | B119: 852 | C119: CORDÃO PROLONGADOR TRIPOLAR BRANCO 5 MTS | D119: 5.808386566 | I119: 5.401 | J119: 11.96687463 | K119: 1 | L119: 5 | M119: 11.39702346 | N119: 0.05 | O119: 0.569851173 | P119: 11.96687463 | Q119: 852 | R119: CORDÃO PROLONGADOR TRIPOLAR BRANCO 5 MTS | S119: 5.863284 | T119: 6.103590633 | U119: 6.33234672
A120: 114 | B120: 853 | C120: CORDÃO PROLONGADOR TRIPOLAR BRANCO 10 MTS | D120: 9.970185026 | I120: 9.071 | J120: 20.88263098 | K120: 1 | L120: 5 | M120: 19.88821998 | N120: 0.05 | O120: 0.994410999 | P120: 20.88263098 | Q120: 853 | R120: CORDÃO PROLONGADOR TRIPOLAR BRANCO 10 MTS | S120: 10.23165 | T120: 10.65098098 | U120: 11.050182
A121: 115 | B121: 854 | C121: CORDÃO PROLONGADOR TRIPOLAR PRETO 3 MTS | D121: 4.196445911 | I121: 3.895 | J121: 8.404749864 | K121: 1 | L121: 5 | M121: 8.00452368 | N121: 0.05 | O121: 0.400226184 | P121: 8.404749864 | Q121: 854 | R121: CORDÃO PROLONGADOR TRIPOLAR PRETO 3 MTS | S121: 4.117994 | T121: 4.286755864 | U121: 4.44743352
A122: 116 | B122: 855 | C122: CORDÃO PROLONGADOR TRIPOLAR PRETO 5 MTS | D122: 5.808386566 | I122: 5.401 | J122: 11.96687463 | K122: 1 | L122: 5 | M122: 11.39702346 | N122: 0.05 | O122: 0.569851173 | P122: 11.96687463 | Q122: 855 | R122: CORDÃO PROLONGADOR TRIPOLAR PRETO 5 MTS | S122: 5.863284 | T122: 6.103590633 | U122: 6.33234672
A123: 117 | B123: 856 | C123: CORDÃO PROLONGADOR TRIPOLAR PRETO 10 MTS | D123: 9.970185026 | I123: 9.071 | J123: 20.88263098 | K123: 1 | L123: 5 | M123: 19.88821998 | N123: 0.05 | O123: 0.994410999 | P123: 20.88263098 | Q123: 856 | R123: CORDÃO PROLONGADOR TRIPOLAR PRETO 10 MTS | S123: 10.23165 | T123: 10.65098098 | U123: 11.050182
A124: 118 | B124: 901 | C124: TOMADA EM BARRA TRIPOLAR 3T BRANCA | D124: 1.850095636 | I124: 1.801 | J124: 3.529368612 | K124: 1 | L124: 15 | M124: 3.36130344 | N124: 0.05 | O124: 0.168065172 | P124: 3.529368612 | Q124: 901 | R124: TOMADA EM BARRA TRIPOLAR 3T BRANCA | S124: 1.642788 | T124: 1.886580612 | U124: 1.77421104
A125: 119 | B125: 902 | C125: TOMADA EM BARRA TRIPOLAR 4T BRANCA | D125: 2.130643636 | I125: 2.034 | J125: 3.802187466 | K125: 1 | L125: 15 | M125: 3.62113092 | N125: 0.05 | O125: 0.181056546 | P125: 3.802187466 | Q125: 902 | R125: TOMADA EM BARRA TRIPOLAR 4T BRANCA | S125: 1.769776 | T125: 2.032411466 | U125: 1.91135808
A126: 120 | B126: 903 | C126: TOMADA EM BARRA TRIPOLAR 3T PRETA | D126: 1.850095636 | I126: 1.801 | J126: 3.529368612 | K126: 1 | L126: 15 | M126: 3.36130344 | N126: 0.05 | O126: 0.168065172 | P126: 3.529368612 | Q126: 903 | R126: TOMADA EM BARRA TRIPOLAR 3T PRETA | S126: 1.642788 | T126: 1.886580612 | U126: 1.77421104
A127: 121 | B127: 904 | C127: TOMADA EM BARRA TRIPOLAR 4T PRETA | D127: 2.130643636 | I127: 2.034 | J127: 3.802187466 | K127: 1 | L127: 15 | M127: 3.62113092 | N127: 0.05 | O127: 0.181056546 | P127: 3.802187466 | Q127: 904 | R127: TOMADA EM BARRA TRIPOLAR 4T PRETA | S127: 1.769776 | T127: 2.032411466 | U127: 1.91135808
A128: 122 | J128: 0 | M128: 0 | O128: 0 | P128: 0 | S128: 0 | T128: 0 | U128: 0
A129: 123 | J129: 0 | M129: 0 | O129: 0 | P129: 0 | S129: 0 | T129: 0 | U129: 0
A130: 124 | C130: LUMINÁRIA TARTARUGA FLORENÇA BRANCA | D130: 2.599179219 | H130: 0.3 | I130: 2.589 | J130: 6.706675276 | K130: 1 | L130: 15 | M130: 6.387309787 | N130: 0.05 | O130: 0.3193654893 | P130: 6.706675276 | Q130: 3101 | R130: LUMINÁRIA TARTARUGA FLORENÇA BRANCA | S130: 3.1217 | T130: 3.584975276 | U130: 3.371436
A131: 125 | C131: LUMINÁRIA TARTARUGA FLORENÇA PRETA | D131: 2.601479219 | H131: 0.3 | I131: 2.589 | J131: 6.706675276 | K131: 1 | L131: 15 | M131: 6.387309787 | N131: 0.05 | O131: 0.3193654893 | P131: 6.706675276 | Q131: 3102 | R131: LUMINÁRIA TARTARUGA FLORENÇA PRETA | S131: 3.1217 | T131: 3.584975276 | U131: 3.371436
A132: 126 | B132: 3151 | C132: PLAFONIER BÉRGAMO BRANCO E-27 | D132: 1.079696797 | I132: 1.006 | J132: 2.358671238 | K132: 1 | L132: 15 | M132: 2.24635356 | N132: 0.05 | O132: 0.112317678 | P132: 2.358671238 | Q132: 3151 | R132: PLAFONIER BÉRGAMO BRANCO E-27 | S132: 1.174692 | T132: 1.183979238 | U132: 1.26866736
A133: 127 | C133: PLAFONIER BÉRGAMO PRETO E-27 | D133: 1.079696797 | I133: 1.006 | J133: 0 | K133: 1 | L133: 15 | M133: 0 | O133: 0 | P133: 0 | Q133: 3152 | R133: PLAFONIER BÉRGAMO PRETO E-27 | S133: 0 | T133: 0 | U133: 0
A134: 128 | D134: 1.976938585 | H134: 1 | I134: 1.430897464 | J134: 0 | K134: 1 | L134: 15 | M134: 0 | O134: 0 | P134: 0 | R134: SPOT SIMPLES ALETADO NÁPOLES BRANCO E-27 | S134: 0 | T134: 0 | U134: 0
A135: 129 | B135: 112 | C135: PINO MACHO 90º 10A BIPOLAR BRANCO GRANEL | H135: 1 | I135: 1.430897464 | J135: 1.358532 | K135: 1 | L135: 15 | M135: 1.29384 | N135: 0.05 | O135: 0.064692 | P135: 1.358532 | Q135: 3202 | R135: SPOT SIMPLES ALETADO NÁPOLES PRETO E-27 | S135: 0 | T135: 1.358532 | U135: 0
A136: 130 | B136: 113 | C136: PINO MACHO 90º 10A BIPOLAR PRETO GRANEL | H136: 1.25 | I136: 2.404284554 | J136: 1.358532 | K136: 1 | L136: 15 | M136: 1.29384 | N136: 0.05 | O136: 0.064692 | P136: =M136+O136 -> 1.358532 | Q136: 3203 | R136: SPOT DUPLO ALETADO NÁPOLES BRANCO E-27 | S136: 0 | T136: =P136-S136 -> 1.358532 | U136: 0
A137: 131 | B137: 115 | C137: PINO MACHO 90º 10A BIPOLAR BRANCO INDIVIDUAL | H137: 1.25 | I137: 2.404284554 | J137: 1.537704 | K137: 1 | L137: 15 | M137: 1.46448 | N137: =J137/M137-1 -> 0.05 | O137: =M137*5% -> 0.073224 | P137: 1.537704 | Q137: 3204 | R137: SPOT DUPLO ALETADO NÁPOLES PRETO E-27 | S137: 0 | T137: 1.537704 | U137: 0
A138: 132 | B138: 116 | C138: PINO MACHO 90º 10A BIPOLAR PRETO INDIVIDUAL | H138: 1.05 | I138: 1.526067722 | J138: 1.537704 | K138: 1 | L138: 15 | M138: 1.46448 | N138: 0.05 | O138: 0.073224 | P138: 1.537704 | Q138: 3205 | R138: SPOT SIMPLES VENTILADO NÁPOLES BRANCO E-27 | S138: 0 | T138: 1.537704 | U138: 0
A139: 133 | B139: 122 | C139: PINO MACHO 90º 20A BIPOLAR BRANCO GRANEL | H139: 1.05 | I139: 1.526067722 | J139: 1.416366 | K139: 1 | L139: 15 | M139: 1.34892 | N139: 0.05 | O139: 0.067446 | P139: 1.416366 | Q139: 3206 | R139: SPOT SIMPLES VENTILADO NÁPOLES PRETO E-27 | S139: 0 | T139: 1.416366 | U139: 0
A140: 134 | B140: 123 | C140: PINO MACHO 90º 20A BIPOLAR PRETO GRANEL | H140: 1.25 | I140: 2.594416736 | J140: 1.416366 | K140: 1 | L140: 15 | M140: 1.34892 | N140: 0.05 | O140: 0.067446 | P140: 1.416366 | Q140: 3207 | R140: SPOT DUPLO VENTILADO NÁPOLES BRANCO E-27 | S140: 0 | T140: 1.416366 | U140: 0
A141: 135 | B141: 125 | C141: PINO MACHO 90º 20A BIPOLAR BRANCO INDIVIDUAL | H141: 1.25 | I141: 2.594625069 | J141: 1.595538 | K141: 1 | L141: 15 | M141: 1.51956 | N141: 0.05 | O141: 0.075978 | P141: 1.595538 | Q141: 3208 | R141: SPOT DUPLO VENTILADO NÁPOLES PRETO E-27 | S141: 0 | T141: 1.595538 | U141: 0
A142: 136 | B142: 126 | C142: PINO MACHO 90º 20A BIPOLAR PRETO INDIVIDUAL | H142: 1 | I142: 1.766001948 | J142: 1.595538 | K142: 1 | L142: 15 | M142: 1.51956 | N142: 0.05 | O142: 0.075978 | P142: 1.595538 | R142: SPOT SIMPLES TRANSLUCIDO NÁPOLES BRANCO E-27 | S142: 0 | T142: 1.595538 | U142: 0
A143: 137 | B143: 162 | C143: PINO MACHO 90º 10A TRIPOLAR BRANCO GRANEL | H143: 1 | I143: 1.766001948 | J143: 1.919862 | K143: 1 | L143: 15 | M143: 1.82844 | N143: 0.05 | O143: 0.091422 | P143: 1.919862 | R143: SPOT SIMPLES TRANSLUCIDO NÁPOLES PRETO E-27 | S143: 0 | T143: 1.919862 | U143: 0
A144: 138 | B144: 163 | C144: PINO MACHO 90º 10A TRIPOLAR PRETO GRANEL | H144: 1.25 | I144: 3.074493522 | J144: 1.919862 | K144: 1 | L144: 15 | M144: 1.82844 | N144: 0.05 | O144: 0.091422 | P144: 1.919862 | Q144: 3211 | R144: SPOT DUPLO TRANSLUCIDO NÁPOLES BRANCO E-27 | S144: 0 | T144: 1.919862 | U144: 0
A145: 139 | B145: 165 | C145: PINO MACHO 90º 10A TRIPOLAR BRANCO INDIVIDUAL | H145: 1.25 | I145: 3.074493522 | J145: 2.099034 | K145: 1 | L145: 15 | M145: 1.99908 | N145: 0.05 | O145: 0.099954 | P145: 2.099034 | R145: SPOT DUPLO TRANSLUCIDO NÁPOLES PRETO E-27 | S145: 0 | T145: 2.099034 | U145: 0
A146: 140 | B146: 166 | C146: PINO MACHO 90º 10A TRIPOLAR PRETO INDIVIDUAL | I146: 0 | J146: 2.099034 | K146: 1 | L146: 15 | M146: 1.99908 | N146: 0.05 | O146: 0.099954 | P146: 2.099034 | Q146: 621 | R146: EXTENSÃO ENERGY BIPOLAR BRANCA 2 MTS 2P 10A/250V~ | S146: 2.297444 | T146: -0.19841 | U146: 2.48123952
A147: 141 | B147: 172 | C147: PINO MACHO 90º 20A TRIPOLAR BRANCO GRANEL | I147: 2.796 | J147: 1.992438 | K147: 1 | L147: 15 | M147: 1.89756 | N147: 0.05 | O147: 0.094878 | P147: 1.992438 | Q147: 622 | R147: EXTENSÃO ENERGY BIPOLAR BRANCA 3 MTS 2P 10A/250V~ | S147: 2.720172 | T147: -0.727734 | U147: 2.93778576
A148: 142 | B148: 173 | C148: PINO MACHO 90º 20A TRIPOLAR PRETO GRANEL | I148: 3.704 | J148: 1.992438 | K148: 1 | L148: 15 | M148: 1.89756 | N148: 0.05 | O148: 0.094878 | P148: 1.992438 | Q148: 623 | R148: EXTENSÃO ENERGY BIPOLAR BRANCA 5 MTS 2P 10A/250V~ | S148: 3.667918 | T148: -1.67548 | U148: 3.96135144
A149: 143 | B149: 175 | C149: PINO MACHO 90º 20A TRIPOLAR BRANCO INDIVIDUAL | I149: 5.86 | J149: 2.17161 | K149: 1 | L149: 15 | M149: 2.0682 | N149: 0.05 | O149: 0.10341 | P149: 2.17161 | Q149: 624 | R149: EXTENSÃO ENERGY BIPOLAR BRANCA 10 MTS 2P 10A/250V~ | S149: 5.853638 | T149: -3.682028 | U149: 6.32192904
A150: 144 | B150: 176 | C150: PINO MACHO 90º 20A TRIPOLAR PRETO INDIVIDUAL | I150: 0 | J150: 2.17161 | K150: 1 | L150: 15 | M150: 2.0682 | N150: 0.05 | O150: 0.10341 | P150: 2.17161 | Q150: 625 | R150: EXTENSÃO ENERGY BIPOLAR PRETA 2 MTS 2P 10A/250V~ | S150: 2.297444 | T150: -0.125834 | U150: 2.48123952
A151: 145 | I151: 2.796 | J151: 3.143430763 | K151: 1 | L151: 15 | M151: 2.93778576 | N151: =J151/M151-1 -> 0.07 | O151: =M151*8% -> 0.2350228608 | P151: 3.172808621 | Q151: 626 | R151: EXTENSÃO ENERGY BIPOLAR PRETA 3 MTS 2P 10A/250V~ | S151: 2.720172 | T151: 0.4526366208 | U151: 2.93778576
A152: 146 | I152: 3.704 | J152: 4.238646041 | K152: 1 | L152: 15 | M152: 3.96135144 | N152: 0.07 | O152: 0.3169081152 | P152: 4.278259555 | Q152: 627 | R152: EXTENSÃO ENERGY BIPOLAR PRETA 5 MTS 2P 10A/250V~ | S152: 3.667918 | T152: 0.6103415552 | U152: 3.96135144
A153: 147 | I153: 5.86 | J153: 6.764464073 | K153: 1 | L153: 15 | M153: 6.32192904 | N153: 0.07 | O153: 0.5057543232 | P153: 6.827683363 | Q153: 628 | R153: EXTENSÃO ENERGY BIPOLAR PRETA 10 MTS 2P 10A/250V~ | S153: 5.853638 | T153: 0.9740453632 | U153: 6.32192904
A154: 148 | I154: 0 | J154: =I154+H154 -> 0 | O154: =M154*6% -> 0 | P154: 0
A155: 149 | I155: 0 | J155: 0 | O155: 0
A156: 150 | I156: 0 | J156: 0 | O156: 0
A157: 151 | I157: 0 | J157: 0 | O157: 0
A158: 152 | I158: 0 | J158: 0 | O158: 0
A159: 153 | J159: 0 | O159: 0
A160: 154 | J160: 0
A161: 155 | J161: 0
A162: 156 | J162: 0
A163: 157 | J163: 0
A164: 158 | J164: 0
A165: 159 | J165: 0
A166: 160 | J166: 0
A167: 161 | J167: 0
A168: 162 | J168: 0
A169: 163 | J169: 0
A170: 164 | J170: 0
A171: 165 | J171: 0
A172: 166 | J172: 0
A173: 167 | J173: 0
A174: 168 | J174: 0
A175: 169 | J175: 0
A176: 170 | J176: 0
A177: 171 | J177: 0
A178: 172 | J178: 0
A179: 173 | J179: 0
A180: 174 | J180: 0
A181: 175 | J181: 0
A182: 176 | J182: 0
A183: 177 | J183: 0
A184: 178 | J184: 0
A185: 179 | J185: 0
A186: 180 | J186: 0
A187: 181 | J187: 0
A188: 182 | J188: 0
A189: 183 | J189: 0
A190: 184 | J190: 0
A191: 185 | J191: 0
A192: 186 | J192: 0
A193: 187 | J193: 0
A194: 188 | J194: 0
A195: 189 | J195: 0
A196: 190 | J196: 0
A197: 191 | J197: 0
A198: 192 | J198: 0
A199: 193 | J199: 0
A200: 194 | J200: =I200+H200 -> 0
A201: 195 | J201: 0
A202: 196 | J202: 0
... 254 more rows

Sheet Aferi (Pedido)
F1: Pedido de Venda
F2: Representante | H2: DENIZE REPRESENTAÇÕES
F3: Data | H3: 2025-04-24 | J3: Versão | K3: 07.11.24 / 10.05.25
B4: 1/2!!
A6: Obs.
A10: Cliente | C10: O.S.J. COMERCIO DE UTILIDADES LTDA
A11: Endereço | B11: AV AUGUSTO CALMON, 1252 - CENTRO CEP 29900-060 LINHARES - Espírito Santo | I11: Bairro
A12: Cidade | G12: Estado | J12: CEP:
A13: CNPJ | B13: 07.336.094/0001-13 | F13: IE | G13: 082.317.99-2
A14: Fone | B14: 027 9 8158-6009 | F14: Contato | G14: JOAQUIM | I14: Email | J14: grupoutilidades@bol.com.br
A15: Transportadora | C15: TRANSPORTADORA CONTINENTAL LT | G15: Fone | H15: 2085-7220
A16: Data de Entrega | C16: 2025-04-25 | D16: Valor Total Pedido | I16: =SUM(I17:J18) -> 5154.0695
A17: Forma de Pagamento | C17: BOLETO | D17: IPI | I17: =SUM(M26:M500) -> 215.1695
A18: Identifica | B18: ='Aferi (Variáveis)'!A12&"-"&'Aferi (Variáveis)'!B12&"-"&'Aferi (Variáveis)'!C12&"-"&'Aferi (Variáveis)'!D12&"-"&'Aferi (Variáveis)'!E12 -> 50-São Paulo-7-5-70 | D18: Valor Total dos Produtos | I18: =SUM(J26:J500) -> 4938.9
A19: Email Nota Fiscal | C19: grupoutilidades@bol.com.br
D20: Preço Médio | E20: MC Desejada : | G20: 5 | I20: =IF(I19>0,I16/I19,0) -> 0
A21: Caminhão | B21: Pedido | C21: Saldo | D21: Margem de contribuição | G21: =SUM(O26:O500) -> 741.7133865 | H21: Prazo de Pagamento | AM21: =(G20*4)/100 -> 0.2 | AN21: mc esperada
B22: =SUM(P26:P500) -> 0.373984 | C22: =IF(A22>0,A22-B22,0) -> 0 | F22: % | G22: =IF(TODAY()>AK26,0,(IF(I18>0,(G21/I18)*100/4,0))) -> 3.754446266 | H22: ='Aferi (Variáveis)'!A6&"-"&'Aferi (Variáveis)'!B6&"-"&'Aferi (Variáveis)'!C6&"-"&'Aferi (Variáveis)'!D6&"-"&'Aferi (Variáveis)'!E6&"-"&'Aferi (Variáveis)'!A8&"-"&'Aferi (Variáveis)'!B8&"-"&'Aferi (Variáveis)'!C8&"-"&'Aferi (Variáveis)'!D8&"-"&'Aferi (Variáveis)'!E8 -> 30-40-50-60-70----- | V22: =IF('Aferi (Variáveis)'!$F$20="Venda para Exportar",0,IF('Aferi (Variáveis)'!$F$20="ALC",0,IF('Aferi (Variáveis)'!$F$20="ZFM",0,IF('Aferi (Variáveis)'!$F$20="Exportação",0,IF('Aferi (Variáveis)'!$F$20="AO",7,'Aferi (Variáveis)'!$F$20))))) -> 7 | W22: 1.08 | X22: =IF('Aferi (Variáveis)'!$C$12="ZFM",0,IF('Aferi (Variáveis)'!$C$12="Exportação",0,3)) -> 3 | Y22: =IF('Aferi (Variáveis)'!$C$12="ZFM",0,IF('Aferi (Variáveis)'!$C$12="Exportação",0,0.65)) -> 0.65 | Z22: 1.2 | AM22: =(SUM(V22:AE22)/100)*AN22 -> 0.09051 | AN22: ='Aferi (Variáveis)'!E12% -> 0.7
A23: =IF(G22<>0,IF(G22<5,"Pedido Reprovado","Pedido Aprovado"),"") -> Pedido Reprovado | G23: Pedido | AA23: 0.5 | AB23: 0 | AC23: =SUMIF('Tabela de Fretes'!$A$4:$A$42,'Aferi (Variáveis)'!$K$24,'Tabela de Fretes'!$B$4:$B$42)*100 -> 2 | AD23: =3/45*'Aferi (Variáveis)'!$A$12 -> 3.333333333 | AE23: ='Aferi (Variáveis)'!$D$12 -> 5 | AM23: =SUM(V23:AE23)/100 -> 0.1083333333
A24: Produtos | E24: Valor proposto | F24: % M. C. | G24: Quantidade na Embal. | H24: Embal. Pedidas | I24: Quantidade Peças | J24: Valor Parcial | K24: IPI | L24: Valor com IPI | V24: Cálculos | AM24: =SUM(AM21:AM23) -> 0.3988433333
A25: Referência: | B25: Descrição | M25: IPI | N25: Valor Total do Produto | O25: Vr. M. C. | P25: Cubagem | Q25: BD | R25: IPI | S25: IPI Total | T25: Valor Base | U25: Base Total | V25: ICMS | W25: CS | X25: COFINS | Y25: PIS | Z25: IRPJ | AA25: 0,5% para troca | AB25: Pro-labore | AC25: Frete | AD25: PDD | AE25: Comissão | AF25: Parcial | AG25: $ MC | AH25: % MC | AI25: Preço mínimo de venda % | AL25: TT Fixo R$ | AM25: preço MC | AN25: Imp.NF | AO25: Imp.Prod. | AP25: saldo mc
A26: 702 | B26: =IF(Q26<>0,VLOOKUP(Q26,'Custo Básico dos Produtos'!$A$7:$J$480,3),"") -> FILTRO DE LINHA BIVOLT FULL ENERGY BRANCO 4T FLOW PACK | D26: =SUMIF('Custo Básico dos Produtos'!$A$7:$A$480,Q26,'Custo Básico dos Produtos'!$J$7:$J$480) -> 9.83674676 | E26: 15.11 | F26: =IF(A26="",0,IF(TODAY()<$AK$26,IF(E26>0,IF(H26>0,IF(AH26>=AI26,AH26,)/4),0))) -> 3.753690393 | G26: =IF(B26="",0,SUMIF('Cadastro de Produtos em Linha'!$B$7:$B$457,A26,'Cadastro de Produtos em Linha'!$D$7:$D$457)) -> 20 | H26: 1 | I26: =IF(F26="",0,IF(F26>=AI26,G26*H26,0)) -> 20 | J26: =IF(F26="",0,I26*E26) -> 302.2 | K26: =IF('Aferi (Variáveis)'!$C$12="ALC",0,IF('Aferi (Variáveis)'!$C$12="ZFM",0,IF('Aferi (Variáveis)'!$C$12="Exportação",0,IF('Aferi (Variáveis)'!$C$12="Venda para Exportar",0,IF('Aferi (Variáveis)'!$C$12="AO",0,SUMIF('Custo Básico dos Produtos'!$A$7:$A$480,Q26,'Custo Básico dos Produtos'!$L$7:$L$480)))))) -> 15 | L26: =J26+M26 -> 333.931 | M26: =S26 -> 31.731 | N26: =J26+M26 -> 333.931 | O26: =IF(I26>0,AG26*I26,0) -> 45.37460947 | P26: =SUMIF('Cadastro de Produtos em Linha'!$A$6:$A$457,Q26,'Cadastro de Produtos em Linha'!$E$6:$E$457)*H26 -> 0.021736 | Q26: =IF(TODAY()<$AK$26,IF(A26<>"",SUMIF('Custo Básico dos Produtos'!$B$7:$B$457,A26,'Custo Básico dos Produtos'!$A$7:$A$457),0),0) -> 91 | R26: =IF('Aferi (Variáveis)'!$C$12="Venda para Exportar",0,IF('Aferi (Variáveis)'!$C$12="ALC",0,IF('Aferi (Variáveis)'!$C$12="ZFM",0,IF('Aferi (Variáveis)'!$C$12="Exportação",0,IF('Aferi (Variáveis)'!$C$12="AO",0,E26/(100+(0*'Aferi (Variáveis)'!$K$12/100))*100*K26%/100*'Aferi (Variáveis)'!$K$12))))) -> 1.58655 | S26: =I26*R26 -> 31.731 | T26: =(E26*'Aferi (Variáveis)'!$K$12/100) -> 10.577 | U26: =IF(I26>0,T26*I26,0) -> 211.54 | V26: =IF('Aferi (Variáveis)'!$F$20="Venda para Exportar",0,IF('Aferi (Variáveis)'!$F$20="ALC",0,IF('Aferi (Variáveis)'!$F$20="ZFM",0,IF('Aferi (Variáveis)'!$F$20="Exportação",0,IF('Aferi (Variáveis)'!$F$20="AO",7*T26/100,T26*'Aferi (Variáveis)'!$F$20/100))))) -> 0.74039 | W26: =T26*(W$22/100) -> 0.1142316 | X26: =IF('Aferi (Variáveis)'!$C$12="ZFM",0,IF('Aferi (Variáveis)'!$C$12="Exportação",0,3*T26/100)) -> 0.31731 | Y26: =IF('Aferi (Variáveis)'!$C$12="ZFM",0,IF('Aferi (Variáveis)'!$C$12="Exportação",0,0.65*T26/100)) -> 0.0687505 | Z26: =T26*(Z$22/100) -> 0.126924 | AA26: =E26*(AA$23/100) -> 0.07555 | AB26: =E26*(AB$23/100) -> 0 | AC26: =IF(A26<>"",E26*(AC$23/100),0) -> 0.3022 | AD26: =E26*($AD$23/100) -> 0.5036666667 | AE26: =E26*(AE$23/100) -> 0.7555 | AF26: =SUM(V26:AE26) -> 3.004522767 | AG26: =E26-AF26-D26 -> 2.268730473 | AH26: =IF(AG26<>0,AG26/(E26)*100,0) -> 15.01476157 | AI26: =SUMIF('Custo Básico dos Produtos'!$B$7:$B$480,A26,'Custo Básico dos Produtos'!$K$7:$K$480) -> 1 | AK26: 2025-05-10 | AL26: =D26 -> 9.83674676 | AM26: =AL26/(1-AM$24) -> 16.36303364 | AN26: =AM26*AM$22 -> 1.481018175 | AO26: =AM26*AM$23 -> 1.772661978 | AP26: =AM26-SUM(AN26:AO26)-AL26 -> 3.272606728 | AQ26: =IFERROR(AP26/AM26,0) -> 0.2
A27: 706 | B27: =IF(Q27<>0,VLOOKUP(Q27,'Custo Básico dos Produtos'!$A$7:$J$480,3),"") -> FILTRO DE LINHA BIVOLT FULL ENERGY PRETO 4T FLOW PACK | D27: =SUMIF('Custo Básico dos Produtos'!$A$7:$A$480,Q27,'Custo Básico dos Produtos'!$J$7:$J$480) -> 9.83674676 | E27: 15.11 | F27: =IF(A27="",0,IF(TODAY()<$AK$26,IF(E27>0,IF(H27>0,IF(AH27>=AI27,AH27,)/4),0))) -> 3.753690393 | G27: =IF(B27="",0,SUMIF('Cadastro de Produtos em Linha'!$B$7:$B$457,A27,'Cadastro de Produtos em Linha'!$D$7:$D$457)) -> 20 | H27: 1 | I27: 20 | J27: 302.2 | K27: =IF('Aferi (Variáveis)'!$C$12="ALC",0,IF('Aferi (Variáveis)'!$C$12="ZFM",0,IF('Aferi (Variáveis)'!$C$12="Exportação",0,IF('Aferi (Variáveis)'!$C$12="Venda para Exportar",0,IF('Aferi (Variáveis)'!$C$12="AO",0,SUMIF('Custo Básico dos Produtos'!$A$7:$A$480,Q27,'Custo Básico dos Produtos'!$L$7:$L$480)))))) -> 15 | L27: =J27+M27 -> 333.931 | M27: 31.731 | N27: =J27+M27 -> 333.931 | O27: 45.37460947 | P27: =SUMIF('Cadastro de Produtos em Linha'!$A$6:$A$457,Q27,'Cadastro de Produtos em Linha'!$E$6:$E$457)*H27 -> 0.021736 | Q27: =IF(TODAY()<$AK$26,IF(A27<>"",SUMIF('Custo Básico dos Produtos'!$B$7:$B$457,A27,'Custo Básico dos Produtos'!$A$7:$A$457),0),0) -> 95 | R27: =IF('Aferi (Variáveis)'!$C$12="Venda para Exportar",0,IF('Aferi (Variáveis)'!$C$12="ALC",0,IF('Aferi (Variáveis)'!$C$12="ZFM",0,IF('Aferi (Variáveis)'!$C$12="Exportação",0,IF('Aferi (Variáveis)'!$C$12="AO",0,E27/(100+(0*'Aferi (Variáveis)'!$K$12/100))*100*K27%/100*'Aferi (Variáveis)'!$K$12))))) -> 1.58655 | S27: 31.731 | T27: =(E27*'Aferi (Variáveis)'!$K$12/100) -> 10.577 | U27: 211.54 | V27: =IF('Aferi (Variáveis)'!$F$20="Venda para Exportar",0,IF('Aferi (Variáveis)'!$F$20="ALC",0,IF('Aferi (Variáveis)'!$F$20="ZFM",0,IF('Aferi (Variáveis)'!$F$20="Exportação",0,IF('Aferi (Variáveis)'!$F$20="AO",7*T27/100,T27*'Aferi (Variáveis)'!$F$20/100))))) -> 0.74039 | W27: 0.1142316 | X27: =IF('Aferi (Variáveis)'!$C$12="ZFM",0,IF('Aferi (Variáveis)'!$C$12="Exportação",0,3*T27/100)) -> 0.31731 | Y27: =IF('Aferi (Variáveis)'!$C$12="ZFM",0,IF('Aferi (Variáveis)'!$C$12="Exportação",0,0.65*T27/100)) -> 0.0687505 | Z27: 0.126924 | AA27: =E27*(AA$23/100) -> 0.07555 | AB27: =E27*(AB$23/100) -> 0 | AC27: =IF(A27<>"",E27*(AC$23/100),0) -> 0.3022 | AD27: =E27*($AD$23/100) -> 0.5036666667 | AE27: =E27*(AE$23/100) -> 0.7555 | AF27: =SUM(V27:AE27) -> 3.004522767 | AG27: 2.268730473 | AH27: 15.01476157 | AI27: =SUMIF('Custo Básico dos Produtos'!$B$7:$B$480,A27,'Custo Básico dos Produtos'!$K$7:$K$480) -> 1 | AL27: =D27 -> 9.83674676 | AM27: =AL27/(1-AM$24) -> 16.36303364 | AN27: =AM27*AM$22 -> 1.481018175 | AO27: =AM27*AM$23 -> 1.772661978 | AP27: =AM27-SUM(AN27:AO27)-AL27 -> 3.272606728 | AQ27: =IFERROR(AP27/AM27,0) -> 0.2
A28: 602 | B28: =IF(Q28<>0,VLOOKUP(Q28,'Custo Básico dos Produtos'!$A$7:$J$480,3),"") -> EXTENSAO COMPACT BIPOLAR BRANCA 3 MTS | D28: =SUMIF('Custo Básico dos Produtos'!$A$7:$A$480,Q28,'Custo Básico dos Produtos'!$J$7:$J$480) -> 5.831338716 | E28: 8.96 | F28: =IF(A28="",0,IF(TODAY()<$AK$26,IF(E28>0,IF(H28>0,IF(AH28>=AI28,AH28,)/4),0))) -> 3.758440339 | G28: =IF(B28="",0,SUMIF('Cadastro de Produtos em Linha'!$B$7:$B$457,A28,'Cadastro de Produtos em Linha'!$D$7:$D$457)) -> 20 | H28: 2 | I28: 40 | J28: 358.4 | K28: =IF('Aferi (Variáveis)'!$C$12="ALC",0,IF('Aferi (Variáveis)'!$C$12="ZFM",0,IF('Aferi (Variáveis)'!$C$12="Exportação",0,IF('Aferi (Variáveis)'!$C$12="Venda para Exportar",0,IF('Aferi (Variáveis)'!$C$12="AO",0,SUMIF('Custo Básico dos Produtos'!$A$7:$A$480,Q28,'Custo Básico dos Produtos'!$L$7:$L$480)))))) -> 5 | L28: 370.944 | M28: 12.544 | N28: 370.944 | O28: 53.88100069 | P28: =SUMIF('Cadastro de Produtos em Linha'!$A$6:$A$457,Q28,'Cadastro de Produtos em Linha'!$E$6:$E$457)*H28 -> 0.034 | Q28: =IF(TODAY()<$AK$26,IF(A28<>"",SUMIF('Custo Básico dos Produtos'!$B$7:$B$457,A28,'Custo Básico dos Produtos'!$A$7:$A$457),0),0) -> 67 | R28: =IF('Aferi (Variáveis)'!$C$12="Venda para Exportar",0,IF('Aferi (Variáveis)'!$C$12="ALC",0,IF('Aferi (Variáveis)'!$C$12="ZFM",0,IF('Aferi (Variáveis)'!$C$12="Exportação",0,IF('Aferi (Variáveis)'!$C$12="AO",0,E28/(100+(0*'Aferi (Variáveis)'!$K$12/100))*100*K28%/100*'Aferi (Variáveis)'!$K$12))))) -> 0.3136 | S28: 12.544 | T28: =(E28*'Aferi (Variáveis)'!$K$12/100) -> 6.272 | U28: 250.88 | V28: =IF('Aferi (Variáveis)'!$F$20="Venda para Exportar",0,IF('Aferi (Variáveis)'!$F$20="ALC",0,IF('Aferi (Variáveis)'!$F$20="ZFM",0,IF('Aferi (Variáveis)'!$F$20="Exportação",0,IF('Aferi (Variáveis)'!$F$20="AO",7*T28/100,T28*'Aferi (Variáveis)'!$F$20/100))))) -> 0.43904 | W28: 0.0677376 | X28: =IF('Aferi (Variáveis)'!$C$12="ZFM",0,IF('Aferi (Variáveis)'!$C$12="Exportação",0,3*T28/100)) -> 0.18816 | Y28: =IF('Aferi (Variáveis)'!$C$12="ZFM",0,IF('Aferi (Variáveis)'!$C$12="Exportação",0,0.65*T28/100)) -> 0.040768 | Z28: 0.075264 | AA28: =E28*(AA$23/100) -> 0.0448 | AB28: 0 | AC28: 0.1792 | AD28: 0.2986666667 | AE28: 0.448 | AF28: 1.781636267 | AG28: 1.347025017 | AH28: 15.03376135 | AI28: =SUMIF('Custo Básico dos Produtos'!$B$7:$B$480,A28,'Custo Básico dos Produtos'!$K$7:$K$480) -> 1 | AL28: =D28 -> 5.831338716 | AM28: 9.700198034 | AN28: 0.877964924 | AO28: 1.050854787 | AP28: 1.940039607 | AQ28: 0.2
A29: 606 | B29: =IF(Q29<>0,VLOOKUP(Q29,'Custo Básico dos Produtos'!$A$7:$J$480,3),"") -> EXTENSAO COMPACT BIPOLAR PRETA 3 MTS | D29: =SUMIF('Custo Básico dos Produtos'!$A$7:$A$480,Q29,'Custo Básico dos Produtos'!$J$7:$J$480) -> 5.831338716 | E29: 8.96 | F29: 3.758440339 | G29: =IF(B29="",0,SUMIF('Cadastro de Produtos em Linha'!$B$7:$B$457,A29,'Cadastro de Produtos em Linha'!$D$7:$D$457)) -> 20 | H29: 2 | I29: 40 | J29: 358.4 | K29: =IF('Aferi (Variáveis)'!$C$12="ALC",0,IF('Aferi (Variáveis)'!$C$12="ZFM",0,IF('Aferi (Variáveis)'!$C$12="Exportação",0,IF('Aferi (Variáveis)'!$C$12="Venda para Exportar",0,IF('Aferi (Variáveis)'!$C$12="AO",0,SUMIF('Custo Básico dos Produtos'!$A$7:$A$480,Q29,'Custo Básico dos Produtos'!$L$7:$L$480)))))) -> 5 | L29: 370.944 | M29: 12.544 | N29: 370.944 | O29: 53.88100069 | P29: =SUMIF('Cadastro de Produtos em Linha'!$A$6:$A$457,Q29,'Cadastro de Produtos em Linha'!$E$6:$E$457)*H29 -> 0.034 | Q29: =IF(TODAY()<$AK$26,IF(A29<>"",SUMIF('Custo Básico dos Produtos'!$B$7:$B$457,A29,'Custo Básico dos Produtos'!$A$7:$A$457),0),0) -> 71 | R29: =IF('Aferi (Variáveis)'!$C$12="Venda para Exportar",0,IF('Aferi (Variáveis)'!$C$12="ALC",0,IF('Aferi (Variáveis)'!$C$12="ZFM",0,IF('Aferi (Variáveis)'!$C$12="Exportação",0,IF('Aferi (Variáveis)'!$C$12="AO",0,E29/(100+(0*'Aferi (Variáveis)'!$K$12/100))*100*K29%/100*'Aferi (Variáveis)'!$K$12))))) -> 0.3136 | S29: 12.544 | T29: =(E29*'Aferi (Variáveis)'!$K$12/100) -> 6.272 | U29: 250.88 | V29: =IF('Aferi (Variáveis)'!$F$20="Venda para Exportar",0,IF('Aferi (Variáveis)'!$F$20="ALC",0,IF('Aferi (Variáveis)'!$F$20="ZFM",0,IF('Aferi (Variáveis)'!$F$20="Exportação",0,IF('Aferi (Variáveis)'!$F$20="AO",7*T29/100,T29*'Aferi (Variáveis)'!$F$20/100))))) -> 0.43904 | W29: 0.0677376 | X29: =IF('Aferi (Variáveis)'!$C$12="ZFM",0,IF('Aferi (Variáveis)'!$C$12="Exportação",0,3*T29/100)) -> 0.18816 | Y29: =IF('Aferi (Variáveis)'!$C$12="ZFM",0,IF('Aferi (Variáveis)'!$C$12="Exportação",0,0.65*T29/100)) -> 0.040768 | Z29: 0.075264 | AA29: 0.0448 | AB29: 0 | AC29: 0.1792 | AD29: 0.2986666667 | AE29: 0.448 | AF29: 1.781636267 | AG29: 1.347025017 | AH29: 15.03376135 | AI29: =SUMIF('Custo Básico dos Produtos'!$B$7:$B$480,A29,'Custo Básico dos Produtos'!$K$7:$K$480) -> 1 | AL29: 5.831338716 | AM29: 9.700198034 | AN29: 0.877964924 | AO29: 1.050854787 | AP29: 1.940039607 | AQ29: 0.2
A30: 603 | B30: =IF(Q30<>0,VLOOKUP(Q30,'Custo Básico dos Produtos'!$A$7:$J$480,3),"") -> EXTENSAO COMPACT BIPOLAR BRANCA 5 MTS | D30: =SUMIF('Custo Básico dos Produtos'!$A$7:$A$480,Q30,'Custo Básico dos Produtos'!$J$7:$J$480) -> 7.865194932 | E30: 12.08 | F30: 3.751609274 | G30: =IF(B30="",0,SUMIF('Cadastro de Produtos em Linha'!$B$7:$B$457,A30,'Cadastro de Produtos em Linha'!$D$7:$D$457)) -> 20 | H30: 2 | I30: 40 | J30: 483.2 | K30: =IF('Aferi (Variáveis)'!$C$12="ALC",0,IF('Aferi (Variáveis)'!$C$12="ZFM",0,IF('Aferi (Variáveis)'!$C$12="Exportação",0,IF('Aferi (Variáveis)'!$C$12="Venda para Exportar",0,IF('Aferi (Variáveis)'!$C$12="AO",0,SUMIF('Custo Básico dos Produtos'!$A$7:$A$480,Q30,'Custo Básico dos Produtos'!$L$7:$L$480)))))) -> 5 | L30: 500.112 | M30: 16.912 | N30: 500.112 | O30: 72.51110405 | P30: =SUMIF('Cadastro de Produtos em Linha'!$A$6:$A$457,Q30,'Cadastro de Produtos em Linha'!$E$6:$E$457)*H30 -> 0.04 | Q30: =IF(TODAY()<$AK$26,IF(A30<>"",SUMIF('Custo Básico dos Produtos'!$B$7:$B$457,A30,'Custo Básico dos Produtos'!$A$7:$A$457),0),0) -> 68 | R30: =IF('Aferi (Variáveis)'!$C$12="Venda para Exportar",0,IF('Aferi (Variáveis)'!$C$12="ALC",0,IF('Aferi (Variáveis)'!$C$12="ZFM",0,IF('Aferi (Variáveis)'!$C$12="Exportação",0,IF('Aferi (Variáveis)'!$C$12="AO",0,E30/(100+(0*'Aferi (Variáveis)'!$K$12/100))*100*K30%/100*'Aferi (Variáveis)'!$K$12))))) -> 0.4228 | S30: 16.912 | T30: =(E30*'Aferi (Variáveis)'!$K$12/100) -> 8.456 | U30: 338.24 | V30: =IF('Aferi (Variáveis)'!$F$20="Venda para Exportar",0,IF('Aferi (Variáveis)'!$F$20="ALC",0,IF('Aferi (Variáveis)'!$F$20="ZFM",0,IF('Aferi (Variáveis)'!$F$20="Exportação",0,IF('Aferi (Variáveis)'!$F$20="AO",7*T30/100,T30*'Aferi (Variáveis)'!$F$20/100))))) -> 0.59192 | W30: 0.0913248 | X30: =IF('Aferi (Variáveis)'!$C$12="ZFM",0,IF('Aferi (Variáveis)'!$C$12="Exportação",0,3*T30/100)) -> 0.25368 | Y30: =IF('Aferi (Variáveis)'!$C$12="ZFM",0,IF('Aferi (Variáveis)'!$C$12="Exportação",0,0.65*T30/100)) -> 0.054964 | Z30: 0.101472 | AA30: 0.0604 | AB30: 0 | AC30: 0.2416 | AD30: 0.4026666667 | AE30: 0.604 | AF30: 2.402027467 | AG30: 1.812777601 | AH30: 15.0064371 | AI30: =SUMIF('Custo Básico dos Produtos'!$B$7:$B$480,A30,'Custo Básico dos Produtos'!$K$7:$K$480) -> 1 | AL30: 7.865194932 | AM30: 13.08343626 | AN30: 1.184181816 | AO30: 1.417372262 | AP30: 2.616687252 | AQ30: 0.2
A31: 607 | B31: =IF(Q31<>0,VLOOKUP(Q31,'Custo Básico dos Produtos'!$A$7:$J$480,3),"") -> EXTENSAO COMPACT BIPOLAR PRETA 5 MTS | D31: =SUMIF('Custo Básico dos Produtos'!$A$7:$A$480,Q31,'Custo Básico dos Produtos'!$J$7:$J$480) -> 7.865194932 | E31: 12.08 | F31: 3.751609274 | G31: =IF(B31="",0,SUMIF('Cadastro de Produtos em Linha'!$B$7:$B$457,A31,'Cadastro de Produtos em Linha'!$D$7:$D$457)) -> 20 | H31: 3 | I31: 60 | J31: 724.8 | K31: =IF('Aferi (Variáveis)'!$C$12="ALC",0,IF('Aferi (Variáveis)'!$C$12="ZFM",0,IF('Aferi (Variáveis)'!$C$12="Exportação",0,IF('Aferi (Variáveis)'!$C$12="Venda para Exportar",0,IF('Aferi (Variáveis)'!$C$12="AO",0,SUMIF('Custo Básico dos Produtos'!$A$7:$A$480,Q31,'Custo Básico dos Produtos'!$L$7:$L$480)))))) -> 5 | L31: 750.168 | M31: 25.368 | N31: 750.168 | O31: 108.7666561 | P31: =SUMIF('Cadastro de Produtos em Linha'!$A$6:$A$457,Q31,'Cadastro de Produtos em Linha'!$E$6:$E$457)*H31 -> 0.06 | Q31: =IF(TODAY()<$AK$26,IF(A31<>"",SUMIF('Custo Básico dos Produtos'!$B$7:$B$457,A31,'Custo Básico dos Produtos'!$A$7:$A$457),0),0) -> 72 | R31: =IF('Aferi (Variáveis)'!$C$12="Venda para Exportar",0,IF('Aferi (Variáveis)'!$C$12="ALC",0,IF('Aferi (Variáveis)'!$C$12="ZFM",0,IF('Aferi (Variáveis)'!$C$12="Exportação",0,IF('Aferi (Variáveis)'!$C$12="AO",0,E31/(100+(0*'Aferi (Variáveis)'!$K$12/100))*100*K31%/100*'Aferi (Variáveis)'!$K$12))))) -> 0.4228 | S31: 25.368 | T31: =(E31*'Aferi (Variáveis)'!$K$12/100) -> 8.456 | U31: 507.36 | V31: =IF('Aferi (Variáveis)'!$F$20="Venda para Exportar",0,IF('Aferi (Variáveis)'!$F$20="ALC",0,IF('Aferi (Variáveis)'!$F$20="ZFM",0,IF('Aferi (Variáveis)'!$F$20="Exportação",0,IF('Aferi (Variáveis)'!$F$20="AO",7*T31/100,T31*'Aferi (Variáveis)'!$F$20/100))))) -> 0.59192 | W31: 0.0913248 | X31: =IF('Aferi (Variáveis)'!$C$12="ZFM",0,IF('Aferi (Variáveis)'!$C$12="Exportação",0,3*T31/100)) -> 0.25368 | Y31: =IF('Aferi (Variáveis)'!$C$12="ZFM",0,IF('Aferi (Variáveis)'!$C$12="Exportação",0,0.65*T31/100)) -> 0.054964 | Z31: 0.101472 | AA31: 0.0604 | AB31: 0 | AC31: 0.2416 | AD31: 0.4026666667 | AE31: 0.604 | AF31: 2.402027467 | AG31: 1.812777601 | AH31: 15.0064371 | AI31: =SUMIF('Custo Básico dos Produtos'!$B$7:$B$480,A31,'Custo Básico dos Produtos'!$K$7:$K$480) -> 1 | AL31: 7.865194932 | AM31: 13.08343626 | AN31: 1.184181816 | AO31: 1.417372262 | AP31: 2.616687252 | AQ31: 0.2
A32: 604 | B32: =IF(Q32<>0,VLOOKUP(Q32,'Custo Básico dos Produtos'!$A$7:$J$480,3),"") -> EXTENSAO COMPACT BIPOLAR BRANCA 10 MTS | D32: =SUMIF('Custo Básico dos Produtos'!$A$7:$A$480,Q32,'Custo Básico dos Produtos'!$J$7:$J$480) -> 12.83371341 | E32: 19.71 | F32: 3.750741365 | G32: =IF(B32="",0,SUMIF('Cadastro de Produtos em Linha'!$B$7:$B$457,A32,'Cadastro de Produtos em Linha'!$D$7:$D$457)) -> 15 | H32: 1 | I32: 15 | J32: 295.65 | K32: =IF('Aferi (Variáveis)'!$C$12="ALC",0,IF('Aferi (Variáveis)'!$C$12="ZFM",0,IF('Aferi (Variáveis)'!$C$12="Exportação",0,IF('Aferi (Variáveis)'!$C$12="Venda para Exportar",0,IF('Aferi (Variáveis)'!$C$12="AO",0,SUMIF('Custo Básico dos Produtos'!$A$7:$A$480,Q32,'Custo Básico dos Produtos'!$L$7:$L$480)))))) -> 5 | L32: 305.99775 | M32: 10.34775 | N32: 305.99775 | O32: 44.35626739 | P32: =SUMIF('Cadastro de Produtos em Linha'!$A$6:$A$457,Q32,'Cadastro de Produtos em Linha'!$E$6:$E$457)*H32 -> 0.02 | Q32: =IF(TODAY()<$AK$26,IF(A32<>"",SUMIF('Custo Básico dos Produtos'!$B$7:$B$457,A32,'Custo Básico dos Produtos'!$A$7:$A$457),0),0) -> 69 | R32: =IF('Aferi (Variáveis)'!$C$12="Venda para Exportar",0,IF('Aferi (Variáveis)'!$C$12="ALC",0,IF('Aferi (Variáveis)'!$C$12="ZFM",0,IF('Aferi (Variáveis)'!$C$12="Exportação",0,IF('Aferi (Variáveis)'!$C$12="AO",0,E32/(100+(0*'Aferi (Variáveis)'!$K$12/100))*100*K32%/100*'Aferi (Variáveis)'!$K$12))))) -> 0.68985 | S32: 10.34775 | T32: =(E32*'Aferi (Variáveis)'!$K$12/100) -> 13.797 | U32: 206.955 | V32: =IF('Aferi (Variáveis)'!$F$20="Venda para Exportar",0,IF('Aferi (Variáveis)'!$F$20="ALC",0,IF('Aferi (Variáveis)'!$F$20="ZFM",0,IF('Aferi (Variáveis)'!$F$20="Exportação",0,IF('Aferi (Variáveis)'!$F$20="AO",7*T32/100,T32*'Aferi (Variáveis)'!$F$20/100))))) -> 0.96579 | W32: 0.1490076 | X32: =IF('Aferi (Variáveis)'!$C$12="ZFM",0,IF('Aferi (Variáveis)'!$C$12="Exportação",0,3*T32/100)) -> 0.41391 | Y32: =IF('Aferi (Variáveis)'!$C$12="ZFM",0,IF('Aferi (Variáveis)'!$C$12="Exportação",0,0.65*T32/100)) -> 0.0896805 | Z32: 0.165564 | AA32: 0.09855 | AB32: 0 | AC32: 0.3942 | AD32: 0.657 | AE32: 0.9855 | AF32: 3.9192021 | AG32: 2.957084492 | AH32: 15.00296546 | AI32: =SUMIF('Custo Básico dos Produtos'!$B$7:$B$480,A32,'Custo Básico dos Produtos'!$K$7:$K$480) -> 1 | AL32: 12.83371341 | AM32: 21.34836744 | AN32: 1.932240737 | AO32: 2.312739806 | AP32: 4.269673488 | AQ32: 0.2
A33: 608 | B33: =IF(Q33<>0,VLOOKUP(Q33,'Custo Básico dos Produtos'!$A$7:$J$480,3),"") -> EXTENSAO COMPACT BIPOLAR PRETA 10 MTS | D33: =SUMIF('Custo Básico dos Produtos'!$A$7:$A$480,Q33,'Custo Básico dos Produtos'!$J$7:$J$480) -> 12.83371341 | E33: 19.71 | F33: 3.750741365 | G33: =IF(B33="",0,SUMIF('Cadastro de Produtos em Linha'!$B$7:$B$457,A33,'Cadastro de Produtos em Linha'!$D$7:$D$457)) -> 15 | H33: 1 | I33: 15 | J33: 295.65 | K33: =IF('Aferi (Variáveis)'!$C$12="ALC",0,IF('Aferi (Variáveis)'!$C$12="ZFM",0,IF('Aferi (Variáveis)'!$C$12="Exportação",0,IF('Aferi (Variáveis)'!$C$12="Venda para Exportar",0,IF('Aferi (Variáveis)'!$C$12="AO",0,SUMIF('Custo Básico dos Produtos'!$A$7:$A$480,Q33,'Custo Básico dos Produtos'!$L$7:$L$480)))))) -> 5 | L33: 305.99775 | M33: 10.34775 | N33: 305.99775 | O33: 44.35626739 | P33: =SUMIF('Cadastro de Produtos em Linha'!$A$6:$A$457,Q33,'Cadastro de Produtos em Linha'!$E$6:$E$457)*H33 -> 0.02 | Q33: =IF(TODAY()<$AK$26,IF(A33<>"",SUMIF('Custo Básico dos Produtos'!$B$7:$B$457,A33,'Custo Básico dos Produtos'!$A$7:$A$457),0),0) -> 73 | R33: =IF('Aferi (Variáveis)'!$C$12="Venda para Exportar",0,IF('Aferi (Variáveis)'!$C$12="ALC",0,IF('Aferi (Variáveis)'!$C$12="ZFM",0,IF('Aferi (Variáveis)'!$C$12="Exportação",0,IF('Aferi (Variáveis)'!$C$12="AO",0,E33/(100+(0*'Aferi (Variáveis)'!$K$12/100))*100*K33%/100*'Aferi (Variáveis)'!$K$12))))) -> 0.68985 | S33: 10.34775 | T33: =(E33*'Aferi (Variáveis)'!$K$12/100) -> 13.797 | U33: 206.955 | V33: =IF('Aferi (Variáveis)'!$F$20="Venda para Exportar",0,IF('Aferi (Variáveis)'!$F$20="ALC",0,IF('Aferi (Variáveis)'!$F$20="ZFM",0,IF('Aferi (Variáveis)'!$F$20="Exportação",0,IF('Aferi (Variáveis)'!$F$20="AO",7*T33/100,T33*'Aferi (Variáveis)'!$F$20/100))))) -> 0.96579 | W33: 0.1490076 | X33: =IF('Aferi (Variáveis)'!$C$12="ZFM",0,IF('Aferi (Variáveis)'!$C$12="Exportação",0,3*T33/100)) -> 0.41391 | Y33: =IF('Aferi (Variáveis)'!$C$12="ZFM",0,IF('Aferi (Variáveis)'!$C$12="Exportação",0,0.65*T33/100)) -> 0.0896805 | Z33: 0.165564 | AA33: 0.09855 | AB33: 0 | AC33: 0.3942 | AD33: 0.657 | AE33: 0.9855 | AF33: 3.9192021 | AG33: 2.957084492 | AH33: 15.00296546 | AI33: =SUMIF('Custo Básico dos Produtos'!$B$7:$B$480,A33,'Custo Básico dos Produtos'!$K$7:$K$480) -> 1 | AL33: 12.83371341 | AM33: 21.34836744 | AN33: 1.932240737 | AO33: 2.312739806 | AP33: 4.269673488 | AQ33: 0.2
A34: 652 | B34: =IF(Q34<>0,VLOOKUP(Q34,'Custo Básico dos Produtos'!$A$7:$J$480,3),"") -> EXTENSAO COMPACT TRIPOLAR BRANCA 3 MTS | D34: =SUMIF('Custo Básico dos Produtos'!$A$7:$A$480,Q34,'Custo Básico dos Produtos'!$J$7:$J$480) -> 8.67021813 | E34: 13.32 | F34: 3.755984741 | G34: =IF(B34="",0,SUMIF('Cadastro de Produtos em Linha'!$B$7:$B$457,A34,'Cadastro de Produtos em Linha'!$D$7:$D$457)) -> 20 | H34: 2 | I34: 40 | J34: 532.8 | K34: =IF('Aferi (Variáveis)'!$C$12="ALC",0,IF('Aferi (Variáveis)'!$C$12="ZFM",0,IF('Aferi (Variáveis)'!$C$12="Exportação",0,IF('Aferi (Variáveis)'!$C$12="Venda para Exportar",0,IF('Aferi (Variáveis)'!$C$12="AO",0,SUMIF('Custo Básico dos Produtos'!$A$7:$A$480,Q34,'Custo Básico dos Produtos'!$L$7:$L$480)))))) -> 5 | L34: 551.448 | M34: 18.648 | N34: 551.448 | O34: 80.0475468 | P34: =SUMIF('Cadastro de Produtos em Linha'!$A$6:$A$457,Q34,'Cadastro de Produtos em Linha'!$E$6:$E$457)*H34 -> 0.03952 | Q34: =IF(TODAY()<$AK$26,IF(A34<>"",SUMIF('Custo Básico dos Produtos'!$B$7:$B$457,A34,'Custo Básico dos Produtos'!$A$7:$A$457),0),0) -> 79 | R34: =IF('Aferi (Variáveis)'!$C$12="Venda para Exportar",0,IF('Aferi (Variáveis)'!$C$12="ALC",0,IF('Aferi (Variáveis)'!$C$12="ZFM",0,IF('Aferi (Variáveis)'!$C$12="Exportação",0,IF('Aferi (Variáveis)'!$C$12="AO",0,E34/(100+(0*'Aferi (Variáveis)'!$K$12/100))*100*K34%/100*'Aferi (Variáveis)'!$K$12))))) -> 0.4662 | S34: 18.648 | T34: =(E34*'Aferi (Variáveis)'!$K$12/100) -> 9.324 | U34: 372.96 | V34: =IF('Aferi (Variáveis)'!$F$20="Venda para Exportar",0,IF('Aferi (Variáveis)'!$F$20="ALC",0,IF('Aferi (Variáveis)'!$F$20="ZFM",0,IF('Aferi (Variáveis)'!$F$20="Exportação",0,IF('Aferi (Variáveis)'!$F$20="AO",7*T34/100,T34*'Aferi (Variáveis)'!$F$20/100))))) -> 0.65268 | W34: 0.1006992 | X34: =IF('Aferi (Variáveis)'!$C$12="ZFM",0,IF('Aferi (Variáveis)'!$C$12="Exportação",0,3*T34/100)) -> 0.27972 | Y34: =IF('Aferi (Variáveis)'!$C$12="ZFM",0,IF('Aferi (Variáveis)'!$C$12="Exportação",0,0.65*T34/100)) -> 0.060606 | Z34: 0.111888 | AA34: 0.0666 | AB34: 0 | AC34: 0.2664 | AD34: 0.444 | AE34: 0.666 | AF34: 2.6485932 | AG34: 2.00118867 | AH34: 15.02393896 | AI34: =SUMIF('Custo Básico dos Produtos'!$B$7:$B$480,A34,'Custo Básico dos Produtos'!$K$7:$K$480) -> 1 | AL34: 8.67021813 | AM34: 14.42256006 | AN34: 1.305385911 | AO34: 1.562444006 | AP34: 2.884512012 | AQ34: 0.2
A35: 656 | B35: =IF(Q35<>0,VLOOKUP(Q35,'Custo Básico dos Produtos'!$A$7:$J$480,3),"") -> EXTENSAO COMPACT TRIPOLAR PRETA 3 MTS | D35: =SUMIF('Custo Básico dos Produtos'!$A$7:$A$480,Q35,'Custo Básico dos Produtos'!$J$7:$J$480) -> 8.67021813 | E35: 13.32 | F35: 3.755984741 | G35: =IF(B35="",0,SUMIF('Cadastro de Produtos em Linha'!$B$7:$B$457,A35,'Cadastro de Produtos em Linha'!$D$7:$D$457)) -> 20 | H35: 2 | I35: 40 | J35: 532.8 | K35: =IF('Aferi (Variáveis)'!$C$12="ALC",0,IF('Aferi (Variáveis)'!$C$12="ZFM",0,IF('Aferi (Variáveis)'!$C$12="Exportação",0,IF('Aferi (Variáveis)'!$C$12="Venda para Exportar",0,IF('Aferi (Variáveis)'!$C$12="AO",0,SUMIF('Custo Básico dos Produtos'!$A$7:$A$480,Q35,'Custo Básico dos Produtos'!$L$7:$L$480)))))) -> 5 | L35: 551.448 | M35: 18.648 | N35: 551.448 | O35: 80.0475468 | P35: =SUMIF('Cadastro de Produtos em Linha'!$A$6:$A$457,Q35,'Cadastro de Produtos em Linha'!$E$6:$E$457)*H35 -> 0.03952 | Q35: =IF(TODAY()<$AK$26,IF(A35<>"",SUMIF('Custo Básico dos Produtos'!$B$7:$B$457,A35,'Custo Básico dos Produtos'!$A$7:$A$457),0),0) -> 83 | R35: =IF('Aferi (Variáveis)'!$C$12="Venda para Exportar",0,IF('Aferi (Variáveis)'!$C$12="ALC",0,IF('Aferi (Variáveis)'!$C$12="ZFM",0,IF('Aferi (Variáveis)'!$C$12="Exportação",0,IF('Aferi (Variáveis)'!$C$12="AO",0,E35/(100+(0*'Aferi (Variáveis)'!$K$12/100))*100*K35%/100*'Aferi (Variáveis)'!$K$12))))) -> 0.4662 | S35: 18.648 | T35: =(E35*'Aferi (Variáveis)'!$K$12/100) -> 9.324 | U35: 372.96 | V35: =IF('Aferi (Variáveis)'!$F$20="Venda para Exportar",0,IF('Aferi (Variáveis)'!$F$20="ALC",0,IF('Aferi (Variáveis)'!$F$20="ZFM",0,IF('Aferi (Variáveis)'!$F$20="Exportação",0,IF('Aferi (Variáveis)'!$F$20="AO",7*T35/100,T35*'Aferi (Variáveis)'!$F$20/100))))) -> 0.65268 | W35: 0.1006992 | X35: =IF('Aferi (Variáveis)'!$C$12="ZFM",0,IF('Aferi (Variáveis)'!$C$12="Exportação",0,3*T35/100)) -> 0.27972 | Y35: =IF('Aferi (Variáveis)'!$C$12="ZFM",0,IF('Aferi (Variáveis)'!$C$12="Exportação",0,0.65*T35/100)) -> 0.060606 | Z35: 0.111888 | AA35: 0.0666 | AB35: 0 | AC35: 0.2664 | AD35: 0.444 | AE35: 0.666 | AF35: 2.6485932 | AG35: 2.00118867 | AH35: 15.02393896 | AI35: =SUMIF('Custo Básico dos Produtos'!$B$7:$B$480,A35,'Custo Básico dos Produtos'!$K$7:$K$480) -> 1 | AL35: 8.67021813 | AM35: 14.42256006 | AN35: 1.305385911 | AO35: 1.562444006 | AP35: 2.884512012 | AQ35: 0.2
A36: 653 | B36: =IF(Q36<>0,VLOOKUP(Q36,'Custo Básico dos Produtos'!$A$7:$J$480,3),"") -> EXTENSAO COMPACT TRIPOLAR BRANCA 5 MTS | D36: =SUMIF('Custo Básico dos Produtos'!$A$7:$A$480,Q36,'Custo Básico dos Produtos'!$J$7:$J$480) -> 12.24984902 | E36: 18.82 | F36: 3.75653486 | G36: =IF(B36="",0,SUMIF('Cadastro de Produtos em Linha'!$B$7:$B$457,A36,'Cadastro de Produtos em Linha'!$D$7:$D$457)) -> 20 | H36: 1 | I36: 20 | J36: 376.4 | K36: =IF('Aferi (Variáveis)'!$C$12="ALC",0,IF('Aferi (Variáveis)'!$C$12="ZFM",0,IF('Aferi (Variáveis)'!$C$12="Exportação",0,IF('Aferi (Variáveis)'!$C$12="Venda para Exportar",0,IF('Aferi (Variáveis)'!$C$12="AO",0,SUMIF('Custo Básico dos Produtos'!$A$7:$A$480,Q36,'Custo Básico dos Produtos'!$L$7:$L$480)))))) -> 5 | L36: 389.574 | M36: 13.174 | N36: 389.574 | O36: 56.55838885 | P36: =SUMIF('Cadastro de Produtos em Linha'!$A$6:$A$457,Q36,'Cadastro de Produtos em Linha'!$E$6:$E$457)*H36 -> 0.021736 | Q36: =IF(TODAY()<$AK$26,IF(A36<>"",SUMIF('Custo Básico dos Produtos'!$B$7:$B$457,A36,'Custo Básico dos Produtos'!$A$7:$A$457),0),0) -> 80 | R36: =IF('Aferi (Variáveis)'!$C$12="Venda para Exportar",0,IF('Aferi (Variáveis)'!$C$12="ALC",0,IF('Aferi (Variáveis)'!$C$12="ZFM",0,IF('Aferi (Variáveis)'!$C$12="Exportação",0,IF('Aferi (Variáveis)'!$C$12="AO",0,E36/(100+(0*'Aferi (Variáveis)'!$K$12/100))*100*K36%/100*'Aferi (Variáveis)'!$K$12))))) -> 0.6587 | S36: 13.174 | T36: =(E36*'Aferi (Variáveis)'!$K$12/100) -> 13.174 | U36: 263.48 | V36: =IF('Aferi (Variáveis)'!$F$20="Venda para Exportar",0,IF('Aferi (Variáveis)'!$F$20="ALC",0,IF('Aferi (Variáveis)'!$F$20="ZFM",0,IF('Aferi (Variáveis)'!$F$20="Exportação",0,IF('Aferi (Variáveis)'!$F$20="AO",7*T36/100,T36*'Aferi (Variáveis)'!$F$20/100))))) -> 0.92218 | W36: 0.1422792 | X36: =IF('Aferi (Variáveis)'!$C$12="ZFM",0,IF('Aferi (Variáveis)'!$C$12="Exportação",0,3*T36/100)) -> 0.39522 | Y36: =IF('Aferi (Variáveis)'!$C$12="ZFM",0,IF('Aferi (Variáveis)'!$C$12="Exportação",0,0.65*T36/100)) -> 0.085631 | Z36: 0.158088 | AA36: 0.0941 | AB36: 0 | AC36: 0.3764 | AD36: 0.6273333333 | AE36: 0.941 | AF36: 3.742231533 | AG36: 2.827919443 | AH36: 15.02613944 | AI36: =SUMIF('Custo Básico dos Produtos'!$B$7:$B$480,A36,'Custo Básico dos Produtos'!$K$7:$K$480) -> 1 | AL36: 12.24984902 | AM36: 20.37713246 | AN36: 1.844334259 | AO36: 2.207522683 | AP36: 4.075426491 | AQ36: 0.2
A37: 657 | B37: =IF(Q37<>0,VLOOKUP(Q37,'Custo Básico dos Produtos'!$A$7:$J$480,3),"") -> EXTENSAO COMPACT TRIPOLAR PRETA 5 MTS | D37: =SUMIF('Custo Básico dos Produtos'!$A$7:$A$480,Q37,'Custo Básico dos Produtos'!$J$7:$J$480) -> 12.24984902 | E37: 18.82 | F37: 3.75653486 | G37: =IF(B37="",0,SUMIF('Cadastro de Produtos em Linha'!$B$7:$B$457,A37,'Cadastro de Produtos em Linha'!$D$7:$D$457)) -> 20 | H37: 1 | I37: 20 | J37: 376.4 | K37: =IF('Aferi (Variáveis)'!$C$12="ALC",0,IF('Aferi (Variáveis)'!$C$12="ZFM",0,IF('Aferi (Variáveis)'!$C$12="Exportação",0,IF('Aferi (Variáveis)'!$C$12="Venda para Exportar",0,IF('Aferi (Variáveis)'!$C$12="AO",0,SUMIF('Custo Básico dos Produtos'!$A$7:$A$480,Q37,'Custo Básico dos Produtos'!$L$7:$L$480)))))) -> 5 | L37: 389.574 | M37: 13.174 | N37: 389.574 | O37: 56.55838885 | P37: =SUMIF('Cadastro de Produtos em Linha'!$A$6:$A$457,Q37,'Cadastro de Produtos em Linha'!$E$6:$E$457)*H37 -> 0.021736 | Q37: =IF(TODAY()<$AK$26,IF(A37<>"",SUMIF('Custo Básico dos Produtos'!$B$7:$B$457,A37,'Custo Básico dos Produtos'!$A$7:$A$457),0),0) -> 84 | R37: =IF('Aferi (Variáveis)'!$C$12="Venda para Exportar",0,IF('Aferi (Variáveis)'!$C$12="ALC",0,IF('Aferi (Variáveis)'!$C$12="ZFM",0,IF('Aferi (Variáveis)'!$C$12="Exportação",0,IF('Aferi (Variáveis)'!$C$12="AO",0,E37/(100+(0*'Aferi (Variáveis)'!$K$12/100))*100*K37%/100*'Aferi (Variáveis)'!$K$12))))) -> 0.6587 | S37: 13.174 | T37: =(E37*'Aferi (Variáveis)'!$K$12/100) -> 13.174 | U37: 263.48 | V37: =IF('Aferi (Variáveis)'!$F$20="Venda para Exportar",0,IF('Aferi (Variáveis)'!$F$20="ALC",0,IF('Aferi (Variáveis)'!$F$20="ZFM",0,IF('Aferi (Variáveis)'!$F$20="Exportação",0,IF('Aferi (Variáveis)'!$F$20="AO",7*T37/100,T37*'Aferi (Variáveis)'!$F$20/100))))) -> 0.92218 | W37: 0.1422792 | X37: =IF('Aferi (Variáveis)'!$C$12="ZFM",0,IF('Aferi (Variáveis)'!$C$12="Exportação",0,3*T37/100)) -> 0.39522 | Y37: =IF('Aferi (Variáveis)'!$C$12="ZFM",0,IF('Aferi (Variáveis)'!$C$12="Exportação",0,0.65*T37/100)) -> 0.085631 | Z37: 0.158088 | AA37: 0.0941 | AB37: 0 | AC37: 0.3764 | AD37: 0.6273333333 | AE37: 0.941 | AF37: 3.742231533 | AG37: 2.827919443 | AH37: 15.02613944 | AI37: =SUMIF('Custo Básico dos Produtos'!$B$7:$B$480,A37,'Custo Básico dos Produtos'!$K$7:$K$480) -> 1 | AL37: 12.24984902 | AM37: 20.37713246 | AN37: 1.844334259 | AO37: 2.207522683 | AP37: 4.075426491 | AQ37: 0.2
B38: =IF(Q38<>0,VLOOKUP(Q38,'Custo Básico dos Produtos'!$A$7:$J$480,3),"") ->  | D38: =SUMIF('Custo Básico dos Produtos'!$A$7:$A$480,Q38,'Custo Básico dos Produtos'!$J$7:$J$480) -> 0 | F38: 0 | G38: =IF(B38="",0,SUMIF('Cadastro de Produtos em Linha'!$B$7:$B$457,A38,'Cadastro de Produtos em Linha'!$D$7:$D$457)) -> 0 | I38: 0 | J38: 0 | K38: =IF('Aferi (Variáveis)'!$C$12="ALC",0,IF('Aferi (Variáveis)'!$C$12="ZFM",0,IF('Aferi (Variáveis)'!$C$12="Exportação",0,IF('Aferi (Variáveis)'!$C$12="Venda para Exportar",0,IF('Aferi (Variáveis)'!$C$12="AO",0,SUMIF('Custo Básico dos Produtos'!$A$7:$A$480,Q38,'Custo Básico dos Produtos'!$L$7:$L$480)))))) -> 0 | L38: 0 | M38: 0 | N38: 0 | O38: 0 | P38: =SUMIF('Cadastro de Produtos em Linha'!$A$6:$A$457,Q38,'Cadastro de Produtos em Linha'!$E$6:$E$457)*H38 -> 0 | Q38: =IF(TODAY()<$AK$26,IF(A38<>"",SUMIF('Custo Básico dos Produtos'!$B$7:$B$457,A38,'Custo Básico dos Produtos'!$A$7:$A$457),0),0) -> 0 | R38: =IF('Aferi (Variáveis)'!$C$12="Venda para Exportar",0,IF('Aferi (Variáveis)'!$C$12="ALC",0,IF('Aferi (Variáveis)'!$C$12="ZFM",0,IF('Aferi (Variáveis)'!$C$12="Exportação",0,IF('Aferi (Variáveis)'!$C$12="AO",0,E38/(100+(0*'Aferi (Variáveis)'!$K$12/100))*100*K38%/100*'Aferi (Variáveis)'!$K$12))))) -> 0 | S38: 0 | T38: =(E38*'Aferi (Variáveis)'!$K$12/100) -> 0 | U38: 0 | V38: =IF('Aferi (Variáveis)'!$F$20="Venda para Exportar",0,IF('Aferi (Variáveis)'!$F$20="ALC",0,IF('Aferi (Variáveis)'!$F$20="ZFM",0,IF('Aferi (Variáveis)'!$F$20="Exportação",0,IF('Aferi (Variáveis)'!$F$20="AO",7*T38/100,T38*'Aferi (Variáveis)'!$F$20/100))))) -> 0 | W38: 0 | X38: =IF('Aferi (Variáveis)'!$C$12="ZFM",0,IF('Aferi (Variáveis)'!$C$12="Exportação",0,3*T38/100)) -> 0 | Y38: =IF('Aferi (Variáveis)'!$C$12="ZFM",0,IF('Aferi (Variáveis)'!$C$12="Exportação",0,0.65*T38/100)) -> 0 | Z38: 0 | AA38: 0 | AB38: 0 | AC38: 0 | AD38: 0 | AE38: 0 | AF38: 0 | AG38: 0 | AH38: 0 | AI38: =SUMIF('Custo Básico dos Produtos'!$B$7:$B$480,A38,'Custo Básico dos Produtos'!$K$7:$K$480) -> 0 | AL38: 0 | AM38: 0 | AN38: 0 | AO38: 0 | AP38: 0 | AQ38: 0
B39: =IF(Q39<>0,VLOOKUP(Q39,'Custo Básico dos Produtos'!$A$7:$J$480,3),"") ->  | D39: =SUMIF('Custo Básico dos Produtos'!$A$7:$A$480,Q39,'Custo Básico dos Produtos'!$J$7:$J$480) -> 0 | F39: 0 | G39: =IF(B39="",0,SUMIF('Cadastro de Produtos em Linha'!$B$7:$B$457,A39,'Cadastro de Produtos em Linha'!$D$7:$D$457)) -> 0 | I39: 0 | J39: 0 | K39: =IF('Aferi (Variáveis)'!$C$12="ALC",0,IF('Aferi (Variáveis)'!$C$12="ZFM",0,IF('Aferi (Variáveis)'!$C$12="Exportação",0,IF('Aferi (Variáveis)'!$C$12="Venda para Exportar",0,IF('Aferi (Variáveis)'!$C$12="AO",0,SUMIF('Custo Básico dos Produtos'!$A$7:$A$480,Q39,'Custo Básico dos Produtos'!$L$7:$L$480)))))) -> 0 | L39: 0 | M39: 0 | N39: 0 | O39: 0 | P39: =SUMIF('Cadastro de Produtos em Linha'!$A$6:$A$457,Q39,'Cadastro de Produtos em Linha'!$E$6:$E$457)*H39 -> 0 | Q39: =IF(TODAY()<$AK$26,IF(A39<>"",SUMIF('Custo Básico dos Produtos'!$B$7:$B$457,A39,'Custo Básico dos Produtos'!$A$7:$A$457),0),0) -> 0 | R39: =IF('Aferi (Variáveis)'!$C$12="Venda para Exportar",0,IF('Aferi (Variáveis)'!$C$12="ALC",0,IF('Aferi (Variáveis)'!$C$12="ZFM",0,IF('Aferi (Variáveis)'!$C$12="Exportação",0,IF('Aferi (Variáveis)'!$C$12="AO",0,E39/(100+(0*'Aferi (Variáveis)'!$K$12/100))*100*K39%/100*'Aferi (Variáveis)'!$K$12))))) -> 0 | S39: 0 | T39: =(E39*'Aferi (Variáveis)'!$K$12/100) -> 0 | U39: 0 | V39: =IF('Aferi (Variáveis)'!$F$20="Venda para Exportar",0,IF('Aferi (Variáveis)'!$F$20="ALC",0,IF('Aferi (Variáveis)'!$F$20="ZFM",0,IF('Aferi (Variáveis)'!$F$20="Exportação",0,IF('Aferi (Variáveis)'!$F$20="AO",7*T39/100,T39*'Aferi (Variáveis)'!$F$20/100))))) -> 0 | W39: 0 | X39: =IF('Aferi (Variáveis)'!$C$12="ZFM",0,IF('Aferi (Variáveis)'!$C$12="Exportação",0,3*T39/100)) -> 0 | Y39: =IF('Aferi (Variáveis)'!$C$12="ZFM",0,IF('Aferi (Variáveis)'!$C$12="Exportação",0,0.65*T39/100)) -> 0 | Z39: 0 | AA39: 0 | AB39: 0 | AC39: 0 | AD39: 0 | AE39: 0 | AF39: 0 | AG39: 0 | AH39: 0 | AI39: =SUMIF('Custo Básico dos Produtos'!$B$7:$B$480,A39,'Custo Básico dos Produtos'!$K$7:$K$480) -> 0 | AL39: 0 | AM39: 0 | AN39: 0 | AO39: 0 | AP39: 0 | AQ39: 0
B40: =IF(Q40<>0,VLOOKUP(Q40,'Custo Básico dos Produtos'!$A$7:$J$480,3),"") ->  | D40: =SUMIF('Custo Básico dos Produtos'!$A$7:$A$480,Q40,'Custo Básico dos Produtos'!$J$7:$J$480) -> 0 | F40: 0 | G40: =IF(B40="",0,SUMIF('Cadastro de Produtos em Linha'!$B$7:$B$457,A40,'Cadastro de Produtos em Linha'!$D$7:$D$457)) -> 0 | I40: 0 | J40: 0 | K40: =IF('Aferi (Variáveis)'!$C$12="ALC",0,IF('Aferi (Variáveis)'!$C$12="ZFM",0,IF('Aferi (Variáveis)'!$C$12="Exportação",0,IF('Aferi (Variáveis)'!$C$12="Venda para Exportar",0,IF('Aferi (Variáveis)'!$C$12="AO",0,SUMIF('Custo Básico dos Produtos'!$A$7:$A$480,Q40,'Custo Básico dos Produtos'!$L$7:$L$480)))))) -> 0 | L40: 0 | M40: 0 | N40: 0 | O40: 0 | P40: =SUMIF('Cadastro de Produtos em Linha'!$A$6:$A$457,Q40,'Cadastro de Produtos em Linha'!$E$6:$E$457)*H40 -> 0 | Q40: =IF(TODAY()<$AK$26,IF(A40<>"",SUMIF('Custo Básico dos Produtos'!$B$7:$B$457,A40,'Custo Básico dos Produtos'!$A$7:$A$457),0),0) -> 0 | R40: =IF('Aferi (Variáveis)'!$C$12="Venda para Exportar",0,IF('Aferi (Variáveis)'!$C$12="ALC",0,IF('Aferi (Variáveis)'!$C$12="ZFM",0,IF('Aferi (Variáveis)'!$C$12="Exportação",0,IF('Aferi (Variáveis)'!$C$12="AO",0,E40/(100+(0*'Aferi (Variáveis)'!$K$12/100))*100*K40%/100*'Aferi (Variáveis)'!$K$12))))) -> 0 | S40: 0 | T40: =(E40*'Aferi (Variáveis)'!$K$12/100) -> 0 | U40: 0 | V40: =IF('Aferi (Variáveis)'!$F$20="Venda para Exportar",0,IF('Aferi (Variáveis)'!$F$20="ALC",0,IF('Aferi (Variáveis)'!$F$20="ZFM",0,IF('Aferi (Variáveis)'!$F$20="Exportação",0,IF('Aferi (Variáveis)'!$F$20="AO",7*T40/100,T40*'Aferi (Variáveis)'!$F$20/100))))) -> 0 | W40: 0 | X40: =IF('Aferi (Variáveis)'!$C$12="ZFM",0,IF('Aferi (Variáveis)'!$C$12="Exportação",0,3*T40/100)) -> 0 | Y40: =IF('Aferi (Variáveis)'!$C$12="ZFM",0,IF('Aferi (Variáveis)'!$C$12="Exportação",0,0.65*T40/100)) -> 0 | Z40: 0 | AA40: 0 | AB40: 0 | AC40: 0 | AD40: 0 | AE40: 0 | AF40: 0 | AG40: 0 | AH40: 0 | AI40: =SUMIF('Custo Básico dos Produtos'!$B$7:$B$480,A40,'Custo Básico dos Produtos'!$K$7:$K$480) -> 0 | AL40: 0 | AM40: 0 | AN40: 0 | AO40: 0 | AP40: 0 | AQ40: 0
B41: =IF(Q41<>0,VLOOKUP(Q41,'Custo Básico dos Produtos'!$A$7:$J$480,3),"") ->  | D41: =SUMIF('Custo Básico dos Produtos'!$A$7:$A$480,Q41,'Custo Básico dos Produtos'!$J$7:$J$480) -> 0 | F41: 0 | G41: =IF(B41="",0,SUMIF('Cadastro de Produtos em Linha'!$B$7:$B$457,A41,'Cadastro de Produtos em Linha'!$D$7:$D$457)) -> 0 | I41: 0 | J41: 0 | K41: =IF('Aferi (Variáveis)'!$C$12="ALC",0,IF('Aferi (Variáveis)'!$C$12="ZFM",0,IF('Aferi (Variáveis)'!$C$12="Exportação",0,IF('Aferi (Variáveis)'!$C$12="Venda para Exportar",0,IF('Aferi (Variáveis)'!$C$12="AO",0,SUMIF('Custo Básico dos Produtos'!$A$7:$A$480,Q41,'Custo Básico dos Produtos'!$L$7:$L$480)))))) -> 0 | L41: 0 | M41: 0 | N41: 0 | O41: 0 | P41: =SUMIF('Cadastro de Produtos em Linha'!$A$6:$A$457,Q41,'Cadastro de Produtos em Linha'!$E$6:$E$457)*H41 -> 0 | Q41: =IF(TODAY()<$AK$26,IF(A41<>"",SUMIF('Custo Básico dos Produtos'!$B$7:$B$457,A41,'Custo Básico dos Produtos'!$A$7:$A$457),0),0) -> 0 | R41: =IF('Aferi (Variáveis)'!$C$12="Venda para Exportar",0,IF('Aferi (Variáveis)'!$C$12="ALC",0,IF('Aferi (Variáveis)'!$C$12="ZFM",0,IF('Aferi (Variáveis)'!$C$12="Exportação",0,IF('Aferi (Variáveis)'!$C$12="AO",0,E41/(100+(0*'Aferi (Variáveis)'!$K$12/100))*100*K41%/100*'Aferi (Variáveis)'!$K$12))))) -> 0 | S41: 0 | T41: =(E41*'Aferi (Variáveis)'!$K$12/100) -> 0 | U41: 0 | V41: =IF('Aferi (Variáveis)'!$F$20="Venda para Exportar",0,IF('Aferi (Variáveis)'!$F$20="ALC",0,IF('Aferi (Variáveis)'!$F$20="ZFM",0,IF('Aferi (Variáveis)'!$F$20="Exportação",0,IF('Aferi (Variáveis)'!$F$20="AO",7*T41/100,T41*'Aferi (Variáveis)'!$F$20/100))))) -> 0 | W41: 0 | X41: =IF('Aferi (Variáveis)'!$C$12="ZFM",0,IF('Aferi (Variáveis)'!$C$12="Exportação",0,3*T41/100)) -> 0 | Y41: =IF('Aferi (Variáveis)'!$C$12="ZFM",0,IF('Aferi (Variáveis)'!$C$12="Exportação",0,0.65*T41/100)) -> 0 | Z41: 0 | AA41: 0 | AB41: 0 | AC41: 0 | AD41: 0 | AE41: 0 | AF41: 0 | AG41: 0 | AH41: 0 | AI41: =SUMIF('Custo Básico dos Produtos'!$B$7:$B$480,A41,'Custo Básico dos Produtos'!$K$7:$K$480) -> 0 | AL41: 0 | AM41: 0 | AN41: 0 | AO41: 0 | AP41: 0 | AQ41: 0
B42: =IF(Q42<>0,VLOOKUP(Q42,'Custo Básico dos Produtos'!$A$7:$J$480,3),"") ->  | D42: =SUMIF('Custo Básico dos Produtos'!$A$7:$A$480,Q42,'Custo Básico dos Produtos'!$J$7:$J$480) -> 0 | F42: 0 | G42: =IF(B42="",0,SUMIF('Cadastro de Produtos em Linha'!$B$7:$B$457,A42,'Cadastro de Produtos em Linha'!$D$7:$D$457)) -> 0 | I42: 0 | J42: 0 | K42: =IF('Aferi (Variáveis)'!$C$12="ALC",0,IF('Aferi (Variáveis)'!$C$12="ZFM",0,IF('Aferi (Variáveis)'!$C$12="Exportação",0,IF('Aferi (Variáveis)'!$C$12="Venda para Exportar",0,IF('Aferi (Variáveis)'!$C$12="AO",0,SUMIF('Custo Básico dos Produtos'!$A$7:$A$480,Q42,'Custo Básico dos Produtos'!$L$7:$L$480)))))) -> 0 | L42: 0 | M42: 0 | N42: 0 | O42: 0 | P42: =SUMIF('Cadastro de Produtos em Linha'!$A$6:$A$457,Q42,'Cadastro de Produtos em Linha'!$E$6:$E$457)*H42 -> 0 | Q42: =IF(TODAY()<$AK$26,IF(A42<>"",SUMIF('Custo Básico dos Produtos'!$B$7:$B$457,A42,'Custo Básico dos Produtos'!$A$7:$A$457),0),0) -> 0 | R42: =IF('Aferi (Variáveis)'!$C$12="Venda para Exportar",0,IF('Aferi (Variáveis)'!$C$12="ALC",0,IF('Aferi (Variáveis)'!$C$12="ZFM",0,IF('Aferi (Variáveis)'!$C$12="Exportação",0,IF('Aferi (Variáveis)'!$C$12="AO",0,E42/(100+(0*'Aferi (Variáveis)'!$K$12/100))*100*K42%/100*'Aferi (Variáveis)'!$K$12))))) -> 0 | S42: 0 | T42: =(E42*'Aferi (Variáveis)'!$K$12/100) -> 0 | U42: 0 | V42: =IF('Aferi (Variáveis)'!$F$20="Venda para Exportar",0,IF('Aferi (Variáveis)'!$F$20="ALC",0,IF('Aferi (Variáveis)'!$F$20="ZFM",0,IF('Aferi (Variáveis)'!$F$20="Exportação",0,IF('Aferi (Variáveis)'!$F$20="AO",7*T42/100,T42*'Aferi (Variáveis)'!$F$20/100))))) -> 0 | W42: 0 | X42: =IF('Aferi (Variáveis)'!$C$12="ZFM",0,IF('Aferi (Variáveis)'!$C$12="Exportação",0,3*T42/100)) -> 0 | Y42: =IF('Aferi (Variáveis)'!$C$12="ZFM",0,IF('Aferi (Variáveis)'!$C$12="Exportação",0,0.65*T42/100)) -> 0 | Z42: 0 | AA42: 0 | AB42: 0 | AC42: 0 | AD42: 0 | AE42: 0 | AF42: 0 | AG42: 0 | AH42: 0 | AI42: =SUMIF('Custo Básico dos Produtos'!$B$7:$B$480,A42,'Custo Básico dos Produtos'!$K$7:$K$480) -> 0 | AL42: 0 | AM42: 0 | AN42: 0 | AO42: 0 | AP42: 0 | AQ42: 0
B43: =IF(Q43<>0,VLOOKUP(Q43,'Custo Básico dos Produtos'!$A$7:$J$480,3),"") ->  | D43: =SUMIF('Custo Básico dos Produtos'!$A$7:$A$480,Q43,'Custo Básico dos Produtos'!$J$7:$J$480) -> 0 | F43: 0 | G43: =IF(B43="",0,SUMIF('Cadastro de Produtos em Linha'!$B$7:$B$457,A43,'Cadastro de Produtos em Linha'!$D$7:$D$457)) -> 0 | I43: 0 | J43: 0 | K43: =IF('Aferi (Variáveis)'!$C$12="ALC",0,IF('Aferi (Variáveis)'!$C$12="ZFM",0,IF('Aferi (Variáveis)'!$C$12="Exportação",0,IF('Aferi (Variáveis)'!$C$12="Venda para Exportar",0,IF('Aferi (Variáveis)'!$C$12="AO",0,SUMIF('Custo Básico dos Produtos'!$A$7:$A$480,Q43,'Custo Básico dos Produtos'!$L$7:$L$480)))))) -> 0 | L43: 0 | M43: 0 | N43: 0 | O43: 0 | P43: =SUMIF('Cadastro de Produtos em Linha'!$A$6:$A$457,Q43,'Cadastro de Produtos em Linha'!$E$6:$E$457)*H43 -> 0 | Q43: =IF(TODAY()<$AK$26,IF(A43<>"",SUMIF('Custo Básico dos Produtos'!$B$7:$B$457,A43,'Custo Básico dos Produtos'!$A$7:$A$457),0),0) -> 0 | R43: =IF('Aferi (Variáveis)'!$C$12="Venda para Exportar",0,IF('Aferi (Variáveis)'!$C$12="ALC",0,IF('Aferi (Variáveis)'!$C$12="ZFM",0,IF('Aferi (Variáveis)'!$C$12="Exportação",0,IF('Aferi (Variáveis)'!$C$12="AO",0,E43/(100+(0*'Aferi (Variáveis)'!$K$12/100))*100*K43%/100*'Aferi (Variáveis)'!$K$12))))) -> 0 | S43: 0 | T43: =(E43*'Aferi (Variáveis)'!$K$12/100) -> 0 | U43: 0 | V43: =IF('Aferi (Variáveis)'!$F$20="Venda para Exportar",0,IF('Aferi (Variáveis)'!$F$20="ALC",0,IF('Aferi (Variáveis)'!$F$20="ZFM",0,IF('Aferi (Variáveis)'!$F$20="Exportação",0,IF('Aferi (Variáveis)'!$F$20="AO",7*T43/100,T43*'Aferi (Variáveis)'!$F$20/100))))) -> 0 | W43: 0 | X43: =IF('Aferi (Variáveis)'!$C$12="ZFM",0,IF('Aferi (Variáveis)'!$C$12="Exportação",0,3*T43/100)) -> 0 | Y43: =IF('Aferi (Variáveis)'!$C$12="ZFM",0,IF('Aferi (Variáveis)'!$C$12="Exportação",0,0.65*T43/100)) -> 0 | Z43: 0 | AA43: 0 | AB43: 0 | AC43: 0 | AD43: 0 | AE43: 0 | AF43: 0 | AG43: 0 | AH43: 0 | AI43: =SUMIF('Custo Básico dos Produtos'!$B$7:$B$480,A43,'Custo Básico dos Produtos'!$K$7:$K$480) -> 0 | AL43: 0 | AM43: 0 | AN43: 0 | AO43: 0 | AP43: 0 | AQ43: 0
B44: =IF(Q44<>0,VLOOKUP(Q44,'Custo Básico dos Produtos'!$A$7:$J$480,3),"") ->  | D44: =SUMIF('Custo Básico dos Produtos'!$A$7:$A$480,Q44,'Custo Básico dos Produtos'!$J$7:$J$480) -> 0 | F44: 0 | G44: =IF(B44="",0,SUMIF('Cadastro de Produtos em Linha'!$B$7:$B$457,A44,'Cadastro de Produtos em Linha'!$D$7:$D$457)) -> 0 | I44: 0 | J44: 0 | K44: =IF('Aferi (Variáveis)'!$C$12="ALC",0,IF('Aferi (Variáveis)'!$C$12="ZFM",0,IF('Aferi (Variáveis)'!$C$12="Exportação",0,IF('Aferi (Variáveis)'!$C$12="Venda para Exportar",0,IF('Aferi (Variáveis)'!$C$12="AO",0,SUMIF('Custo Básico dos Produtos'!$A$7:$A$480,Q44,'Custo Básico dos Produtos'!$L$7:$L$480)))))) -> 0 | L44: 0 | M44: 0 | N44: 0 | O44: 0 | P44: =SUMIF('Cadastro de Produtos em Linha'!$A$6:$A$457,Q44,'Cadastro de Produtos em Linha'!$E$6:$E$457)*H44 -> 0 | Q44: =IF(TODAY()<$AK$26,IF(A44<>"",SUMIF('Custo Básico dos Produtos'!$B$7:$B$457,A44,'Custo Básico dos Produtos'!$A$7:$A$457),0),0) -> 0 | R44: =IF('Aferi (Variáveis)'!$C$12="Venda para Exportar",0,IF('Aferi (Variáveis)'!$C$12="ALC",0,IF('Aferi (Variáveis)'!$C$12="ZFM",0,IF('Aferi (Variáveis)'!$C$12="Exportação",0,IF('Aferi (Variáveis)'!$C$12="AO",0,E44/(100+(0*'Aferi (Variáveis)'!$K$12/100))*100*K44%/100*'Aferi (Variáveis)'!$K$12))))) -> 0 | S44: 0 | T44: =(E44*'Aferi (Variáveis)'!$K$12/100) -> 0 | U44: 0 | V44: =IF('Aferi (Variáveis)'!$F$20="Venda para Exportar",0,IF('Aferi (Variáveis)'!$F$20="ALC",0,IF('Aferi (Variáveis)'!$F$20="ZFM",0,IF('Aferi (Variáveis)'!$F$20="Exportação",0,IF('Aferi (Variáveis)'!$F$20="AO",7*T44/100,T44*'Aferi (Variáveis)'!$F$20/100))))) -> 0 | W44: 0 | X44: =IF('Aferi (Variáveis)'!$C$12="ZFM",0,IF('Aferi (Variáveis)'!$C$12="Exportação",0,3*T44/100)) -> 0 | Y44: =IF('Aferi (Variáveis)'!$C$12="ZFM",0,IF('Aferi (Variáveis)'!$C$12="Exportação",0,0.65*T44/100)) -> 0 | Z44: 0 | AA44: 0 | AB44: 0 | AC44: 0 | AD44: 0 | AE44: 0 | AF44: 0 | AG44: 0 | AH44: 0 | AI44: =SUMIF('Custo Básico dos Produtos'!$B$7:$B$480,A44,'Custo Básico dos Produtos'!$K$7:$K$480) -> 0 | AL44: 0 | AM44: 0 | AN44: 0 | AO44: 0 | AP44: 0 | AQ44: 0
B45: =IF(Q45<>0,VLOOKUP(Q45,'Custo Básico dos Produtos'!$A$7:$J$480,3),"") ->  | D45: =SUMIF('Custo Básico dos Produtos'!$A$7:$A$480,Q45,'Custo Básico dos Produtos'!$J$7:$J$480) -> 0 | F45: 0 | G45: =IF(B45="",0,SUMIF('Cadastro de Produtos em Linha'!$B$7:$B$457,A45,'Cadastro de Produtos em Linha'!$D$7:$D$457)) -> 0 | I45: 0 | J45: 0 | K45: =IF('Aferi (Variáveis)'!$C$12="ALC",0,IF('Aferi (Variáveis)'!$C$12="ZFM",0,IF('Aferi (Variáveis)'!$C$12="Exportação",0,IF('Aferi (Variáveis)'!$C$12="Venda para Exportar",0,IF('Aferi (Variáveis)'!$C$12="AO",0,SUMIF('Custo Básico dos Produtos'!$A$7:$A$480,Q45,'Custo Básico dos Produtos'!$L$7:$L$480)))))) -> 0 | L45: 0 | M45: 0 | N45: 0 | O45: 0 | P45: =SUMIF('Cadastro de Produtos em Linha'!$A$6:$A$457,Q45,'Cadastro de Produtos em Linha'!$E$6:$E$457)*H45 -> 0 | Q45: =IF(TODAY()<$AK$26,IF(A45<>"",SUMIF('Custo Básico dos Produtos'!$B$7:$B$457,A45,'Custo Básico dos Produtos'!$A$7:$A$457),0),0) -> 0 | R45: =IF('Aferi (Variáveis)'!$C$12="Venda para Exportar",0,IF('Aferi (Variáveis)'!$C$12="ALC",0,IF('Aferi (Variáveis)'!$C$12="ZFM",0,IF('Aferi (Variáveis)'!$C$12="Exportação",0,IF('Aferi (Variáveis)'!$C$12="AO",0,E45/(100+(0*'Aferi (Variáveis)'!$K$12/100))*100*K45%/100*'Aferi (Variáveis)'!$K$12))))) -> 0 | S45: 0 | T45: =(E45*'Aferi (Variáveis)'!$K$12/100) -> 0 | U45: 0 | V45: =IF('Aferi (Variáveis)'!$F$20="Venda para Exportar",0,IF('Aferi (Variáveis)'!$F$20="ALC",0,IF('Aferi (Variáveis)'!$F$20="ZFM",0,IF('Aferi (Variáveis)'!$F$20="Exportação",0,IF('Aferi (Variáveis)'!$F$20="AO",7*T45/100,T45*'Aferi (Variáveis)'!$F$20/100))))) -> 0 | W45: 0 | X45: =IF('Aferi (Variáveis)'!$C$12="ZFM",0,IF('Aferi (Variáveis)'!$C$12="Exportação",0,3*T45/100)) -> 0 | Y45: =IF('Aferi (Variáveis)'!$C$12="ZFM",0,IF('Aferi (Variáveis)'!$C$12="Exportação",0,0.65*T45/100)) -> 0 | Z45: 0 | AA45: 0 | AB45: 0 | AC45: 0 | AD45: 0 | AE45: 0 | AF45: 0 | AG45: 0 | AH45: 0 | AI45: =SUMIF('Custo Básico dos Produtos'!$B$7:$B$480,A45,'Custo Básico dos Produtos'!$K$7:$K$480) -> 0 | AL45: 0 | AM45: 0 | AN45: 0 | AO45: 0 | AP45: 0 | AQ45: 0
B46: =IF(Q46<>0,VLOOKUP(Q46,'Custo Básico dos Produtos'!$A$7:$J$480,3),"") ->  | D46: =SUMIF('Custo Básico dos Produtos'!$A$7:$A$480,Q46,'Custo Básico dos Produtos'!$J$7:$J$480) -> 0 | F46: 0 | G46: =IF(B46="",0,SUMIF('Cadastro de Produtos em Linha'!$B$7:$B$457,A46,'Cadastro de Produtos em Linha'!$D$7:$D$457)) -> 0 | I46: 0 | J46: 0 | K46: =IF('Aferi (Variáveis)'!$C$12="ALC",0,IF('Aferi (Variáveis)'!$C$12="ZFM",0,IF('Aferi (Variáveis)'!$C$12="Exportação",0,IF('Aferi (Variáveis)'!$C$12="Venda para Exportar",0,IF('Aferi (Variáveis)'!$C$12="AO",0,SUMIF('Custo Básico dos Produtos'!$A$7:$A$480,Q46,'Custo Básico dos Produtos'!$L$7:$L$480)))))) -> 0 | L46: 0 | M46: 0 | N46: 0 | O46: 0 | P46: =SUMIF('Cadastro de Produtos em Linha'!$A$6:$A$457,Q46,'Cadastro de Produtos em Linha'!$E$6:$E$457)*H46 -> 0 | Q46: =IF(TODAY()<$AK$26,IF(A46<>"",SUMIF('Custo Básico dos Produtos'!$B$7:$B$457,A46,'Custo Básico dos Produtos'!$A$7:$A$457),0),0) -> 0 | R46: =IF('Aferi (Variáveis)'!$C$12="Venda para Exportar",0,IF('Aferi (Variáveis)'!$C$12="ALC",0,IF('Aferi (Variáveis)'!$C$12="ZFM",0,IF('Aferi (Variáveis)'!$C$12="Exportação",0,IF('Aferi (Variáveis)'!$C$12="AO",0,E46/(100+(0*'Aferi (Variáveis)'!$K$12/100))*100*K46%/100*'Aferi (Variáveis)'!$K$12))))) -> 0 | S46: 0 | T46: =(E46*'Aferi (Variáveis)'!$K$12/100) -> 0 | U46: 0 | V46: =IF('Aferi (Variáveis)'!$F$20="Venda para Exportar",0,IF('Aferi (Variáveis)'!$F$20="ALC",0,IF('Aferi (Variáveis)'!$F$20="ZFM",0,IF('Aferi (Variáveis)'!$F$20="Exportação",0,IF('Aferi (Variáveis)'!$F$20="AO",7*T46/100,T46*'Aferi (Variáveis)'!$F$20/100))))) -> 0 | W46: 0 | X46: =IF('Aferi (Variáveis)'!$C$12="ZFM",0,IF('Aferi (Variáveis)'!$C$12="Exportação",0,3*T46/100)) -> 0 | Y46: =IF('Aferi (Variáveis)'!$C$12="ZFM",0,IF('Aferi (Variáveis)'!$C$12="Exportação",0,0.65*T46/100)) -> 0 | Z46: 0 | AA46: 0 | AB46: 0 | AC46: 0 | AD46: 0 | AE46: 0 | AF46: 0 | AG46: 0 | AH46: 0 | AI46: =SUMIF('Custo Básico dos Produtos'!$B$7:$B$480,A46,'Custo Básico dos Produtos'!$K$7:$K$480) -> 0 | AL46: 0 | AM46: 0 | AN46: 0 | AO46: 0 | AP46: 0 | AQ46: 0
B47: =IF(Q47<>0,VLOOKUP(Q47,'Custo Básico dos Produtos'!$A$7:$J$480,3),"") ->  | D47: =SUMIF('Custo Básico dos Produtos'!$A$7:$A$480,Q47,'Custo Básico dos Produtos'!$J$7:$J$480) -> 0 | F47: 0 | G47: =IF(B47="",0,SUMIF('Cadastro de Produtos em Linha'!$B$7:$B$457,A47,'Cadastro de Produtos em Linha'!$D$7:$D$457)) -> 0 | I47: 0 | J47: 0 | K47: =IF('Aferi (Variáveis)'!$C$12="ALC",0,IF('Aferi (Variáveis)'!$C$12="ZFM",0,IF('Aferi (Variáveis)'!$C$12="Exportação",0,IF('Aferi (Variáveis)'!$C$12="Venda para Exportar",0,IF('Aferi (Variáveis)'!$C$12="AO",0,SUMIF('Custo Básico dos Produtos'!$A$7:$A$480,Q47,'Custo Básico dos Produtos'!$L$7:$L$480)))))) -> 0 | L47: 0 | M47: 0 | N47: 0 | O47: 0 | P47: =SUMIF('Cadastro de Produtos em Linha'!$A$6:$A$457,Q47,'Cadastro de Produtos em Linha'!$E$6:$E$457)*H47 -> 0 | Q47: =IF(TODAY()<$AK$26,IF(A47<>"",SUMIF('Custo Básico dos Produtos'!$B$7:$B$457,A47,'Custo Básico dos Produtos'!$A$7:$A$457),0),0) -> 0 | R47: =IF('Aferi (Variáveis)'!$C$12="Venda para Exportar",0,IF('Aferi (Variáveis)'!$C$12="ALC",0,IF('Aferi (Variáveis)'!$C$12="ZFM",0,IF('Aferi (Variáveis)'!$C$12="Exportação",0,IF('Aferi (Variáveis)'!$C$12="AO",0,E47/(100+(0*'Aferi (Variáveis)'!$K$12/100))*100*K47%/100*'Aferi (Variáveis)'!$K$12))))) -> 0 | S47: 0 | T47: =(E47*'Aferi (Variáveis)'!$K$12/100) -> 0 | U47: 0 | V47: =IF('Aferi (Variáveis)'!$F$20="Venda para Exportar",0,IF('Aferi (Variáveis)'!$F$20="ALC",0,IF('Aferi (Variáveis)'!$F$20="ZFM",0,IF('Aferi (Variáveis)'!$F$20="Exportação",0,IF('Aferi (Variáveis)'!$F$20="AO",7*T47/100,T47*'Aferi (Variáveis)'!$F$20/100))))) -> 0 | W47: 0 | X47: =IF('Aferi (Variáveis)'!$C$12="ZFM",0,IF('Aferi (Variáveis)'!$C$12="Exportação",0,3*T47/100)) -> 0 | Y47: =IF('Aferi (Variáveis)'!$C$12="ZFM",0,IF('Aferi (Variáveis)'!$C$12="Exportação",0,0.65*T47/100)) -> 0 | Z47: 0 | AA47: 0 | AB47: 0 | AC47: 0 | AD47: 0 | AE47: 0 | AF47: 0 | AG47: 0 | AH47: 0 | AI47: =SUMIF('Custo Básico dos Produtos'!$B$7:$B$480,A47,'Custo Básico dos Produtos'!$K$7:$K$480) -> 0 | AL47: 0 | AM47: 0 | AN47: 0 | AO47: 0 | AP47: 0 | AQ47: 0
B48: =IF(Q48<>0,VLOOKUP(Q48,'Custo Básico dos Produtos'!$A$7:$J$480,3),"") ->  | D48: =SUMIF('Custo Básico dos Produtos'!$A$7:$A$480,Q48,'Custo Básico dos Produtos'!$J$7:$J$480) -> 0 | F48: 0 | G48: =IF(B48="",0,SUMIF('Cadastro de Produtos em Linha'!$B$7:$B$457,A48,'Cadastro de Produtos em Linha'!$D$7:$D$457)) -> 0 | I48: 0 | J48: 0 | K48: =IF('Aferi (Variáveis)'!$C$12="ALC",0,IF('Aferi (Variáveis)'!$C$12="ZFM",0,IF('Aferi (Variáveis)'!$C$12="Exportação",0,IF('Aferi (Variáveis)'!$C$12="Venda para Exportar",0,IF('Aferi (Variáveis)'!$C$12="AO",0,SUMIF('Custo Básico dos Produtos'!$A$7:$A$480,Q48,'Custo Básico dos Produtos'!$L$7:$L$480)))))) -> 0 | L48: 0 | M48: 0 | N48: 0 | O48: 0 | P48: =SUMIF('Cadastro de Produtos em Linha'!$A$6:$A$457,Q48,'Cadastro de Produtos em Linha'!$E$6:$E$457)*H48 -> 0 | Q48: =IF(TODAY()<$AK$26,IF(A48<>"",SUMIF('Custo Básico dos Produtos'!$B$7:$B$457,A48,'Custo Básico dos Produtos'!$A$7:$A$457),0),0) -> 0 | R48: =IF('Aferi (Variáveis)'!$C$12="Venda para Exportar",0,IF('Aferi (Variáveis)'!$C$12="ALC",0,IF('Aferi (Variáveis)'!$C$12="ZFM",0,IF('Aferi (Variáveis)'!$C$12="Exportação",0,IF('Aferi (Variáveis)'!$C$12="AO",0,E48/(100+(0*'Aferi (Variáveis)'!$K$12/100))*100*K48%/100*'Aferi (Variáveis)'!$K$12))))) -> 0 | S48: 0 | T48: =(E48*'Aferi (Variáveis)'!$K$12/100) -> 0 | U48: 0 | V48: =IF('Aferi (Variáveis)'!$F$20="Venda para Exportar",0,IF('Aferi (Variáveis)'!$F$20="ALC",0,IF('Aferi (Variáveis)'!$F$20="ZFM",0,IF('Aferi (Variáveis)'!$F$20="Exportação",0,IF('Aferi (Variáveis)'!$F$20="AO",7*T48/100,T48*'Aferi (Variáveis)'!$F$20/100))))) -> 0 | W48: 0 | X48: =IF('Aferi (Variáveis)'!$C$12="ZFM",0,IF('Aferi (Variáveis)'!$C$12="Exportação",0,3*T48/100)) -> 0 | Y48: =IF('Aferi (Variáveis)'!$C$12="ZFM",0,IF('Aferi (Variáveis)'!$C$12="Exportação",0,0.65*T48/100)) -> 0 | Z48: 0 | AA48: 0 | AB48: 0 | AC48: 0 | AD48: 0 | AE48: 0 | AF48: 0 | AG48: 0 | AH48: 0 | AI48: =SUMIF('Custo Básico dos Produtos'!$B$7:$B$480,A48,'Custo Básico dos Produtos'!$K$7:$K$480) -> 0 | AL48: 0 | AM48: 0 | AN48: 0 | AO48: 0 | AP48: 0 | AQ48: 0
B49: =IF(Q49<>0,VLOOKUP(Q49,'Custo Básico dos Produtos'!$A$7:$J$480,3),"") ->  | D49: =SUMIF('Custo Básico dos Produtos'!$A$7:$A$480,Q49,'Custo Básico dos Produtos'!$J$7:$J$480) -> 0 | F49: 0 | G49: =IF(B49="",0,SUMIF('Cadastro de Produtos em Linha'!$B$7:$B$457,A49,'Cadastro de Produtos em Linha'!$D$7:$D$457)) -> 0 | I49: 0 | J49: 0 | K49: =IF('Aferi (Variáveis)'!$C$12="ALC",0,IF('Aferi (Variáveis)'!$C$12="ZFM",0,IF('Aferi (Variáveis)'!$C$12="Exportação",0,IF('Aferi (Variáveis)'!$C$12="Venda para Exportar",0,IF('Aferi (Variáveis)'!$C$12="AO",0,SUMIF('Custo Básico dos Produtos'!$A$7:$A$480,Q49,'Custo Básico dos Produtos'!$L$7:$L$480)))))) -> 0 | L49: 0 | M49: 0 | N49: 0 | O49: 0 | P49: =SUMIF('Cadastro de Produtos em Linha'!$A$6:$A$457,Q49,'Cadastro de Produtos em Linha'!$E$6:$E$457)*H49 -> 0 | Q49: =IF(TODAY()<$AK$26,IF(A49<>"",SUMIF('Custo Básico dos Produtos'!$B$7:$B$457,A49,'Custo Básico dos Produtos'!$A$7:$A$457),0),0) -> 0 | R49: =IF('Aferi (Variáveis)'!$C$12="Venda para Exportar",0,IF('Aferi (Variáveis)'!$C$12="ALC",0,IF('Aferi (Variáveis)'!$C$12="ZFM",0,IF('Aferi (Variáveis)'!$C$12="Exportação",0,IF('Aferi (Variáveis)'!$C$12="AO",0,E49/(100+(0*'Aferi (Variáveis)'!$K$12/100))*100*K49%/100*'Aferi (Variáveis)'!$K$12))))) -> 0 | S49: 0 | T49: =(E49*'Aferi (Variáveis)'!$K$12/100) -> 0 | U49: 0 | V49: =IF('Aferi (Variáveis)'!$F$20="Venda para Exportar",0,IF('Aferi (Variáveis)'!$F$20="ALC",0,IF('Aferi (Variáveis)'!$F$20="ZFM",0,IF('Aferi (Variáveis)'!$F$20="Exportação",0,IF('Aferi (Variáveis)'!$F$20="AO",7*T49/100,T49*'Aferi (Variáveis)'!$F$20/100))))) -> 0 | W49: 0 | X49: =IF('Aferi (Variáveis)'!$C$12="ZFM",0,IF('Aferi (Variáveis)'!$C$12="Exportação",0,3*T49/100)) -> 0 | Y49: =IF('Aferi (Variáveis)'!$C$12="ZFM",0,IF('Aferi (Variáveis)'!$C$12="Exportação",0,0.65*T49/100)) -> 0 | Z49: 0 | AA49: 0 | AB49: 0 | AC49: 0 | AD49: 0 | AE49: 0 | AF49: 0 | AG49: 0 | AH49: 0 | AI49: =SUMIF('Custo Básico dos Produtos'!$B$7:$B$480,A49,'Custo Básico dos Produtos'!$K$7:$K$480) -> 0 | AL49: 0 | AM49: 0 | AN49: 0 | AO49: 0 | AP49: 0 | AQ49: 0
B50: =IF(Q50<>0,VLOOKUP(Q50,'Custo Básico dos Produtos'!$A$7:$J$480,3),"") ->  | D50: =SUMIF('Custo Básico dos Produtos'!$A$7:$A$480,Q50,'Custo Básico dos Produtos'!$J$7:$J$480) -> 0 | F50: 0 | G50: =IF(B50="",0,SUMIF('Cadastro de Produtos em Linha'!$B$7:$B$457,A50,'Cadastro de Produtos em Linha'!$D$7:$D$457)) -> 0 | I50: 0 | J50: 0 | K50: =IF('Aferi (Variáveis)'!$C$12="ALC",0,IF('Aferi (Variáveis)'!$C$12="ZFM",0,IF('Aferi (Variáveis)'!$C$12="Exportação",0,IF('Aferi (Variáveis)'!$C$12="Venda para Exportar",0,IF('Aferi (Variáveis)'!$C$12="AO",0,SUMIF('Custo Básico dos Produtos'!$A$7:$A$480,Q50,'Custo Básico dos Produtos'!$L$7:$L$480)))))) -> 0 | L50: 0 | M50: 0 | N50: 0 | O50: 0 | P50: =SUMIF('Cadastro de Produtos em Linha'!$A$6:$A$457,Q50,'Cadastro de Produtos em Linha'!$E$6:$E$457)*H50 -> 0 | Q50: =IF(TODAY()<$AK$26,IF(A50<>"",SUMIF('Custo Básico dos Produtos'!$B$7:$B$457,A50,'Custo Básico dos Produtos'!$A$7:$A$457),0),0) -> 0 | R50: =IF('Aferi (Variáveis)'!$C$12="Venda para Exportar",0,IF('Aferi (Variáveis)'!$C$12="ALC",0,IF('Aferi (Variáveis)'!$C$12="ZFM",0,IF('Aferi (Variáveis)'!$C$12="Exportação",0,IF('Aferi (Variáveis)'!$C$12="AO",0,E50/(100+(0*'Aferi (Variáveis)'!$K$12/100))*100*K50%/100*'Aferi (Variáveis)'!$K$12))))) -> 0 | S50: 0 | T50: =(E50*'Aferi (Variáveis)'!$K$12/100) -> 0 | U50: 0 | V50: =IF('Aferi (Variáveis)'!$F$20="Venda para Exportar",0,IF('Aferi (Variáveis)'!$F$20="ALC",0,IF('Aferi (Variáveis)'!$F$20="ZFM",0,IF('Aferi (Variáveis)'!$F$20="Exportação",0,IF('Aferi (Variáveis)'!$F$20="AO",7*T50/100,T50*'Aferi (Variáveis)'!$F$20/100))))) -> 0 | W50: 0 | X50: =IF('Aferi (Variáveis)'!$C$12="ZFM",0,IF('Aferi (Variáveis)'!$C$12="Exportação",0,3*T50/100)) -> 0 | Y50: =IF('Aferi (Variáveis)'!$C$12="ZFM",0,IF('Aferi (Variáveis)'!$C$12="Exportação",0,0.65*T50/100)) -> 0 | Z50: 0 | AA50: 0 | AB50: 0 | AC50: 0 | AD50: 0 | AE50: 0 | AF50: 0 | AG50: 0 | AH50: 0 | AI50: =SUMIF('Custo Básico dos Produtos'!$B$7:$B$480,A50,'Custo Básico dos Produtos'!$K$7:$K$480) -> 0 | AL50: 0 | AM50: 0 | AN50: 0 | AO50: 0 | AP50: 0 | AQ50: 0
B51: =IF(Q51<>0,VLOOKUP(Q51,'Custo Básico dos Produtos'!$A$7:$J$480,3),"") ->  | D51: =SUMIF('Custo Básico dos Produtos'!$A$7:$A$480,Q51,'Custo Básico dos Produtos'!$J$7:$J$480) -> 0 | F51: 0 | G51: =IF(B51="",0,SUMIF('Cadastro de Produtos em Linha'!$B$7:$B$457,A51,'Cadastro de Produtos em Linha'!$D$7:$D$457)) -> 0 | I51: 0 | J51: 0 | K51: =IF('Aferi (Variáveis)'!$C$12="ALC",0,IF('Aferi (Variáveis)'!$C$12="ZFM",0,IF('Aferi (Variáveis)'!$C$12="Exportação",0,IF('Aferi (Variáveis)'!$C$12="Venda para Exportar",0,IF('Aferi (Variáveis)'!$C$12="AO",0,SUMIF('Custo Básico dos Produtos'!$A$7:$A$480,Q51,'Custo Básico dos Produtos'!$L$7:$L$480)))))) -> 0 | L51: 0 | M51: 0 | N51: 0 | O51: 0 | P51: =SUMIF('Cadastro de Produtos em Linha'!$A$6:$A$457,Q51,'Cadastro de Produtos em Linha'!$E$6:$E$457)*H51 -> 0 | Q51: =IF(TODAY()<$AK$26,IF(A51<>"",SUMIF('Custo Básico dos Produtos'!$B$7:$B$457,A51,'Custo Básico dos Produtos'!$A$7:$A$457),0),0) -> 0 | R51: =IF('Aferi (Variáveis)'!$C$12="Venda para Exportar",0,IF('Aferi (Variáveis)'!$C$12="ALC",0,IF('Aferi (Variáveis)'!$C$12="ZFM",0,IF('Aferi (Variáveis)'!$C$12="Exportação",0,IF('Aferi (Variáveis)'!$C$12="AO",0,E51/(100+(0*'Aferi (Variáveis)'!$K$12/100))*100*K51%/100*'Aferi (Variáveis)'!$K$12))))) -> 0 | S51: 0 | T51: =(E51*'Aferi (Variáveis)'!$K$12/100) -> 0 | U51: 0 | V51: =IF('Aferi (Variáveis)'!$F$20="Venda para Exportar",0,IF('Aferi (Variáveis)'!$F$20="ALC",0,IF('Aferi (Variáveis)'!$F$20="ZFM",0,IF('Aferi (Variáveis)'!$F$20="Exportação",0,IF('Aferi (Variáveis)'!$F$20="AO",7*T51/100,T51*'Aferi (Variáveis)'!$F$20/100))))) -> 0 | W51: 0 | X51: =IF('Aferi (Variáveis)'!$C$12="ZFM",0,IF('Aferi (Variáveis)'!$C$12="Exportação",0,3*T51/100)) -> 0 | Y51: =IF('Aferi (Variáveis)'!$C$12="ZFM",0,IF('Aferi (Variáveis)'!$C$12="Exportação",0,0.65*T51/100)) -> 0 | Z51: 0 | AA51: 0 | AB51: 0 | AC51: 0 | AD51: 0 | AE51: 0 | AF51: 0 | AG51: 0 | AH51: 0 | AI51: =SUMIF('Custo Básico dos Produtos'!$B$7:$B$480,A51,'Custo Básico dos Produtos'!$K$7:$K$480) -> 0 | AL51: 0 | AM51: 0 | AN51: 0 | AO51: 0 | AP51: 0 | AQ51: 0
B52: =IF(Q52<>0,VLOOKUP(Q52,'Custo Básico dos Produtos'!$A$7:$J$480,3),"") ->  | D52: =SUMIF('Custo Básico dos Produtos'!$A$7:$A$480,Q52,'Custo Básico dos Produtos'!$J$7:$J$480) -> 0 | F52: 0 | G52: =IF(B52="",0,SUMIF('Cadastro de Produtos em Linha'!$B$7:$B$457,A52,'Cadastro de Produtos em Linha'!$D$7:$D$457)) -> 0 | I52: 0 | J52: 0 | K52: =IF('Aferi (Variáveis)'!$C$12="ALC",0,IF('Aferi (Variáveis)'!$C$12="ZFM",0,IF('Aferi (Variáveis)'!$C$12="Exportação",0,IF('Aferi (Variáveis)'!$C$12="Venda para Exportar",0,IF('Aferi (Variáveis)'!$C$12="AO",0,SUMIF('Custo Básico dos Produtos'!$A$7:$A$480,Q52,'Custo Básico dos Produtos'!$L$7:$L$480)))))) -> 0 | L52: 0 | M52: 0 | N52: 0 | O52: 0 | P52: =SUMIF('Cadastro de Produtos em Linha'!$A$6:$A$457,Q52,'Cadastro de Produtos em Linha'!$E$6:$E$457)*H52 -> 0 | Q52: =IF(TODAY()<$AK$26,IF(A52<>"",SUMIF('Custo Básico dos Produtos'!$B$7:$B$457,A52,'Custo Básico dos Produtos'!$A$7:$A$457),0),0) -> 0 | R52: =IF('Aferi (Variáveis)'!$C$12="Venda para Exportar",0,IF('Aferi (Variáveis)'!$C$12="ALC",0,IF('Aferi (Variáveis)'!$C$12="ZFM",0,IF('Aferi (Variáveis)'!$C$12="Exportação",0,IF('Aferi (Variáveis)'!$C$12="AO",0,E52/(100+(0*'Aferi (Variáveis)'!$K$12/100))*100*K52%/100*'Aferi (Variáveis)'!$K$12))))) -> 0 | S52: 0 | T52: =(E52*'Aferi (Variáveis)'!$K$12/100) -> 0 | U52: 0 | V52: =IF('Aferi (Variáveis)'!$F$20="Venda para Exportar",0,IF('Aferi (Variáveis)'!$F$20="ALC",0,IF('Aferi (Variáveis)'!$F$20="ZFM",0,IF('Aferi (Variáveis)'!$F$20="Exportação",0,IF('Aferi (Variáveis)'!$F$20="AO",7*T52/100,T52*'Aferi (Variáveis)'!$F$20/100))))) -> 0 | W52: 0 | X52: =IF('Aferi (Variáveis)'!$C$12="ZFM",0,IF('Aferi (Variáveis)'!$C$12="Exportação",0,3*T52/100)) -> 0 | Y52: =IF('Aferi (Variáveis)'!$C$12="ZFM",0,IF('Aferi (Variáveis)'!$C$12="Exportação",0,0.65*T52/100)) -> 0 | Z52: 0 | AA52: 0 | AB52: 0 | AC52: 0 | AD52: 0 | AE52: 0 | AF52: 0 | AG52: 0 | AH52: 0 | AI52: =SUMIF('Custo Básico dos Produtos'!$B$7:$B$480,A52,'Custo Básico dos Produtos'!$K$7:$K$480) -> 0 | AL52: 0 | AM52: 0 | AN52: 0 | AO52: 0 | AP52: 0 | AQ52: 0
B53: =IF(Q53<>0,VLOOKUP(Q53,'Custo Básico dos Produtos'!$A$7:$J$480,3),"") ->  | D53: =SUMIF('Custo Básico dos Produtos'!$A$7:$A$480,Q53,'Custo Básico dos Produtos'!$J$7:$J$480) -> 0 | F53: 0 | G53: =IF(B53="",0,SUMIF('Cadastro de Produtos em Linha'!$B$7:$B$457,A53,'Cadastro de Produtos em Linha'!$D$7:$D$457)) -> 0 | I53: 0 | J53: 0 | K53: =IF('Aferi (Variáveis)'!$C$12="ALC",0,IF('Aferi (Variáveis)'!$C$12="ZFM",0,IF('Aferi (Variáveis)'!$C$12="Exportação",0,IF('Aferi (Variáveis)'!$C$12="Venda para Exportar",0,IF('Aferi (Variáveis)'!$C$12="AO",0,SUMIF('Custo Básico dos Produtos'!$A$7:$A$480,Q53,'Custo Básico dos Produtos'!$L$7:$L$480)))))) -> 0 | L53: 0 | M53: 0 | N53: 0 | O53: 0 | P53: =SUMIF('Cadastro de Produtos em Linha'!$A$6:$A$457,Q53,'Cadastro de Produtos em Linha'!$E$6:$E$457)*H53 -> 0 | Q53: =IF(TODAY()<$AK$26,IF(A53<>"",SUMIF('Custo Básico dos Produtos'!$B$7:$B$457,A53,'Custo Básico dos Produtos'!$A$7:$A$457),0),0) -> 0 | R53: =IF('Aferi (Variáveis)'!$C$12="Venda para Exportar",0,IF('Aferi (Variáveis)'!$C$12="ALC",0,IF('Aferi (Variáveis)'!$C$12="ZFM",0,IF('Aferi (Variáveis)'!$C$12="Exportação",0,IF('Aferi (Variáveis)'!$C$12="AO",0,E53/(100+(0*'Aferi (Variáveis)'!$K$12/100))*100*K53%/100*'Aferi (Variáveis)'!$K$12))))) -> 0 | S53: 0 | T53: =(E53*'Aferi (Variáveis)'!$K$12/100) -> 0 | U53: 0 | V53: =IF('Aferi (Variáveis)'!$F$20="Venda para Exportar",0,IF('Aferi (Variáveis)'!$F$20="ALC",0,IF('Aferi (Variáveis)'!$F$20="ZFM",0,IF('Aferi (Variáveis)'!$F$20="Exportação",0,IF('Aferi (Variáveis)'!$F$20="AO",7*T53/100,T53*'Aferi (Variáveis)'!$F$20/100))))) -> 0 | W53: 0 | X53: =IF('Aferi (Variáveis)'!$C$12="ZFM",0,IF('Aferi (Variáveis)'!$C$12="Exportação",0,3*T53/100)) -> 0 | Y53: =IF('Aferi (Variáveis)'!$C$12="ZFM",0,IF('Aferi (Variáveis)'!$C$12="Exportação",0,0.65*T53/100)) -> 0 | Z53: 0 | AA53: 0 | AB53: 0 | AC53: 0 | AD53: 0 | AE53: 0 | AF53: 0 | AG53: 0 | AH53: 0 | AI53: =SUMIF('Custo Básico dos Produtos'!$B$7:$B$480,A53,'Custo Básico dos Produtos'!$K$7:$K$480) -> 0 | AL53: 0 | AM53: 0 | AN53: 0 | AO53: 0 | AP53: 0 | AQ53: 0
B54: =IF(Q54<>0,VLOOKUP(Q54,'Custo Básico dos Produtos'!$A$7:$J$480,3),"") ->  | D54: =SUMIF('Custo Básico dos Produtos'!$A$7:$A$480,Q54,'Custo Básico dos Produtos'!$J$7:$J$480) -> 0 | F54: 0 | G54: =IF(B54="",0,SUMIF('Cadastro de Produtos em Linha'!$B$7:$B$457,A54,'Cadastro de Produtos em Linha'!$D$7:$D$457)) -> 0 | I54: 0 | J54: 0 | K54: =IF('Aferi (Variáveis)'!$C$12="ALC",0,IF('Aferi (Variáveis)'!$C$12="ZFM",0,IF('Aferi (Variáveis)'!$C$12="Exportação",0,IF('Aferi (Variáveis)'!$C$12="Venda para Exportar",0,IF('Aferi (Variáveis)'!$C$12="AO",0,SUMIF('Custo Básico dos Produtos'!$A$7:$A$480,Q54,'Custo Básico dos Produtos'!$L$7:$L$480)))))) -> 0 | L54: 0 | M54: 0 | N54: 0 | O54: 0 | P54: =SUMIF('Cadastro de Produtos em Linha'!$A$6:$A$457,Q54,'Cadastro de Produtos em Linha'!$E$6:$E$457)*H54 -> 0 | Q54: =IF(TODAY()<$AK$26,IF(A54<>"",SUMIF('Custo Básico dos Produtos'!$B$7:$B$457,A54,'Custo Básico dos Produtos'!$A$7:$A$457),0),0) -> 0 | R54: =IF('Aferi (Variáveis)'!$C$12="Venda para Exportar",0,IF('Aferi (Variáveis)'!$C$12="ALC",0,IF('Aferi (Variáveis)'!$C$12="ZFM",0,IF('Aferi (Variáveis)'!$C$12="Exportação",0,IF('Aferi (Variáveis)'!$C$12="AO",0,E54/(100+(0*'Aferi (Variáveis)'!$K$12/100))*100*K54%/100*'Aferi (Variáveis)'!$K$12))))) -> 0 | S54: 0 | T54: =(E54*'Aferi (Variáveis)'!$K$12/100) -> 0 | U54: 0 | V54: =IF('Aferi (Variáveis)'!$F$20="Venda para Exportar",0,IF('Aferi (Variáveis)'!$F$20="ALC",0,IF('Aferi (Variáveis)'!$F$20="ZFM",0,IF('Aferi (Variáveis)'!$F$20="Exportação",0,IF('Aferi (Variáveis)'!$F$20="AO",7*T54/100,T54*'Aferi (Variáveis)'!$F$20/100))))) -> 0 | W54: 0 | X54: =IF('Aferi (Variáveis)'!$C$12="ZFM",0,IF('Aferi (Variáveis)'!$C$12="Exportação",0,3*T54/100)) -> 0 | Y54: =IF('Aferi (Variáveis)'!$C$12="ZFM",0,IF('Aferi (Variáveis)'!$C$12="Exportação",0,0.65*T54/100)) -> 0 | Z54: 0 | AA54: 0 | AB54: 0 | AC54: 0 | AD54: 0 | AE54: 0 | AF54: 0 | AG54: 0 | AH54: 0 | AI54: =SUMIF('Custo Básico dos Produtos'!$B$7:$B$480,A54,'Custo Básico dos Produtos'!$K$7:$K$480) -> 0 | AL54: 0 | AM54: 0 | AN54: 0 | AO54: 0 | AP54: 0 | AQ54: 0
B55: =IF(Q55<>0,VLOOKUP(Q55,'Custo Básico dos Produtos'!$A$7:$J$480,3),"") ->  | D55: =SUMIF('Custo Básico dos Produtos'!$A$7:$A$480,Q55,'Custo Básico dos Produtos'!$J$7:$J$480) -> 0 | F55: 0 | G55: =IF(B55="",0,SUMIF('Cadastro de Produtos em Linha'!$B$7:$B$457,A55,'Cadastro de Produtos em Linha'!$D$7:$D$457)) -> 0 | I55: 0 | J55: 0 | K55: =IF('Aferi (Variáveis)'!$C$12="ALC",0,IF('Aferi (Variáveis)'!$C$12="ZFM",0,IF('Aferi (Variáveis)'!$C$12="Exportação",0,IF('Aferi (Variáveis)'!$C$12="Venda para Exportar",0,IF('Aferi (Variáveis)'!$C$12="AO",0,SUMIF('Custo Básico dos Produtos'!$A$7:$A$480,Q55,'Custo Básico dos Produtos'!$L$7:$L$480)))))) -> 0 | L55: 0 | M55: 0 | N55: 0 | O55: 0 | P55: =SUMIF('Cadastro de Produtos em Linha'!$A$6:$A$457,Q55,'Cadastro de Produtos em Linha'!$E$6:$E$457)*H55 -> 0 | Q55: =IF(TODAY()<$AK$26,IF(A55<>"",SUMIF('Custo Básico dos Produtos'!$B$7:$B$457,A55,'Custo Básico dos Produtos'!$A$7:$A$457),0),0) -> 0 | R55: =IF('Aferi (Variáveis)'!$C$12="Venda para Exportar",0,IF('Aferi (Variáveis)'!$C$12="ALC",0,IF('Aferi (Variáveis)'!$C$12="ZFM",0,IF('Aferi (Variáveis)'!$C$12="Exportação",0,IF('Aferi (Variáveis)'!$C$12="AO",0,E55/(100+(0*'Aferi (Variáveis)'!$K$12/100))*100*K55%/100*'Aferi (Variáveis)'!$K$12))))) -> 0 | S55: 0 | T55: =(E55*'Aferi (Variáveis)'!$K$12/100) -> 0 | U55: 0 | V55: =IF('Aferi (Variáveis)'!$F$20="Venda para Exportar",0,IF('Aferi (Variáveis)'!$F$20="ALC",0,IF('Aferi (Variáveis)'!$F$20="ZFM",0,IF('Aferi (Variáveis)'!$F$20="Exportação",0,IF('Aferi (Variáveis)'!$F$20="AO",7*T55/100,T55*'Aferi (Variáveis)'!$F$20/100))))) -> 0 | W55: 0 | X55: =IF('Aferi (Variáveis)'!$C$12="ZFM",0,IF('Aferi (Variáveis)'!$C$12="Exportação",0,3*T55/100)) -> 0 | Y55: =IF('Aferi (Variáveis)'!$C$12="ZFM",0,IF('Aferi (Variáveis)'!$C$12="Exportação",0,0.65*T55/100)) -> 0 | Z55: 0 | AA55: 0 | AB55: 0 | AC55: 0 | AD55: 0 | AE55: 0 | AF55: 0 | AG55: 0 | AH55: 0 | AI55: =SUMIF('Custo Básico dos Produtos'!$B$7:$B$480,A55,'Custo Básico dos Produtos'!$K$7:$K$480) -> 0 | AL55: 0 | AM55: 0 | AN55: 0 | AO55: 0 | AP55: 0 | AQ55: 0
B56: =IF(Q56<>0,VLOOKUP(Q56,'Custo Básico dos Produtos'!$A$7:$J$480,3),"") ->  | D56: =SUMIF('Custo Básico dos Produtos'!$A$7:$A$480,Q56,'Custo Básico dos Produtos'!$J$7:$J$480) -> 0 | F56: 0 | G56: =IF(B56="",0,SUMIF('Cadastro de Produtos em Linha'!$B$7:$B$457,A56,'Cadastro de Produtos em Linha'!$D$7:$D$457)) -> 0 | I56: 0 | J56: 0 | K56: =IF('Aferi (Variáveis)'!$C$12="ALC",0,IF('Aferi (Variáveis)'!$C$12="ZFM",0,IF('Aferi (Variáveis)'!$C$12="Exportação",0,IF('Aferi (Variáveis)'!$C$12="Venda para Exportar",0,IF('Aferi (Variáveis)'!$C$12="AO",0,SUMIF('Custo Básico dos Produtos'!$A$7:$A$480,Q56,'Custo Básico dos Produtos'!$L$7:$L$480)))))) -> 0 | L56: 0 | M56: 0 | N56: 0 | O56: 0 | P56: =SUMIF('Cadastro de Produtos em Linha'!$A$6:$A$457,Q56,'Cadastro de Produtos em Linha'!$E$6:$E$457)*H56 -> 0 | Q56: =IF(TODAY()<$AK$26,IF(A56<>"",SUMIF('Custo Básico dos Produtos'!$B$7:$B$457,A56,'Custo Básico dos Produtos'!$A$7:$A$457),0),0) -> 0 | R56: =IF('Aferi (Variáveis)'!$C$12="Venda para Exportar",0,IF('Aferi (Variáveis)'!$C$12="ALC",0,IF('Aferi (Variáveis)'!$C$12="ZFM",0,IF('Aferi (Variáveis)'!$C$12="Exportação",0,IF('Aferi (Variáveis)'!$C$12="AO",0,E56/(100+(0*'Aferi (Variáveis)'!$K$12/100))*100*K56%/100*'Aferi (Variáveis)'!$K$12))))) -> 0 | S56: 0 | T56: =(E56*'Aferi (Variáveis)'!$K$12/100) -> 0 | U56: 0 | V56: =IF('Aferi (Variáveis)'!$F$20="Venda para Exportar",0,IF('Aferi (Variáveis)'!$F$20="ALC",0,IF('Aferi (Variáveis)'!$F$20="ZFM",0,IF('Aferi (Variáveis)'!$F$20="Exportação",0,IF('Aferi (Variáveis)'!$F$20="AO",7*T56/100,T56*'Aferi (Variáveis)'!$F$20/100))))) -> 0 | W56: 0 | X56: =IF('Aferi (Variáveis)'!$C$12="ZFM",0,IF('Aferi (Variáveis)'!$C$12="Exportação",0,3*T56/100)) -> 0 | Y56: =IF('Aferi (Variáveis)'!$C$12="ZFM",0,IF('Aferi (Variáveis)'!$C$12="Exportação",0,0.65*T56/100)) -> 0 | Z56: 0 | AA56: 0 | AB56: 0 | AC56: 0 | AD56: 0 | AE56: 0 | AF56: 0 | AG56: 0 | AH56: 0 | AI56: =SUMIF('Custo Básico dos Produtos'!$B$7:$B$480,A56,'Custo Básico dos Produtos'!$K$7:$K$480) -> 0 | AL56: 0 | AM56: 0 | AN56: 0 | AO56: 0 | AP56: 0 | AQ56: 0
B57: =IF(Q57<>0,VLOOKUP(Q57,'Custo Básico dos Produtos'!$A$7:$J$480,3),"") ->  | D57: =SUMIF('Custo Básico dos Produtos'!$A$7:$A$480,Q57,'Custo Básico dos Produtos'!$J$7:$J$480) -> 0 | F57: 0 | G57: =IF(B57="",0,SUMIF('Cadastro de Produtos em Linha'!$B$7:$B$457,A57,'Cadastro de Produtos em Linha'!$D$7:$D$457)) -> 0 | I57: 0 | J57: 0 | K57: =IF('Aferi (Variáveis)'!$C$12="ALC",0,IF('Aferi (Variáveis)'!$C$12="ZFM",0,IF('Aferi (Variáveis)'!$C$12="Exportação",0,IF('Aferi (Variáveis)'!$C$12="Venda para Exportar",0,IF('Aferi (Variáveis)'!$C$12="AO",0,SUMIF('Custo Básico dos Produtos'!$A$7:$A$480,Q57,'Custo Básico dos Produtos'!$L$7:$L$480)))))) -> 0 | L57: 0 | M57: 0 | N57: 0 | O57: 0 | P57: =SUMIF('Cadastro de Produtos em Linha'!$A$6:$A$457,Q57,'Cadastro de Produtos em Linha'!$E$6:$E$457)*H57 -> 0 | Q57: =IF(TODAY()<$AK$26,IF(A57<>"",SUMIF('Custo Básico dos Produtos'!$B$7:$B$457,A57,'Custo Básico dos Produtos'!$A$7:$A$457),0),0) -> 0 | R57: =IF('Aferi (Variáveis)'!$C$12="Venda para Exportar",0,IF('Aferi (Variáveis)'!$C$12="ALC",0,IF('Aferi (Variáveis)'!$C$12="ZFM",0,IF('Aferi (Variáveis)'!$C$12="Exportação",0,IF('Aferi (Variáveis)'!$C$12="AO",0,E57/(100+(0*'Aferi (Variáveis)'!$K$12/100))*100*K57%/100*'Aferi (Variáveis)'!$K$12))))) -> 0 | S57: 0 | T57: =(E57*'Aferi (Variáveis)'!$K$12/100) -> 0 | U57: 0 | V57: =IF('Aferi (Variáveis)'!$F$20="Venda para Exportar",0,IF('Aferi (Variáveis)'!$F$20="ALC",0,IF('Aferi (Variáveis)'!$F$20="ZFM",0,IF('Aferi (Variáveis)'!$F$20="Exportação",0,IF('Aferi (Variáveis)'!$F$20="AO",7*T57/100,T57*'Aferi (Variáveis)'!$F$20/100))))) -> 0 | W57: 0 | X57: =IF('Aferi (Variáveis)'!$C$12="ZFM",0,IF('Aferi (Variáveis)'!$C$12="Exportação",0,3*T57/100)) -> 0 | Y57: =IF('Aferi (Variáveis)'!$C$12="ZFM",0,IF('Aferi (Variáveis)'!$C$12="Exportação",0,0.65*T57/100)) -> 0 | Z57: 0 | AA57: 0 | AB57: 0 | AC57: 0 | AD57: 0 | AE57: 0 | AF57: 0 | AG57: 0 | AH57: 0 | AI57: =SUMIF('Custo Básico dos Produtos'!$B$7:$B$480,A57,'Custo Básico dos Produtos'!$K$7:$K$480) -> 0 | AL57: 0 | AM57: 0 | AN57: 0 | AO57: 0 | AP57: 0 | AQ57: 0
B58: =IF(Q58<>0,VLOOKUP(Q58,'Custo Básico dos Produtos'!$A$7:$J$480,3),"") ->  | D58: =SUMIF('Custo Básico dos Produtos'!$A$7:$A$480,Q58,'Custo Básico dos Produtos'!$J$7:$J$480) -> 0 | F58: 0 | G58: =IF(B58="",0,SUMIF('Cadastro de Produtos em Linha'!$B$7:$B$457,A58,'Cadastro de Produtos em Linha'!$D$7:$D$457)) -> 0 | I58: =IF(F58="",0,IF(F58>=AI58,G58*H58,0)) -> 0 | J58: =IF(F58="",0,I58*E58) -> 0 | K58: =IF('Aferi (Variáveis)'!$C$12="ALC",0,IF('Aferi (Variáveis)'!$C$12="ZFM",0,IF('Aferi (Variáveis)'!$C$12="Exportação",0,IF('Aferi (Variáveis)'!$C$12="Venda para Exportar",0,IF('Aferi (Variáveis)'!$C$12="AO",0,SUMIF('Custo Básico dos Produtos'!$A$7:$A$480,Q58,'Custo Básico dos Produtos'!$L$7:$L$480)))))) -> 0 | L58: 0 | M58: 0 | N58: 0 | O58: 0 | P58: =SUMIF('Cadastro de Produtos em Linha'!$A$6:$A$457,Q58,'Cadastro de Produtos em Linha'!$E$6:$E$457)*H58 -> 0 | Q58: =IF(TODAY()<$AK$26,IF(A58<>"",SUMIF('Custo Básico dos Produtos'!$B$7:$B$457,A58,'Custo Básico dos Produtos'!$A$7:$A$457),0),0) -> 0 | R58: =IF('Aferi (Variáveis)'!$C$12="Venda para Exportar",0,IF('Aferi (Variáveis)'!$C$12="ALC",0,IF('Aferi (Variáveis)'!$C$12="ZFM",0,IF('Aferi (Variáveis)'!$C$12="Exportação",0,IF('Aferi (Variáveis)'!$C$12="AO",0,E58/(100+(0*'Aferi (Variáveis)'!$K$12/100))*100*K58%/100*'Aferi (Variáveis)'!$K$12))))) -> 0 | S58: 0 | T58: =(E58*'Aferi (Variáveis)'!$K$12/100) -> 0 | U58: 0 | V58: =IF('Aferi (Variáveis)'!$F$20="Venda para Exportar",0,IF('Aferi (Variáveis)'!$F$20="ALC",0,IF('Aferi (Variáveis)'!$F$20="ZFM",0,IF('Aferi (Variáveis)'!$F$20="Exportação",0,IF('Aferi (Variáveis)'!$F$20="AO",7*T58/100,T58*'Aferi (Variáveis)'!$F$20/100))))) -> 0 | W58: 0 | X58: =IF('Aferi (Variáveis)'!$C$12="ZFM",0,IF('Aferi (Variáveis)'!$C$12="Exportação",0,3*T58/100)) -> 0 | Y58: =IF('Aferi (Variáveis)'!$C$12="ZFM",0,IF('Aferi (Variáveis)'!$C$12="Exportação",0,0.65*T58/100)) -> 0 | Z58: 0 | AA58: 0 | AB58: 0 | AC58: 0 | AD58: 0 | AE58: 0 | AF58: 0 | AG58: 0 | AH58: 0 | AI58: =SUMIF('Custo Básico dos Produtos'!$B$7:$B$480,A58,'Custo Básico dos Produtos'!$K$7:$K$480) -> 0 | AL58: 0 | AM58: 0 | AN58: 0 | AO58: 0 | AP58: 0 | AQ58: 0
B59: =IF(Q59<>0,VLOOKUP(Q59,'Custo Básico dos Produtos'!$A$7:$J$480,3),"") ->  | D59: =SUMIF('Custo Básico dos Produtos'!$A$7:$A$480,Q59,'Custo Básico dos Produtos'!$J$7:$J$480) -> 0 | F59: 0 | G59: =IF(B59="",0,SUMIF('Cadastro de Produtos em Linha'!$B$7:$B$457,A59,'Cadastro de Produtos em Linha'!$D$7:$D$457)) -> 0 | I59: 0 | J59: 0 | K59: =IF('Aferi (Variáveis)'!$C$12="ALC",0,IF('Aferi (Variáveis)'!$C$12="ZFM",0,IF('Aferi (Variáveis)'!$C$12="Exportação",0,IF('Aferi (Variáveis)'!$C$12="Venda para Exportar",0,IF('Aferi (Variáveis)'!$C$12="AO",0,SUMIF('Custo Básico dos Produtos'!$A$7:$A$480,Q59,'Custo Básico dos Produtos'!$L$7:$L$480)))))) -> 0 | L59: 0 | M59: 0 | N59: 0 | O59: 0 | P59: =SUMIF('Cadastro de Produtos em Linha'!$A$6:$A$457,Q59,'Cadastro de Produtos em Linha'!$E$6:$E$457)*H59 -> 0 | Q59: =IF(TODAY()<$AK$26,IF(A59<>"",SUMIF('Custo Básico dos Produtos'!$B$7:$B$457,A59,'Custo Básico dos Produtos'!$A$7:$A$457),0),0) -> 0 | R59: =IF('Aferi (Variáveis)'!$C$12="Venda para Exportar",0,IF('Aferi (Variáveis)'!$C$12="ALC",0,IF('Aferi (Variáveis)'!$C$12="ZFM",0,IF('Aferi (Variáveis)'!$C$12="Exportação",0,IF('Aferi (Variáveis)'!$C$12="AO",0,E59/(100+(0*'Aferi (Variáveis)'!$K$12/100))*100*K59%/100*'Aferi (Variáveis)'!$K$12))))) -> 0 | S59: 0 | T59: =(E59*'Aferi (Variáveis)'!$K$12/100) -> 0 | U59: 0 | V59: =IF('Aferi (Variáveis)'!$F$20="Venda para Exportar",0,IF('Aferi (Variáveis)'!$F$20="ALC",0,IF('Aferi (Variáveis)'!$F$20="ZFM",0,IF('Aferi (Variáveis)'!$F$20="Exportação",0,IF('Aferi (Variáveis)'!$F$20="AO",7*T59/100,T59*'Aferi (Variáveis)'!$F$20/100))))) -> 0 | W59: 0 | X59: =IF('Aferi (Variáveis)'!$C$12="ZFM",0,IF('Aferi (Variáveis)'!$C$12="Exportação",0,3*T59/100)) -> 0 | Y59: =IF('Aferi (Variáveis)'!$C$12="ZFM",0,IF('Aferi (Variáveis)'!$C$12="Exportação",0,0.65*T59/100)) -> 0 | Z59: 0 | AA59: 0 | AB59: 0 | AC59: 0 | AD59: 0 | AE59: 0 | AF59: 0 | AG59: 0 | AH59: 0 | AI59: =SUMIF('Custo Básico dos Produtos'!$B$7:$B$480,A59,'Custo Básico dos Produtos'!$K$7:$K$480) -> 0 | AL59: 0 | AM59: 0 | AN59: 0 | AO59: 0 | AP59: 0 | AQ59: 0
B60: =IF(Q60<>0,VLOOKUP(Q60,'Custo Básico dos Produtos'!$A$7:$J$480,3),"") ->  | D60: =SUMIF('Custo Básico dos Produtos'!$A$7:$A$480,Q60,'Custo Básico dos Produtos'!$J$7:$J$480) -> 0 | F60: 0 | G60: =IF(B60="",0,SUMIF('Cadastro de Produtos em Linha'!$B$7:$B$457,A60,'Cadastro de Produtos em Linha'!$D$7:$D$457)) -> 0 | I60: 0 | J60: 0 | K60: =IF('Aferi (Variáveis)'!$C$12="ALC",0,IF('Aferi (Variáveis)'!$C$12="ZFM",0,IF('Aferi (Variáveis)'!$C$12="Exportação",0,IF('Aferi (Variáveis)'!$C$12="Venda para Exportar",0,IF('Aferi (Variáveis)'!$C$12="AO",0,SUMIF('Custo Básico dos Produtos'!$A$7:$A$480,Q60,'Custo Básico dos Produtos'!$L$7:$L$480)))))) -> 0 | L60: 0 | M60: 0 | N60: 0 | O60: 0 | P60: =SUMIF('Cadastro de Produtos em Linha'!$A$6:$A$457,Q60,'Cadastro de Produtos em Linha'!$E$6:$E$457)*H60 -> 0 | Q60: =IF(TODAY()<$AK$26,IF(A60<>"",SUMIF('Custo Básico dos Produtos'!$B$7:$B$457,A60,'Custo Básico dos Produtos'!$A$7:$A$457),0),0) -> 0 | R60: =IF('Aferi (Variáveis)'!$C$12="Venda para Exportar",0,IF('Aferi (Variáveis)'!$C$12="ALC",0,IF('Aferi (Variáveis)'!$C$12="ZFM",0,IF('Aferi (Variáveis)'!$C$12="Exportação",0,IF('Aferi (Variáveis)'!$C$12="AO",0,E60/(100+(0*'Aferi (Variáveis)'!$K$12/100))*100*K60%/100*'Aferi (Variáveis)'!$K$12))))) -> 0 | S60: 0 | T60: =(E60*'Aferi (Variáveis)'!$K$12/100) -> 0 | U60: 0 | V60: =IF('Aferi (Variáveis)'!$F$20="Venda para Exportar",0,IF('Aferi (Variáveis)'!$F$20="ALC",0,IF('Aferi (Variáveis)'!$F$20="ZFM",0,IF('Aferi (Variáveis)'!$F$20="Exportação",0,IF('Aferi (Variáveis)'!$F$20="AO",7*T60/100,T60*'Aferi (Variáveis)'!$F$20/100))))) -> 0 | W60: 0 | X60: =IF('Aferi (Variáveis)'!$C$12="ZFM",0,IF('Aferi (Variáveis)'!$C$12="Exportação",0,3*T60/100)) -> 0 | Y60: =IF('Aferi (Variáveis)'!$C$12="ZFM",0,IF('Aferi (Variáveis)'!$C$12="Exportação",0,0.65*T60/100)) -> 0 | Z60: 0 | AA60: 0 | AB60: 0 | AC60: 0 | AD60: 0 | AE60: 0 | AF60: 0 | AG60: 0 | AH60: 0 | AI60: =SUMIF('Custo Básico dos Produtos'!$B$7:$B$480,A60,'Custo Básico dos Produtos'!$K$7:$K$480) -> 0 | AL60: 0 | AM60: 0 | AN60: 0 | AO60: 0 | AP60: 0 | AQ60: 0
B61: =IF(Q61<>0,VLOOKUP(Q61,'Custo Básico dos Produtos'!$A$7:$J$480,3),"") ->  | D61: =SUMIF('Custo Básico dos Produtos'!$A$7:$A$480,Q61,'Custo Básico dos Produtos'!$J$7:$J$480) -> 0 | F61: 0 | G61: =IF(B61="",0,SUMIF('Cadastro de Produtos em Linha'!$B$7:$B$457,A61,'Cadastro de Produtos em Linha'!$D$7:$D$457)) -> 0 | I61: 0 | J61: 0 | K61: =IF('Aferi (Variáveis)'!$C$12="ALC",0,IF('Aferi (Variáveis)'!$C$12="ZFM",0,IF('Aferi (Variáveis)'!$C$12="Exportação",0,IF('Aferi (Variáveis)'!$C$12="Venda para Exportar",0,IF('Aferi (Variáveis)'!$C$12="AO",0,SUMIF('Custo Básico dos Produtos'!$A$7:$A$480,Q61,'Custo Básico dos Produtos'!$L$7:$L$480)))))) -> 0 | L61: 0 | M61: 0 | N61: 0 | O61: 0 | P61: =SUMIF('Cadastro de Produtos em Linha'!$A$6:$A$457,Q61,'Cadastro de Produtos em Linha'!$E$6:$E$457)*H61 -> 0 | Q61: =IF(TODAY()<$AK$26,IF(A61<>"",SUMIF('Custo Básico dos Produtos'!$B$7:$B$457,A61,'Custo Básico dos Produtos'!$A$7:$A$457),0),0) -> 0 | R61: =IF('Aferi (Variáveis)'!$C$12="Venda para Exportar",0,IF('Aferi (Variáveis)'!$C$12="ALC",0,IF('Aferi (Variáveis)'!$C$12="ZFM",0,IF('Aferi (Variáveis)'!$C$12="Exportação",0,IF('Aferi (Variáveis)'!$C$12="AO",0,E61/(100+(0*'Aferi (Variáveis)'!$K$12/100))*100*K61%/100*'Aferi (Variáveis)'!$K$12))))) -> 0 | S61: 0 | T61: =(E61*'Aferi (Variáveis)'!$K$12/100) -> 0 | U61: 0 | V61: =IF('Aferi (Variáveis)'!$F$20="Venda para Exportar",0,IF('Aferi (Variáveis)'!$F$20="ALC",0,IF('Aferi (Variáveis)'!$F$20="ZFM",0,IF('Aferi (Variáveis)'!$F$20="Exportação",0,IF('Aferi (Variáveis)'!$F$20="AO",7*T61/100,T61*'Aferi (Variáveis)'!$F$20/100))))) -> 0 | W61: 0 | X61: =IF('Aferi (Variáveis)'!$C$12="ZFM",0,IF('Aferi (Variáveis)'!$C$12="Exportação",0,3*T61/100)) -> 0 | Y61: =IF('Aferi (Variáveis)'!$C$12="ZFM",0,IF('Aferi (Variáveis)'!$C$12="Exportação",0,0.65*T61/100)) -> 0 | Z61: 0 | AA61: 0 | AB61: 0 | AC61: 0 | AD61: 0 | AE61: 0 | AF61: 0 | AG61: 0 | AH61: 0 | AI61: =SUMIF('Custo Básico dos Produtos'!$B$7:$B$480,A61,'Custo Básico dos Produtos'!$K$7:$K$480) -> 0 | AL61: 0 | AM61: 0 | AN61: 0 | AO61: 0 | AP61: 0 | AQ61: 0
B62: =IF(Q62<>0,VLOOKUP(Q62,'Custo Básico dos Produtos'!$A$7:$J$480,3),"") ->  | D62: =SUMIF('Custo Básico dos Produtos'!$A$7:$A$480,Q62,'Custo Básico dos Produtos'!$J$7:$J$480) -> 0 | F62: 0 | G62: =IF(B62="",0,SUMIF('Cadastro de Produtos em Linha'!$B$7:$B$457,A62,'Cadastro de Produtos em Linha'!$D$7:$D$457)) -> 0 | I62: 0 | J62: 0 | K62: =IF('Aferi (Variáveis)'!$C$12="ALC",0,IF('Aferi (Variáveis)'!$C$12="ZFM",0,IF('Aferi (Variáveis)'!$C$12="Exportação",0,IF('Aferi (Variáveis)'!$C$12="Venda para Exportar",0,IF('Aferi (Variáveis)'!$C$12="AO",0,SUMIF('Custo Básico dos Produtos'!$A$7:$A$480,Q62,'Custo Básico dos Produtos'!$L$7:$L$480)))))) -> 0 | L62: 0 | M62: 0 | N62: 0 | O62: 0 | P62: =SUMIF('Cadastro de Produtos em Linha'!$A$6:$A$457,Q62,'Cadastro de Produtos em Linha'!$E$6:$E$457)*H62 -> 0 | Q62: =IF(TODAY()<$AK$26,IF(A62<>"",SUMIF('Custo Básico dos Produtos'!$B$7:$B$457,A62,'Custo Básico dos Produtos'!$A$7:$A$457),0),0) -> 0 | R62: =IF('Aferi (Variáveis)'!$C$12="Venda para Exportar",0,IF('Aferi (Variáveis)'!$C$12="ALC",0,IF('Aferi (Variáveis)'!$C$12="ZFM",0,IF('Aferi (Variáveis)'!$C$12="Exportação",0,IF('Aferi (Variáveis)'!$C$12="AO",0,E62/(100+(0*'Aferi (Variáveis)'!$K$12/100))*100*K62%/100*'Aferi (Variáveis)'!$K$12))))) -> 0 | S62: 0 | T62: =(E62*'Aferi (Variáveis)'!$K$12/100) -> 0 | U62: 0 | V62: =IF('Aferi (Variáveis)'!$F$20="Venda para Exportar",0,IF('Aferi (Variáveis)'!$F$20="ALC",0,IF('Aferi (Variáveis)'!$F$20="ZFM",0,IF('Aferi (Variáveis)'!$F$20="Exportação",0,IF('Aferi (Variáveis)'!$F$20="AO",7*T62/100,T62*'Aferi (Variáveis)'!$F$20/100))))) -> 0 | W62: 0 | X62: =IF('Aferi (Variáveis)'!$C$12="ZFM",0,IF('Aferi (Variáveis)'!$C$12="Exportação",0,3*T62/100)) -> 0 | Y62: =IF('Aferi (Variáveis)'!$C$12="ZFM",0,IF('Aferi (Variáveis)'!$C$12="Exportação",0,0.65*T62/100)) -> 0 | Z62: 0 | AA62: 0 | AB62: 0 | AC62: 0 | AD62: 0 | AE62: 0 | AF62: 0 | AG62: 0 | AH62: 0 | AI62: =SUMIF('Custo Básico dos Produtos'!$B$7:$B$480,A62,'Custo Básico dos Produtos'!$K$7:$K$480) -> 0 | AL62: 0 | AM62: 0 | AN62: 0 | AO62: 0 | AP62: 0 | AQ62: 0
B63: =IF(Q63<>0,VLOOKUP(Q63,'Custo Básico dos Produtos'!$A$7:$J$480,3),"") ->  | D63: =SUMIF('Custo Básico dos Produtos'!$A$7:$A$480,Q63,'Custo Básico dos Produtos'!$J$7:$J$480) -> 0 | F63: 0 | G63: =IF(B63="",0,SUMIF('Cadastro de Produtos em Linha'!$B$7:$B$457,A63,'Cadastro de Produtos em Linha'!$D$7:$D$457)) -> 0 | I63: 0 | J63: 0 | K63: =IF('Aferi (Variáveis)'!$C$12="ALC",0,IF('Aferi (Variáveis)'!$C$12="ZFM",0,IF('Aferi (Variáveis)'!$C$12="Exportação",0,IF('Aferi (Variáveis)'!$C$12="Venda para Exportar",0,IF('Aferi (Variáveis)'!$C$12="AO",0,SUMIF('Custo Básico dos Produtos'!$A$7:$A$480,Q63,'Custo Básico dos Produtos'!$L$7:$L$480)))))) -> 0 | L63: 0 | M63: 0 | N63: 0 | O63: 0 | P63: =SUMIF('Cadastro de Produtos em Linha'!$A$6:$A$457,Q63,'Cadastro de Produtos em Linha'!$E$6:$E$457)*H63 -> 0 | Q63: =IF(TODAY()<$AK$26,IF(A63<>"",SUMIF('Custo Básico dos Produtos'!$B$7:$B$457,A63,'Custo Básico dos Produtos'!$A$7:$A$457),0),0) -> 0 | R63: =IF('Aferi (Variáveis)'!$C$12="Venda para Exportar",0,IF('Aferi (Variáveis)'!$C$12="ALC",0,IF('Aferi (Variáveis)'!$C$12="ZFM",0,IF('Aferi (Variáveis)'!$C$12="Exportação",0,IF('Aferi (Variáveis)'!$C$12="AO",0,E63/(100+(0*'Aferi (Variáveis)'!$K$12/100))*100*K63%/100*'Aferi (Variáveis)'!$K$12))))) -> 0 | S63: 0 | T63: =(E63*'Aferi (Variáveis)'!$K$12/100) -> 0 | U63: 0 | V63: =IF('Aferi (Variáveis)'!$F$20="Venda para Exportar",0,IF('Aferi (Variáveis)'!$F$20="ALC",0,IF('Aferi (Variáveis)'!$F$20="ZFM",0,IF('Aferi (Variáveis)'!$F$20="Exportação",0,IF('Aferi (Variáveis)'!$F$20="AO",7*T63/100,T63*'Aferi (Variáveis)'!$F$20/100))))) -> 0 | W63: 0 | X63: =IF('Aferi (Variáveis)'!$C$12="ZFM",0,IF('Aferi (Variáveis)'!$C$12="Exportação",0,3*T63/100)) -> 0 | Y63: =IF('Aferi (Variáveis)'!$C$12="ZFM",0,IF('Aferi (Variáveis)'!$C$12="Exportação",0,0.65*T63/100)) -> 0 | Z63: 0 | AA63: 0 | AB63: 0 | AC63: 0 | AD63: 0 | AE63: 0 | AF63: 0 | AG63: 0 | AH63: 0 | AI63: =SUMIF('Custo Básico dos Produtos'!$B$7:$B$480,A63,'Custo Básico dos Produtos'!$K$7:$K$480) -> 0 | AL63: 0 | AM63: 0 | AN63: 0 | AO63: 0 | AP63: 0 | AQ63: 0
B64: =IF(Q64<>0,VLOOKUP(Q64,'Custo Básico dos Produtos'!$A$7:$J$480,3),"") ->  | D64: =SUMIF('Custo Básico dos Produtos'!$A$7:$A$480,Q64,'Custo Básico dos Produtos'!$J$7:$J$480) -> 0 | F64: 0 | G64: =IF(B64="",0,SUMIF('Cadastro de Produtos em Linha'!$B$7:$B$457,A64,'Cadastro de Produtos em Linha'!$D$7:$D$457)) -> 0 | I64: 0 | J64: 0 | K64: =IF('Aferi (Variáveis)'!$C$12="ALC",0,IF('Aferi (Variáveis)'!$C$12="ZFM",0,IF('Aferi (Variáveis)'!$C$12="Exportação",0,IF('Aferi (Variáveis)'!$C$12="Venda para Exportar",0,IF('Aferi (Variáveis)'!$C$12="AO",0,SUMIF('Custo Básico dos Produtos'!$A$7:$A$480,Q64,'Custo Básico dos Produtos'!$L$7:$L$480)))))) -> 0 | L64: 0 | M64: 0 | N64: 0 | O64: 0 | P64: =SUMIF('Cadastro de Produtos em Linha'!$A$6:$A$457,Q64,'Cadastro de Produtos em Linha'!$E$6:$E$457)*H64 -> 0 | Q64: =IF(TODAY()<$AK$26,IF(A64<>"",SUMIF('Custo Básico dos Produtos'!$B$7:$B$457,A64,'Custo Básico dos Produtos'!$A$7:$A$457),0),0) -> 0 | R64: =IF('Aferi (Variáveis)'!$C$12="Venda para Exportar",0,IF('Aferi (Variáveis)'!$C$12="ALC",0,IF('Aferi (Variáveis)'!$C$12="ZFM",0,IF('Aferi (Variáveis)'!$C$12="Exportação",0,IF('Aferi (Variáveis)'!$C$12="AO",0,E64/(100+(0*'Aferi (Variáveis)'!$K$12/100))*100*K64%/100*'Aferi (Variáveis)'!$K$12))))) -> 0 | S64: 0 | T64: =(E64*'Aferi (Variáveis)'!$K$12/100) -> 0 | U64: 0 | V64: =IF('Aferi (Variáveis)'!$F$20="Venda para Exportar",0,IF('Aferi (Variáveis)'!$F$20="ALC",0,IF('Aferi (Variáveis)'!$F$20="ZFM",0,IF('Aferi (Variáveis)'!$F$20="Exportação",0,IF('Aferi (Variáveis)'!$F$20="AO",7*T64/100,T64*'Aferi (Variáveis)'!$F$20/100))))) -> 0 | W64: 0 | X64: =IF('Aferi (Variáveis)'!$C$12="ZFM",0,IF('Aferi (Variáveis)'!$C$12="Exportação",0,3*T64/100)) -> 0 | Y64: =IF('Aferi (Variáveis)'!$C$12="ZFM",0,IF('Aferi (Variáveis)'!$C$12="Exportação",0,0.65*T64/100)) -> 0 | Z64: 0 | AA64: 0 | AB64: 0 | AC64: 0 | AD64: 0 | AE64: 0 | AF64: 0 | AG64: 0 | AH64: 0 | AI64: =SUMIF('Custo Básico dos Produtos'!$B$7:$B$480,A64,'Custo Básico dos Produtos'!$K$7:$K$480) -> 0 | AL64: 0 | AM64: 0 | AN64: 0 | AO64: 0 | AP64: 0 | AQ64: 0
B65: =IF(Q65<>0,VLOOKUP(Q65,'Custo Básico dos Produtos'!$A$7:$J$480,3),"") ->  | D65: =SUMIF('Custo Básico dos Produtos'!$A$7:$A$480,Q65,'Custo Básico dos Produtos'!$J$7:$J$480) -> 0 | F65: 0 | G65: =IF(B65="",0,SUMIF('Cadastro de Produtos em Linha'!$B$7:$B$457,A65,'Cadastro de Produtos em Linha'!$D$7:$D$457)) -> 0 | I65: 0 | J65: 0 | K65: =IF('Aferi (Variáveis)'!$C$12="ALC",0,IF('Aferi (Variáveis)'!$C$12="ZFM",0,IF('Aferi (Variáveis)'!$C$12="Exportação",0,IF('Aferi (Variáveis)'!$C$12="Venda para Exportar",0,IF('Aferi (Variáveis)'!$C$12="AO",0,SUMIF('Custo Básico dos Produtos'!$A$7:$A$480,Q65,'Custo Básico dos Produtos'!$L$7:$L$480)))))) -> 0 | L65: 0 | M65: 0 | N65: 0 | O65: 0 | P65: =SUMIF('Cadastro de Produtos em Linha'!$A$6:$A$457,Q65,'Cadastro de Produtos em Linha'!$E$6:$E$457)*H65 -> 0 | Q65: =IF(TODAY()<$AK$26,IF(A65<>"",SUMIF('Custo Básico dos Produtos'!$B$7:$B$457,A65,'Custo Básico dos Produtos'!$A$7:$A$457),0),0) -> 0 | R65: =IF('Aferi (Variáveis)'!$C$12="Venda para Exportar",0,IF('Aferi (Variáveis)'!$C$12="ALC",0,IF('Aferi (Variáveis)'!$C$12="ZFM",0,IF('Aferi (Variáveis)'!$C$12="Exportação",0,IF('Aferi (Variáveis)'!$C$12="AO",0,E65/(100+(0*'Aferi (Variáveis)'!$K$12/100))*100*K65%/100*'Aferi (Variáveis)'!$K$12))))) -> 0 | S65: 0 | T65: =(E65*'Aferi (Variáveis)'!$K$12/100) -> 0 | U65: 0 | V65: =IF('Aferi (Variáveis)'!$F$20="Venda para Exportar",0,IF('Aferi (Variáveis)'!$F$20="ALC",0,IF('Aferi (Variáveis)'!$F$20="ZFM",0,IF('Aferi (Variáveis)'!$F$20="Exportação",0,IF('Aferi (Variáveis)'!$F$20="AO",7*T65/100,T65*'Aferi (Variáveis)'!$F$20/100))))) -> 0 | W65: 0 | X65: =IF('Aferi (Variáveis)'!$C$12="ZFM",0,IF('Aferi (Variáveis)'!$C$12="Exportação",0,3*T65/100)) -> 0 | Y65: =IF('Aferi (Variáveis)'!$C$12="ZFM",0,IF('Aferi (Variáveis)'!$C$12="Exportação",0,0.65*T65/100)) -> 0 | Z65: 0 | AA65: 0 | AB65: 0 | AC65: 0 | AD65: 0 | AE65: 0 | AF65: 0 | AG65: 0 | AH65: 0 | AI65: =SUMIF('Custo Básico dos Produtos'!$B$7:$B$480,A65,'Custo Básico dos Produtos'!$K$7:$K$480) -> 0 | AL65: 0 | AM65: 0 | AN65: 0 | AO65: 0 | AP65: 0 | AQ65: 0
B66: =IF(Q66<>0,VLOOKUP(Q66,'Custo Básico dos Produtos'!$A$7:$J$480,3),"") ->  | D66: =SUMIF('Custo Básico dos Produtos'!$A$7:$A$480,Q66,'Custo Básico dos Produtos'!$J$7:$J$480) -> 0 | F66: 0 | G66: =IF(B66="",0,SUMIF('Cadastro de Produtos em Linha'!$B$7:$B$457,A66,'Cadastro de Produtos em Linha'!$D$7:$D$457)) -> 0 | I66: 0 | J66: 0 | K66: =IF('Aferi (Variáveis)'!$C$12="ALC",0,IF('Aferi (Variáveis)'!$C$12="ZFM",0,IF('Aferi (Variáveis)'!$C$12="Exportação",0,IF('Aferi (Variáveis)'!$C$12="Venda para Exportar",0,IF('Aferi (Variáveis)'!$C$12="AO",0,SUMIF('Custo Básico dos Produtos'!$A$7:$A$480,Q66,'Custo Básico dos Produtos'!$L$7:$L$480)))))) -> 0 | L66: 0 | M66: 0 | N66: 0 | O66: 0 | P66: =SUMIF('Cadastro de Produtos em Linha'!$A$6:$A$457,Q66,'Cadastro de Produtos em Linha'!$E$6:$E$457)*H66 -> 0 | Q66: =IF(TODAY()<$AK$26,IF(A66<>"",SUMIF('Custo Básico dos Produtos'!$B$7:$B$457,A66,'Custo Básico dos Produtos'!$A$7:$A$457),0),0) -> 0 | R66: =IF('Aferi (Variáveis)'!$C$12="Venda para Exportar",0,IF('Aferi (Variáveis)'!$C$12="ALC",0,IF('Aferi (Variáveis)'!$C$12="ZFM",0,IF('Aferi (Variáveis)'!$C$12="Exportação",0,IF('Aferi (Variáveis)'!$C$12="AO",0,E66/(100+(0*'Aferi (Variáveis)'!$K$12/100))*100*K66%/100*'Aferi (Variáveis)'!$K$12))))) -> 0 | S66: 0 | T66: =(E66*'Aferi (Variáveis)'!$K$12/100) -> 0 | U66: 0 | V66: =IF('Aferi (Variáveis)'!$F$20="Venda para Exportar",0,IF('Aferi (Variáveis)'!$F$20="ALC",0,IF('Aferi (Variáveis)'!$F$20="ZFM",0,IF('Aferi (Variáveis)'!$F$20="Exportação",0,IF('Aferi (Variáveis)'!$F$20="AO",7*T66/100,T66*'Aferi (Variáveis)'!$F$20/100))))) -> 0 | W66: 0 | X66: =IF('Aferi (Variáveis)'!$C$12="ZFM",0,IF('Aferi (Variáveis)'!$C$12="Exportação",0,3*T66/100)) -> 0 | Y66: =IF('Aferi (Variáveis)'!$C$12="ZFM",0,IF('Aferi (Variáveis)'!$C$12="Exportação",0,0.65*T66/100)) -> 0 | Z66: 0 | AA66: 0 | AB66: 0 | AC66: 0 | AD66: 0 | AE66: 0 | AF66: 0 | AG66: 0 | AH66: 0 | AI66: =SUMIF('Custo Básico dos Produtos'!$B$7:$B$480,A66,'Custo Básico dos Produtos'!$K$7:$K$480) -> 0 | AL66: 0 | AM66: 0 | AN66: 0 | AO66: 0 | AP66: 0 | AQ66: 0
B67: =IF(Q67<>0,VLOOKUP(Q67,'Custo Básico dos Produtos'!$A$7:$J$480,3),"") ->  | D67: =SUMIF('Custo Básico dos Produtos'!$A$7:$A$480,Q67,'Custo Básico dos Produtos'!$J$7:$J$480) -> 0 | F67: 0 | G67: =IF(B67="",0,SUMIF('Cadastro de Produtos em Linha'!$B$7:$B$457,A67,'Cadastro de Produtos em Linha'!$D$7:$D$457)) -> 0 | I67: 0 | J67: 0 | K67: =IF('Aferi (Variáveis)'!$C$12="ALC",0,IF('Aferi (Variáveis)'!$C$12="ZFM",0,IF('Aferi (Variáveis)'!$C$12="Exportação",0,IF('Aferi (Variáveis)'!$C$12="Venda para Exportar",0,IF('Aferi (Variáveis)'!$C$12="AO",0,SUMIF('Custo Básico dos Produtos'!$A$7:$A$480,Q67,'Custo Básico dos Produtos'!$L$7:$L$480)))))) -> 0 | L67: 0 | M67: 0 | N67: 0 | O67: 0 | P67: =SUMIF('Cadastro de Produtos em Linha'!$A$6:$A$457,Q67,'Cadastro de Produtos em Linha'!$E$6:$E$457)*H67 -> 0 | Q67: =IF(TODAY()<$AK$26,IF(A67<>"",SUMIF('Custo Básico dos Produtos'!$B$7:$B$457,A67,'Custo Básico dos Produtos'!$A$7:$A$457),0),0) -> 0 | R67: =IF('Aferi (Variáveis)'!$C$12="Venda para Exportar",0,IF('Aferi (Variáveis)'!$C$12="ALC",0,IF('Aferi (Variáveis)'!$C$12="ZFM",0,IF('Aferi (Variáveis)'!$C$12="Exportação",0,IF('Aferi (Variáveis)'!$C$12="AO",0,E67/(100+(0*'Aferi (Variáveis)'!$K$12/100))*100*K67%/100*'Aferi (Variáveis)'!$K$12))))) -> 0 | S67: 0 | T67: =(E67*'Aferi (Variáveis)'!$K$12/100) -> 0 | U67: 0 | V67: =IF('Aferi (Variáveis)'!$F$20="Venda para Exportar",0,IF('Aferi (Variáveis)'!$F$20="ALC",0,IF('Aferi (Variáveis)'!$F$20="ZFM",0,IF('Aferi (Variáveis)'!$F$20="Exportação",0,IF('Aferi (Variáveis)'!$F$20="AO",7*T67/100,T67*'Aferi (Variáveis)'!$F$20/100))))) -> 0 | W67: 0 | X67: =IF('Aferi (Variáveis)'!$C$12="ZFM",0,IF('Aferi (Variáveis)'!$C$12="Exportação",0,3*T67/100)) -> 0 | Y67: =IF('Aferi (Variáveis)'!$C$12="ZFM",0,IF('Aferi (Variáveis)'!$C$12="Exportação",0,0.65*T67/100)) -> 0 | Z67: 0 | AA67: 0 | AB67: 0 | AC67: 0 | AD67: 0 | AE67: 0 | AF67: 0 | AG67: 0 | AH67: 0 | AI67: =SUMIF('Custo Básico dos Produtos'!$B$7:$B$480,A67,'Custo Básico dos Produtos'!$K$7:$K$480) -> 0 | AL67: 0 | AM67: 0 | AN67: 0 | AO67: 0 | AP67: 0 | AQ67: 0
B68: =IF(Q68<>0,VLOOKUP(Q68,'Custo Básico dos Produtos'!$A$7:$J$480,3),"") ->  | D68: =SUMIF('Custo Básico dos Produtos'!$A$7:$A$480,Q68,'Custo Básico dos Produtos'!$J$7:$J$480) -> 0 | F68: 0 | G68: =IF(B68="",0,SUMIF('Cadastro de Produtos em Linha'!$B$7:$B$457,A68,'Cadastro de Produtos em Linha'!$D$7:$D$457)) -> 0 | I68: 0 | J68: 0 | K68: =IF('Aferi (Variáveis)'!$C$12="ALC",0,IF('Aferi (Variáveis)'!$C$12="ZFM",0,IF('Aferi (Variáveis)'!$C$12="Exportação",0,IF('Aferi (Variáveis)'!$C$12="Venda para Exportar",0,IF('Aferi (Variáveis)'!$C$12="AO",0,SUMIF('Custo Básico dos Produtos'!$A$7:$A$480,Q68,'Custo Básico dos Produtos'!$L$7:$L$480)))))) -> 0 | L68: 0 | M68: 0 | N68: 0 | O68: 0 | P68: =SUMIF('Cadastro de Produtos em Linha'!$A$6:$A$457,Q68,'Cadastro de Produtos em Linha'!$E$6:$E$457)*H68 -> 0 | Q68: =IF(TODAY()<$AK$26,IF(A68<>"",SUMIF('Custo Básico dos Produtos'!$B$7:$B$457,A68,'Custo Básico dos Produtos'!$A$7:$A$457),0),0) -> 0 | R68: =IF('Aferi (Variáveis)'!$C$12="Venda para Exportar",0,IF('Aferi (Variáveis)'!$C$12="ALC",0,IF('Aferi (Variáveis)'!$C$12="ZFM",0,IF('Aferi (Variáveis)'!$C$12="Exportação",0,IF('Aferi (Variáveis)'!$C$12="AO",0,E68/(100+(0*'Aferi (Variáveis)'!$K$12/100))*100*K68%/100*'Aferi (Variáveis)'!$K$12))))) -> 0 | S68: 0 | T68: =(E68*'Aferi (Variáveis)'!$K$12/100) -> 0 | U68: 0 | V68: =IF('Aferi (Variáveis)'!$F$20="Venda para Exportar",0,IF('Aferi (Variáveis)'!$F$20="ALC",0,IF('Aferi (Variáveis)'!$F$20="ZFM",0,IF('Aferi (Variáveis)'!$F$20="Exportação",0,IF('Aferi (Variáveis)'!$F$20="AO",7*T68/100,T68*'Aferi (Variáveis)'!$F$20/100))))) -> 0 | W68: 0 | X68: =IF('Aferi (Variáveis)'!$C$12="ZFM",0,IF('Aferi (Variáveis)'!$C$12="Exportação",0,3*T68/100)) -> 0 | Y68: =IF('Aferi (Variáveis)'!$C$12="ZFM",0,IF('Aferi (Variáveis)'!$C$12="Exportação",0,0.65*T68/100)) -> 0 | Z68: 0 | AA68: 0 | AB68: 0 | AC68: 0 | AD68: 0 | AE68: 0 | AF68: 0 | AG68: 0 | AH68: 0 | AI68: =SUMIF('Custo Básico dos Produtos'!$B$7:$B$480,A68,'Custo Básico dos Produtos'!$K$7:$K$480) -> 0 | AL68: 0 | AM68: 0 | AN68: 0 | AO68: 0 | AP68: 0 | AQ68: 0
B69: =IF(Q69<>0,VLOOKUP(Q69,'Custo Básico dos Produtos'!$A$7:$J$480,3),"") ->  | D69: =SUMIF('Custo Básico dos Produtos'!$A$7:$A$480,Q69,'Custo Básico dos Produtos'!$J$7:$J$480) -> 0 | F69: 0 | G69: =IF(B69="",0,SUMIF('Cadastro de Produtos em Linha'!$B$7:$B$457,A69,'Cadastro de Produtos em Linha'!$D$7:$D$457)) -> 0 | I69: 0 | J69: 0 | K69: =IF('Aferi (Variáveis)'!$C$12="ALC",0,IF('Aferi (Variáveis)'!$C$12="ZFM",0,IF('Aferi (Variáveis)'!$C$12="Exportação",0,IF('Aferi (Variáveis)'!$C$12="Venda para Exportar",0,IF('Aferi (Variáveis)'!$C$12="AO",0,SUMIF('Custo Básico dos Produtos'!$A$7:$A$480,Q69,'Custo Básico dos Produtos'!$L$7:$L$480)))))) -> 0 | L69: 0 | M69: 0 | N69: 0 | O69: 0 | P69: =SUMIF('Cadastro de Produtos em Linha'!$A$6:$A$457,Q69,'Cadastro de Produtos em Linha'!$E$6:$E$457)*H69 -> 0 | Q69: =IF(TODAY()<$AK$26,IF(A69<>"",SUMIF('Custo Básico dos Produtos'!$B$7:$B$457,A69,'Custo Básico dos Produtos'!$A$7:$A$457),0),0) -> 0 | R69: =IF('Aferi (Variáveis)'!$C$12="Venda para Exportar",0,IF('Aferi (Variáveis)'!$C$12="ALC",0,IF('Aferi (Variáveis)'!$C$12="ZFM",0,IF('Aferi (Variáveis)'!$C$12="Exportação",0,IF('Aferi (Variáveis)'!$C$12="AO",0,E69/(100+(0*'Aferi (Variáveis)'!$K$12/100))*100*K69%/100*'Aferi (Variáveis)'!$K$12))))) -> 0 | S69: 0 | T69: =(E69*'Aferi (Variáveis)'!$K$12/100) -> 0 | U69: 0 | V69: =IF('Aferi (Variáveis)'!$F$20="Venda para Exportar",0,IF('Aferi (Variáveis)'!$F$20="ALC",0,IF('Aferi (Variáveis)'!$F$20="ZFM",0,IF('Aferi (Variáveis)'!$F$20="Exportação",0,IF('Aferi (Variáveis)'!$F$20="AO",7*T69/100,T69*'Aferi (Variáveis)'!$F$20/100))))) -> 0 | W69: 0 | X69: =IF('Aferi (Variáveis)'!$C$12="ZFM",0,IF('Aferi (Variáveis)'!$C$12="Exportação",0,3*T69/100)) -> 0 | Y69: =IF('Aferi (Variáveis)'!$C$12="ZFM",0,IF('Aferi (Variáveis)'!$C$12="Exportação",0,0.65*T69/100)) -> 0 | Z69: 0 | AA69: 0 | AB69: 0 | AC69: 0 | AD69: 0 | AE69: 0 | AF69: 0 | AG69: 0 | AH69: 0 | AI69: =SUMIF('Custo Básico dos Produtos'!$B$7:$B$480,A69,'Custo Básico dos Produtos'!$K$7:$K$480) -> 0 | AL69: 0 | AM69: 0 | AN69: 0 | AO69: 0 | AP69: 0 | AQ69: 0
B70: =IF(Q70<>0,VLOOKUP(Q70,'Custo Básico dos Produtos'!$A$7:$J$480,3),"") ->  | D70: =SUMIF('Custo Básico dos Produtos'!$A$7:$A$480,Q70,'Custo Básico dos Produtos'!$J$7:$J$480) -> 0 | F70: 0 | G70: =IF(B70="",0,SUMIF('Cadastro de Produtos em Linha'!$B$7:$B$457,A70,'Cadastro de Produtos em Linha'!$D$7:$D$457)) -> 0 | I70: 0 | J70: 0 | K70: =IF('Aferi (Variáveis)'!$C$12="ALC",0,IF('Aferi (Variáveis)'!$C$12="ZFM",0,IF('Aferi (Variáveis)'!$C$12="Exportação",0,IF('Aferi (Variáveis)'!$C$12="Venda para Exportar",0,IF('Aferi (Variáveis)'!$C$12="AO",0,SUMIF('Custo Básico dos Produtos'!$A$7:$A$480,Q70,'Custo Básico dos Produtos'!$L$7:$L$480)))))) -> 0 | L70: 0 | M70: 0 | N70: 0 | O70: 0 | P70: =SUMIF('Cadastro de Produtos em Linha'!$A$6:$A$457,Q70,'Cadastro de Produtos em Linha'!$E$6:$E$457)*H70 -> 0 | Q70: =IF(TODAY()<$AK$26,IF(A70<>"",SUMIF('Custo Básico dos Produtos'!$B$7:$B$457,A70,'Custo Básico dos Produtos'!$A$7:$A$457),0),0) -> 0 | R70: =IF('Aferi (Variáveis)'!$C$12="Venda para Exportar",0,IF('Aferi (Variáveis)'!$C$12="ALC",0,IF('Aferi (Variáveis)'!$C$12="ZFM",0,IF('Aferi (Variáveis)'!$C$12="Exportação",0,IF('Aferi (Variáveis)'!$C$12="AO",0,E70/(100+(0*'Aferi (Variáveis)'!$K$12/100))*100*K70%/100*'Aferi (Variáveis)'!$K$12))))) -> 0 | S70: 0 | T70: =(E70*'Aferi (Variáveis)'!$K$12/100) -> 0 | U70: 0 | V70: =IF('Aferi (Variáveis)'!$F$20="Venda para Exportar",0,IF('Aferi (Variáveis)'!$F$20="ALC",0,IF('Aferi (Variáveis)'!$F$20="ZFM",0,IF('Aferi (Variáveis)'!$F$20="Exportação",0,IF('Aferi (Variáveis)'!$F$20="AO",7*T70/100,T70*'Aferi (Variáveis)'!$F$20/100))))) -> 0 | W70: 0 | X70: =IF('Aferi (Variáveis)'!$C$12="ZFM",0,IF('Aferi (Variáveis)'!$C$12="Exportação",0,3*T70/100)) -> 0 | Y70: =IF('Aferi (Variáveis)'!$C$12="ZFM",0,IF('Aferi (Variáveis)'!$C$12="Exportação",0,0.65*T70/100)) -> 0 | Z70: 0 | AA70: 0 | AB70: 0 | AC70: 0 | AD70: 0 | AE70: 0 | AF70: 0 | AG70: 0 | AH70: 0 | AI70: =SUMIF('Custo Básico dos Produtos'!$B$7:$B$480,A70,'Custo Básico dos Produtos'!$K$7:$K$480) -> 0 | AL70: 0 | AM70: 0 | AN70: 0 | AO70: 0 | AP70: 0 | AQ70: 0
B71: =IF(Q71<>0,VLOOKUP(Q71,'Custo Básico dos Produtos'!$A$7:$J$480,3),"") ->  | D71: =SUMIF('Custo Básico dos Produtos'!$A$7:$A$480,Q71,'Custo Básico dos Produtos'!$J$7:$J$480) -> 0 | F71: 0 | G71: =IF(B71="",0,SUMIF('Cadastro de Produtos em Linha'!$B$7:$B$457,A71,'Cadastro de Produtos em Linha'!$D$7:$D$457)) -> 0 | I71: 0 | J71: 0 | K71: =IF('Aferi (Variáveis)'!$C$12="ALC",0,IF('Aferi (Variáveis)'!$C$12="ZFM",0,IF('Aferi (Variáveis)'!$C$12="Exportação",0,IF('Aferi (Variáveis)'!$C$12="Venda para Exportar",0,IF('Aferi (Variáveis)'!$C$12="AO",0,SUMIF('Custo Básico dos Produtos'!$A$7:$A$480,Q71,'Custo Básico dos Produtos'!$L$7:$L$480)))))) -> 0 | L71: 0 | M71: 0 | N71: 0 | O71: 0 | P71: =SUMIF('Cadastro de Produtos em Linha'!$A$6:$A$457,Q71,'Cadastro de Produtos em Linha'!$E$6:$E$457)*H71 -> 0 | Q71: =IF(TODAY()<$AK$26,IF(A71<>"",SUMIF('Custo Básico dos Produtos'!$B$7:$B$457,A71,'Custo Básico dos Produtos'!$A$7:$A$457),0),0) -> 0 | R71: =IF('Aferi (Variáveis)'!$C$12="Venda para Exportar",0,IF('Aferi (Variáveis)'!$C$12="ALC",0,IF('Aferi (Variáveis)'!$C$12="ZFM",0,IF('Aferi (Variáveis)'!$C$12="Exportação",0,IF('Aferi (Variáveis)'!$C$12="AO",0,E71/(100+(0*'Aferi (Variáveis)'!$K$12/100))*100*K71%/100*'Aferi (Variáveis)'!$K$12))))) -> 0 | S71: 0 | T71: =(E71*'Aferi (Variáveis)'!$K$12/100) -> 0 | U71: 0 | V71: =IF('Aferi (Variáveis)'!$F$20="Venda para Exportar",0,IF('Aferi (Variáveis)'!$F$20="ALC",0,IF('Aferi (Variáveis)'!$F$20="ZFM",0,IF('Aferi (Variáveis)'!$F$20="Exportação",0,IF('Aferi (Variáveis)'!$F$20="AO",7*T71/100,T71*'Aferi (Variáveis)'!$F$20/100))))) -> 0 | W71: 0 | X71: =IF('Aferi (Variáveis)'!$C$12="ZFM",0,IF('Aferi (Variáveis)'!$C$12="Exportação",0,3*T71/100)) -> 0 | Y71: =IF('Aferi (Variáveis)'!$C$12="ZFM",0,IF('Aferi (Variáveis)'!$C$12="Exportação",0,0.65*T71/100)) -> 0 | Z71: 0 | AA71: 0 | AB71: 0 | AC71: 0 | AD71: 0 | AE71: 0 | AF71: 0 | AG71: 0 | AH71: 0 | AI71: =SUMIF('Custo Básico dos Produtos'!$B$7:$B$480,A71,'Custo Básico dos Produtos'!$K$7:$K$480) -> 0 | AL71: 0 | AM71: 0 | AN71: 0 | AO71: 0 | AP71: 0 | AQ71: 0
B72: =IF(Q72<>0,VLOOKUP(Q72,'Custo Básico dos Produtos'!$A$7:$J$480,3),"") ->  | D72: =SUMIF('Custo Básico dos Produtos'!$A$7:$A$480,Q72,'Custo Básico dos Produtos'!$J$7:$J$480) -> 0 | F72: 0 | G72: =IF(B72="",0,SUMIF('Cadastro de Produtos em Linha'!$B$7:$B$457,A72,'Cadastro de Produtos em Linha'!$D$7:$D$457)) -> 0 | I72: 0 | J72: 0 | K72: =IF('Aferi (Variáveis)'!$C$12="ALC",0,IF('Aferi (Variáveis)'!$C$12="ZFM",0,IF('Aferi (Variáveis)'!$C$12="Exportação",0,IF('Aferi (Variáveis)'!$C$12="Venda para Exportar",0,IF('Aferi (Variáveis)'!$C$12="AO",0,SUMIF('Custo Básico dos Produtos'!$A$7:$A$480,Q72,'Custo Básico dos Produtos'!$L$7:$L$480)))))) -> 0 | L72: 0 | M72: 0 | N72: 0 | O72: 0 | P72: =SUMIF('Cadastro de Produtos em Linha'!$A$6:$A$457,Q72,'Cadastro de Produtos em Linha'!$E$6:$E$457)*H72 -> 0 | Q72: =IF(TODAY()<$AK$26,IF(A72<>"",SUMIF('Custo Básico dos Produtos'!$B$7:$B$457,A72,'Custo Básico dos Produtos'!$A$7:$A$457),0),0) -> 0 | R72: =IF('Aferi (Variáveis)'!$C$12="Venda para Exportar",0,IF('Aferi (Variáveis)'!$C$12="ALC",0,IF('Aferi (Variáveis)'!$C$12="ZFM",0,IF('Aferi (Variáveis)'!$C$12="Exportação",0,IF('Aferi (Variáveis)'!$C$12="AO",0,E72/(100+(0*'Aferi (Variáveis)'!$K$12/100))*100*K72%/100*'Aferi (Variáveis)'!$K$12))))) -> 0 | S72: 0 | T72: =(E72*'Aferi (Variáveis)'!$K$12/100) -> 0 | U72: 0 | V72: =IF('Aferi (Variáveis)'!$F$20="Venda para Exportar",0,IF('Aferi (Variáveis)'!$F$20="ALC",0,IF('Aferi (Variáveis)'!$F$20="ZFM",0,IF('Aferi (Variáveis)'!$F$20="Exportação",0,IF('Aferi (Variáveis)'!$F$20="AO",7*T72/100,T72*'Aferi (Variáveis)'!$F$20/100))))) -> 0 | W72: 0 | X72: =IF('Aferi (Variáveis)'!$C$12="ZFM",0,IF('Aferi (Variáveis)'!$C$12="Exportação",0,3*T72/100)) -> 0 | Y72: =IF('Aferi (Variáveis)'!$C$12="ZFM",0,IF('Aferi (Variáveis)'!$C$12="Exportação",0,0.65*T72/100)) -> 0 | Z72: 0 | AA72: 0 | AB72: 0 | AC72: 0 | AD72: 0 | AE72: 0 | AF72: 0 | AG72: 0 | AH72: 0 | AI72: =SUMIF('Custo Básico dos Produtos'!$B$7:$B$480,A72,'Custo Básico dos Produtos'!$K$7:$K$480) -> 0 | AL72: 0 | AM72: 0 | AN72: 0 | AO72: 0 | AP72: 0 | AQ72: 0
B73: =IF(Q73<>0,VLOOKUP(Q73,'Custo Básico dos Produtos'!$A$7:$J$480,3),"") ->  | D73: =SUMIF('Custo Básico dos Produtos'!$A$7:$A$480,Q73,'Custo Básico dos Produtos'!$J$7:$J$480) -> 0 | F73: 0 | G73: =IF(B73="",0,SUMIF('Cadastro de Produtos em Linha'!$B$7:$B$457,A73,'Cadastro de Produtos em Linha'!$D$7:$D$457)) -> 0 | I73: 0 | J73: 0 | K73: =IF('Aferi (Variáveis)'!$C$12="ALC",0,IF('Aferi (Variáveis)'!$C$12="ZFM",0,IF('Aferi (Variáveis)'!$C$12="Exportação",0,IF('Aferi (Variáveis)'!$C$12="Venda para Exportar",0,IF('Aferi (Variáveis)'!$C$12="AO",0,SUMIF('Custo Básico dos Produtos'!$A$7:$A$480,Q73,'Custo Básico dos Produtos'!$L$7:$L$480)))))) -> 0 | L73: 0 | M73: 0 | N73: 0 | O73: 0 | P73: =SUMIF('Cadastro de Produtos em Linha'!$A$6:$A$457,Q73,'Cadastro de Produtos em Linha'!$E$6:$E$457)*H73 -> 0 | Q73: =IF(TODAY()<$AK$26,IF(A73<>"",SUMIF('Custo Básico dos Produtos'!$B$7:$B$457,A73,'Custo Básico dos Produtos'!$A$7:$A$457),0),0) -> 0 | R73: =IF('Aferi (Variáveis)'!$C$12="Venda para Exportar",0,IF('Aferi (Variáveis)'!$C$12="ALC",0,IF('Aferi (Variáveis)'!$C$12="ZFM",0,IF('Aferi (Variáveis)'!$C$12="Exportação",0,IF('Aferi (Variáveis)'!$C$12="AO",0,E73/(100+(0*'Aferi (Variáveis)'!$K$12/100))*100*K73%/100*'Aferi (Variáveis)'!$K$12))))) -> 0 | S73: 0 | T73: =(E73*'Aferi (Variáveis)'!$K$12/100) -> 0 | U73: 0 | V73: =IF('Aferi (Variáveis)'!$F$20="Venda para Exportar",0,IF('Aferi (Variáveis)'!$F$20="ALC",0,IF('Aferi (Variáveis)'!$F$20="ZFM",0,IF('Aferi (Variáveis)'!$F$20="Exportação",0,IF('Aferi (Variáveis)'!$F$20="AO",7*T73/100,T73*'Aferi (Variáveis)'!$F$20/100))))) -> 0 | W73: 0 | X73: =IF('Aferi (Variáveis)'!$C$12="ZFM",0,IF('Aferi (Variáveis)'!$C$12="Exportação",0,3*T73/100)) -> 0 | Y73: =IF('Aferi (Variáveis)'!$C$12="ZFM",0,IF('Aferi (Variáveis)'!$C$12="Exportação",0,0.65*T73/100)) -> 0 | Z73: 0 | AA73: 0 | AB73: 0 | AC73: 0 | AD73: 0 | AE73: 0 | AF73: 0 | AG73: 0 | AH73: 0 | AI73: =SUMIF('Custo Básico dos Produtos'!$B$7:$B$480,A73,'Custo Básico dos Produtos'!$K$7:$K$480) -> 0 | AL73: 0 | AM73: 0 | AN73: 0 | AO73: 0 | AP73: 0 | AQ73: 0
B74: =IF(Q74<>0,VLOOKUP(Q74,'Custo Básico dos Produtos'!$A$7:$J$480,3),"") ->  | D74: =SUMIF('Custo Básico dos Produtos'!$A$7:$A$480,Q74,'Custo Básico dos Produtos'!$J$7:$J$480) -> 0 | F74: 0 | G74: =IF(B74="",0,SUMIF('Cadastro de Produtos em Linha'!$B$7:$B$457,A74,'Cadastro de Produtos em Linha'!$D$7:$D$457)) -> 0 | I74: 0 | J74: 0 | K74: =IF('Aferi (Variáveis)'!$C$12="ALC",0,IF('Aferi (Variáveis)'!$C$12="ZFM",0,IF('Aferi (Variáveis)'!$C$12="Exportação",0,IF('Aferi (Variáveis)'!$C$12="Venda para Exportar",0,IF('Aferi (Variáveis)'!$C$12="AO",0,SUMIF('Custo Básico dos Produtos'!$A$7:$A$480,Q74,'Custo Básico dos Produtos'!$L$7:$L$480)))))) -> 0 | L74: 0 | M74: 0 | N74: 0 | O74: 0 | P74: =SUMIF('Cadastro de Produtos em Linha'!$A$6:$A$457,Q74,'Cadastro de Produtos em Linha'!$E$6:$E$457)*H74 -> 0 | Q74: =IF(TODAY()<$AK$26,IF(A74<>"",SUMIF('Custo Básico dos Produtos'!$B$7:$B$457,A74,'Custo Básico dos Produtos'!$A$7:$A$457),0),0) -> 0 | R74: =IF('Aferi (Variáveis)'!$C$12="Venda para Exportar",0,IF('Aferi (Variáveis)'!$C$12="ALC",0,IF('Aferi (Variáveis)'!$C$12="ZFM",0,IF('Aferi (Variáveis)'!$C$12="Exportação",0,IF('Aferi (Variáveis)'!$C$12="AO",0,E74/(100+(0*'Aferi (Variáveis)'!$K$12/100))*100*K74%/100*'Aferi (Variáveis)'!$K$12))))) -> 0 | S74: 0 | T74: =(E74*'Aferi (Variáveis)'!$K$12/100) -> 0 | U74: 0 | V74: =IF('Aferi (Variáveis)'!$F$20="Venda para Exportar",0,IF('Aferi (Variáveis)'!$F$20="ALC",0,IF('Aferi (Variáveis)'!$F$20="ZFM",0,IF('Aferi (Variáveis)'!$F$20="Exportação",0,IF('Aferi (Variáveis)'!$F$20="AO",7*T74/100,T74*'Aferi (Variáveis)'!$F$20/100))))) -> 0 | W74: 0 | X74: =IF('Aferi (Variáveis)'!$C$12="ZFM",0,IF('Aferi (Variáveis)'!$C$12="Exportação",0,3*T74/100)) -> 0 | Y74: =IF('Aferi (Variáveis)'!$C$12="ZFM",0,IF('Aferi (Variáveis)'!$C$12="Exportação",0,0.65*T74/100)) -> 0 | Z74: 0 | AA74: 0 | AB74: 0 | AC74: 0 | AD74: 0 | AE74: 0 | AF74: 0 | AG74: 0 | AH74: 0 | AI74: =SUMIF('Custo Básico dos Produtos'!$B$7:$B$480,A74,'Custo Básico dos Produtos'!$K$7:$K$480) -> 0 | AL74: 0 | AM74: 0 | AN74: 0 | AO74: 0 | AP74: 0 | AQ74: 0
B75: =IF(Q75<>0,VLOOKUP(Q75,'Custo Básico dos Produtos'!$A$7:$J$480,3),"") ->  | D75: =SUMIF('Custo Básico dos Produtos'!$A$7:$A$480,Q75,'Custo Básico dos Produtos'!$J$7:$J$480) -> 0 | F75: 0 | G75: =IF(B75="",0,SUMIF('Cadastro de Produtos em Linha'!$B$7:$B$457,A75,'Cadastro de Produtos em Linha'!$D$7:$D$457)) -> 0 | I75: 0 | J75: 0 | K75: =IF('Aferi (Variáveis)'!$C$12="ALC",0,IF('Aferi (Variáveis)'!$C$12="ZFM",0,IF('Aferi (Variáveis)'!$C$12="Exportação",0,IF('Aferi (Variáveis)'!$C$12="Venda para Exportar",0,IF('Aferi (Variáveis)'!$C$12="AO",0,SUMIF('Custo Básico dos Produtos'!$A$7:$A$480,Q75,'Custo Básico dos Produtos'!$L$7:$L$480)))))) -> 0 | L75: 0 | M75: 0 | N75: 0 | O75: 0 | P75: =SUMIF('Cadastro de Produtos em Linha'!$A$6:$A$457,Q75,'Cadastro de Produtos em Linha'!$E$6:$E$457)*H75 -> 0 | Q75: =IF(TODAY()<$AK$26,IF(A75<>"",SUMIF('Custo Básico dos Produtos'!$B$7:$B$457,A75,'Custo Básico dos Produtos'!$A$7:$A$457),0),0) -> 0 | R75: =IF('Aferi (Variáveis)'!$C$12="Venda para Exportar",0,IF('Aferi (Variáveis)'!$C$12="ALC",0,IF('Aferi (Variáveis)'!$C$12="ZFM",0,IF('Aferi (Variáveis)'!$C$12="Exportação",0,IF('Aferi (Variáveis)'!$C$12="AO",0,E75/(100+(0*'Aferi (Variáveis)'!$K$12/100))*100*K75%/100*'Aferi (Variáveis)'!$K$12))))) -> 0 | S75: 0 | T75: =(E75*'Aferi (Variáveis)'!$K$12/100) -> 0 | U75: 0 | V75: =IF('Aferi (Variáveis)'!$F$20="Venda para Exportar",0,IF('Aferi (Variáveis)'!$F$20="ALC",0,IF('Aferi (Variáveis)'!$F$20="ZFM",0,IF('Aferi (Variáveis)'!$F$20="Exportação",0,IF('Aferi (Variáveis)'!$F$20="AO",7*T75/100,T75*'Aferi (Variáveis)'!$F$20/100))))) -> 0 | W75: 0 | X75: =IF('Aferi (Variáveis)'!$C$12="ZFM",0,IF('Aferi (Variáveis)'!$C$12="Exportação",0,3*T75/100)) -> 0 | Y75: =IF('Aferi (Variáveis)'!$C$12="ZFM",0,IF('Aferi (Variáveis)'!$C$12="Exportação",0,0.65*T75/100)) -> 0 | Z75: 0 | AA75: 0 | AB75: 0 | AC75: 0 | AD75: 0 | AE75: 0 | AF75: 0 | AG75: 0 | AH75: 0 | AI75: =SUMIF('Custo Básico dos Produtos'!$B$7:$B$480,A75,'Custo Básico dos Produtos'!$K$7:$K$480) -> 0 | AL75: 0 | AM75: 0 | AN75: 0 | AO75: 0 | AP75: 0 | AQ75: 0
B76: =IF(Q76<>0,VLOOKUP(Q76,'Custo Básico dos Produtos'!$A$7:$J$480,3),"") ->  | D76: =SUMIF('Custo Básico dos Produtos'!$A$7:$A$480,Q76,'Custo Básico dos Produtos'!$J$7:$J$480) -> 0 | F76: 0 | G76: =IF(B76="",0,SUMIF('Cadastro de Produtos em Linha'!$B$7:$B$457,A76,'Cadastro de Produtos em Linha'!$D$7:$D$457)) -> 0 | I76: 0 | J76: 0 | K76: =IF('Aferi (Variáveis)'!$C$12="ALC",0,IF('Aferi (Variáveis)'!$C$12="ZFM",0,IF('Aferi (Variáveis)'!$C$12="Exportação",0,IF('Aferi (Variáveis)'!$C$12="Venda para Exportar",0,IF('Aferi (Variáveis)'!$C$12="AO",0,SUMIF('Custo Básico dos Produtos'!$A$7:$A$480,Q76,'Custo Básico dos Produtos'!$L$7:$L$480)))))) -> 0 | L76: 0 | M76: 0 | N76: 0 | O76: 0 | P76: =SUMIF('Cadastro de Produtos em Linha'!$A$6:$A$457,Q76,'Cadastro de Produtos em Linha'!$E$6:$E$457)*H76 -> 0 | Q76: =IF(TODAY()<$AK$26,IF(A76<>"",SUMIF('Custo Básico dos Produtos'!$B$7:$B$457,A76,'Custo Básico dos Produtos'!$A$7:$A$457),0),0) -> 0 | R76: =IF('Aferi (Variáveis)'!$C$12="Venda para Exportar",0,IF('Aferi (Variáveis)'!$C$12="ALC",0,IF('Aferi (Variáveis)'!$C$12="ZFM",0,IF('Aferi (Variáveis)'!$C$12="Exportação",0,IF('Aferi (Variáveis)'!$C$12="AO",0,E76/(100+(0*'Aferi (Variáveis)'!$K$12/100))*100*K76%/100*'Aferi (Variáveis)'!$K$12))))) -> 0 | S76: 0 | T76: =(E76*'Aferi (Variáveis)'!$K$12/100) -> 0 | U76: 0 | V76: =IF('Aferi (Variáveis)'!$F$20="Venda para Exportar",0,IF('Aferi (Variáveis)'!$F$20="ALC",0,IF('Aferi (Variáveis)'!$F$20="ZFM",0,IF('Aferi (Variáveis)'!$F$20="Exportação",0,IF('Aferi (Variáveis)'!$F$20="AO",7*T76/100,T76*'Aferi (Variáveis)'!$F$20/100))))) -> 0 | W76: 0 | X76: =IF('Aferi (Variáveis)'!$C$12="ZFM",0,IF('Aferi (Variáveis)'!$C$12="Exportação",0,3*T76/100)) -> 0 | Y76: =IF('Aferi (Variáveis)'!$C$12="ZFM",0,IF('Aferi (Variáveis)'!$C$12="Exportação",0,0.65*T76/100)) -> 0 | Z76: 0 | AA76: 0 | AB76: 0 | AC76: 0 | AD76: 0 | AE76: 0 | AF76: 0 | AG76: 0 | AH76: 0 | AI76: =SUMIF('Custo Básico dos Produtos'!$B$7:$B$480,A76,'Custo Básico dos Produtos'!$K$7:$K$480) -> 0 | AL76: 0 | AM76: 0 | AN76: 0 | AO76: 0 | AP76: 0 | AQ76: 0
B77: =IF(Q77<>0,VLOOKUP(Q77,'Custo Básico dos Produtos'!$A$7:$J$480,3),"") ->  | D77: =SUMIF('Custo Básico dos Produtos'!$A$7:$A$480,Q77,'Custo Básico dos Produtos'!$J$7:$J$480) -> 0 | F77: 0 | G77: =IF(B77="",0,SUMIF('Cadastro de Produtos em Linha'!$B$7:$B$457,A77,'Cadastro de Produtos em Linha'!$D$7:$D$457)) -> 0 | I77: 0 | J77: 0 | K77: =IF('Aferi (Variáveis)'!$C$12="ALC",0,IF('Aferi (Variáveis)'!$C$12="ZFM",0,IF('Aferi (Variáveis)'!$C$12="Exportação",0,IF('Aferi (Variáveis)'!$C$12="Venda para Exportar",0,IF('Aferi (Variáveis)'!$C$12="AO",0,SUMIF('Custo Básico dos Produtos'!$A$7:$A$480,Q77,'Custo Básico dos Produtos'!$L$7:$L$480)))))) -> 0 | L77: 0 | M77: 0 | N77: 0 | O77: 0 | P77: =SUMIF('Cadastro de Produtos em Linha'!$A$6:$A$457,Q77,'Cadastro de Produtos em Linha'!$E$6:$E$457)*H77 -> 0 | Q77: =IF(TODAY()<$AK$26,IF(A77<>"",SUMIF('Custo Básico dos Produtos'!$B$7:$B$457,A77,'Custo Básico dos Produtos'!$A$7:$A$457),0),0) -> 0 | R77: =IF('Aferi (Variáveis)'!$C$12="Venda para Exportar",0,IF('Aferi (Variáveis)'!$C$12="ALC",0,IF('Aferi (Variáveis)'!$C$12="ZFM",0,IF('Aferi (Variáveis)'!$C$12="Exportação",0,IF('Aferi (Variáveis)'!$C$12="AO",0,E77/(100+(0*'Aferi (Variáveis)'!$K$12/100))*100*K77%/100*'Aferi (Variáveis)'!$K$12))))) -> 0 | S77: 0 | T77: =(E77*'Aferi (Variáveis)'!$K$12/100) -> 0 | U77: 0 | V77: =IF('Aferi (Variáveis)'!$F$20="Venda para Exportar",0,IF('Aferi (Variáveis)'!$F$20="ALC",0,IF('Aferi (Variáveis)'!$F$20="ZFM",0,IF('Aferi (Variáveis)'!$F$20="Exportação",0,IF('Aferi (Variáveis)'!$F$20="AO",7*T77/100,T77*'Aferi (Variáveis)'!$F$20/100))))) -> 0 | W77: 0 | X77: =IF('Aferi (Variáveis)'!$C$12="ZFM",0,IF('Aferi (Variáveis)'!$C$12="Exportação",0,3*T77/100)) -> 0 | Y77: =IF('Aferi (Variáveis)'!$C$12="ZFM",0,IF('Aferi (Variáveis)'!$C$12="Exportação",0,0.65*T77/100)) -> 0 | Z77: 0 | AA77: 0 | AB77: 0 | AC77: 0 | AD77: 0 | AE77: 0 | AF77: 0 | AG77: 0 | AH77: 0 | AI77: =SUMIF('Custo Básico dos Produtos'!$B$7:$B$480,A77,'Custo Básico dos Produtos'!$K$7:$K$480) -> 0 | AL77: 0 | AM77: 0 | AN77: 0 | AO77: 0 | AP77: 0 | AQ77: 0
B78: =IF(Q78<>0,VLOOKUP(Q78,'Custo Básico dos Produtos'!$A$7:$J$480,3),"") ->  | D78: =SUMIF('Custo Básico dos Produtos'!$A$7:$A$480,Q78,'Custo Básico dos Produtos'!$J$7:$J$480) -> 0 | F78: 0 | G78: =IF(B78="",0,SUMIF('Cadastro de Produtos em Linha'!$B$7:$B$457,A78,'Cadastro de Produtos em Linha'!$D$7:$D$457)) -> 0 | I78: 0 | J78: 0 | K78: =IF('Aferi (Variáveis)'!$C$12="ALC",0,IF('Aferi (Variáveis)'!$C$12="ZFM",0,IF('Aferi (Variáveis)'!$C$12="Exportação",0,IF('Aferi (Variáveis)'!$C$12="Venda para Exportar",0,IF('Aferi (Variáveis)'!$C$12="AO",0,SUMIF('Custo Básico dos Produtos'!$A$7:$A$480,Q78,'Custo Básico dos Produtos'!$L$7:$L$480)))))) -> 0 | L78: 0 | M78: 0 | N78: 0 | O78: 0 | P78: =SUMIF('Cadastro de Produtos em Linha'!$A$6:$A$457,Q78,'Cadastro de Produtos em Linha'!$E$6:$E$457)*H78 -> 0 | Q78: =IF(TODAY()<$AK$26,IF(A78<>"",SUMIF('Custo Básico dos Produtos'!$B$7:$B$457,A78,'Custo Básico dos Produtos'!$A$7:$A$457),0),0) -> 0 | R78: =IF('Aferi (Variáveis)'!$C$12="Venda para Exportar",0,IF('Aferi (Variáveis)'!$C$12="ALC",0,IF('Aferi (Variáveis)'!$C$12="ZFM",0,IF('Aferi (Variáveis)'!$C$12="Exportação",0,IF('Aferi (Variáveis)'!$C$12="AO",0,E78/(100+(0*'Aferi (Variáveis)'!$K$12/100))*100*K78%/100*'Aferi (Variáveis)'!$K$12))))) -> 0 | S78: 0 | T78: =(E78*'Aferi (Variáveis)'!$K$12/100) -> 0 | U78: 0 | V78: =IF('Aferi (Variáveis)'!$F$20="Venda para Exportar",0,IF('Aferi (Variáveis)'!$F$20="ALC",0,IF('Aferi (Variáveis)'!$F$20="ZFM",0,IF('Aferi (Variáveis)'!$F$20="Exportação",0,IF('Aferi (Variáveis)'!$F$20="AO",7*T78/100,T78*'Aferi (Variáveis)'!$F$20/100))))) -> 0 | W78: 0 | X78: =IF('Aferi (Variáveis)'!$C$12="ZFM",0,IF('Aferi (Variáveis)'!$C$12="Exportação",0,3*T78/100)) -> 0 | Y78: =IF('Aferi (Variáveis)'!$C$12="ZFM",0,IF('Aferi (Variáveis)'!$C$12="Exportação",0,0.65*T78/100)) -> 0 | Z78: 0 | AA78: 0 | AB78: 0 | AC78: 0 | AD78: 0 | AE78: 0 | AF78: 0 | AG78: 0 | AH78: 0 | AI78: =SUMIF('Custo Básico dos Produtos'!$B$7:$B$480,A78,'Custo Básico dos Produtos'!$K$7:$K$480) -> 0 | AL78: 0 | AM78: 0 | AN78: 0 | AO78: 0 | AP78: 0 | AQ78: 0
B79: =IF(Q79<>0,VLOOKUP(Q79,'Custo Básico dos Produtos'!$A$7:$J$480,3),"") ->  | D79: =SUMIF('Custo Básico dos Produtos'!$A$7:$A$480,Q79,'Custo Básico dos Produtos'!$J$7:$J$480) -> 0 | F79: 0 | G79: =IF(B79="",0,SUMIF('Cadastro de Produtos em Linha'!$B$7:$B$457,A79,'Cadastro de Produtos em Linha'!$D$7:$D$457)) -> 0 | I79: 0 | J79: 0 | K79: =IF('Aferi (Variáveis)'!$C$12="ALC",0,IF('Aferi (Variáveis)'!$C$12="ZFM",0,IF('Aferi (Variáveis)'!$C$12="Exportação",0,IF('Aferi (Variáveis)'!$C$12="Venda para Exportar",0,IF('Aferi (Variáveis)'!$C$12="AO",0,SUMIF('Custo Básico dos Produtos'!$A$7:$A$480,Q79,'Custo Básico dos Produtos'!$L$7:$L$480)))))) -> 0 | L79: 0 | M79: 0 | N79: 0 | O79: 0 | P79: =SUMIF('Cadastro de Produtos em Linha'!$A$6:$A$457,Q79,'Cadastro de Produtos em Linha'!$E$6:$E$457)*H79 -> 0 | Q79: =IF(TODAY()<$AK$26,IF(A79<>"",SUMIF('Custo Básico dos Produtos'!$B$7:$B$457,A79,'Custo Básico dos Produtos'!$A$7:$A$457),0),0) -> 0 | R79: =IF('Aferi (Variáveis)'!$C$12="Venda para Exportar",0,IF('Aferi (Variáveis)'!$C$12="ALC",0,IF('Aferi (Variáveis)'!$C$12="ZFM",0,IF('Aferi (Variáveis)'!$C$12="Exportação",0,IF('Aferi (Variáveis)'!$C$12="AO",0,E79/(100+(0*'Aferi (Variáveis)'!$K$12/100))*100*K79%/100*'Aferi (Variáveis)'!$K$12))))) -> 0 | S79: 0 | T79: =(E79*'Aferi (Variáveis)'!$K$12/100) -> 0 | U79: 0 | V79: =IF('Aferi (Variáveis)'!$F$20="Venda para Exportar",0,IF('Aferi (Variáveis)'!$F$20="ALC",0,IF('Aferi (Variáveis)'!$F$20="ZFM",0,IF('Aferi (Variáveis)'!$F$20="Exportação",0,IF('Aferi (Variáveis)'!$F$20="AO",7*T79/100,T79*'Aferi (Variáveis)'!$F$20/100))))) -> 0 | W79: 0 | X79: =IF('Aferi (Variáveis)'!$C$12="ZFM",0,IF('Aferi (Variáveis)'!$C$12="Exportação",0,3*T79/100)) -> 0 | Y79: =IF('Aferi (Variáveis)'!$C$12="ZFM",0,IF('Aferi (Variáveis)'!$C$12="Exportação",0,0.65*T79/100)) -> 0 | Z79: 0 | AA79: 0 | AB79: 0 | AC79: 0 | AD79: 0 | AE79: 0 | AF79: 0 | AG79: 0 | AH79: 0 | AI79: =SUMIF('Custo Básico dos Produtos'!$B$7:$B$480,A79,'Custo Básico dos Produtos'!$K$7:$K$480) -> 0 | AL79: 0 | AM79: 0 | AN79: 0 | AO79: 0 | AP79: 0 | AQ79: 0
B80: =IF(Q80<>0,VLOOKUP(Q80,'Custo Básico dos Produtos'!$A$7:$J$480,3),"") ->  | D80: =SUMIF('Custo Básico dos Produtos'!$A$7:$A$480,Q80,'Custo Básico dos Produtos'!$J$7:$J$480) -> 0 | F80: 0 | G80: =IF(B80="",0,SUMIF('Cadastro de Produtos em Linha'!$B$7:$B$457,A80,'Cadastro de Produtos em Linha'!$D$7:$D$457)) -> 0 | I80: 0 | J80: 0 | K80: =IF('Aferi (Variáveis)'!$C$12="ALC",0,IF('Aferi (Variáveis)'!$C$12="ZFM",0,IF('Aferi (Variáveis)'!$C$12="Exportação",0,IF('Aferi (Variáveis)'!$C$12="Venda para Exportar",0,IF('Aferi (Variáveis)'!$C$12="AO",0,SUMIF('Custo Básico dos Produtos'!$A$7:$A$480,Q80,'Custo Básico dos Produtos'!$L$7:$L$480)))))) -> 0 | L80: 0 | M80: 0 | N80: 0 | O80: 0 | P80: =SUMIF('Cadastro de Produtos em Linha'!$A$6:$A$457,Q80,'Cadastro de Produtos em Linha'!$E$6:$E$457)*H80 -> 0 | Q80: =IF(TODAY()<$AK$26,IF(A80<>"",SUMIF('Custo Básico dos Produtos'!$B$7:$B$457,A80,'Custo Básico dos Produtos'!$A$7:$A$457),0),0) -> 0 | R80: =IF('Aferi (Variáveis)'!$C$12="Venda para Exportar",0,IF('Aferi (Variáveis)'!$C$12="ALC",0,IF('Aferi (Variáveis)'!$C$12="ZFM",0,IF('Aferi (Variáveis)'!$C$12="Exportação",0,IF('Aferi (Variáveis)'!$C$12="AO",0,E80/(100+(0*'Aferi (Variáveis)'!$K$12/100))*100*K80%/100*'Aferi (Variáveis)'!$K$12))))) -> 0 | S80: 0 | T80: =(E80*'Aferi (Variáveis)'!$K$12/100) -> 0 | U80: 0 | V80: =IF('Aferi (Variáveis)'!$F$20="Venda para Exportar",0,IF('Aferi (Variáveis)'!$F$20="ALC",0,IF('Aferi (Variáveis)'!$F$20="ZFM",0,IF('Aferi (Variáveis)'!$F$20="Exportação",0,IF('Aferi (Variáveis)'!$F$20="AO",7*T80/100,T80*'Aferi (Variáveis)'!$F$20/100))))) -> 0 | W80: 0 | X80: =IF('Aferi (Variáveis)'!$C$12="ZFM",0,IF('Aferi (Variáveis)'!$C$12="Exportação",0,3*T80/100)) -> 0 | Y80: =IF('Aferi (Variáveis)'!$C$12="ZFM",0,IF('Aferi (Variáveis)'!$C$12="Exportação",0,0.65*T80/100)) -> 0 | Z80: 0 | AA80: 0 | AB80: 0 | AC80: 0 | AD80: 0 | AE80: 0 | AF80: 0 | AG80: 0 | AH80: 0 | AI80: =SUMIF('Custo Básico dos Produtos'!$B$7:$B$480,A80,'Custo Básico dos Produtos'!$K$7:$K$480) -> 0 | AL80: 0 | AM80: 0 | AN80: 0 | AO80: 0 | AP80: 0 | AQ80: 0
B81: =IF(Q81<>0,VLOOKUP(Q81,'Custo Básico dos Produtos'!$A$7:$J$480,3),"") ->  | D81: =SUMIF('Custo Básico dos Produtos'!$A$7:$A$480,Q81,'Custo Básico dos Produtos'!$J$7:$J$480) -> 0 | F81: 0 | G81: =IF(B81="",0,SUMIF('Cadastro de Produtos em Linha'!$B$7:$B$457,A81,'Cadastro de Produtos em Linha'!$D$7:$D$457)) -> 0 | I81: 0 | J81: 0 | K81: =IF('Aferi (Variáveis)'!$C$12="ALC",0,IF('Aferi (Variáveis)'!$C$12="ZFM",0,IF('Aferi (Variáveis)'!$C$12="Exportação",0,IF('Aferi (Variáveis)'!$C$12="Venda para Exportar",0,IF('Aferi (Variáveis)'!$C$12="AO",0,SUMIF('Custo Básico dos Produtos'!$A$7:$A$480,Q81,'Custo Básico dos Produtos'!$L$7:$L$480)))))) -> 0 | L81: 0 | M81: 0 | N81: 0 | O81: 0 | P81: =SUMIF('Cadastro de Produtos em Linha'!$A$6:$A$457,Q81,'Cadastro de Produtos em Linha'!$E$6:$E$457)*H81 -> 0 | Q81: =IF(TODAY()<$AK$26,IF(A81<>"",SUMIF('Custo Básico dos Produtos'!$B$7:$B$457,A81,'Custo Básico dos Produtos'!$A$7:$A$457),0),0) -> 0 | R81: =IF('Aferi (Variáveis)'!$C$12="Venda para Exportar",0,IF('Aferi (Variáveis)'!$C$12="ALC",0,IF('Aferi (Variáveis)'!$C$12="ZFM",0,IF('Aferi (Variáveis)'!$C$12="Exportação",0,IF('Aferi (Variáveis)'!$C$12="AO",0,E81/(100+(0*'Aferi (Variáveis)'!$K$12/100))*100*K81%/100*'Aferi (Variáveis)'!$K$12))))) -> 0 | S81: 0 | T81: =(E81*'Aferi (Variáveis)'!$K$12/100) -> 0 | U81: 0 | V81: =IF('Aferi (Variáveis)'!$F$20="Venda para Exportar",0,IF('Aferi (Variáveis)'!$F$20="ALC",0,IF('Aferi (Variáveis)'!$F$20="ZFM",0,IF('Aferi (Variáveis)'!$F$20="Exportação",0,IF('Aferi (Variáveis)'!$F$20="AO",7*T81/100,T81*'Aferi (Variáveis)'!$F$20/100))))) -> 0 | W81: 0 | X81: =IF('Aferi (Variáveis)'!$C$12="ZFM",0,IF('Aferi (Variáveis)'!$C$12="Exportação",0,3*T81/100)) -> 0 | Y81: =IF('Aferi (Variáveis)'!$C$12="ZFM",0,IF('Aferi (Variáveis)'!$C$12="Exportação",0,0.65*T81/100)) -> 0 | Z81: 0 | AA81: 0 | AB81: 0 | AC81: 0 | AD81: 0 | AE81: 0 | AF81: 0 | AG81: 0 | AH81: 0 | AI81: =SUMIF('Custo Básico dos Produtos'!$B$7:$B$480,A81,'Custo Básico dos Produtos'!$K$7:$K$480) -> 0 | AL81: 0 | AM81: 0 | AN81: 0 | AO81: 0 | AP81: 0 | AQ81: 0
B82: =IF(Q82<>0,VLOOKUP(Q82,'Custo Básico dos Produtos'!$A$7:$J$480,3),"") ->  | D82: =SUMIF('Custo Básico dos Produtos'!$A$7:$A$480,Q82,'Custo Básico dos Produtos'!$J$7:$J$480) -> 0 | F82: 0 | G82: =IF(B82="",0,SUMIF('Cadastro de Produtos em Linha'!$B$7:$B$457,A82,'Cadastro de Produtos em Linha'!$D$7:$D$457)) -> 0 | I82: 0 | J82: 0 | K82: =IF('Aferi (Variáveis)'!$C$12="ALC",0,IF('Aferi (Variáveis)'!$C$12="ZFM",0,IF('Aferi (Variáveis)'!$C$12="Exportação",0,IF('Aferi (Variáveis)'!$C$12="Venda para Exportar",0,IF('Aferi (Variáveis)'!$C$12="AO",0,SUMIF('Custo Básico dos Produtos'!$A$7:$A$480,Q82,'Custo Básico dos Produtos'!$L$7:$L$480)))))) -> 0 | L82: 0 | M82: 0 | N82: 0 | O82: 0 | P82: =SUMIF('Cadastro de Produtos em Linha'!$A$6:$A$457,Q82,'Cadastro de Produtos em Linha'!$E$6:$E$457)*H82 -> 0 | Q82: =IF(TODAY()<$AK$26,IF(A82<>"",SUMIF('Custo Básico dos Produtos'!$B$7:$B$457,A82,'Custo Básico dos Produtos'!$A$7:$A$457),0),0) -> 0 | R82: =IF('Aferi (Variáveis)'!$C$12="Venda para Exportar",0,IF('Aferi (Variáveis)'!$C$12="ALC",0,IF('Aferi (Variáveis)'!$C$12="ZFM",0,IF('Aferi (Variáveis)'!$C$12="Exportação",0,IF('Aferi (Variáveis)'!$C$12="AO",0,E82/(100+(0*'Aferi (Variáveis)'!$K$12/100))*100*K82%/100*'Aferi (Variáveis)'!$K$12))))) -> 0 | S82: 0 | T82: =(E82*'Aferi (Variáveis)'!$K$12/100) -> 0 | U82: 0 | V82: =IF('Aferi (Variáveis)'!$F$20="Venda para Exportar",0,IF('Aferi (Variáveis)'!$F$20="ALC",0,IF('Aferi (Variáveis)'!$F$20="ZFM",0,IF('Aferi (Variáveis)'!$F$20="Exportação",0,IF('Aferi (Variáveis)'!$F$20="AO",7*T82/100,T82*'Aferi (Variáveis)'!$F$20/100))))) -> 0 | W82: 0 | X82: =IF('Aferi (Variáveis)'!$C$12="ZFM",0,IF('Aferi (Variáveis)'!$C$12="Exportação",0,3*T82/100)) -> 0 | Y82: =IF('Aferi (Variáveis)'!$C$12="ZFM",0,IF('Aferi (Variáveis)'!$C$12="Exportação",0,0.65*T82/100)) -> 0 | Z82: 0 | AA82: 0 | AB82: 0 | AC82: 0 | AD82: 0 | AE82: 0 | AF82: 0 | AG82: 0 | AH82: 0 | AI82: =SUMIF('Custo Básico dos Produtos'!$B$7:$B$480,A82,'Custo Básico dos Produtos'!$K$7:$K$480) -> 0 | AL82: 0 | AM82: 0 | AN82: 0 | AO82: 0 | AP82: 0 | AQ82: 0
B83: =IF(Q83<>0,VLOOKUP(Q83,'Custo Básico dos Produtos'!$A$7:$J$480,3),"") ->  | D83: =SUMIF('Custo Básico dos Produtos'!$A$7:$A$480,Q83,'Custo Básico dos Produtos'!$J$7:$J$480) -> 0 | F83: 0 | G83: =IF(B83="",0,SUMIF('Cadastro de Produtos em Linha'!$B$7:$B$457,A83,'Cadastro de Produtos em Linha'!$D$7:$D$457)) -> 0 | I83: 0 | J83: 0 | K83: =IF('Aferi (Variáveis)'!$C$12="ALC",0,IF('Aferi (Variáveis)'!$C$12="ZFM",0,IF('Aferi (Variáveis)'!$C$12="Exportação",0,IF('Aferi (Variáveis)'!$C$12="Venda para Exportar",0,IF('Aferi (Variáveis)'!$C$12="AO",0,SUMIF('Custo Básico dos Produtos'!$A$7:$A$480,Q83,'Custo Básico dos Produtos'!$L$7:$L$480)))))) -> 0 | L83: 0 | M83: 0 | N83: 0 | O83: 0 | P83: =SUMIF('Cadastro de Produtos em Linha'!$A$6:$A$457,Q83,'Cadastro de Produtos em Linha'!$E$6:$E$457)*H83 -> 0 | Q83: =IF(TODAY()<$AK$26,IF(A83<>"",SUMIF('Custo Básico dos Produtos'!$B$7:$B$457,A83,'Custo Básico dos Produtos'!$A$7:$A$457),0),0) -> 0 | R83: =IF('Aferi (Variáveis)'!$C$12="Venda para Exportar",0,IF('Aferi (Variáveis)'!$C$12="ALC",0,IF('Aferi (Variáveis)'!$C$12="ZFM",0,IF('Aferi (Variáveis)'!$C$12="Exportação",0,IF('Aferi (Variáveis)'!$C$12="AO",0,E83/(100+(0*'Aferi (Variáveis)'!$K$12/100))*100*K83%/100*'Aferi (Variáveis)'!$K$12))))) -> 0 | S83: 0 | T83: =(E83*'Aferi (Variáveis)'!$K$12/100) -> 0 | U83: 0 | V83: =IF('Aferi (Variáveis)'!$F$20="Venda para Exportar",0,IF('Aferi (Variáveis)'!$F$20="ALC",0,IF('Aferi (Variáveis)'!$F$20="ZFM",0,IF('Aferi (Variáveis)'!$F$20="Exportação",0,IF('Aferi (Variáveis)'!$F$20="AO",7*T83/100,T83*'Aferi (Variáveis)'!$F$20/100))))) -> 0 | W83: 0 | X83: =IF('Aferi (Variáveis)'!$C$12="ZFM",0,IF('Aferi (Variáveis)'!$C$12="Exportação",0,3*T83/100)) -> 0 | Y83: =IF('Aferi (Variáveis)'!$C$12="ZFM",0,IF('Aferi (Variáveis)'!$C$12="Exportação",0,0.65*T83/100)) -> 0 | Z83: 0 | AA83: 0 | AB83: 0 | AC83: 0 | AD83: 0 | AE83: 0 | AF83: 0 | AG83: 0 | AH83: 0 | AI83: =SUMIF('Custo Básico dos Produtos'!$B$7:$B$480,A83,'Custo Básico dos Produtos'!$K$7:$K$480) -> 0 | AL83: 0 | AM83: 0 | AN83: 0 | AO83: 0 | AP83: 0 | AQ83: 0
B84: =IF(Q84<>0,VLOOKUP(Q84,'Custo Básico dos Produtos'!$A$7:$J$480,3),"") ->  | D84: =SUMIF('Custo Básico dos Produtos'!$A$7:$A$480,Q84,'Custo Básico dos Produtos'!$J$7:$J$480) -> 0 | F84: 0 | G84: =IF(B84="",0,SUMIF('Cadastro de Produtos em Linha'!$B$7:$B$457,A84,'Cadastro de Produtos em Linha'!$D$7:$D$457)) -> 0 | I84: 0 | J84: 0 | K84: =IF('Aferi (Variáveis)'!$C$12="ALC",0,IF('Aferi (Variáveis)'!$C$12="ZFM",0,IF('Aferi (Variáveis)'!$C$12="Exportação",0,IF('Aferi (Variáveis)'!$C$12="Venda para Exportar",0,IF('Aferi (Variáveis)'!$C$12="AO",0,SUMIF('Custo Básico dos Produtos'!$A$7:$A$480,Q84,'Custo Básico dos Produtos'!$L$7:$L$480)))))) -> 0 | L84: 0 | M84: 0 | N84: 0 | O84: 0 | P84: =SUMIF('Cadastro de Produtos em Linha'!$A$6:$A$457,Q84,'Cadastro de Produtos em Linha'!$E$6:$E$457)*H84 -> 0 | Q84: =IF(TODAY()<$AK$26,IF(A84<>"",SUMIF('Custo Básico dos Produtos'!$B$7:$B$457,A84,'Custo Básico dos Produtos'!$A$7:$A$457),0),0) -> 0 | R84: =IF('Aferi (Variáveis)'!$C$12="Venda para Exportar",0,IF('Aferi (Variáveis)'!$C$12="ALC",0,IF('Aferi (Variáveis)'!$C$12="ZFM",0,IF('Aferi (Variáveis)'!$C$12="Exportação",0,IF('Aferi (Variáveis)'!$C$12="AO",0,E84/(100+(0*'Aferi (Variáveis)'!$K$12/100))*100*K84%/100*'Aferi (Variáveis)'!$K$12))))) -> 0 | S84: 0 | T84: =(E84*'Aferi (Variáveis)'!$K$12/100) -> 0 | U84: 0 | V84: =IF('Aferi (Variáveis)'!$F$20="Venda para Exportar",0,IF('Aferi (Variáveis)'!$F$20="ALC",0,IF('Aferi (Variáveis)'!$F$20="ZFM",0,IF('Aferi (Variáveis)'!$F$20="Exportação",0,IF('Aferi (Variáveis)'!$F$20="AO",7*T84/100,T84*'Aferi (Variáveis)'!$F$20/100))))) -> 0 | W84: 0 | X84: =IF('Aferi (Variáveis)'!$C$12="ZFM",0,IF('Aferi (Variáveis)'!$C$12="Exportação",0,3*T84/100)) -> 0 | Y84: =IF('Aferi (Variáveis)'!$C$12="ZFM",0,IF('Aferi (Variáveis)'!$C$12="Exportação",0,0.65*T84/100)) -> 0 | Z84: 0 | AA84: 0 | AB84: 0 | AC84: 0 | AD84: 0 | AE84: 0 | AF84: 0 | AG84: 0 | AH84: 0 | AI84: =SUMIF('Custo Básico dos Produtos'!$B$7:$B$480,A84,'Custo Básico dos Produtos'!$K$7:$K$480) -> 0 | AL84: 0 | AM84: 0 | AN84: 0 | AO84: 0 | AP84: 0 | AQ84: 0
B85: =IF(Q85<>0,VLOOKUP(Q85,'Custo Básico dos Produtos'!$A$7:$J$480,3),"") ->  | D85: =SUMIF('Custo Básico dos Produtos'!$A$7:$A$480,Q85,'Custo Básico dos Produtos'!$J$7:$J$480) -> 0 | F85: 0 | G85: =IF(B85="",0,SUMIF('Cadastro de Produtos em Linha'!$B$7:$B$457,A85,'Cadastro de Produtos em Linha'!$D$7:$D$457)) -> 0 | I85: 0 | J85: 0 | K85: =IF('Aferi (Variáveis)'!$C$12="ALC",0,IF('Aferi (Variáveis)'!$C$12="ZFM",0,IF('Aferi (Variáveis)'!$C$12="Exportação",0,IF('Aferi (Variáveis)'!$C$12="Venda para Exportar",0,IF('Aferi (Variáveis)'!$C$12="AO",0,SUMIF('Custo Básico dos Produtos'!$A$7:$A$480,Q85,'Custo Básico dos Produtos'!$L$7:$L$480)))))) -> 0 | L85: 0 | M85: 0 | N85: 0 | O85: 0 | P85: =SUMIF('Cadastro de Produtos em Linha'!$A$6:$A$457,Q85,'Cadastro de Produtos em Linha'!$E$6:$E$457)*H85 -> 0 | Q85: =IF(TODAY()<$AK$26,IF(A85<>"",SUMIF('Custo Básico dos Produtos'!$B$7:$B$457,A85,'Custo Básico dos Produtos'!$A$7:$A$457),0),0) -> 0 | R85: =IF('Aferi (Variáveis)'!$C$12="Venda para Exportar",0,IF('Aferi (Variáveis)'!$C$12="ALC",0,IF('Aferi (Variáveis)'!$C$12="ZFM",0,IF('Aferi (Variáveis)'!$C$12="Exportação",0,IF('Aferi (Variáveis)'!$C$12="AO",0,E85/(100+(0*'Aferi (Variáveis)'!$K$12/100))*100*K85%/100*'Aferi (Variáveis)'!$K$12))))) -> 0 | S85: 0 | T85: =(E85*'Aferi (Variáveis)'!$K$12/100) -> 0 | U85: 0 | V85: =IF('Aferi (Variáveis)'!$F$20="Venda para Exportar",0,IF('Aferi (Variáveis)'!$F$20="ALC",0,IF('Aferi (Variáveis)'!$F$20="ZFM",0,IF('Aferi (Variáveis)'!$F$20="Exportação",0,IF('Aferi (Variáveis)'!$F$20="AO",7*T85/100,T85*'Aferi (Variáveis)'!$F$20/100))))) -> 0 | W85: 0 | X85: =IF('Aferi (Variáveis)'!$C$12="ZFM",0,IF('Aferi (Variáveis)'!$C$12="Exportação",0,3*T85/100)) -> 0 | Y85: =IF('Aferi (Variáveis)'!$C$12="ZFM",0,IF('Aferi (Variáveis)'!$C$12="Exportação",0,0.65*T85/100)) -> 0 | Z85: 0 | AA85: 0 | AB85: 0 | AC85: 0 | AD85: 0 | AE85: 0 | AF85: 0 | AG85: 0 | AH85: 0 | AI85: =SUMIF('Custo Básico dos Produtos'!$B$7:$B$480,A85,'Custo Básico dos Produtos'!$K$7:$K$480) -> 0 | AL85: 0 | AM85: 0 | AN85: 0 | AO85: 0 | AP85: 0 | AQ85: 0
B86: =IF(Q86<>0,VLOOKUP(Q86,'Custo Básico dos Produtos'!$A$7:$J$480,3),"") ->  | D86: =SUMIF('Custo Básico dos Produtos'!$A$7:$A$480,Q86,'Custo Básico dos Produtos'!$J$7:$J$480) -> 0 | F86: 0 | G86: =IF(B86="",0,SUMIF('Cadastro de Produtos em Linha'!$B$7:$B$457,A86,'Cadastro de Produtos em Linha'!$D$7:$D$457)) -> 0 | I86: 0 | J86: 0 | K86: =IF('Aferi (Variáveis)'!$C$12="ALC",0,IF('Aferi (Variáveis)'!$C$12="ZFM",0,IF('Aferi (Variáveis)'!$C$12="Exportação",0,IF('Aferi (Variáveis)'!$C$12="Venda para Exportar",0,IF('Aferi (Variáveis)'!$C$12="AO",0,SUMIF('Custo Básico dos Produtos'!$A$7:$A$480,Q86,'Custo Básico dos Produtos'!$L$7:$L$480)))))) -> 0 | L86: 0 | M86: 0 | N86: 0 | O86: 0 | P86: =SUMIF('Cadastro de Produtos em Linha'!$A$6:$A$457,Q86,'Cadastro de Produtos em Linha'!$E$6:$E$457)*H86 -> 0 | Q86: =IF(TODAY()<$AK$26,IF(A86<>"",SUMIF('Custo Básico dos Produtos'!$B$7:$B$457,A86,'Custo Básico dos Produtos'!$A$7:$A$457),0),0) -> 0 | R86: =IF('Aferi (Variáveis)'!$C$12="Venda para Exportar",0,IF('Aferi (Variáveis)'!$C$12="ALC",0,IF('Aferi (Variáveis)'!$C$12="ZFM",0,IF('Aferi (Variáveis)'!$C$12="Exportação",0,IF('Aferi (Variáveis)'!$C$12="AO",0,E86/(100+(0*'Aferi (Variáveis)'!$K$12/100))*100*K86%/100*'Aferi (Variáveis)'!$K$12))))) -> 0 | S86: 0 | T86: =(E86*'Aferi (Variáveis)'!$K$12/100) -> 0 | U86: 0 | V86: =IF('Aferi (Variáveis)'!$F$20="Venda para Exportar",0,IF('Aferi (Variáveis)'!$F$20="ALC",0,IF('Aferi (Variáveis)'!$F$20="ZFM",0,IF('Aferi (Variáveis)'!$F$20="Exportação",0,IF('Aferi (Variáveis)'!$F$20="AO",7*T86/100,T86*'Aferi (Variáveis)'!$F$20/100))))) -> 0 | W86: 0 | X86: =IF('Aferi (Variáveis)'!$C$12="ZFM",0,IF('Aferi (Variáveis)'!$C$12="Exportação",0,3*T86/100)) -> 0 | Y86: =IF('Aferi (Variáveis)'!$C$12="ZFM",0,IF('Aferi (Variáveis)'!$C$12="Exportação",0,0.65*T86/100)) -> 0 | Z86: 0 | AA86: 0 | AB86: 0 | AC86: 0 | AD86: 0 | AE86: 0 | AF86: 0 | AG86: 0 | AH86: 0 | AI86: =SUMIF('Custo Básico dos Produtos'!$B$7:$B$480,A86,'Custo Básico dos Produtos'!$K$7:$K$480) -> 0 | AL86: 0 | AM86: 0 | AN86: 0 | AO86: 0 | AP86: 0 | AQ86: 0
B87: =IF(Q87<>0,VLOOKUP(Q87,'Custo Básico dos Produtos'!$A$7:$J$480,3),"") ->  | D87: =SUMIF('Custo Básico dos Produtos'!$A$7:$A$480,Q87,'Custo Básico dos Produtos'!$J$7:$J$480) -> 0 | F87: 0 | G87: =IF(B87="",0,SUMIF('Cadastro de Produtos em Linha'!$B$7:$B$457,A87,'Cadastro de Produtos em Linha'!$D$7:$D$457)) -> 0 | I87: 0 | J87: 0 | K87: =IF('Aferi (Variáveis)'!$C$12="ALC",0,IF('Aferi (Variáveis)'!$C$12="ZFM",0,IF('Aferi (Variáveis)'!$C$12="Exportação",0,IF('Aferi (Variáveis)'!$C$12="Venda para Exportar",0,IF('Aferi (Variáveis)'!$C$12="AO",0,SUMIF('Custo Básico dos Produtos'!$A$7:$A$480,Q87,'Custo Básico dos Produtos'!$L$7:$L$480)))))) -> 0 | L87: 0 | M87: 0 | N87: 0 | O87: 0 | P87: =SUMIF('Cadastro de Produtos em Linha'!$A$6:$A$457,Q87,'Cadastro de Produtos em Linha'!$E$6:$E$457)*H87 -> 0 | Q87: =IF(TODAY()<$AK$26,IF(A87<>"",SUMIF('Custo Básico dos Produtos'!$B$7:$B$457,A87,'Custo Básico dos Produtos'!$A$7:$A$457),0),0) -> 0 | R87: =IF('Aferi (Variáveis)'!$C$12="Venda para Exportar",0,IF('Aferi (Variáveis)'!$C$12="ALC",0,IF('Aferi (Variáveis)'!$C$12="ZFM",0,IF('Aferi (Variáveis)'!$C$12="Exportação",0,IF('Aferi (Variáveis)'!$C$12="AO",0,E87/(100+(0*'Aferi (Variáveis)'!$K$12/100))*100*K87%/100*'Aferi (Variáveis)'!$K$12))))) -> 0 | S87: 0 | T87: =(E87*'Aferi (Variáveis)'!$K$12/100) -> 0 | U87: 0 | V87: =IF('Aferi (Variáveis)'!$F$20="Venda para Exportar",0,IF('Aferi (Variáveis)'!$F$20="ALC",0,IF('Aferi (Variáveis)'!$F$20="ZFM",0,IF('Aferi (Variáveis)'!$F$20="Exportação",0,IF('Aferi (Variáveis)'!$F$20="AO",7*T87/100,T87*'Aferi (Variáveis)'!$F$20/100))))) -> 0 | W87: 0 | X87: =IF('Aferi (Variáveis)'!$C$12="ZFM",0,IF('Aferi (Variáveis)'!$C$12="Exportação",0,3*T87/100)) -> 0 | Y87: =IF('Aferi (Variáveis)'!$C$12="ZFM",0,IF('Aferi (Variáveis)'!$C$12="Exportação",0,0.65*T87/100)) -> 0 | Z87: 0 | AA87: 0 | AB87: 0 | AC87: 0 | AD87: 0 | AE87: 0 | AF87: 0 | AG87: 0 | AH87: 0 | AI87: =SUMIF('Custo Básico dos Produtos'!$B$7:$B$480,A87,'Custo Básico dos Produtos'!$K$7:$K$480) -> 0 | AL87: 0 | AM87: 0 | AN87: 0 | AO87: 0 | AP87: 0 | AQ87: 0
B88: =IF(Q88<>0,VLOOKUP(Q88,'Custo Básico dos Produtos'!$A$7:$J$480,3),"") ->  | D88: =SUMIF('Custo Básico dos Produtos'!$A$7:$A$480,Q88,'Custo Básico dos Produtos'!$J$7:$J$480) -> 0 | F88: 0 | G88: =IF(B88="",0,SUMIF('Cadastro de Produtos em Linha'!$B$7:$B$457,A88,'Cadastro de Produtos em Linha'!$D$7:$D$457)) -> 0 | I88: 0 | J88: 0 | K88: =IF('Aferi (Variáveis)'!$C$12="ALC",0,IF('Aferi (Variáveis)'!$C$12="ZFM",0,IF('Aferi (Variáveis)'!$C$12="Exportação",0,IF('Aferi (Variáveis)'!$C$12="Venda para Exportar",0,IF('Aferi (Variáveis)'!$C$12="AO",0,SUMIF('Custo Básico dos Produtos'!$A$7:$A$480,Q88,'Custo Básico dos Produtos'!$L$7:$L$480)))))) -> 0 | L88: 0 | M88: 0 | N88: 0 | O88: 0 | P88: =SUMIF('Cadastro de Produtos em Linha'!$A$6:$A$457,Q88,'Cadastro de Produtos em Linha'!$E$6:$E$457)*H88 -> 0 | Q88: =IF(TODAY()<$AK$26,IF(A88<>"",SUMIF('Custo Básico dos Produtos'!$B$7:$B$457,A88,'Custo Básico dos Produtos'!$A$7:$A$457),0),0) -> 0 | R88: =IF('Aferi (Variáveis)'!$C$12="Venda para Exportar",0,IF('Aferi (Variáveis)'!$C$12="ALC",0,IF('Aferi (Variáveis)'!$C$12="ZFM",0,IF('Aferi (Variáveis)'!$C$12="Exportação",0,IF('Aferi (Variáveis)'!$C$12="AO",0,E88/(100+(0*'Aferi (Variáveis)'!$K$12/100))*100*K88%/100*'Aferi (Variáveis)'!$K$12))))) -> 0 | S88: 0 | T88: =(E88*'Aferi (Variáveis)'!$K$12/100) -> 0 | U88: 0 | V88: =IF('Aferi (Variáveis)'!$F$20="Venda para Exportar",0,IF('Aferi (Variáveis)'!$F$20="ALC",0,IF('Aferi (Variáveis)'!$F$20="ZFM",0,IF('Aferi (Variáveis)'!$F$20="Exportação",0,IF('Aferi (Variáveis)'!$F$20="AO",7*T88/100,T88*'Aferi (Variáveis)'!$F$20/100))))) -> 0 | W88: 0 | X88: =IF('Aferi (Variáveis)'!$C$12="ZFM",0,IF('Aferi (Variáveis)'!$C$12="Exportação",0,3*T88/100)) -> 0 | Y88: =IF('Aferi (Variáveis)'!$C$12="ZFM",0,IF('Aferi (Variáveis)'!$C$12="Exportação",0,0.65*T88/100)) -> 0 | Z88: 0 | AA88: 0 | AB88: 0 | AC88: 0 | AD88: 0 | AE88: 0 | AF88: 0 | AG88: 0 | AH88: 0 | AI88: =SUMIF('Custo Básico dos Produtos'!$B$7:$B$480,A88,'Custo Básico dos Produtos'!$K$7:$K$480) -> 0 | AL88: 0 | AM88: 0 | AN88: 0 | AO88: 0 | AP88: 0 | AQ88: 0
B89: =IF(Q89<>0,VLOOKUP(Q89,'Custo Básico dos Produtos'!$A$7:$J$480,3),"") ->  | D89: =SUMIF('Custo Básico dos Produtos'!$A$7:$A$480,Q89,'Custo Básico dos Produtos'!$J$7:$J$480) -> 0 | F89: 0 | G89: =IF(B89="",0,SUMIF('Cadastro de Produtos em Linha'!$B$7:$B$457,A89,'Cadastro de Produtos em Linha'!$D$7:$D$457)) -> 0 | I89: 0 | J89: 0 | K89: =IF('Aferi (Variáveis)'!$C$12="ALC",0,IF('Aferi (Variáveis)'!$C$12="ZFM",0,IF('Aferi (Variáveis)'!$C$12="Exportação",0,IF('Aferi (Variáveis)'!$C$12="Venda para Exportar",0,IF('Aferi (Variáveis)'!$C$12="AO",0,SUMIF('Custo Básico dos Produtos'!$A$7:$A$480,Q89,'Custo Básico dos Produtos'!$L$7:$L$480)))))) -> 0 | L89: 0 | M89: 0 | N89: 0 | O89: 0 | P89: =SUMIF('Cadastro de Produtos em Linha'!$A$6:$A$457,Q89,'Cadastro de Produtos em Linha'!$E$6:$E$457)*H89 -> 0 | Q89: =IF(TODAY()<$AK$26,IF(A89<>"",SUMIF('Custo Básico dos Produtos'!$B$7:$B$457,A89,'Custo Básico dos Produtos'!$A$7:$A$457),0),0) -> 0 | R89: =IF('Aferi (Variáveis)'!$C$12="Venda para Exportar",0,IF('Aferi (Variáveis)'!$C$12="ALC",0,IF('Aferi (Variáveis)'!$C$12="ZFM",0,IF('Aferi (Variáveis)'!$C$12="Exportação",0,IF('Aferi (Variáveis)'!$C$12="AO",0,E89/(100+(0*'Aferi (Variáveis)'!$K$12/100))*100*K89%/100*'Aferi (Variáveis)'!$K$12))))) -> 0 | S89: 0 | T89: =(E89*'Aferi (Variáveis)'!$K$12/100) -> 0 | U89: 0 | V89: =IF('Aferi (Variáveis)'!$F$20="Venda para Exportar",0,IF('Aferi (Variáveis)'!$F$20="ALC",0,IF('Aferi (Variáveis)'!$F$20="ZFM",0,IF('Aferi (Variáveis)'!$F$20="Exportação",0,IF('Aferi (Variáveis)'!$F$20="AO",7*T89/100,T89*'Aferi (Variáveis)'!$F$20/100))))) -> 0 | W89: 0 | X89: =IF('Aferi (Variáveis)'!$C$12="ZFM",0,IF('Aferi (Variáveis)'!$C$12="Exportação",0,3*T89/100)) -> 0 | Y89: =IF('Aferi (Variáveis)'!$C$12="ZFM",0,IF('Aferi (Variáveis)'!$C$12="Exportação",0,0.65*T89/100)) -> 0 | Z89: 0 | AA89: 0 | AB89: 0 | AC89: 0 | AD89: 0 | AE89: 0 | AF89: 0 | AG89: 0 | AH89: 0 | AI89: =SUMIF('Custo Básico dos Produtos'!$B$7:$B$480,A89,'Custo Básico dos Produtos'!$K$7:$K$480) -> 0 | AL89: 0 | AM89: 0 | AN89: 0 | AO89: 0 | AP89: 0 | AQ89: 0
B90: =IF(Q90<>0,VLOOKUP(Q90,'Custo Básico dos Produtos'!$A$7:$J$480,3),"") ->  | D90: =SUMIF('Custo Básico dos Produtos'!$A$7:$A$480,Q90,'Custo Básico dos Produtos'!$J$7:$J$480) -> 0 | F90: 0 | G90: =IF(B90="",0,SUMIF('Cadastro de Produtos em Linha'!$B$7:$B$457,A90,'Cadastro de Produtos em Linha'!$D$7:$D$457)) -> 0 | I90: =IF(F90="",0,IF(F90>=AI90,G90*H90,0)) -> 0 | J90: =IF(F90="",0,I90*E90) -> 0 | K90: =IF('Aferi (Variáveis)'!$C$12="ALC",0,IF('Aferi (Variáveis)'!$C$12="ZFM",0,IF('Aferi (Variáveis)'!$C$12="Exportação",0,IF('Aferi (Variáveis)'!$C$12="Venda para Exportar",0,IF('Aferi (Variáveis)'!$C$12="AO",0,SUMIF('Custo Básico dos Produtos'!$A$7:$A$480,Q90,'Custo Básico dos Produtos'!$L$7:$L$480)))))) -> 0 | L90: 0 | M90: 0 | N90: 0 | O90: =IF(I90>0,AG90*I90,0) -> 0 | P90: =SUMIF('Cadastro de Produtos em Linha'!$A$6:$A$457,Q90,'Cadastro de Produtos em Linha'!$E$6:$E$457)*H90 -> 0 | Q90: =IF(TODAY()<$AK$26,IF(A90<>"",SUMIF('Custo Básico dos Produtos'!$B$7:$B$457,A90,'Custo Básico dos Produtos'!$A$7:$A$457),0),0) -> 0 | R90: =IF('Aferi (Variáveis)'!$C$12="Venda para Exportar",0,IF('Aferi (Variáveis)'!$C$12="ALC",0,IF('Aferi (Variáveis)'!$C$12="ZFM",0,IF('Aferi (Variáveis)'!$C$12="Exportação",0,IF('Aferi (Variáveis)'!$C$12="AO",0,E90/(100+(0*'Aferi (Variáveis)'!$K$12/100))*100*K90%/100*'Aferi (Variáveis)'!$K$12))))) -> 0 | S90: =I90*R90 -> 0 | T90: =(E90*'Aferi (Variáveis)'!$K$12/100) -> 0 | U90: =IF(I90>0,T90*I90,0) -> 0 | V90: =IF('Aferi (Variáveis)'!$F$20="Venda para Exportar",0,IF('Aferi (Variáveis)'!$F$20="ALC",0,IF('Aferi (Variáveis)'!$F$20="ZFM",0,IF('Aferi (Variáveis)'!$F$20="Exportação",0,IF('Aferi (Variáveis)'!$F$20="AO",7*T90/100,T90*'Aferi (Variáveis)'!$F$20/100))))) -> 0 | W90: =T90*(W$22/100) -> 0 | X90: =IF('Aferi (Variáveis)'!$C$12="ZFM",0,IF('Aferi (Variáveis)'!$C$12="Exportação",0,3*T90/100)) -> 0 | Y90: =IF('Aferi (Variáveis)'!$C$12="ZFM",0,IF('Aferi (Variáveis)'!$C$12="Exportação",0,0.65*T90/100)) -> 0 | Z90: =T90*(Z$22/100) -> 0 | AA90: 0 | AB90: 0 | AC90: 0 | AD90: 0 | AE90: 0 | AF90: 0 | AG90: =E90-AF90-D90 -> 0 | AH90: =IF(AG90<>0,AG90/(E90)*100,0) -> 0 | AI90: =SUMIF('Custo Básico dos Produtos'!$B$7:$B$480,A90,'Custo Básico dos Produtos'!$K$7:$K$480) -> 0 | AL90: 0 | AM90: 0 | AN90: 0 | AO90: 0 | AP90: 0 | AQ90: 0
B91: =IF(Q91<>0,VLOOKUP(Q91,'Custo Básico dos Produtos'!$A$7:$J$480,3),"") ->  | D91: =SUMIF('Custo Básico dos Produtos'!$A$7:$A$480,Q91,'Custo Básico dos Produtos'!$J$7:$J$480) -> 0 | F91: 0 | G91: =IF(B91="",0,SUMIF('Cadastro de Produtos em Linha'!$B$7:$B$457,A91,'Cadastro de Produtos em Linha'!$D$7:$D$457)) -> 0 | I91: 0 | J91: 0 | K91: =IF('Aferi (Variáveis)'!$C$12="ALC",0,IF('Aferi (Variáveis)'!$C$12="ZFM",0,IF('Aferi (Variáveis)'!$C$12="Exportação",0,IF('Aferi (Variáveis)'!$C$12="Venda para Exportar",0,IF('Aferi (Variáveis)'!$C$12="AO",0,SUMIF('Custo Básico dos Produtos'!$A$7:$A$480,Q91,'Custo Básico dos Produtos'!$L$7:$L$480)))))) -> 0 | L91: =J91+M91 -> 0 | M91: =S91 -> 0 | N91: =J91+M91 -> 0 | O91: 0 | P91: =SUMIF('Cadastro de Produtos em Linha'!$A$6:$A$457,Q91,'Cadastro de Produtos em Linha'!$E$6:$E$457)*H91 -> 0 | Q91: =IF(TODAY()<$AK$26,IF(A91<>"",SUMIF('Custo Básico dos Produtos'!$B$7:$B$457,A91,'Custo Básico dos Produtos'!$A$7:$A$457),0),0) -> 0 | R91: =IF('Aferi (Variáveis)'!$C$12="Venda para Exportar",0,IF('Aferi (Variáveis)'!$C$12="ALC",0,IF('Aferi (Variáveis)'!$C$12="ZFM",0,IF('Aferi (Variáveis)'!$C$12="Exportação",0,IF('Aferi (Variáveis)'!$C$12="AO",0,E91/(100+(0*'Aferi (Variáveis)'!$K$12/100))*100*K91%/100*'Aferi (Variáveis)'!$K$12))))) -> 0 | S91: 0 | T91: =(E91*'Aferi (Variáveis)'!$K$12/100) -> 0 | U91: 0 | V91: =IF('Aferi (Variáveis)'!$F$20="Venda para Exportar",0,IF('Aferi (Variáveis)'!$F$20="ALC",0,IF('Aferi (Variáveis)'!$F$20="ZFM",0,IF('Aferi (Variáveis)'!$F$20="Exportação",0,IF('Aferi (Variáveis)'!$F$20="AO",7*T91/100,T91*'Aferi (Variáveis)'!$F$20/100))))) -> 0 | W91: 0 | X91: =IF('Aferi (Variáveis)'!$C$12="ZFM",0,IF('Aferi (Variáveis)'!$C$12="Exportação",0,3*T91/100)) -> 0 | Y91: =IF('Aferi (Variáveis)'!$C$12="ZFM",0,IF('Aferi (Variáveis)'!$C$12="Exportação",0,0.65*T91/100)) -> 0 | Z91: 0 | AA91: 0 | AB91: =E91*(AB$23/100) -> 0 | AC91: =IF(A91<>"",E91*(AC$23/100),0) -> 0 | AD91: =E91*($AD$23/100) -> 0 | AE91: =E91*(AE$23/100) -> 0 | AF91: =SUM(V91:AE91) -> 0 | AG91: 0 | AH91: 0 | AI91: =SUMIF('Custo Básico dos Produtos'!$B$7:$B$480,A91,'Custo Básico dos Produtos'!$K$7:$K$480) -> 0 | AL91: =D91 -> 0 | AM91: =AL91/(1-AM$24) -> 0 | AN91: =AM91*AM$22 -> 0 | AO91: =AM91*AM$23 -> 0 | AP91: =AM91-SUM(AN91:AO91)-AL91 -> 0 | AQ91: =IFERROR(AP91/AM91,0) -> 0
B92: =IF(Q92<>0,VLOOKUP(Q92,'Custo Básico dos Produtos'!$A$7:$J$480,3),"") ->  | D92: =SUMIF('Custo Básico dos Produtos'!$A$7:$A$480,Q92,'Custo Básico dos Produtos'!$J$7:$J$480) -> 0 | F92: =IF(A92="",0,IF(TODAY()<$AK$26,IF(E92>0,IF(H92>0,IF(AH92>=AI92,AH92,)/4),0))) -> 0 | G92: =IF(B92="",0,SUMIF('Cadastro de Produtos em Linha'!$B$7:$B$457,A92,'Cadastro de Produtos em Linha'!$D$7:$D$457)) -> 0 | I92: 0 | J92: 0 | K92: =IF('Aferi (Variáveis)'!$C$12="ALC",0,IF('Aferi (Variáveis)'!$C$12="ZFM",0,IF('Aferi (Variáveis)'!$C$12="Exportação",0,IF('Aferi (Variáveis)'!$C$12="Venda para Exportar",0,IF('Aferi (Variáveis)'!$C$12="AO",0,SUMIF('Custo Básico dos Produtos'!$A$7:$A$480,Q92,'Custo Básico dos Produtos'!$L$7:$L$480)))))) -> 0 | L92: 0 | M92: 0 | N92: 0 | O92: 0 | P92: =SUMIF('Cadastro de Produtos em Linha'!$A$6:$A$457,Q92,'Cadastro de Produtos em Linha'!$E$6:$E$457)*H92 -> 0 | Q92: =IF(TODAY()<$AK$26,IF(A92<>"",SUMIF('Custo Básico dos Produtos'!$B$7:$B$457,A92,'Custo Básico dos Produtos'!$A$7:$A$457),0),0) -> 0 | R92: =IF('Aferi (Variáveis)'!$C$12="Venda para Exportar",0,IF('Aferi (Variáveis)'!$C$12="ALC",0,IF('Aferi (Variáveis)'!$C$12="ZFM",0,IF('Aferi (Variáveis)'!$C$12="Exportação",0,IF('Aferi (Variáveis)'!$C$12="AO",0,E92/(100+(0*'Aferi (Variáveis)'!$K$12/100))*100*K92%/100*'Aferi (Variáveis)'!$K$12))))) -> 0 | S92: 0 | T92: =(E92*'Aferi (Variáveis)'!$K$12/100) -> 0 | U92: 0 | V92: =IF('Aferi (Variáveis)'!$F$20="Venda para Exportar",0,IF('Aferi (Variáveis)'!$F$20="ALC",0,IF('Aferi (Variáveis)'!$F$20="ZFM",0,IF('Aferi (Variáveis)'!$F$20="Exportação",0,IF('Aferi (Variáveis)'!$F$20="AO",7*T92/100,T92*'Aferi (Variáveis)'!$F$20/100))))) -> 0 | W92: 0 | X92: =IF('Aferi (Variáveis)'!$C$12="ZFM",0,IF('Aferi (Variáveis)'!$C$12="Exportação",0,3*T92/100)) -> 0 | Y92: =IF('Aferi (Variáveis)'!$C$12="ZFM",0,IF('Aferi (Variáveis)'!$C$12="Exportação",0,0.65*T92/100)) -> 0 | Z92: 0 | AA92: =E92*(AA$23/100) -> 0 | AB92: 0 | AC92: 0 | AD92: 0 | AE92: 0 | AF92: 0 | AG92: 0 | AH92: 0 | AI92: =SUMIF('Custo Básico dos Produtos'!$B$7:$B$480,A92,'Custo Básico dos Produtos'!$K$7:$K$480) -> 0 | AL92: 0 | AM92: 0 | AN92: 0 | AO92: 0 | AP92: 0 | AQ92: 0
B93: =IF(Q93<>0,VLOOKUP(Q93,'Custo Básico dos Produtos'!$A$7:$J$480,3),"") ->  | D93: =SUMIF('Custo Básico dos Produtos'!$A$7:$A$480,Q93,'Custo Básico dos Produtos'!$J$7:$J$480) -> 0 | F93: 0 | G93: =IF(B93="",0,SUMIF('Cadastro de Produtos em Linha'!$B$7:$B$457,A93,'Cadastro de Produtos em Linha'!$D$7:$D$457)) -> 0 | I93: 0 | J93: 0 | K93: =IF('Aferi (Variáveis)'!$C$12="ALC",0,IF('Aferi (Variáveis)'!$C$12="ZFM",0,IF('Aferi (Variáveis)'!$C$12="Exportação",0,IF('Aferi (Variáveis)'!$C$12="Venda para Exportar",0,IF('Aferi (Variáveis)'!$C$12="AO",0,SUMIF('Custo Básico dos Produtos'!$A$7:$A$480,Q93,'Custo Básico dos Produtos'!$L$7:$L$480)))))) -> 0 | L93: 0 | M93: 0 | N93: 0 | O93: 0 | P93: =SUMIF('Cadastro de Produtos em Linha'!$A$6:$A$457,Q93,'Cadastro de Produtos em Linha'!$E$6:$E$457)*H93 -> 0 | Q93: =IF(TODAY()<$AK$26,IF(A93<>"",SUMIF('Custo Básico dos Produtos'!$B$7:$B$457,A93,'Custo Básico dos Produtos'!$A$7:$A$457),0),0) -> 0 | R93: =IF('Aferi (Variáveis)'!$C$12="Venda para Exportar",0,IF('Aferi (Variáveis)'!$C$12="ALC",0,IF('Aferi (Variáveis)'!$C$12="ZFM",0,IF('Aferi (Variáveis)'!$C$12="Exportação",0,IF('Aferi (Variáveis)'!$C$12="AO",0,E93/(100+(0*'Aferi (Variáveis)'!$K$12/100))*100*K93%/100*'Aferi (Variáveis)'!$K$12))))) -> 0 | S93: 0 | T93: =(E93*'Aferi (Variáveis)'!$K$12/100) -> 0 | U93: 0 | V93: =IF('Aferi (Variáveis)'!$F$20="Venda para Exportar",0,IF('Aferi (Variáveis)'!$F$20="ALC",0,IF('Aferi (Variáveis)'!$F$20="ZFM",0,IF('Aferi (Variáveis)'!$F$20="Exportação",0,IF('Aferi (Variáveis)'!$F$20="AO",7*T93/100,T93*'Aferi (Variáveis)'!$F$20/100))))) -> 0 | W93: 0 | X93: =IF('Aferi (Variáveis)'!$C$12="ZFM",0,IF('Aferi (Variáveis)'!$C$12="Exportação",0,3*T93/100)) -> 0 | Y93: =IF('Aferi (Variáveis)'!$C$12="ZFM",0,IF('Aferi (Variáveis)'!$C$12="Exportação",0,0.65*T93/100)) -> 0 | Z93: 0 | AA93: 0 | AB93: 0 | AC93: 0 | AD93: 0 | AE93: 0 | AF93: 0 | AG93: 0 | AH93: 0 | AI93: =SUMIF('Custo Básico dos Produtos'!$B$7:$B$480,A93,'Custo Básico dos Produtos'!$K$7:$K$480) -> 0 | AL93: 0 | AM93: 0 | AN93: 0 | AO93: 0 | AP93: 0 | AQ93: 0
B94: =IF(Q94<>0,VLOOKUP(Q94,'Custo Básico dos Produtos'!$A$7:$J$480,3),"") ->  | D94: =SUMIF('Custo Básico dos Produtos'!$A$7:$A$480,Q94,'Custo Básico dos Produtos'!$J$7:$J$480) -> 0 | F94: 0 | G94: =IF(B94="",0,SUMIF('Cadastro de Produtos em Linha'!$B$7:$B$457,A94,'Cadastro de Produtos em Linha'!$D$7:$D$457)) -> 0 | I94: 0 | J94: 0 | K94: =IF('Aferi (Variáveis)'!$C$12="ALC",0,IF('Aferi (Variáveis)'!$C$12="ZFM",0,IF('Aferi (Variáveis)'!$C$12="Exportação",0,IF('Aferi (Variáveis)'!$C$12="Venda para Exportar",0,IF('Aferi (Variáveis)'!$C$12="AO",0,SUMIF('Custo Básico dos Produtos'!$A$7:$A$480,Q94,'Custo Básico dos Produtos'!$L$7:$L$480)))))) -> 0 | L94: 0 | M94: 0 | N94: 0 | O94: 0 | P94: =SUMIF('Cadastro de Produtos em Linha'!$A$6:$A$457,Q94,'Cadastro de Produtos em Linha'!$E$6:$E$457)*H94 -> 0 | Q94: =IF(TODAY()<$AK$26,IF(A94<>"",SUMIF('Custo Básico dos Produtos'!$B$7:$B$457,A94,'Custo Básico dos Produtos'!$A$7:$A$457),0),0) -> 0 | R94: =IF('Aferi (Variáveis)'!$C$12="Venda para Exportar",0,IF('Aferi (Variáveis)'!$C$12="ALC",0,IF('Aferi (Variáveis)'!$C$12="ZFM",0,IF('Aferi (Variáveis)'!$C$12="Exportação",0,IF('Aferi (Variáveis)'!$C$12="AO",0,E94/(100+(0*'Aferi (Variáveis)'!$K$12/100))*100*K94%/100*'Aferi (Variáveis)'!$K$12))))) -> 0 | S94: 0 | T94: =(E94*'Aferi (Variáveis)'!$K$12/100) -> 0 | U94: 0 | V94: =IF('Aferi (Variáveis)'!$F$20="Venda para Exportar",0,IF('Aferi (Variáveis)'!$F$20="ALC",0,IF('Aferi (Variáveis)'!$F$20="ZFM",0,IF('Aferi (Variáveis)'!$F$20="Exportação",0,IF('Aferi (Variáveis)'!$F$20="AO",7*T94/100,T94*'Aferi (Variáveis)'!$F$20/100))))) -> 0 | W94: 0 | X94: =IF('Aferi (Variáveis)'!$C$12="ZFM",0,IF('Aferi (Variáveis)'!$C$12="Exportação",0,3*T94/100)) -> 0 | Y94: =IF('Aferi (Variáveis)'!$C$12="ZFM",0,IF('Aferi (Variáveis)'!$C$12="Exportação",0,0.65*T94/100)) -> 0 | Z94: 0 | AA94: 0 | AB94: 0 | AC94: 0 | AD94: 0 | AE94: 0 | AF94: 0 | AG94: 0 | AH94: 0 | AI94: =SUMIF('Custo Básico dos Produtos'!$B$7:$B$480,A94,'Custo Básico dos Produtos'!$K$7:$K$480) -> 0 | AL94: 0 | AM94: 0 | AN94: 0 | AO94: 0 | AP94: 0 | AQ94: 0
B95: =IF(Q95<>0,VLOOKUP(Q95,'Custo Básico dos Produtos'!$A$7:$J$480,3),"") ->  | D95: =SUMIF('Custo Básico dos Produtos'!$A$7:$A$480,Q95,'Custo Básico dos Produtos'!$J$7:$J$480) -> 0 | F95: 0 | G95: =IF(B95="",0,SUMIF('Cadastro de Produtos em Linha'!$B$7:$B$457,A95,'Cadastro de Produtos em Linha'!$D$7:$D$457)) -> 0 | I95: 0 | J95: 0 | K95: =IF('Aferi (Variáveis)'!$C$12="ALC",0,IF('Aferi (Variáveis)'!$C$12="ZFM",0,IF('Aferi (Variáveis)'!$C$12="Exportação",0,IF('Aferi (Variáveis)'!$C$12="Venda para Exportar",0,IF('Aferi (Variáveis)'!$C$12="AO",0,SUMIF('Custo Básico dos Produtos'!$A$7:$A$480,Q95,'Custo Básico dos Produtos'!$L$7:$L$480)))))) -> 0 | L95: 0 | M95: 0 | N95: 0 | O95: 0 | P95: =SUMIF('Cadastro de Produtos em Linha'!$A$6:$A$457,Q95,'Cadastro de Produtos em Linha'!$E$6:$E$457)*H95 -> 0 | Q95: =IF(TODAY()<$AK$26,IF(A95<>"",SUMIF('Custo Básico dos Produtos'!$B$7:$B$457,A95,'Custo Básico dos Produtos'!$A$7:$A$457),0),0) -> 0 | R95: =IF('Aferi (Variáveis)'!$C$12="Venda para Exportar",0,IF('Aferi (Variáveis)'!$C$12="ALC",0,IF('Aferi (Variáveis)'!$C$12="ZFM",0,IF('Aferi (Variáveis)'!$C$12="Exportação",0,IF('Aferi (Variáveis)'!$C$12="AO",0,E95/(100+(0*'Aferi (Variáveis)'!$K$12/100))*100*K95%/100*'Aferi (Variáveis)'!$K$12))))) -> 0 | S95: 0 | T95: =(E95*'Aferi (Variáveis)'!$K$12/100) -> 0 | U95: 0 | V95: =IF('Aferi (Variáveis)'!$F$20="Venda para Exportar",0,IF('Aferi (Variáveis)'!$F$20="ALC",0,IF('Aferi (Variáveis)'!$F$20="ZFM",0,IF('Aferi (Variáveis)'!$F$20="Exportação",0,IF('Aferi (Variáveis)'!$F$20="AO",7*T95/100,T95*'Aferi (Variáveis)'!$F$20/100))))) -> 0 | W95: 0 | X95: =IF('Aferi (Variáveis)'!$C$12="ZFM",0,IF('Aferi (Variáveis)'!$C$12="Exportação",0,3*T95/100)) -> 0 | Y95: =IF('Aferi (Variáveis)'!$C$12="ZFM",0,IF('Aferi (Variáveis)'!$C$12="Exportação",0,0.65*T95/100)) -> 0 | Z95: 0 | AA95: 0 | AB95: 0 | AC95: 0 | AD95: 0 | AE95: 0 | AF95: 0 | AG95: 0 | AH95: 0 | AI95: =SUMIF('Custo Básico dos Produtos'!$B$7:$B$480,A95,'Custo Básico dos Produtos'!$K$7:$K$480) -> 0 | AL95: 0 | AM95: 0 | AN95: 0 | AO95: 0 | AP95: 0 | AQ95: 0
B96: =IF(Q96<>0,VLOOKUP(Q96,'Custo Básico dos Produtos'!$A$7:$J$480,3),"") ->  | D96: =SUMIF('Custo Básico dos Produtos'!$A$7:$A$480,Q96,'Custo Básico dos Produtos'!$J$7:$J$480) -> 0 | F96: 0 | G96: =IF(B96="",0,SUMIF('Cadastro de Produtos em Linha'!$B$7:$B$457,A96,'Cadastro de Produtos em Linha'!$D$7:$D$457)) -> 0 | I96: 0 | J96: 0 | K96: =IF('Aferi (Variáveis)'!$C$12="ALC",0,IF('Aferi (Variáveis)'!$C$12="ZFM",0,IF('Aferi (Variáveis)'!$C$12="Exportação",0,IF('Aferi (Variáveis)'!$C$12="Venda para Exportar",0,IF('Aferi (Variáveis)'!$C$12="AO",0,SUMIF('Custo Básico dos Produtos'!$A$7:$A$480,Q96,'Custo Básico dos Produtos'!$L$7:$L$480)))))) -> 0 | L96: 0 | M96: 0 | N96: 0 | O96: 0 | P96: =SUMIF('Cadastro de Produtos em Linha'!$A$6:$A$457,Q96,'Cadastro de Produtos em Linha'!$E$6:$E$457)*H96 -> 0 | Q96: =IF(TODAY()<$AK$26,IF(A96<>"",SUMIF('Custo Básico dos Produtos'!$B$7:$B$457,A96,'Custo Básico dos Produtos'!$A$7:$A$457),0),0) -> 0 | R96: =IF('Aferi (Variáveis)'!$C$12="Venda para Exportar",0,IF('Aferi (Variáveis)'!$C$12="ALC",0,IF('Aferi (Variáveis)'!$C$12="ZFM",0,IF('Aferi (Variáveis)'!$C$12="Exportação",0,IF('Aferi (Variáveis)'!$C$12="AO",0,E96/(100+(0*'Aferi (Variáveis)'!$K$12/100))*100*K96%/100*'Aferi (Variáveis)'!$K$12))))) -> 0 | S96: 0 | T96: =(E96*'Aferi (Variáveis)'!$K$12/100) -> 0 | U96: 0 | V96: =IF('Aferi (Variáveis)'!$F$20="Venda para Exportar",0,IF('Aferi (Variáveis)'!$F$20="ALC",0,IF('Aferi (Variáveis)'!$F$20="ZFM",0,IF('Aferi (Variáveis)'!$F$20="Exportação",0,IF('Aferi (Variáveis)'!$F$20="AO",7*T96/100,T96*'Aferi (Variáveis)'!$F$20/100))))) -> 0 | W96: 0 | X96: =IF('Aferi (Variáveis)'!$C$12="ZFM",0,IF('Aferi (Variáveis)'!$C$12="Exportação",0,3*T96/100)) -> 0 | Y96: =IF('Aferi (Variáveis)'!$C$12="ZFM",0,IF('Aferi (Variáveis)'!$C$12="Exportação",0,0.65*T96/100)) -> 0 | Z96: 0 | AA96: 0 | AB96: 0 | AC96: 0 | AD96: 0 | AE96: 0 | AF96: 0 | AG96: 0 | AH96: 0 | AI96: =SUMIF('Custo Básico dos Produtos'!$B$7:$B$480,A96,'Custo Básico dos Produtos'!$K$7:$K$480) -> 0 | AL96: 0 | AM96: 0 | AN96: 0 | AO96: 0 | AP96: 0 | AQ96: 0
B97: =IF(Q97<>0,VLOOKUP(Q97,'Custo Básico dos Produtos'!$A$7:$J$480,3),"") ->  | D97: =SUMIF('Custo Básico dos Produtos'!$A$7:$A$480,Q97,'Custo Básico dos Produtos'!$J$7:$J$480) -> 0 | F97: 0 | G97: =IF(B97="",0,SUMIF('Cadastro de Produtos em Linha'!$B$7:$B$457,A97,'Cadastro de Produtos em Linha'!$D$7:$D$457)) -> 0 | I97: 0 | J97: 0 | K97: =IF('Aferi (Variáveis)'!$C$12="ALC",0,IF('Aferi (Variáveis)'!$C$12="ZFM",0,IF('Aferi (Variáveis)'!$C$12="Exportação",0,IF('Aferi (Variáveis)'!$C$12="Venda para Exportar",0,IF('Aferi (Variáveis)'!$C$12="AO",0,SUMIF('Custo Básico dos Produtos'!$A$7:$A$480,Q97,'Custo Básico dos Produtos'!$L$7:$L$480)))))) -> 0 | L97: 0 | M97: 0 | N97: 0 | O97: 0 | P97: =SUMIF('Cadastro de Produtos em Linha'!$A$6:$A$457,Q97,'Cadastro de Produtos em Linha'!$E$6:$E$457)*H97 -> 0 | Q97: =IF(TODAY()<$AK$26,IF(A97<>"",SUMIF('Custo Básico dos Produtos'!$B$7:$B$457,A97,'Custo Básico dos Produtos'!$A$7:$A$457),0),0) -> 0 | R97: =IF('Aferi (Variáveis)'!$C$12="Venda para Exportar",0,IF('Aferi (Variáveis)'!$C$12="ALC",0,IF('Aferi (Variáveis)'!$C$12="ZFM",0,IF('Aferi (Variáveis)'!$C$12="Exportação",0,IF('Aferi (Variáveis)'!$C$12="AO",0,E97/(100+(0*'Aferi (Variáveis)'!$K$12/100))*100*K97%/100*'Aferi (Variáveis)'!$K$12))))) -> 0 | S97: 0 | T97: =(E97*'Aferi (Variáveis)'!$K$12/100) -> 0 | U97: 0 | V97: =IF('Aferi (Variáveis)'!$F$20="Venda para Exportar",0,IF('Aferi (Variáveis)'!$F$20="ALC",0,IF('Aferi (Variáveis)'!$F$20="ZFM",0,IF('Aferi (Variáveis)'!$F$20="Exportação",0,IF('Aferi (Variáveis)'!$F$20="AO",7*T97/100,T97*'Aferi (Variáveis)'!$F$20/100))))) -> 0 | W97: 0 | X97: =IF('Aferi (Variáveis)'!$C$12="ZFM",0,IF('Aferi (Variáveis)'!$C$12="Exportação",0,3*T97/100)) -> 0 | Y97: =IF('Aferi (Variáveis)'!$C$12="ZFM",0,IF('Aferi (Variáveis)'!$C$12="Exportação",0,0.65*T97/100)) -> 0 | Z97: 0 | AA97: 0 | AB97: 0 | AC97: 0 | AD97: 0 | AE97: 0 | AF97: 0 | AG97: 0 | AH97: 0 | AI97: =SUMIF('Custo Básico dos Produtos'!$B$7:$B$480,A97,'Custo Básico dos Produtos'!$K$7:$K$480) -> 0 | AL97: 0 | AM97: 0 | AN97: 0 | AO97: 0 | AP97: 0 | AQ97: 0
B98: =IF(Q98<>0,VLOOKUP(Q98,'Custo Básico dos Produtos'!$A$7:$J$480,3),"") ->  | D98: =SUMIF('Custo Básico dos Produtos'!$A$7:$A$480,Q98,'Custo Básico dos Produtos'!$J$7:$J$480) -> 0 | F98: 0 | G98: =IF(B98="",0,SUMIF('Cadastro de Produtos em Linha'!$B$7:$B$457,A98,'Cadastro de Produtos em Linha'!$D$7:$D$457)) -> 0 | I98: 0 | J98: 0 | K98: =IF('Aferi (Variáveis)'!$C$12="ALC",0,IF('Aferi (Variáveis)'!$C$12="ZFM",0,IF('Aferi (Variáveis)'!$C$12="Exportação",0,IF('Aferi (Variáveis)'!$C$12="Venda para Exportar",0,IF('Aferi (Variáveis)'!$C$12="AO",0,SUMIF('Custo Básico dos Produtos'!$A$7:$A$480,Q98,'Custo Básico dos Produtos'!$L$7:$L$480)))))) -> 0 | L98: 0 | M98: 0 | N98: 0 | O98: 0 | P98: =SUMIF('Cadastro de Produtos em Linha'!$A$6:$A$457,Q98,'Cadastro de Produtos em Linha'!$E$6:$E$457)*H98 -> 0 | Q98: =IF(TODAY()<$AK$26,IF(A98<>"",SUMIF('Custo Básico dos Produtos'!$B$7:$B$457,A98,'Custo Básico dos Produtos'!$A$7:$A$457),0),0) -> 0 | R98: =IF('Aferi (Variáveis)'!$C$12="Venda para Exportar",0,IF('Aferi (Variáveis)'!$C$12="ALC",0,IF('Aferi (Variáveis)'!$C$12="ZFM",0,IF('Aferi (Variáveis)'!$C$12="Exportação",0,IF('Aferi (Variáveis)'!$C$12="AO",0,E98/(100+(0*'Aferi (Variáveis)'!$K$12/100))*100*K98%/100*'Aferi (Variáveis)'!$K$12))))) -> 0 | S98: 0 | T98: =(E98*'Aferi (Variáveis)'!$K$12/100) -> 0 | U98: 0 | V98: =IF('Aferi (Variáveis)'!$F$20="Venda para Exportar",0,IF('Aferi (Variáveis)'!$F$20="ALC",0,IF('Aferi (Variáveis)'!$F$20="ZFM",0,IF('Aferi (Variáveis)'!$F$20="Exportação",0,IF('Aferi (Variáveis)'!$F$20="AO",7*T98/100,T98*'Aferi (Variáveis)'!$F$20/100))))) -> 0 | W98: 0 | X98: =IF('Aferi (Variáveis)'!$C$12="ZFM",0,IF('Aferi (Variáveis)'!$C$12="Exportação",0,3*T98/100)) -> 0 | Y98: =IF('Aferi (Variáveis)'!$C$12="ZFM",0,IF('Aferi (Variáveis)'!$C$12="Exportação",0,0.65*T98/100)) -> 0 | Z98: 0 | AA98: 0 | AB98: 0 | AC98: 0 | AD98: 0 | AE98: 0 | AF98: 0 | AG98: 0 | AH98: 0 | AI98: =SUMIF('Custo Básico dos Produtos'!$B$7:$B$480,A98,'Custo Básico dos Produtos'!$K$7:$K$480) -> 0 | AL98: 0 | AM98: 0 | AN98: 0 | AO98: 0 | AP98: 0 | AQ98: 0
B99: =IF(Q99<>0,VLOOKUP(Q99,'Custo Básico dos Produtos'!$A$7:$J$480,3),"") ->  | D99: =SUMIF('Custo Básico dos Produtos'!$A$7:$A$480,Q99,'Custo Básico dos Produtos'!$J$7:$J$480) -> 0 | F99: 0 | G99: =IF(B99="",0,SUMIF('Cadastro de Produtos em Linha'!$B$7:$B$457,A99,'Cadastro de Produtos em Linha'!$D$7:$D$457)) -> 0 | I99: 0 | J99: 0 | K99: =IF('Aferi (Variáveis)'!$C$12="ALC",0,IF('Aferi (Variáveis)'!$C$12="ZFM",0,IF('Aferi (Variáveis)'!$C$12="Exportação",0,IF('Aferi (Variáveis)'!$C$12="Venda para Exportar",0,IF('Aferi (Variáveis)'!$C$12="AO",0,SUMIF('Custo Básico dos Produtos'!$A$7:$A$480,Q99,'Custo Básico dos Produtos'!$L$7:$L$480)))))) -> 0 | L99: 0 | M99: 0 | N99: 0 | O99: 0 | P99: =SUMIF('Cadastro de Produtos em Linha'!$A$6:$A$457,Q99,'Cadastro de Produtos em Linha'!$E$6:$E$457)*H99 -> 0 | Q99: =IF(TODAY()<$AK$26,IF(A99<>"",SUMIF('Custo Básico dos Produtos'!$B$7:$B$457,A99,'Custo Básico dos Produtos'!$A$7:$A$457),0),0) -> 0 | R99: =IF('Aferi (Variáveis)'!$C$12="Venda para Exportar",0,IF('Aferi (Variáveis)'!$C$12="ALC",0,IF('Aferi (Variáveis)'!$C$12="ZFM",0,IF('Aferi (Variáveis)'!$C$12="Exportação",0,IF('Aferi (Variáveis)'!$C$12="AO",0,E99/(100+(0*'Aferi (Variáveis)'!$K$12/100))*100*K99%/100*'Aferi (Variáveis)'!$K$12))))) -> 0 | S99: 0 | T99: =(E99*'Aferi (Variáveis)'!$K$12/100) -> 0 | U99: 0 | V99: =IF('Aferi (Variáveis)'!$F$20="Venda para Exportar",0,IF('Aferi (Variáveis)'!$F$20="ALC",0,IF('Aferi (Variáveis)'!$F$20="ZFM",0,IF('Aferi (Variáveis)'!$F$20="Exportação",0,IF('Aferi (Variáveis)'!$F$20="AO",7*T99/100,T99*'Aferi (Variáveis)'!$F$20/100))))) -> 0 | W99: 0 | X99: =IF('Aferi (Variáveis)'!$C$12="ZFM",0,IF('Aferi (Variáveis)'!$C$12="Exportação",0,3*T99/100)) -> 0 | Y99: =IF('Aferi (Variáveis)'!$C$12="ZFM",0,IF('Aferi (Variáveis)'!$C$12="Exportação",0,0.65*T99/100)) -> 0 | Z99: 0 | AA99: 0 | AB99: 0 | AC99: 0 | AD99: 0 | AE99: 0 | AF99: 0 | AG99: 0 | AH99: 0 | AI99: =SUMIF('Custo Básico dos Produtos'!$B$7:$B$480,A99,'Custo Básico dos Produtos'!$K$7:$K$480) -> 0 | AL99: 0 | AM99: 0 | AN99: 0 | AO99: 0 | AP99: 0 | AQ99: 0
B100: =IF(Q100<>0,VLOOKUP(Q100,'Custo Básico dos Produtos'!$A$7:$J$480,3),"") ->  | D100: =SUMIF('Custo Básico dos Produtos'!$A$7:$A$480,Q100,'Custo Básico dos Produtos'!$J$7:$J$480) -> 0 | F100: 0 | G100: =IF(B100="",0,SUMIF('Cadastro de Produtos em Linha'!$B$7:$B$457,A100,'Cadastro de Produtos em Linha'!$D$7:$D$457)) -> 0 | I100: 0 | J100: 0 | K100: =IF('Aferi (Variáveis)'!$C$12="ALC",0,IF('Aferi (Variáveis)'!$C$12="ZFM",0,IF('Aferi (Variáveis)'!$C$12="Exportação",0,IF('Aferi (Variáveis)'!$C$12="Venda para Exportar",0,IF('Aferi (Variáveis)'!$C$12="AO",0,SUMIF('Custo Básico dos Produtos'!$A$7:$A$480,Q100,'Custo Básico dos Produtos'!$L$7:$L$480)))))) -> 0 | L100: 0 | M100: 0 | N100: 0 | O100: 0 | P100: =SUMIF('Cadastro de Produtos em Linha'!$A$6:$A$457,Q100,'Cadastro de Produtos em Linha'!$E$6:$E$457)*H100 -> 0 | Q100: =IF(TODAY()<$AK$26,IF(A100<>"",SUMIF('Custo Básico dos Produtos'!$B$7:$B$457,A100,'Custo Básico dos Produtos'!$A$7:$A$457),0),0) -> 0 | R100: =IF('Aferi (Variáveis)'!$C$12="Venda para Exportar",0,IF('Aferi (Variáveis)'!$C$12="ALC",0,IF('Aferi (Variáveis)'!$C$12="ZFM",0,IF('Aferi (Variáveis)'!$C$12="Exportação",0,IF('Aferi (Variáveis)'!$C$12="AO",0,E100/(100+(0*'Aferi (Variáveis)'!$K$12/100))*100*K100%/100*'Aferi (Variáveis)'!$K$12))))) -> 0 | S100: 0 | T100: =(E100*'Aferi (Variáveis)'!$K$12/100) -> 0 | U100: 0 | V100: =IF('Aferi (Variáveis)'!$F$20="Venda para Exportar",0,IF('Aferi (Variáveis)'!$F$20="ALC",0,IF('Aferi (Variáveis)'!$F$20="ZFM",0,IF('Aferi (Variáveis)'!$F$20="Exportação",0,IF('Aferi (Variáveis)'!$F$20="AO",7*T100/100,T100*'Aferi (Variáveis)'!$F$20/100))))) -> 0 | W100: 0 | X100: =IF('Aferi (Variáveis)'!$C$12="ZFM",0,IF('Aferi (Variáveis)'!$C$12="Exportação",0,3*T100/100)) -> 0 | Y100: =IF('Aferi (Variáveis)'!$C$12="ZFM",0,IF('Aferi (Variáveis)'!$C$12="Exportação",0,0.65*T100/100)) -> 0 | Z100: 0 | AA100: 0 | AB100: 0 | AC100: 0 | AD100: 0 | AE100: 0 | AF100: 0 | AG100: 0 | AH100: 0 | AI100: =SUMIF('Custo Básico dos Produtos'!$B$7:$B$480,A100,'Custo Básico dos Produtos'!$K$7:$K$480) -> 0 | AL100: 0 | AM100: 0 | AN100: 0 | AO100: 0 | AP100: 0 | AQ100: 0
B101: =IF(Q101<>0,VLOOKUP(Q101,'Custo Básico dos Produtos'!$A$7:$J$480,3),"") ->  | D101: =SUMIF('Custo Básico dos Produtos'!$A$7:$A$480,Q101,'Custo Básico dos Produtos'!$J$7:$J$480) -> 0 | F101: 0 | G101: =IF(B101="",0,SUMIF('Cadastro de Produtos em Linha'!$B$7:$B$457,A101,'Cadastro de Produtos em Linha'!$D$7:$D$457)) -> 0 | I101: 0 | J101: 0 | K101: =IF('Aferi (Variáveis)'!$C$12="ALC",0,IF('Aferi (Variáveis)'!$C$12="ZFM",0,IF('Aferi (Variáveis)'!$C$12="Exportação",0,IF('Aferi (Variáveis)'!$C$12="Venda para Exportar",0,IF('Aferi (Variáveis)'!$C$12="AO",0,SUMIF('Custo Básico dos Produtos'!$A$7:$A$480,Q101,'Custo Básico dos Produtos'!$L$7:$L$480)))))) -> 0 | L101: 0 | M101: 0 | N101: 0 | O101: 0 | P101: =SUMIF('Cadastro de Produtos em Linha'!$A$6:$A$457,Q101,'Cadastro de Produtos em Linha'!$E$6:$E$457)*H101 -> 0 | Q101: =IF(TODAY()<$AK$26,IF(A101<>"",SUMIF('Custo Básico dos Produtos'!$B$7:$B$457,A101,'Custo Básico dos Produtos'!$A$7:$A$457),0),0) -> 0 | R101: =IF('Aferi (Variáveis)'!$C$12="Venda para Exportar",0,IF('Aferi (Variáveis)'!$C$12="ALC",0,IF('Aferi (Variáveis)'!$C$12="ZFM",0,IF('Aferi (Variáveis)'!$C$12="Exportação",0,IF('Aferi (Variáveis)'!$C$12="AO",0,E101/(100+(0*'Aferi (Variáveis)'!$K$12/100))*100*K101%/100*'Aferi (Variáveis)'!$K$12))))) -> 0 | S101: 0 | T101: =(E101*'Aferi (Variáveis)'!$K$12/100) -> 0 | U101: 0 | V101: =IF('Aferi (Variáveis)'!$F$20="Venda para Exportar",0,IF('Aferi (Variáveis)'!$F$20="ALC",0,IF('Aferi (Variáveis)'!$F$20="ZFM",0,IF('Aferi (Variáveis)'!$F$20="Exportação",0,IF('Aferi (Variáveis)'!$F$20="AO",7*T101/100,T101*'Aferi (Variáveis)'!$F$20/100))))) -> 0 | W101: 0 | X101: =IF('Aferi (Variáveis)'!$C$12="ZFM",0,IF('Aferi (Variáveis)'!$C$12="Exportação",0,3*T101/100)) -> 0 | Y101: =IF('Aferi (Variáveis)'!$C$12="ZFM",0,IF('Aferi (Variáveis)'!$C$12="Exportação",0,0.65*T101/100)) -> 0 | Z101: 0 | AA101: 0 | AB101: 0 | AC101: 0 | AD101: 0 | AE101: 0 | AF101: 0 | AG101: 0 | AH101: 0 | AI101: =SUMIF('Custo Básico dos Produtos'!$B$7:$B$480,A101,'Custo Básico dos Produtos'!$K$7:$K$480) -> 0 | AL101: 0 | AM101: 0 | AN101: 0 | AO101: 0 | AP101: 0 | AQ101: 0
B102: =IF(Q102<>0,VLOOKUP(Q102,'Custo Básico dos Produtos'!$A$7:$J$480,3),"") ->  | D102: =SUMIF('Custo Básico dos Produtos'!$A$7:$A$480,Q102,'Custo Básico dos Produtos'!$J$7:$J$480) -> 0 | F102: 0 | G102: =IF(B102="",0,SUMIF('Cadastro de Produtos em Linha'!$B$7:$B$457,A102,'Cadastro de Produtos em Linha'!$D$7:$D$457)) -> 0 | I102: 0 | J102: 0 | K102: =IF('Aferi (Variáveis)'!$C$12="ALC",0,IF('Aferi (Variáveis)'!$C$12="ZFM",0,IF('Aferi (Variáveis)'!$C$12="Exportação",0,IF('Aferi (Variáveis)'!$C$12="Venda para Exportar",0,IF('Aferi (Variáveis)'!$C$12="AO",0,SUMIF('Custo Básico dos Produtos'!$A$7:$A$480,Q102,'Custo Básico dos Produtos'!$L$7:$L$480)))))) -> 0 | L102: 0 | M102: 0 | N102: 0 | O102: 0 | P102: =SUMIF('Cadastro de Produtos em Linha'!$A$6:$A$457,Q102,'Cadastro de Produtos em Linha'!$E$6:$E$457)*H102 -> 0 | Q102: =IF(TODAY()<$AK$26,IF(A102<>"",SUMIF('Custo Básico dos Produtos'!$B$7:$B$457,A102,'Custo Básico dos Produtos'!$A$7:$A$457),0),0) -> 0 | R102: =IF('Aferi (Variáveis)'!$C$12="Venda para Exportar",0,IF('Aferi (Variáveis)'!$C$12="ALC",0,IF('Aferi (Variáveis)'!$C$12="ZFM",0,IF('Aferi (Variáveis)'!$C$12="Exportação",0,IF('Aferi (Variáveis)'!$C$12="AO",0,E102/(100+(0*'Aferi (Variáveis)'!$K$12/100))*100*K102%/100*'Aferi (Variáveis)'!$K$12))))) -> 0 | S102: 0 | T102: =(E102*'Aferi (Variáveis)'!$K$12/100) -> 0 | U102: 0 | V102: =IF('Aferi (Variáveis)'!$F$20="Venda para Exportar",0,IF('Aferi (Variáveis)'!$F$20="ALC",0,IF('Aferi (Variáveis)'!$F$20="ZFM",0,IF('Aferi (Variáveis)'!$F$20="Exportação",0,IF('Aferi (Variáveis)'!$F$20="AO",7*T102/100,T102*'Aferi (Variáveis)'!$F$20/100))))) -> 0 | W102: 0 | X102: =IF('Aferi (Variáveis)'!$C$12="ZFM",0,IF('Aferi (Variáveis)'!$C$12="Exportação",0,3*T102/100)) -> 0 | Y102: =IF('Aferi (Variáveis)'!$C$12="ZFM",0,IF('Aferi (Variáveis)'!$C$12="Exportação",0,0.65*T102/100)) -> 0 | Z102: 0 | AA102: 0 | AB102: 0 | AC102: 0 | AD102: 0 | AE102: 0 | AF102: 0 | AG102: 0 | AH102: 0 | AI102: =SUMIF('Custo Básico dos Produtos'!$B$7:$B$480,A102,'Custo Básico dos Produtos'!$K$7:$K$480) -> 0 | AL102: 0 | AM102: 0 | AN102: 0 | AO102: 0 | AP102: 0 | AQ102: 0
B103: =IF(Q103<>0,VLOOKUP(Q103,'Custo Básico dos Produtos'!$A$7:$J$480,3),"") ->  | D103: =SUMIF('Custo Básico dos Produtos'!$A$7:$A$480,Q103,'Custo Básico dos Produtos'!$J$7:$J$480) -> 0 | F103: 0 | G103: =IF(B103="",0,SUMIF('Cadastro de Produtos em Linha'!$B$7:$B$457,A103,'Cadastro de Produtos em Linha'!$D$7:$D$457)) -> 0 | I103: 0 | J103: 0 | K103: =IF('Aferi (Variáveis)'!$C$12="ALC",0,IF('Aferi (Variáveis)'!$C$12="ZFM",0,IF('Aferi (Variáveis)'!$C$12="Exportação",0,IF('Aferi (Variáveis)'!$C$12="Venda para Exportar",0,IF('Aferi (Variáveis)'!$C$12="AO",0,SUMIF('Custo Básico dos Produtos'!$A$7:$A$480,Q103,'Custo Básico dos Produtos'!$L$7:$L$480)))))) -> 0 | L103: 0 | M103: 0 | N103: 0 | O103: 0 | P103: =SUMIF('Cadastro de Produtos em Linha'!$A$6:$A$457,Q103,'Cadastro de Produtos em Linha'!$E$6:$E$457)*H103 -> 0 | Q103: =IF(TODAY()<$AK$26,IF(A103<>"",SUMIF('Custo Básico dos Produtos'!$B$7:$B$457,A103,'Custo Básico dos Produtos'!$A$7:$A$457),0),0) -> 0 | R103: =IF('Aferi (Variáveis)'!$C$12="Venda para Exportar",0,IF('Aferi (Variáveis)'!$C$12="ALC",0,IF('Aferi (Variáveis)'!$C$12="ZFM",0,IF('Aferi (Variáveis)'!$C$12="Exportação",0,IF('Aferi (Variáveis)'!$C$12="AO",0,E103/(100+(0*'Aferi (Variáveis)'!$K$12/100))*100*K103%/100*'Aferi (Variáveis)'!$K$12))))) -> 0 | S103: 0 | T103: =(E103*'Aferi (Variáveis)'!$K$12/100) -> 0 | U103: 0 | V103: =IF('Aferi (Variáveis)'!$F$20="Venda para Exportar",0,IF('Aferi (Variáveis)'!$F$20="ALC",0,IF('Aferi (Variáveis)'!$F$20="ZFM",0,IF('Aferi (Variáveis)'!$F$20="Exportação",0,IF('Aferi (Variáveis)'!$F$20="AO",7*T103/100,T103*'Aferi (Variáveis)'!$F$20/100))))) -> 0 | W103: 0 | X103: =IF('Aferi (Variáveis)'!$C$12="ZFM",0,IF('Aferi (Variáveis)'!$C$12="Exportação",0,3*T103/100)) -> 0 | Y103: =IF('Aferi (Variáveis)'!$C$12="ZFM",0,IF('Aferi (Variáveis)'!$C$12="Exportação",0,0.65*T103/100)) -> 0 | Z103: 0 | AA103: 0 | AB103: 0 | AC103: 0 | AD103: 0 | AE103: 0 | AF103: 0 | AG103: 0 | AH103: 0 | AI103: =SUMIF('Custo Básico dos Produtos'!$B$7:$B$480,A103,'Custo Básico dos Produtos'!$K$7:$K$480) -> 0 | AL103: 0 | AM103: 0 | AN103: 0 | AO103: 0 | AP103: 0 | AQ103: 0
B104: =IF(Q104<>0,VLOOKUP(Q104,'Custo Básico dos Produtos'!$A$7:$J$480,3),"") ->  | D104: =SUMIF('Custo Básico dos Produtos'!$A$7:$A$480,Q104,'Custo Básico dos Produtos'!$J$7:$J$480) -> 0 | F104: 0 | G104: =IF(B104="",0,SUMIF('Cadastro de Produtos em Linha'!$B$7:$B$457,A104,'Cadastro de Produtos em Linha'!$D$7:$D$457)) -> 0 | I104: 0 | J104: 0 | K104: =IF('Aferi (Variáveis)'!$C$12="ALC",0,IF('Aferi (Variáveis)'!$C$12="ZFM",0,IF('Aferi (Variáveis)'!$C$12="Exportação",0,IF('Aferi (Variáveis)'!$C$12="Venda para Exportar",0,IF('Aferi (Variáveis)'!$C$12="AO",0,SUMIF('Custo Básico dos Produtos'!$A$7:$A$480,Q104,'Custo Básico dos Produtos'!$L$7:$L$480)))))) -> 0 | L104: 0 | M104: 0 | N104: 0 | O104: 0 | P104: =SUMIF('Cadastro de Produtos em Linha'!$A$6:$A$457,Q104,'Cadastro de Produtos em Linha'!$E$6:$E$457)*H104 -> 0 | Q104: =IF(TODAY()<$AK$26,IF(A104<>"",SUMIF('Custo Básico dos Produtos'!$B$7:$B$457,A104,'Custo Básico dos Produtos'!$A$7:$A$457),0),0) -> 0 | R104: =IF('Aferi (Variáveis)'!$C$12="Venda para Exportar",0,IF('Aferi (Variáveis)'!$C$12="ALC",0,IF('Aferi (Variáveis)'!$C$12="ZFM",0,IF('Aferi (Variáveis)'!$C$12="Exportação",0,IF('Aferi (Variáveis)'!$C$12="AO",0,E104/(100+(0*'Aferi (Variáveis)'!$K$12/100))*100*K104%/100*'Aferi (Variáveis)'!$K$12))))) -> 0 | S104: 0 | T104: =(E104*'Aferi (Variáveis)'!$K$12/100) -> 0 | U104: 0 | V104: =IF('Aferi (Variáveis)'!$F$20="Venda para Exportar",0,IF('Aferi (Variáveis)'!$F$20="ALC",0,IF('Aferi (Variáveis)'!$F$20="ZFM",0,IF('Aferi (Variáveis)'!$F$20="Exportação",0,IF('Aferi (Variáveis)'!$F$20="AO",7*T104/100,T104*'Aferi (Variáveis)'!$F$20/100))))) -> 0 | W104: 0 | X104: =IF('Aferi (Variáveis)'!$C$12="ZFM",0,IF('Aferi (Variáveis)'!$C$12="Exportação",0,3*T104/100)) -> 0 | Y104: =IF('Aferi (Variáveis)'!$C$12="ZFM",0,IF('Aferi (Variáveis)'!$C$12="Exportação",0,0.65*T104/100)) -> 0 | Z104: 0 | AA104: 0 | AB104: 0 | AC104: 0 | AD104: 0 | AE104: 0 | AF104: 0 | AG104: 0 | AH104: 0 | AI104: =SUMIF('Custo Básico dos Produtos'!$B$7:$B$480,A104,'Custo Básico dos Produtos'!$K$7:$K$480) -> 0 | AL104: 0 | AM104: 0 | AN104: 0 | AO104: 0 | AP104: 0 | AQ104: 0
B105: =IF(Q105<>0,VLOOKUP(Q105,'Custo Básico dos Produtos'!$A$7:$J$480,3),"") ->  | D105: =SUMIF('Custo Básico dos Produtos'!$A$7:$A$480,Q105,'Custo Básico dos Produtos'!$J$7:$J$480) -> 0 | F105: 0 | G105: =IF(B105="",0,SUMIF('Cadastro de Produtos em Linha'!$B$7:$B$457,A105,'Cadastro de Produtos em Linha'!$D$7:$D$457)) -> 0 | I105: 0 | J105: 0 | K105: =IF('Aferi (Variáveis)'!$C$12="ALC",0,IF('Aferi (Variáveis)'!$C$12="ZFM",0,IF('Aferi (Variáveis)'!$C$12="Exportação",0,IF('Aferi (Variáveis)'!$C$12="Venda para Exportar",0,IF('Aferi (Variáveis)'!$C$12="AO",0,SUMIF('Custo Básico dos Produtos'!$A$7:$A$480,Q105,'Custo Básico dos Produtos'!$L$7:$L$480)))))) -> 0 | L105: 0 | M105: 0 | N105: 0 | O105: 0 | P105: =SUMIF('Cadastro de Produtos em Linha'!$A$6:$A$457,Q105,'Cadastro de Produtos em Linha'!$E$6:$E$457)*H105 -> 0 | Q105: =IF(TODAY()<$AK$26,IF(A105<>"",SUMIF('Custo Básico dos Produtos'!$B$7:$B$457,A105,'Custo Básico dos Produtos'!$A$7:$A$457),0),0) -> 0 | R105: =IF('Aferi (Variáveis)'!$C$12="Venda para Exportar",0,IF('Aferi (Variáveis)'!$C$12="ALC",0,IF('Aferi (Variáveis)'!$C$12="ZFM",0,IF('Aferi (Variáveis)'!$C$12="Exportação",0,IF('Aferi (Variáveis)'!$C$12="AO",0,E105/(100+(0*'Aferi (Variáveis)'!$K$12/100))*100*K105%/100*'Aferi (Variáveis)'!$K$12))))) -> 0 | S105: 0 | T105: =(E105*'Aferi (Variáveis)'!$K$12/100) -> 0 | U105: 0 | V105: =IF('Aferi (Variáveis)'!$F$20="Venda para Exportar",0,IF('Aferi (Variáveis)'!$F$20="ALC",0,IF('Aferi (Variáveis)'!$F$20="ZFM",0,IF('Aferi (Variáveis)'!$F$20="Exportação",0,IF('Aferi (Variáveis)'!$F$20="AO",7*T105/100,T105*'Aferi (Variáveis)'!$F$20/100))))) -> 0 | W105: 0 | X105: =IF('Aferi (Variáveis)'!$C$12="ZFM",0,IF('Aferi (Variáveis)'!$C$12="Exportação",0,3*T105/100)) -> 0 | Y105: =IF('Aferi (Variáveis)'!$C$12="ZFM",0,IF('Aferi (Variáveis)'!$C$12="Exportação",0,0.65*T105/100)) -> 0 | Z105: 0 | AA105: 0 | AB105: 0 | AC105: 0 | AD105: 0 | AE105: 0 | AF105: 0 | AG105: 0 | AH105: 0 | AI105: =SUMIF('Custo Básico dos Produtos'!$B$7:$B$480,A105,'Custo Básico dos Produtos'!$K$7:$K$480) -> 0 | AL105: 0 | AM105: 0 | AN105: 0 | AO105: 0 | AP105: 0 | AQ105: 0
B106: =IF(Q106<>0,VLOOKUP(Q106,'Custo Básico dos Produtos'!$A$7:$J$480,3),"") ->  | D106: =SUMIF('Custo Básico dos Produtos'!$A$7:$A$480,Q106,'Custo Básico dos Produtos'!$J$7:$J$480) -> 0 | F106: 0 | G106: =IF(B106="",0,SUMIF('Cadastro de Produtos em Linha'!$B$7:$B$457,A106,'Cadastro de Produtos em Linha'!$D$7:$D$457)) -> 0 | I106: 0 | J106: 0 | K106: =IF('Aferi (Variáveis)'!$C$12="ALC",0,IF('Aferi (Variáveis)'!$C$12="ZFM",0,IF('Aferi (Variáveis)'!$C$12="Exportação",0,IF('Aferi (Variáveis)'!$C$12="Venda para Exportar",0,IF('Aferi (Variáveis)'!$C$12="AO",0,SUMIF('Custo Básico dos Produtos'!$A$7:$A$480,Q106,'Custo Básico dos Produtos'!$L$7:$L$480)))))) -> 0 | L106: 0 | M106: 0 | N106: 0 | O106: 0 | P106: =SUMIF('Cadastro de Produtos em Linha'!$A$6:$A$457,Q106,'Cadastro de Produtos em Linha'!$E$6:$E$457)*H106 -> 0 | Q106: =IF(TODAY()<$AK$26,IF(A106<>"",SUMIF('Custo Básico dos Produtos'!$B$7:$B$457,A106,'Custo Básico dos Produtos'!$A$7:$A$457),0),0) -> 0 | R106: =IF('Aferi (Variáveis)'!$C$12="Venda para Exportar",0,IF('Aferi (Variáveis)'!$C$12="ALC",0,IF('Aferi (Variáveis)'!$C$12="ZFM",0,IF('Aferi (Variáveis)'!$C$12="Exportação",0,IF('Aferi (Variáveis)'!$C$12="AO",0,E106/(100+(0*'Aferi (Variáveis)'!$K$12/100))*100*K106%/100*'Aferi (Variáveis)'!$K$12))))) -> 0 | S106: 0 | T106: =(E106*'Aferi (Variáveis)'!$K$12/100) -> 0 | U106: 0 | V106: =IF('Aferi (Variáveis)'!$F$20="Venda para Exportar",0,IF('Aferi (Variáveis)'!$F$20="ALC",0,IF('Aferi (Variáveis)'!$F$20="ZFM",0,IF('Aferi (Variáveis)'!$F$20="Exportação",0,IF('Aferi (Variáveis)'!$F$20="AO",7*T106/100,T106*'Aferi (Variáveis)'!$F$20/100))))) -> 0 | W106: 0 | X106: =IF('Aferi (Variáveis)'!$C$12="ZFM",0,IF('Aferi (Variáveis)'!$C$12="Exportação",0,3*T106/100)) -> 0 | Y106: =IF('Aferi (Variáveis)'!$C$12="ZFM",0,IF('Aferi (Variáveis)'!$C$12="Exportação",0,0.65*T106/100)) -> 0 | Z106: 0 | AA106: 0 | AB106: 0 | AC106: 0 | AD106: 0 | AE106: 0 | AF106: 0 | AG106: 0 | AH106: 0 | AI106: =SUMIF('Custo Básico dos Produtos'!$B$7:$B$480,A106,'Custo Básico dos Produtos'!$K$7:$K$480) -> 0 | AL106: 0 | AM106: 0 | AN106: 0 | AO106: 0 | AP106: 0 | AQ106: 0
B107: =IF(Q107<>0,VLOOKUP(Q107,'Custo Básico dos Produtos'!$A$7:$J$480,3),"") ->  | D107: =SUMIF('Custo Básico dos Produtos'!$A$7:$A$480,Q107,'Custo Básico dos Produtos'!$J$7:$J$480) -> 0 | F107: 0 | G107: =IF(B107="",0,SUMIF('Cadastro de Produtos em Linha'!$B$7:$B$457,A107,'Cadastro de Produtos em Linha'!$D$7:$D$457)) -> 0 | I107: 0 | J107: 0 | K107: =IF('Aferi (Variáveis)'!$C$12="ALC",0,IF('Aferi (Variáveis)'!$C$12="ZFM",0,IF('Aferi (Variáveis)'!$C$12="Exportação",0,IF('Aferi (Variáveis)'!$C$12="Venda para Exportar",0,IF('Aferi (Variáveis)'!$C$12="AO",0,SUMIF('Custo Básico dos Produtos'!$A$7:$A$480,Q107,'Custo Básico dos Produtos'!$L$7:$L$480)))))) -> 0 | L107: 0 | M107: 0 | N107: 0 | O107: 0 | P107: =SUMIF('Cadastro de Produtos em Linha'!$A$6:$A$457,Q107,'Cadastro de Produtos em Linha'!$E$6:$E$457)*H107 -> 0 | Q107: =IF(TODAY()<$AK$26,IF(A107<>"",SUMIF('Custo Básico dos Produtos'!$B$7:$B$457,A107,'Custo Básico dos Produtos'!$A$7:$A$457),0),0) -> 0 | R107: =IF('Aferi (Variáveis)'!$C$12="Venda para Exportar",0,IF('Aferi (Variáveis)'!$C$12="ALC",0,IF('Aferi (Variáveis)'!$C$12="ZFM",0,IF('Aferi (Variáveis)'!$C$12="Exportação",0,IF('Aferi (Variáveis)'!$C$12="AO",0,E107/(100+(0*'Aferi (Variáveis)'!$K$12/100))*100*K107%/100*'Aferi (Variáveis)'!$K$12))))) -> 0 | S107: 0 | T107: =(E107*'Aferi (Variáveis)'!$K$12/100) -> 0 | U107: 0 | V107: =IF('Aferi (Variáveis)'!$F$20="Venda para Exportar",0,IF('Aferi (Variáveis)'!$F$20="ALC",0,IF('Aferi (Variáveis)'!$F$20="ZFM",0,IF('Aferi (Variáveis)'!$F$20="Exportação",0,IF('Aferi (Variáveis)'!$F$20="AO",7*T107/100,T107*'Aferi (Variáveis)'!$F$20/100))))) -> 0 | W107: 0 | X107: =IF('Aferi (Variáveis)'!$C$12="ZFM",0,IF('Aferi (Variáveis)'!$C$12="Exportação",0,3*T107/100)) -> 0 | Y107: =IF('Aferi (Variáveis)'!$C$12="ZFM",0,IF('Aferi (Variáveis)'!$C$12="Exportação",0,0.65*T107/100)) -> 0 | Z107: 0 | AA107: 0 | AB107: 0 | AC107: 0 | AD107: 0 | AE107: 0 | AF107: 0 | AG107: 0 | AH107: 0 | AI107: =SUMIF('Custo Básico dos Produtos'!$B$7:$B$480,A107,'Custo Básico dos Produtos'!$K$7:$K$480) -> 0 | AL107: 0 | AM107: 0 | AN107: 0 | AO107: 0 | AP107: 0 | AQ107: 0
B108: =IF(Q108<>0,VLOOKUP(Q108,'Custo Básico dos Produtos'!$A$7:$J$480,3),"") ->  | D108: =SUMIF('Custo Básico dos Produtos'!$A$7:$A$480,Q108,'Custo Básico dos Produtos'!$J$7:$J$480) -> 0 | F108: 0 | G108: =IF(B108="",0,SUMIF('Cadastro de Produtos em Linha'!$B$7:$B$457,A108,'Cadastro de Produtos em Linha'!$D$7:$D$457)) -> 0 | I108: 0 | J108: 0 | K108: =IF('Aferi (Variáveis)'!$C$12="ALC",0,IF('Aferi (Variáveis)'!$C$12="ZFM",0,IF('Aferi (Variáveis)'!$C$12="Exportação",0,IF('Aferi (Variáveis)'!$C$12="Venda para Exportar",0,IF('Aferi (Variáveis)'!$C$12="AO",0,SUMIF('Custo Básico dos Produtos'!$A$7:$A$480,Q108,'Custo Básico dos Produtos'!$L$7:$L$480)))))) -> 0 | L108: 0 | M108: 0 | N108: 0 | O108: 0 | P108: =SUMIF('Cadastro de Produtos em Linha'!$A$6:$A$457,Q108,'Cadastro de Produtos em Linha'!$E$6:$E$457)*H108 -> 0 | Q108: =IF(TODAY()<$AK$26,IF(A108<>"",SUMIF('Custo Básico dos Produtos'!$B$7:$B$457,A108,'Custo Básico dos Produtos'!$A$7:$A$457),0),0) -> 0 | R108: =IF('Aferi (Variáveis)'!$C$12="Venda para Exportar",0,IF('Aferi (Variáveis)'!$C$12="ALC",0,IF('Aferi (Variáveis)'!$C$12="ZFM",0,IF('Aferi (Variáveis)'!$C$12="Exportação",0,IF('Aferi (Variáveis)'!$C$12="AO",0,E108/(100+(0*'Aferi (Variáveis)'!$K$12/100))*100*K108%/100*'Aferi (Variáveis)'!$K$12))))) -> 0 | S108: 0 | T108: =(E108*'Aferi (Variáveis)'!$K$12/100) -> 0 | U108: 0 | V108: =IF('Aferi (Variáveis)'!$F$20="Venda para Exportar",0,IF('Aferi (Variáveis)'!$F$20="ALC",0,IF('Aferi (Variáveis)'!$F$20="ZFM",0,IF('Aferi (Variáveis)'!$F$20="Exportação",0,IF('Aferi (Variáveis)'!$F$20="AO",7*T108/100,T108*'Aferi (Variáveis)'!$F$20/100))))) -> 0 | W108: 0 | X108: =IF('Aferi (Variáveis)'!$C$12="ZFM",0,IF('Aferi (Variáveis)'!$C$12="Exportação",0,3*T108/100)) -> 0 | Y108: =IF('Aferi (Variáveis)'!$C$12="ZFM",0,IF('Aferi (Variáveis)'!$C$12="Exportação",0,0.65*T108/100)) -> 0 | Z108: 0 | AA108: 0 | AB108: 0 | AC108: 0 | AD108: 0 | AE108: 0 | AF108: 0 | AG108: 0 | AH108: 0 | AI108: =SUMIF('Custo Básico dos Produtos'!$B$7:$B$480,A108,'Custo Básico dos Produtos'!$K$7:$K$480) -> 0 | AL108: 0 | AM108: 0 | AN108: 0 | AO108: 0 | AP108: 0 | AQ108: 0
B109: =IF(Q109<>0,VLOOKUP(Q109,'Custo Básico dos Produtos'!$A$7:$J$480,3),"") ->  | D109: =SUMIF('Custo Básico dos Produtos'!$A$7:$A$480,Q109,'Custo Básico dos Produtos'!$J$7:$J$480) -> 0 | F109: 0 | G109: =IF(B109="",0,SUMIF('Cadastro de Produtos em Linha'!$B$7:$B$457,A109,'Cadastro de Produtos em Linha'!$D$7:$D$457)) -> 0 | I109: 0 | J109: 0 | K109: =IF('Aferi (Variáveis)'!$C$12="ALC",0,IF('Aferi (Variáveis)'!$C$12="ZFM",0,IF('Aferi (Variáveis)'!$C$12="Exportação",0,IF('Aferi (Variáveis)'!$C$12="Venda para Exportar",0,IF('Aferi (Variáveis)'!$C$12="AO",0,SUMIF('Custo Básico dos Produtos'!$A$7:$A$480,Q109,'Custo Básico dos Produtos'!$L$7:$L$480)))))) -> 0 | L109: 0 | M109: 0 | N109: 0 | O109: 0 | P109: =SUMIF('Cadastro de Produtos em Linha'!$A$6:$A$457,Q109,'Cadastro de Produtos em Linha'!$E$6:$E$457)*H109 -> 0 | Q109: =IF(TODAY()<$AK$26,IF(A109<>"",SUMIF('Custo Básico dos Produtos'!$B$7:$B$457,A109,'Custo Básico dos Produtos'!$A$7:$A$457),0),0) -> 0 | R109: =IF('Aferi (Variáveis)'!$C$12="Venda para Exportar",0,IF('Aferi (Variáveis)'!$C$12="ALC",0,IF('Aferi (Variáveis)'!$C$12="ZFM",0,IF('Aferi (Variáveis)'!$C$12="Exportação",0,IF('Aferi (Variáveis)'!$C$12="AO",0,E109/(100+(0*'Aferi (Variáveis)'!$K$12/100))*100*K109%/100*'Aferi (Variáveis)'!$K$12))))) -> 0 | S109: 0 | T109: =(E109*'Aferi (Variáveis)'!$K$12/100) -> 0 | U109: 0 | V109: =IF('Aferi (Variáveis)'!$F$20="Venda para Exportar",0,IF('Aferi (Variáveis)'!$F$20="ALC",0,IF('Aferi (Variáveis)'!$F$20="ZFM",0,IF('Aferi (Variáveis)'!$F$20="Exportação",0,IF('Aferi (Variáveis)'!$F$20="AO",7*T109/100,T109*'Aferi (Variáveis)'!$F$20/100))))) -> 0 | W109: 0 | X109: =IF('Aferi (Variáveis)'!$C$12="ZFM",0,IF('Aferi (Variáveis)'!$C$12="Exportação",0,3*T109/100)) -> 0 | Y109: =IF('Aferi (Variáveis)'!$C$12="ZFM",0,IF('Aferi (Variáveis)'!$C$12="Exportação",0,0.65*T109/100)) -> 0 | Z109: 0 | AA109: 0 | AB109: 0 | AC109: 0 | AD109: 0 | AE109: 0 | AF109: 0 | AG109: 0 | AH109: 0 | AI109: =SUMIF('Custo Básico dos Produtos'!$B$7:$B$480,A109,'Custo Básico dos Produtos'!$K$7:$K$480) -> 0 | AL109: 0 | AM109: 0 | AN109: 0 | AO109: 0 | AP109: 0 | AQ109: 0
B110: =IF(Q110<>0,VLOOKUP(Q110,'Custo Básico dos Produtos'!$A$7:$J$480,3),"") ->  | D110: =SUMIF('Custo Básico dos Produtos'!$A$7:$A$480,Q110,'Custo Básico dos Produtos'!$J$7:$J$480) -> 0 | F110: 0 | G110: =IF(B110="",0,SUMIF('Cadastro de Produtos em Linha'!$B$7:$B$457,A110,'Cadastro de Produtos em Linha'!$D$7:$D$457)) -> 0 | I110: 0 | J110: 0 | K110: =IF('Aferi (Variáveis)'!$C$12="ALC",0,IF('Aferi (Variáveis)'!$C$12="ZFM",0,IF('Aferi (Variáveis)'!$C$12="Exportação",0,IF('Aferi (Variáveis)'!$C$12="Venda para Exportar",0,IF('Aferi (Variáveis)'!$C$12="AO",0,SUMIF('Custo Básico dos Produtos'!$A$7:$A$480,Q110,'Custo Básico dos Produtos'!$L$7:$L$480)))))) -> 0 | L110: 0 | M110: 0 | N110: 0 | O110: 0 | P110: =SUMIF('Cadastro de Produtos em Linha'!$A$6:$A$457,Q110,'Cadastro de Produtos em Linha'!$E$6:$E$457)*H110 -> 0 | Q110: =IF(TODAY()<$AK$26,IF(A110<>"",SUMIF('Custo Básico dos Produtos'!$B$7:$B$457,A110,'Custo Básico dos Produtos'!$A$7:$A$457),0),0) -> 0 | R110: =IF('Aferi (Variáveis)'!$C$12="Venda para Exportar",0,IF('Aferi (Variáveis)'!$C$12="ALC",0,IF('Aferi (Variáveis)'!$C$12="ZFM",0,IF('Aferi (Variáveis)'!$C$12="Exportação",0,IF('Aferi (Variáveis)'!$C$12="AO",0,E110/(100+(0*'Aferi (Variáveis)'!$K$12/100))*100*K110%/100*'Aferi (Variáveis)'!$K$12))))) -> 0 | S110: 0 | T110: =(E110*'Aferi (Variáveis)'!$K$12/100) -> 0 | U110: 0 | V110: =IF('Aferi (Variáveis)'!$F$20="Venda para Exportar",0,IF('Aferi (Variáveis)'!$F$20="ALC",0,IF('Aferi (Variáveis)'!$F$20="ZFM",0,IF('Aferi (Variáveis)'!$F$20="Exportação",0,IF('Aferi (Variáveis)'!$F$20="AO",7*T110/100,T110*'Aferi (Variáveis)'!$F$20/100))))) -> 0 | W110: 0 | X110: =IF('Aferi (Variáveis)'!$C$12="ZFM",0,IF('Aferi (Variáveis)'!$C$12="Exportação",0,3*T110/100)) -> 0 | Y110: =IF('Aferi (Variáveis)'!$C$12="ZFM",0,IF('Aferi (Variáveis)'!$C$12="Exportação",0,0.65*T110/100)) -> 0 | Z110: 0 | AA110: 0 | AB110: 0 | AC110: 0 | AD110: 0 | AE110: 0 | AF110: 0 | AG110: 0 | AH110: 0 | AI110: =SUMIF('Custo Básico dos Produtos'!$B$7:$B$480,A110,'Custo Básico dos Produtos'!$K$7:$K$480) -> 0 | AL110: 0 | AM110: 0 | AN110: 0 | AO110: 0 | AP110: 0 | AQ110: 0
B111: =IF(Q111<>0,VLOOKUP(Q111,'Custo Básico dos Produtos'!$A$7:$J$480,3),"") ->  | D111: =SUMIF('Custo Básico dos Produtos'!$A$7:$A$480,Q111,'Custo Básico dos Produtos'!$J$7:$J$480) -> 0 | F111: 0 | G111: =IF(B111="",0,SUMIF('Cadastro de Produtos em Linha'!$B$7:$B$457,A111,'Cadastro de Produtos em Linha'!$D$7:$D$457)) -> 0 | I111: 0 | J111: 0 | K111: =IF('Aferi (Variáveis)'!$C$12="ALC",0,IF('Aferi (Variáveis)'!$C$12="ZFM",0,IF('Aferi (Variáveis)'!$C$12="Exportação",0,IF('Aferi (Variáveis)'!$C$12="Venda para Exportar",0,IF('Aferi (Variáveis)'!$C$12="AO",0,SUMIF('Custo Básico dos Produtos'!$A$7:$A$480,Q111,'Custo Básico dos Produtos'!$L$7:$L$480)))))) -> 0 | L111: 0 | M111: 0 | N111: 0 | O111: 0 | P111: =SUMIF('Cadastro de Produtos em Linha'!$A$6:$A$457,Q111,'Cadastro de Produtos em Linha'!$E$6:$E$457)*H111 -> 0 | Q111: =IF(TODAY()<$AK$26,IF(A111<>"",SUMIF('Custo Básico dos Produtos'!$B$7:$B$457,A111,'Custo Básico dos Produtos'!$A$7:$A$457),0),0) -> 0 | R111: =IF('Aferi (Variáveis)'!$C$12="Venda para Exportar",0,IF('Aferi (Variáveis)'!$C$12="ALC",0,IF('Aferi (Variáveis)'!$C$12="ZFM",0,IF('Aferi (Variáveis)'!$C$12="Exportação",0,IF('Aferi (Variáveis)'!$C$12="AO",0,E111/(100+(0*'Aferi (Variáveis)'!$K$12/100))*100*K111%/100*'Aferi (Variáveis)'!$K$12))))) -> 0 | S111: 0 | T111: =(E111*'Aferi (Variáveis)'!$K$12/100) -> 0 | U111: 0 | V111: =IF('Aferi (Variáveis)'!$F$20="Venda para Exportar",0,IF('Aferi (Variáveis)'!$F$20="ALC",0,IF('Aferi (Variáveis)'!$F$20="ZFM",0,IF('Aferi (Variáveis)'!$F$20="Exportação",0,IF('Aferi (Variáveis)'!$F$20="AO",7*T111/100,T111*'Aferi (Variáveis)'!$F$20/100))))) -> 0 | W111: 0 | X111: =IF('Aferi (Variáveis)'!$C$12="ZFM",0,IF('Aferi (Variáveis)'!$C$12="Exportação",0,3*T111/100)) -> 0 | Y111: =IF('Aferi (Variáveis)'!$C$12="ZFM",0,IF('Aferi (Variáveis)'!$C$12="Exportação",0,0.65*T111/100)) -> 0 | Z111: 0 | AA111: 0 | AB111: 0 | AC111: 0 | AD111: 0 | AE111: 0 | AF111: 0 | AG111: 0 | AH111: 0 | AI111: =SUMIF('Custo Básico dos Produtos'!$B$7:$B$480,A111,'Custo Básico dos Produtos'!$K$7:$K$480) -> 0 | AL111: 0 | AM111: 0 | AN111: 0 | AO111: 0 | AP111: 0 | AQ111: 0
B112: =IF(Q112<>0,VLOOKUP(Q112,'Custo Básico dos Produtos'!$A$7:$J$480,3),"") ->  | D112: =SUMIF('Custo Básico dos Produtos'!$A$7:$A$480,Q112,'Custo Básico dos Produtos'!$J$7:$J$480) -> 0 | F112: 0 | G112: =IF(B112="",0,SUMIF('Cadastro de Produtos em Linha'!$B$7:$B$457,A112,'Cadastro de Produtos em Linha'!$D$7:$D$457)) -> 0 | I112: 0 | J112: 0 | K112: =IF('Aferi (Variáveis)'!$C$12="ALC",0,IF('Aferi (Variáveis)'!$C$12="ZFM",0,IF('Aferi (Variáveis)'!$C$12="Exportação",0,IF('Aferi (Variáveis)'!$C$12="Venda para Exportar",0,IF('Aferi (Variáveis)'!$C$12="AO",0,SUMIF('Custo Básico dos Produtos'!$A$7:$A$480,Q112,'Custo Básico dos Produtos'!$L$7:$L$480)))))) -> 0 | L112: 0 | M112: 0 | N112: 0 | O112: 0 | P112: =SUMIF('Cadastro de Produtos em Linha'!$A$6:$A$457,Q112,'Cadastro de Produtos em Linha'!$E$6:$E$457)*H112 -> 0 | Q112: =IF(TODAY()<$AK$26,IF(A112<>"",SUMIF('Custo Básico dos Produtos'!$B$7:$B$457,A112,'Custo Básico dos Produtos'!$A$7:$A$457),0),0) -> 0 | R112: =IF('Aferi (Variáveis)'!$C$12="Venda para Exportar",0,IF('Aferi (Variáveis)'!$C$12="ALC",0,IF('Aferi (Variáveis)'!$C$12="ZFM",0,IF('Aferi (Variáveis)'!$C$12="Exportação",0,IF('Aferi (Variáveis)'!$C$12="AO",0,E112/(100+(0*'Aferi (Variáveis)'!$K$12/100))*100*K112%/100*'Aferi (Variáveis)'!$K$12))))) -> 0 | S112: 0 | T112: =(E112*'Aferi (Variáveis)'!$K$12/100) -> 0 | U112: 0 | V112: =IF('Aferi (Variáveis)'!$F$20="Venda para Exportar",0,IF('Aferi (Variáveis)'!$F$20="ALC",0,IF('Aferi (Variáveis)'!$F$20="ZFM",0,IF('Aferi (Variáveis)'!$F$20="Exportação",0,IF('Aferi (Variáveis)'!$F$20="AO",7*T112/100,T112*'Aferi (Variáveis)'!$F$20/100))))) -> 0 | W112: 0 | X112: =IF('Aferi (Variáveis)'!$C$12="ZFM",0,IF('Aferi (Variáveis)'!$C$12="Exportação",0,3*T112/100)) -> 0 | Y112: =IF('Aferi (Variáveis)'!$C$12="ZFM",0,IF('Aferi (Variáveis)'!$C$12="Exportação",0,0.65*T112/100)) -> 0 | Z112: 0 | AA112: 0 | AB112: 0 | AC112: 0 | AD112: 0 | AE112: 0 | AF112: 0 | AG112: 0 | AH112: 0 | AI112: =SUMIF('Custo Básico dos Produtos'!$B$7:$B$480,A112,'Custo Básico dos Produtos'!$K$7:$K$480) -> 0 | AL112: 0 | AM112: 0 | AN112: 0 | AO112: 0 | AP112: 0 | AQ112: 0
B113: =IF(Q113<>0,VLOOKUP(Q113,'Custo Básico dos Produtos'!$A$7:$J$480,3),"") ->  | D113: =SUMIF('Custo Básico dos Produtos'!$A$7:$A$480,Q113,'Custo Básico dos Produtos'!$J$7:$J$480) -> 0 | F113: 0 | G113: =IF(B113="",0,SUMIF('Cadastro de Produtos em Linha'!$B$7:$B$457,A113,'Cadastro de Produtos em Linha'!$D$7:$D$457)) -> 0 | I113: 0 | J113: 0 | K113: =IF('Aferi (Variáveis)'!$C$12="ALC",0,IF('Aferi (Variáveis)'!$C$12="ZFM",0,IF('Aferi (Variáveis)'!$C$12="Exportação",0,IF('Aferi (Variáveis)'!$C$12="Venda para Exportar",0,IF('Aferi (Variáveis)'!$C$12="AO",0,SUMIF('Custo Básico dos Produtos'!$A$7:$A$480,Q113,'Custo Básico dos Produtos'!$L$7:$L$480)))))) -> 0 | L113: 0 | M113: 0 | N113: 0 | O113: 0 | P113: =SUMIF('Cadastro de Produtos em Linha'!$A$6:$A$457,Q113,'Cadastro de Produtos em Linha'!$E$6:$E$457)*H113 -> 0 | Q113: =IF(TODAY()<$AK$26,IF(A113<>"",SUMIF('Custo Básico dos Produtos'!$B$7:$B$457,A113,'Custo Básico dos Produtos'!$A$7:$A$457),0),0) -> 0 | R113: =IF('Aferi (Variáveis)'!$C$12="Venda para Exportar",0,IF('Aferi (Variáveis)'!$C$12="ALC",0,IF('Aferi (Variáveis)'!$C$12="ZFM",0,IF('Aferi (Variáveis)'!$C$12="Exportação",0,IF('Aferi (Variáveis)'!$C$12="AO",0,E113/(100+(0*'Aferi (Variáveis)'!$K$12/100))*100*K113%/100*'Aferi (Variáveis)'!$K$12))))) -> 0 | S113: 0 | T113: =(E113*'Aferi (Variáveis)'!$K$12/100) -> 0 | U113: 0 | V113: =IF('Aferi (Variáveis)'!$F$20="Venda para Exportar",0,IF('Aferi (Variáveis)'!$F$20="ALC",0,IF('Aferi (Variáveis)'!$F$20="ZFM",0,IF('Aferi (Variáveis)'!$F$20="Exportação",0,IF('Aferi (Variáveis)'!$F$20="AO",7*T113/100,T113*'Aferi (Variáveis)'!$F$20/100))))) -> 0 | W113: 0 | X113: =IF('Aferi (Variáveis)'!$C$12="ZFM",0,IF('Aferi (Variáveis)'!$C$12="Exportação",0,3*T113/100)) -> 0 | Y113: =IF('Aferi (Variáveis)'!$C$12="ZFM",0,IF('Aferi (Variáveis)'!$C$12="Exportação",0,0.65*T113/100)) -> 0 | Z113: 0 | AA113: 0 | AB113: 0 | AC113: 0 | AD113: 0 | AE113: 0 | AF113: 0 | AG113: 0 | AH113: 0 | AI113: =SUMIF('Custo Básico dos Produtos'!$B$7:$B$480,A113,'Custo Básico dos Produtos'!$K$7:$K$480) -> 0 | AL113: 0 | AM113: 0 | AN113: 0 | AO113: 0 | AP113: 0 | AQ113: 0
B114: =IF(Q114<>0,VLOOKUP(Q114,'Custo Básico dos Produtos'!$A$7:$J$480,3),"") ->  | D114: =SUMIF('Custo Básico dos Produtos'!$A$7:$A$480,Q114,'Custo Básico dos Produtos'!$J$7:$J$480) -> 0 | F114: 0 | G114: =IF(B114="",0,SUMIF('Cadastro de Produtos em Linha'!$B$7:$B$457,A114,'Cadastro de Produtos em Linha'!$D$7:$D$457)) -> 0 | I114: 0 | J114: 0 | K114: =IF('Aferi (Variáveis)'!$C$12="ALC",0,IF('Aferi (Variáveis)'!$C$12="ZFM",0,IF('Aferi (Variáveis)'!$C$12="Exportação",0,IF('Aferi (Variáveis)'!$C$12="Venda para Exportar",0,IF('Aferi (Variáveis)'!$C$12="AO",0,SUMIF('Custo Básico dos Produtos'!$A$7:$A$480,Q114,'Custo Básico dos Produtos'!$L$7:$L$480)))))) -> 0 | L114: 0 | M114: 0 | N114: 0 | O114: 0 | P114: =SUMIF('Cadastro de Produtos em Linha'!$A$6:$A$457,Q114,'Cadastro de Produtos em Linha'!$E$6:$E$457)*H114 -> 0 | Q114: =IF(TODAY()<$AK$26,IF(A114<>"",SUMIF('Custo Básico dos Produtos'!$B$7:$B$457,A114,'Custo Básico dos Produtos'!$A$7:$A$457),0),0) -> 0 | R114: =IF('Aferi (Variáveis)'!$C$12="Venda para Exportar",0,IF('Aferi (Variáveis)'!$C$12="ALC",0,IF('Aferi (Variáveis)'!$C$12="ZFM",0,IF('Aferi (Variáveis)'!$C$12="Exportação",0,IF('Aferi (Variáveis)'!$C$12="AO",0,E114/(100+(0*'Aferi (Variáveis)'!$K$12/100))*100*K114%/100*'Aferi (Variáveis)'!$K$12))))) -> 0 | S114: 0 | T114: =(E114*'Aferi (Variáveis)'!$K$12/100) -> 0 | U114: 0 | V114: =IF('Aferi (Variáveis)'!$F$20="Venda para Exportar",0,IF('Aferi (Variáveis)'!$F$20="ALC",0,IF('Aferi (Variáveis)'!$F$20="ZFM",0,IF('Aferi (Variáveis)'!$F$20="Exportação",0,IF('Aferi (Variáveis)'!$F$20="AO",7*T114/100,T114*'Aferi (Variáveis)'!$F$20/100))))) -> 0 | W114: 0 | X114: =IF('Aferi (Variáveis)'!$C$12="ZFM",0,IF('Aferi (Variáveis)'!$C$12="Exportação",0,3*T114/100)) -> 0 | Y114: =IF('Aferi (Variáveis)'!$C$12="ZFM",0,IF('Aferi (Variáveis)'!$C$12="Exportação",0,0.65*T114/100)) -> 0 | Z114: 0 | AA114: 0 | AB114: 0 | AC114: 0 | AD114: 0 | AE114: 0 | AF114: 0 | AG114: 0 | AH114: 0 | AI114: =SUMIF('Custo Básico dos Produtos'!$B$7:$B$480,A114,'Custo Básico dos Produtos'!$K$7:$K$480) -> 0 | AL114: 0 | AM114: 0 | AN114: 0 | AO114: 0 | AP114: 0 | AQ114: 0
B115: =IF(Q115<>0,VLOOKUP(Q115,'Custo Básico dos Produtos'!$A$7:$J$480,3),"") ->  | D115: =SUMIF('Custo Básico dos Produtos'!$A$7:$A$480,Q115,'Custo Básico dos Produtos'!$J$7:$J$480) -> 0 | F115: 0 | G115: =IF(B115="",0,SUMIF('Cadastro de Produtos em Linha'!$B$7:$B$457,A115,'Cadastro de Produtos em Linha'!$D$7:$D$457)) -> 0 | I115: 0 | J115: 0 | K115: =IF('Aferi (Variáveis)'!$C$12="ALC",0,IF('Aferi (Variáveis)'!$C$12="ZFM",0,IF('Aferi (Variáveis)'!$C$12="Exportação",0,IF('Aferi (Variáveis)'!$C$12="Venda para Exportar",0,IF('Aferi (Variáveis)'!$C$12="AO",0,SUMIF('Custo Básico dos Produtos'!$A$7:$A$480,Q115,'Custo Básico dos Produtos'!$L$7:$L$480)))))) -> 0 | L115: 0 | M115: 0 | N115: 0 | O115: 0 | P115: =SUMIF('Cadastro de Produtos em Linha'!$A$6:$A$457,Q115,'Cadastro de Produtos em Linha'!$E$6:$E$457)*H115 -> 0 | Q115: =IF(TODAY()<$AK$26,IF(A115<>"",SUMIF('Custo Básico dos Produtos'!$B$7:$B$457,A115,'Custo Básico dos Produtos'!$A$7:$A$457),0),0) -> 0 | R115: =IF('Aferi (Variáveis)'!$C$12="Venda para Exportar",0,IF('Aferi (Variáveis)'!$C$12="ALC",0,IF('Aferi (Variáveis)'!$C$12="ZFM",0,IF('Aferi (Variáveis)'!$C$12="Exportação",0,IF('Aferi (Variáveis)'!$C$12="AO",0,E115/(100+(0*'Aferi (Variáveis)'!$K$12/100))*100*K115%/100*'Aferi (Variáveis)'!$K$12))))) -> 0 | S115: 0 | T115: =(E115*'Aferi (Variáveis)'!$K$12/100) -> 0 | U115: 0 | V115: =IF('Aferi (Variáveis)'!$F$20="Venda para Exportar",0,IF('Aferi (Variáveis)'!$F$20="ALC",0,IF('Aferi (Variáveis)'!$F$20="ZFM",0,IF('Aferi (Variáveis)'!$F$20="Exportação",0,IF('Aferi (Variáveis)'!$F$20="AO",7*T115/100,T115*'Aferi (Variáveis)'!$F$20/100))))) -> 0 | W115: 0 | X115: =IF('Aferi (Variáveis)'!$C$12="ZFM",0,IF('Aferi (Variáveis)'!$C$12="Exportação",0,3*T115/100)) -> 0 | Y115: =IF('Aferi (Variáveis)'!$C$12="ZFM",0,IF('Aferi (Variáveis)'!$C$12="Exportação",0,0.65*T115/100)) -> 0 | Z115: 0 | AA115: 0 | AB115: 0 | AC115: 0 | AD115: 0 | AE115: 0 | AF115: 0 | AG115: 0 | AH115: 0 | AI115: =SUMIF('Custo Básico dos Produtos'!$B$7:$B$480,A115,'Custo Básico dos Produtos'!$K$7:$K$480) -> 0 | AL115: 0 | AM115: 0 | AN115: 0 | AO115: 0 | AP115: 0 | AQ115: 0
B116: =IF(Q116<>0,VLOOKUP(Q116,'Custo Básico dos Produtos'!$A$7:$J$480,3),"") ->  | D116: =SUMIF('Custo Básico dos Produtos'!$A$7:$A$480,Q116,'Custo Básico dos Produtos'!$J$7:$J$480) -> 0 | F116: 0 | G116: =IF(B116="",0,SUMIF('Cadastro de Produtos em Linha'!$B$7:$B$457,A116,'Cadastro de Produtos em Linha'!$D$7:$D$457)) -> 0 | I116: 0 | J116: 0 | K116: =IF('Aferi (Variáveis)'!$C$12="ALC",0,IF('Aferi (Variáveis)'!$C$12="ZFM",0,IF('Aferi (Variáveis)'!$C$12="Exportação",0,IF('Aferi (Variáveis)'!$C$12="Venda para Exportar",0,IF('Aferi (Variáveis)'!$C$12="AO",0,SUMIF('Custo Básico dos Produtos'!$A$7:$A$480,Q116,'Custo Básico dos Produtos'!$L$7:$L$480)))))) -> 0 | L116: 0 | M116: 0 | N116: 0 | O116: 0 | P116: =SUMIF('Cadastro de Produtos em Linha'!$A$6:$A$457,Q116,'Cadastro de Produtos em Linha'!$E$6:$E$457)*H116 -> 0 | Q116: =IF(TODAY()<$AK$26,IF(A116<>"",SUMIF('Custo Básico dos Produtos'!$B$7:$B$457,A116,'Custo Básico dos Produtos'!$A$7:$A$457),0),0) -> 0 | R116: =IF('Aferi (Variáveis)'!$C$12="Venda para Exportar",0,IF('Aferi (Variáveis)'!$C$12="ALC",0,IF('Aferi (Variáveis)'!$C$12="ZFM",0,IF('Aferi (Variáveis)'!$C$12="Exportação",0,IF('Aferi (Variáveis)'!$C$12="AO",0,E116/(100+(0*'Aferi (Variáveis)'!$K$12/100))*100*K116%/100*'Aferi (Variáveis)'!$K$12))))) -> 0 | S116: 0 | T116: =(E116*'Aferi (Variáveis)'!$K$12/100) -> 0 | U116: 0 | V116: =IF('Aferi (Variáveis)'!$F$20="Venda para Exportar",0,IF('Aferi (Variáveis)'!$F$20="ALC",0,IF('Aferi (Variáveis)'!$F$20="ZFM",0,IF('Aferi (Variáveis)'!$F$20="Exportação",0,IF('Aferi (Variáveis)'!$F$20="AO",7*T116/100,T116*'Aferi (Variáveis)'!$F$20/100))))) -> 0 | W116: 0 | X116: =IF('Aferi (Variáveis)'!$C$12="ZFM",0,IF('Aferi (Variáveis)'!$C$12="Exportação",0,3*T116/100)) -> 0 | Y116: =IF('Aferi (Variáveis)'!$C$12="ZFM",0,IF('Aferi (Variáveis)'!$C$12="Exportação",0,0.65*T116/100)) -> 0 | Z116: 0 | AA116: 0 | AB116: 0 | AC116: 0 | AD116: 0 | AE116: 0 | AF116: 0 | AG116: 0 | AH116: 0 | AI116: =SUMIF('Custo Básico dos Produtos'!$B$7:$B$480,A116,'Custo Básico dos Produtos'!$K$7:$K$480) -> 0 | AL116: 0 | AM116: 0 | AN116: 0 | AO116: 0 | AP116: 0 | AQ116: 0
B117: =IF(Q117<>0,VLOOKUP(Q117,'Custo Básico dos Produtos'!$A$7:$J$480,3),"") ->  | D117: =SUMIF('Custo Básico dos Produtos'!$A$7:$A$480,Q117,'Custo Básico dos Produtos'!$J$7:$J$480) -> 0 | F117: 0 | G117: =IF(B117="",0,SUMIF('Cadastro de Produtos em Linha'!$B$7:$B$457,A117,'Cadastro de Produtos em Linha'!$D$7:$D$457)) -> 0 | I117: 0 | J117: 0 | K117: =IF('Aferi (Variáveis)'!$C$12="ALC",0,IF('Aferi (Variáveis)'!$C$12="ZFM",0,IF('Aferi (Variáveis)'!$C$12="Exportação",0,IF('Aferi (Variáveis)'!$C$12="Venda para Exportar",0,IF('Aferi (Variáveis)'!$C$12="AO",0,SUMIF('Custo Básico dos Produtos'!$A$7:$A$480,Q117,'Custo Básico dos Produtos'!$L$7:$L$480)))))) -> 0 | L117: 0 | M117: 0 | N117: 0 | O117: 0 | P117: =SUMIF('Cadastro de Produtos em Linha'!$A$6:$A$457,Q117,'Cadastro de Produtos em Linha'!$E$6:$E$457)*H117 -> 0 | Q117: =IF(TODAY()<$AK$26,IF(A117<>"",SUMIF('Custo Básico dos Produtos'!$B$7:$B$457,A117,'Custo Básico dos Produtos'!$A$7:$A$457),0),0) -> 0 | R117: =IF('Aferi (Variáveis)'!$C$12="Venda para Exportar",0,IF('Aferi (Variáveis)'!$C$12="ALC",0,IF('Aferi (Variáveis)'!$C$12="ZFM",0,IF('Aferi (Variáveis)'!$C$12="Exportação",0,IF('Aferi (Variáveis)'!$C$12="AO",0,E117/(100+(0*'Aferi (Variáveis)'!$K$12/100))*100*K117%/100*'Aferi (Variáveis)'!$K$12))))) -> 0 | S117: 0 | T117: =(E117*'Aferi (Variáveis)'!$K$12/100) -> 0 | U117: 0 | V117: =IF('Aferi (Variáveis)'!$F$20="Venda para Exportar",0,IF('Aferi (Variáveis)'!$F$20="ALC",0,IF('Aferi (Variáveis)'!$F$20="ZFM",0,IF('Aferi (Variáveis)'!$F$20="Exportação",0,IF('Aferi (Variáveis)'!$F$20="AO",7*T117/100,T117*'Aferi (Variáveis)'!$F$20/100))))) -> 0 | W117: 0 | X117: =IF('Aferi (Variáveis)'!$C$12="ZFM",0,IF('Aferi (Variáveis)'!$C$12="Exportação",0,3*T117/100)) -> 0 | Y117: =IF('Aferi (Variáveis)'!$C$12="ZFM",0,IF('Aferi (Variáveis)'!$C$12="Exportação",0,0.65*T117/100)) -> 0 | Z117: 0 | AA117: 0 | AB117: 0 | AC117: 0 | AD117: 0 | AE117: 0 | AF117: 0 | AG117: 0 | AH117: 0 | AI117: =SUMIF('Custo Básico dos Produtos'!$B$7:$B$480,A117,'Custo Básico dos Produtos'!$K$7:$K$480) -> 0 | AL117: 0 | AM117: 0 | AN117: 0 | AO117: 0 | AP117: 0 | AQ117: 0
B118: =IF(Q118<>0,VLOOKUP(Q118,'Custo Básico dos Produtos'!$A$7:$J$480,3),"") ->  | D118: =SUMIF('Custo Básico dos Produtos'!$A$7:$A$480,Q118,'Custo Básico dos Produtos'!$J$7:$J$480) -> 0 | F118: 0 | G118: =IF(B118="",0,SUMIF('Cadastro de Produtos em Linha'!$B$7:$B$457,A118,'Cadastro de Produtos em Linha'!$D$7:$D$457)) -> 0 | I118: 0 | J118: 0 | K118: =IF('Aferi (Variáveis)'!$C$12="ALC",0,IF('Aferi (Variáveis)'!$C$12="ZFM",0,IF('Aferi (Variáveis)'!$C$12="Exportação",0,IF('Aferi (Variáveis)'!$C$12="Venda para Exportar",0,IF('Aferi (Variáveis)'!$C$12="AO",0,SUMIF('Custo Básico dos Produtos'!$A$7:$A$480,Q118,'Custo Básico dos Produtos'!$L$7:$L$480)))))) -> 0 | L118: 0 | M118: 0 | N118: 0 | O118: 0 | P118: =SUMIF('Cadastro de Produtos em Linha'!$A$6:$A$457,Q118,'Cadastro de Produtos em Linha'!$E$6:$E$457)*H118 -> 0 | Q118: =IF(TODAY()<$AK$26,IF(A118<>"",SUMIF('Custo Básico dos Produtos'!$B$7:$B$457,A118,'Custo Básico dos Produtos'!$A$7:$A$457),0),0) -> 0 | R118: =IF('Aferi (Variáveis)'!$C$12="Venda para Exportar",0,IF('Aferi (Variáveis)'!$C$12="ALC",0,IF('Aferi (Variáveis)'!$C$12="ZFM",0,IF('Aferi (Variáveis)'!$C$12="Exportação",0,IF('Aferi (Variáveis)'!$C$12="AO",0,E118/(100+(0*'Aferi (Variáveis)'!$K$12/100))*100*K118%/100*'Aferi (Variáveis)'!$K$12))))) -> 0 | S118: 0 | T118: =(E118*'Aferi (Variáveis)'!$K$12/100) -> 0 | U118: 0 | V118: =IF('Aferi (Variáveis)'!$F$20="Venda para Exportar",0,IF('Aferi (Variáveis)'!$F$20="ALC",0,IF('Aferi (Variáveis)'!$F$20="ZFM",0,IF('Aferi (Variáveis)'!$F$20="Exportação",0,IF('Aferi (Variáveis)'!$F$20="AO",7*T118/100,T118*'Aferi (Variáveis)'!$F$20/100))))) -> 0 | W118: 0 | X118: =IF('Aferi (Variáveis)'!$C$12="ZFM",0,IF('Aferi (Variáveis)'!$C$12="Exportação",0,3*T118/100)) -> 0 | Y118: =IF('Aferi (Variáveis)'!$C$12="ZFM",0,IF('Aferi (Variáveis)'!$C$12="Exportação",0,0.65*T118/100)) -> 0 | Z118: 0 | AA118: 0 | AB118: 0 | AC118: 0 | AD118: 0 | AE118: 0 | AF118: 0 | AG118: 0 | AH118: 0 | AI118: =SUMIF('Custo Básico dos Produtos'!$B$7:$B$480,A118,'Custo Básico dos Produtos'!$K$7:$K$480) -> 0 | AL118: 0 | AM118: 0 | AN118: 0 | AO118: 0 | AP118: 0 | AQ118: 0
B119: =IF(Q119<>0,VLOOKUP(Q119,'Custo Básico dos Produtos'!$A$7:$J$480,3),"") ->  | D119: =SUMIF('Custo Básico dos Produtos'!$A$7:$A$480,Q119,'Custo Básico dos Produtos'!$J$7:$J$480) -> 0 | F119: 0 | G119: =IF(B119="",0,SUMIF('Cadastro de Produtos em Linha'!$B$7:$B$457,A119,'Cadastro de Produtos em Linha'!$D$7:$D$457)) -> 0 | I119: 0 | J119: 0 | K119: =IF('Aferi (Variáveis)'!$C$12="ALC",0,IF('Aferi (Variáveis)'!$C$12="ZFM",0,IF('Aferi (Variáveis)'!$C$12="Exportação",0,IF('Aferi (Variáveis)'!$C$12="Venda para Exportar",0,IF('Aferi (Variáveis)'!$C$12="AO",0,SUMIF('Custo Básico dos Produtos'!$A$7:$A$480,Q119,'Custo Básico dos Produtos'!$L$7:$L$480)))))) -> 0 | L119: 0 | M119: 0 | N119: 0 | O119: 0 | P119: =SUMIF('Cadastro de Produtos em Linha'!$A$6:$A$457,Q119,'Cadastro de Produtos em Linha'!$E$6:$E$457)*H119 -> 0 | Q119: =IF(TODAY()<$AK$26,IF(A119<>"",SUMIF('Custo Básico dos Produtos'!$B$7:$B$457,A119,'Custo Básico dos Produtos'!$A$7:$A$457),0),0) -> 0 | R119: =IF('Aferi (Variáveis)'!$C$12="Venda para Exportar",0,IF('Aferi (Variáveis)'!$C$12="ALC",0,IF('Aferi (Variáveis)'!$C$12="ZFM",0,IF('Aferi (Variáveis)'!$C$12="Exportação",0,IF('Aferi (Variáveis)'!$C$12="AO",0,E119/(100+(0*'Aferi (Variáveis)'!$K$12/100))*100*K119%/100*'Aferi (Variáveis)'!$K$12))))) -> 0 | S119: 0 | T119: =(E119*'Aferi (Variáveis)'!$K$12/100) -> 0 | U119: 0 | V119: =IF('Aferi (Variáveis)'!$F$20="Venda para Exportar",0,IF('Aferi (Variáveis)'!$F$20="ALC",0,IF('Aferi (Variáveis)'!$F$20="ZFM",0,IF('Aferi (Variáveis)'!$F$20="Exportação",0,IF('Aferi (Variáveis)'!$F$20="AO",7*T119/100,T119*'Aferi (Variáveis)'!$F$20/100))))) -> 0 | W119: 0 | X119: =IF('Aferi (Variáveis)'!$C$12="ZFM",0,IF('Aferi (Variáveis)'!$C$12="Exportação",0,3*T119/100)) -> 0 | Y119: =IF('Aferi (Variáveis)'!$C$12="ZFM",0,IF('Aferi (Variáveis)'!$C$12="Exportação",0,0.65*T119/100)) -> 0 | Z119: 0 | AA119: 0 | AB119: 0 | AC119: 0 | AD119: 0 | AE119: 0 | AF119: 0 | AG119: 0 | AH119: 0 | AI119: =SUMIF('Custo Básico dos Produtos'!$B$7:$B$480,A119,'Custo Básico dos Produtos'!$K$7:$K$480) -> 0 | AL119: 0 | AM119: 0 | AN119: 0 | AO119: 0 | AP119: 0 | AQ119: 0
B120: =IF(Q120<>0,VLOOKUP(Q120,'Custo Básico dos Produtos'!$A$7:$J$480,3),"") ->  | D120: =SUMIF('Custo Básico dos Produtos'!$A$7:$A$480,Q120,'Custo Básico dos Produtos'!$J$7:$J$480) -> 0 | F120: 0 | G120: =IF(B120="",0,SUMIF('Cadastro de Produtos em Linha'!$B$7:$B$457,A120,'Cadastro de Produtos em Linha'!$D$7:$D$457)) -> 0 | I120: 0 | J120: 0 | K120: =IF('Aferi (Variáveis)'!$C$12="ALC",0,IF('Aferi (Variáveis)'!$C$12="ZFM",0,IF('Aferi (Variáveis)'!$C$12="Exportação",0,IF('Aferi (Variáveis)'!$C$12="Venda para Exportar",0,IF('Aferi (Variáveis)'!$C$12="AO",0,SUMIF('Custo Básico dos Produtos'!$A$7:$A$480,Q120,'Custo Básico dos Produtos'!$L$7:$L$480)))))) -> 0 | L120: 0 | M120: 0 | N120: 0 | O120: 0 | P120: =SUMIF('Cadastro de Produtos em Linha'!$A$6:$A$457,Q120,'Cadastro de Produtos em Linha'!$E$6:$E$457)*H120 -> 0 | Q120: =IF(TODAY()<$AK$26,IF(A120<>"",SUMIF('Custo Básico dos Produtos'!$B$7:$B$457,A120,'Custo Básico dos Produtos'!$A$7:$A$457),0),0) -> 0 | R120: =IF('Aferi (Variáveis)'!$C$12="Venda para Exportar",0,IF('Aferi (Variáveis)'!$C$12="ALC",0,IF('Aferi (Variáveis)'!$C$12="ZFM",0,IF('Aferi (Variáveis)'!$C$12="Exportação",0,IF('Aferi (Variáveis)'!$C$12="AO",0,E120/(100+(0*'Aferi (Variáveis)'!$K$12/100))*100*K120%/100*'Aferi (Variáveis)'!$K$12))))) -> 0 | S120: 0 | T120: =(E120*'Aferi (Variáveis)'!$K$12/100) -> 0 | U120: 0 | V120: =IF('Aferi (Variáveis)'!$F$20="Venda para Exportar",0,IF('Aferi (Variáveis)'!$F$20="ALC",0,IF('Aferi (Variáveis)'!$F$20="ZFM",0,IF('Aferi (Variáveis)'!$F$20="Exportação",0,IF('Aferi (Variáveis)'!$F$20="AO",7*T120/100,T120*'Aferi (Variáveis)'!$F$20/100))))) -> 0 | W120: 0 | X120: =IF('Aferi (Variáveis)'!$C$12="ZFM",0,IF('Aferi (Variáveis)'!$C$12="Exportação",0,3*T120/100)) -> 0 | Y120: =IF('Aferi (Variáveis)'!$C$12="ZFM",0,IF('Aferi (Variáveis)'!$C$12="Exportação",0,0.65*T120/100)) -> 0 | Z120: 0 | AA120: 0 | AB120: 0 | AC120: 0 | AD120: 0 | AE120: 0 | AF120: 0 | AG120: 0 | AH120: 0 | AI120: =SUMIF('Custo Básico dos Produtos'!$B$7:$B$480,A120,'Custo Básico dos Produtos'!$K$7:$K$480) -> 0 | AL120: 0 | AM120: 0 | AN120: 0 | AO120: 0 | AP120: 0 | AQ120: 0
B121: =IF(Q121<>0,VLOOKUP(Q121,'Custo Básico dos Produtos'!$A$7:$J$480,3),"") ->  | D121: =SUMIF('Custo Básico dos Produtos'!$A$7:$A$480,Q121,'Custo Básico dos Produtos'!$J$7:$J$480) -> 0 | F121: 0 | G121: =IF(B121="",0,SUMIF('Cadastro de Produtos em Linha'!$B$7:$B$457,A121,'Cadastro de Produtos em Linha'!$D$7:$D$457)) -> 0 | I121: 0 | J121: 0 | K121: =IF('Aferi (Variáveis)'!$C$12="ALC",0,IF('Aferi (Variáveis)'!$C$12="ZFM",0,IF('Aferi (Variáveis)'!$C$12="Exportação",0,IF('Aferi (Variáveis)'!$C$12="Venda para Exportar",0,IF('Aferi (Variáveis)'!$C$12="AO",0,SUMIF('Custo Básico dos Produtos'!$A$7:$A$480,Q121,'Custo Básico dos Produtos'!$L$7:$L$480)))))) -> 0 | L121: 0 | M121: 0 | N121: 0 | O121: 0 | P121: =SUMIF('Cadastro de Produtos em Linha'!$A$6:$A$457,Q121,'Cadastro de Produtos em Linha'!$E$6:$E$457)*H121 -> 0 | Q121: =IF(TODAY()<$AK$26,IF(A121<>"",SUMIF('Custo Básico dos Produtos'!$B$7:$B$457,A121,'Custo Básico dos Produtos'!$A$7:$A$457),0),0) -> 0 | R121: =IF('Aferi (Variáveis)'!$C$12="Venda para Exportar",0,IF('Aferi (Variáveis)'!$C$12="ALC",0,IF('Aferi (Variáveis)'!$C$12="ZFM",0,IF('Aferi (Variáveis)'!$C$12="Exportação",0,IF('Aferi (Variáveis)'!$C$12="AO",0,E121/(100+(0*'Aferi (Variáveis)'!$K$12/100))*100*K121%/100*'Aferi (Variáveis)'!$K$12))))) -> 0 | S121: 0 | T121: =(E121*'Aferi (Variáveis)'!$K$12/100) -> 0 | U121: 0 | V121: =IF('Aferi (Variáveis)'!$F$20="Venda para Exportar",0,IF('Aferi (Variáveis)'!$F$20="ALC",0,IF('Aferi (Variáveis)'!$F$20="ZFM",0,IF('Aferi (Variáveis)'!$F$20="Exportação",0,IF('Aferi (Variáveis)'!$F$20="AO",7*T121/100,T121*'Aferi (Variáveis)'!$F$20/100))))) -> 0 | W121: 0 | X121: =IF('Aferi (Variáveis)'!$C$12="ZFM",0,IF('Aferi (Variáveis)'!$C$12="Exportação",0,3*T121/100)) -> 0 | Y121: =IF('Aferi (Variáveis)'!$C$12="ZFM",0,IF('Aferi (Variáveis)'!$C$12="Exportação",0,0.65*T121/100)) -> 0 | Z121: 0 | AA121: 0 | AB121: 0 | AC121: 0 | AD121: 0 | AE121: 0 | AF121: 0 | AG121: 0 | AH121: 0 | AI121: =SUMIF('Custo Básico dos Produtos'!$B$7:$B$480,A121,'Custo Básico dos Produtos'!$K$7:$K$480) -> 0 | AL121: 0 | AM121: 0 | AN121: 0 | AO121: 0 | AP121: 0 | AQ121: 0
B122: =IF(Q122<>0,VLOOKUP(Q122,'Custo Básico dos Produtos'!$A$7:$J$480,3),"") ->  | D122: =SUMIF('Custo Básico dos Produtos'!$A$7:$A$480,Q122,'Custo Básico dos Produtos'!$J$7:$J$480) -> 0 | F122: 0 | G122: =IF(B122="",0,SUMIF('Cadastro de Produtos em Linha'!$B$7:$B$457,A122,'Cadastro de Produtos em Linha'!$D$7:$D$457)) -> 0 | I122: =IF(F122="",0,IF(F122>=AI122,G122*H122,0)) -> 0 | J122: =IF(F122="",0,I122*E122) -> 0 | K122: =IF('Aferi (Variáveis)'!$C$12="ALC",0,IF('Aferi (Variáveis)'!$C$12="ZFM",0,IF('Aferi (Variáveis)'!$C$12="Exportação",0,IF('Aferi (Variáveis)'!$C$12="Venda para Exportar",0,IF('Aferi (Variáveis)'!$C$12="AO",0,SUMIF('Custo Básico dos Produtos'!$A$7:$A$480,Q122,'Custo Básico dos Produtos'!$L$7:$L$480)))))) -> 0 | L122: 0 | M122: 0 | N122: 0 | O122: 0 | P122: =SUMIF('Cadastro de Produtos em Linha'!$A$6:$A$457,Q122,'Cadastro de Produtos em Linha'!$E$6:$E$457)*H122 -> 0 | Q122: =IF(TODAY()<$AK$26,IF(A122<>"",SUMIF('Custo Básico dos Produtos'!$B$7:$B$457,A122,'Custo Básico dos Produtos'!$A$7:$A$457),0),0) -> 0 | R122: =IF('Aferi (Variáveis)'!$C$12="Venda para Exportar",0,IF('Aferi (Variáveis)'!$C$12="ALC",0,IF('Aferi (Variáveis)'!$C$12="ZFM",0,IF('Aferi (Variáveis)'!$C$12="Exportação",0,IF('Aferi (Variáveis)'!$C$12="AO",0,E122/(100+(0*'Aferi (Variáveis)'!$K$12/100))*100*K122%/100*'Aferi (Variáveis)'!$K$12))))) -> 0 | S122: 0 | T122: =(E122*'Aferi (Variáveis)'!$K$12/100) -> 0 | U122: 0 | V122: =IF('Aferi (Variáveis)'!$F$20="Venda para Exportar",0,IF('Aferi (Variáveis)'!$F$20="ALC",0,IF('Aferi (Variáveis)'!$F$20="ZFM",0,IF('Aferi (Variáveis)'!$F$20="Exportação",0,IF('Aferi (Variáveis)'!$F$20="AO",7*T122/100,T122*'Aferi (Variáveis)'!$F$20/100))))) -> 0 | W122: 0 | X122: =IF('Aferi (Variáveis)'!$C$12="ZFM",0,IF('Aferi (Variáveis)'!$C$12="Exportação",0,3*T122/100)) -> 0 | Y122: =IF('Aferi (Variáveis)'!$C$12="ZFM",0,IF('Aferi (Variáveis)'!$C$12="Exportação",0,0.65*T122/100)) -> 0 | Z122: 0 | AA122: 0 | AB122: 0 | AC122: 0 | AD122: 0 | AE122: 0 | AF122: 0 | AG122: 0 | AH122: 0 | AI122: =SUMIF('Custo Básico dos Produtos'!$B$7:$B$480,A122,'Custo Básico dos Produtos'!$K$7:$K$480) -> 0 | AL122: 0 | AM122: 0 | AN122: 0 | AO122: 0 | AP122: 0 | AQ122: 0
B123: =IF(Q123<>0,VLOOKUP(Q123,'Custo Básico dos Produtos'!$A$7:$J$480,3),"") ->  | D123: =SUMIF('Custo Básico dos Produtos'!$A$7:$A$480,Q123,'Custo Básico dos Produtos'!$J$7:$J$480) -> 0 | F123: 0 | G123: =IF(B123="",0,SUMIF('Cadastro de Produtos em Linha'!$B$7:$B$457,A123,'Cadastro de Produtos em Linha'!$D$7:$D$457)) -> 0 | I123: 0 | J123: 0 | K123: =IF('Aferi (Variáveis)'!$C$12="ALC",0,IF('Aferi (Variáveis)'!$C$12="ZFM",0,IF('Aferi (Variáveis)'!$C$12="Exportação",0,IF('Aferi (Variáveis)'!$C$12="Venda para Exportar",0,IF('Aferi (Variáveis)'!$C$12="AO",0,SUMIF('Custo Básico dos Produtos'!$A$7:$A$480,Q123,'Custo Básico dos Produtos'!$L$7:$L$480)))))) -> 0 | L123: 0 | M123: 0 | N123: 0 | O123: 0 | P123: =SUMIF('Cadastro de Produtos em Linha'!$A$6:$A$457,Q123,'Cadastro de Produtos em Linha'!$E$6:$E$457)*H123 -> 0 | Q123: =IF(TODAY()<$AK$26,IF(A123<>"",SUMIF('Custo Básico dos Produtos'!$B$7:$B$457,A123,'Custo Básico dos Produtos'!$A$7:$A$457),0),0) -> 0 | R123: =IF('Aferi (Variáveis)'!$C$12="Venda para Exportar",0,IF('Aferi (Variáveis)'!$C$12="ALC",0,IF('Aferi (Variáveis)'!$C$12="ZFM",0,IF('Aferi (Variáveis)'!$C$12="Exportação",0,IF('Aferi (Variáveis)'!$C$12="AO",0,E123/(100+(0*'Aferi (Variáveis)'!$K$12/100))*100*K123%/100*'Aferi (Variáveis)'!$K$12))))) -> 0 | S123: 0 | T123: =(E123*'Aferi (Variáveis)'!$K$12/100) -> 0 | U123: 0 | V123: =IF('Aferi (Variáveis)'!$F$20="Venda para Exportar",0,IF('Aferi (Variáveis)'!$F$20="ALC",0,IF('Aferi (Variáveis)'!$F$20="ZFM",0,IF('Aferi (Variáveis)'!$F$20="Exportação",0,IF('Aferi (Variáveis)'!$F$20="AO",7*T123/100,T123*'Aferi (Variáveis)'!$F$20/100))))) -> 0 | W123: 0 | X123: =IF('Aferi (Variáveis)'!$C$12="ZFM",0,IF('Aferi (Variáveis)'!$C$12="Exportação",0,3*T123/100)) -> 0 | Y123: =IF('Aferi (Variáveis)'!$C$12="ZFM",0,IF('Aferi (Variáveis)'!$C$12="Exportação",0,0.65*T123/100)) -> 0 | Z123: 0 | AA123: 0 | AB123: 0 | AC123: 0 | AD123: 0 | AE123: 0 | AF123: 0 | AG123: 0 | AH123: 0 | AI123: =SUMIF('Custo Básico dos Produtos'!$B$7:$B$480,A123,'Custo Básico dos Produtos'!$K$7:$K$480) -> 0 | AL123: 0 | AM123: 0 | AN123: 0 | AO123: 0 | AP123: 0 | AQ123: 0
B124: =IF(Q124<>0,VLOOKUP(Q124,'Custo Básico dos Produtos'!$A$7:$J$480,3),"") ->  | D124: =SUMIF('Custo Básico dos Produtos'!$A$7:$A$480,Q124,'Custo Básico dos Produtos'!$J$7:$J$480) -> 0 | F124: 0 | G124: =IF(B124="",0,SUMIF('Cadastro de Produtos em Linha'!$B$7:$B$457,A124,'Cadastro de Produtos em Linha'!$D$7:$D$457)) -> 0 | I124: 0 | J124: 0 | K124: =IF('Aferi (Variáveis)'!$C$12="ALC",0,IF('Aferi (Variáveis)'!$C$12="ZFM",0,IF('Aferi (Variáveis)'!$C$12="Exportação",0,IF('Aferi (Variáveis)'!$C$12="Venda para Exportar",0,IF('Aferi (Variáveis)'!$C$12="AO",0,SUMIF('Custo Básico dos Produtos'!$A$7:$A$480,Q124,'Custo Básico dos Produtos'!$L$7:$L$480)))))) -> 0 | L124: 0 | M124: 0 | N124: 0 | O124: 0 | P124: =SUMIF('Cadastro de Produtos em Linha'!$A$6:$A$457,Q124,'Cadastro de Produtos em Linha'!$E$6:$E$457)*H124 -> 0 | Q124: =IF(TODAY()<$AK$26,IF(A124<>"",SUMIF('Custo Básico dos Produtos'!$B$7:$B$457,A124,'Custo Básico dos Produtos'!$A$7:$A$457),0),0) -> 0 | R124: =IF('Aferi (Variáveis)'!$C$12="Venda para Exportar",0,IF('Aferi (Variáveis)'!$C$12="ALC",0,IF('Aferi (Variáveis)'!$C$12="ZFM",0,IF('Aferi (Variáveis)'!$C$12="Exportação",0,IF('Aferi (Variáveis)'!$C$12="AO",0,E124/(100+(0*'Aferi (Variáveis)'!$K$12/100))*100*K124%/100*'Aferi (Variáveis)'!$K$12))))) -> 0 | S124: 0 | T124: =(E124*'Aferi (Variáveis)'!$K$12/100) -> 0 | U124: 0 | V124: =IF('Aferi (Variáveis)'!$F$20="Venda para Exportar",0,IF('Aferi (Variáveis)'!$F$20="ALC",0,IF('Aferi (Variáveis)'!$F$20="ZFM",0,IF('Aferi (Variáveis)'!$F$20="Exportação",0,IF('Aferi (Variáveis)'!$F$20="AO",7*T124/100,T124*'Aferi (Variáveis)'!$F$20/100))))) -> 0 | W124: 0 | X124: =IF('Aferi (Variáveis)'!$C$12="ZFM",0,IF('Aferi (Variáveis)'!$C$12="Exportação",0,3*T124/100)) -> 0 | Y124: =IF('Aferi (Variáveis)'!$C$12="ZFM",0,IF('Aferi (Variáveis)'!$C$12="Exportação",0,0.65*T124/100)) -> 0 | Z124: 0 | AA124: 0 | AB124: 0 | AC124: 0 | AD124: 0 | AE124: 0 | AF124: 0 | AG124: 0 | AH124: 0 | AI124: =SUMIF('Custo Básico dos Produtos'!$B$7:$B$480,A124,'Custo Básico dos Produtos'!$K$7:$K$480) -> 0 | AL124: 0 | AM124: 0 | AN124: 0 | AO124: 0 | AP124: 0 | AQ124: 0
B125: =IF(Q125<>0,VLOOKUP(Q125,'Custo Básico dos Produtos'!$A$7:$J$480,3),"") ->  | D125: =SUMIF('Custo Básico dos Produtos'!$A$7:$A$480,Q125,'Custo Básico dos Produtos'!$J$7:$J$480) -> 0 | F125: 0 | G125: =IF(B125="",0,SUMIF('Cadastro de Produtos em Linha'!$B$7:$B$457,A125,'Cadastro de Produtos em Linha'!$D$7:$D$457)) -> 0 | I125: 0 | J125: 0 | K125: =IF('Aferi (Variáveis)'!$C$12="ALC",0,IF('Aferi (Variáveis)'!$C$12="ZFM",0,IF('Aferi (Variáveis)'!$C$12="Exportação",0,IF('Aferi (Variáveis)'!$C$12="Venda para Exportar",0,IF('Aferi (Variáveis)'!$C$12="AO",0,SUMIF('Custo Básico dos Produtos'!$A$7:$A$480,Q125,'Custo Básico dos Produtos'!$L$7:$L$480)))))) -> 0 | L125: 0 | M125: 0 | N125: 0 | O125: 0 | P125: =SUMIF('Cadastro de Produtos em Linha'!$A$6:$A$457,Q125,'Cadastro de Produtos em Linha'!$E$6:$E$457)*H125 -> 0 | Q125: =IF(TODAY()<$AK$26,IF(A125<>"",SUMIF('Custo Básico dos Produtos'!$B$7:$B$457,A125,'Custo Básico dos Produtos'!$A$7:$A$457),0),0) -> 0 | R125: =IF('Aferi (Variáveis)'!$C$12="Venda para Exportar",0,IF('Aferi (Variáveis)'!$C$12="ALC",0,IF('Aferi (Variáveis)'!$C$12="ZFM",0,IF('Aferi (Variáveis)'!$C$12="Exportação",0,IF('Aferi (Variáveis)'!$C$12="AO",0,E125/(100+(0*'Aferi (Variáveis)'!$K$12/100))*100*K125%/100*'Aferi (Variáveis)'!$K$12))))) -> 0 | S125: 0 | T125: =(E125*'Aferi (Variáveis)'!$K$12/100) -> 0 | U125: 0 | V125: =IF('Aferi (Variáveis)'!$F$20="Venda para Exportar",0,IF('Aferi (Variáveis)'!$F$20="ALC",0,IF('Aferi (Variáveis)'!$F$20="ZFM",0,IF('Aferi (Variáveis)'!$F$20="Exportação",0,IF('Aferi (Variáveis)'!$F$20="AO",7*T125/100,T125*'Aferi (Variáveis)'!$F$20/100))))) -> 0 | W125: 0 | X125: =IF('Aferi (Variáveis)'!$C$12="ZFM",0,IF('Aferi (Variáveis)'!$C$12="Exportação",0,3*T125/100)) -> 0 | Y125: =IF('Aferi (Variáveis)'!$C$12="ZFM",0,IF('Aferi (Variáveis)'!$C$12="Exportação",0,0.65*T125/100)) -> 0 | Z125: 0 | AA125: 0 | AB125: 0 | AC125: 0 | AD125: 0 | AE125: 0 | AF125: 0 | AG125: 0 | AH125: 0 | AI125: =SUMIF('Custo Básico dos Produtos'!$B$7:$B$480,A125,'Custo Básico dos Produtos'!$K$7:$K$480) -> 0 | AL125: 0 | AM125: 0 | AN125: 0 | AO125: 0 | AP125: 0 | AQ125: 0
B126: =IF(Q126<>0,VLOOKUP(Q126,'Custo Básico dos Produtos'!$A$7:$J$480,3),"") ->  | D126: =SUMIF('Custo Básico dos Produtos'!$A$7:$A$480,Q126,'Custo Básico dos Produtos'!$J$7:$J$480) -> 0 | F126: 0 | G126: =IF(B126="",0,SUMIF('Cadastro de Produtos em Linha'!$B$7:$B$457,A126,'Cadastro de Produtos em Linha'!$D$7:$D$457)) -> 0 | I126: 0 | J126: 0 | K126: =IF('Aferi (Variáveis)'!$C$12="ALC",0,IF('Aferi (Variáveis)'!$C$12="ZFM",0,IF('Aferi (Variáveis)'!$C$12="Exportação",0,IF('Aferi (Variáveis)'!$C$12="Venda para Exportar",0,IF('Aferi (Variáveis)'!$C$12="AO",0,SUMIF('Custo Básico dos Produtos'!$A$7:$A$480,Q126,'Custo Básico dos Produtos'!$L$7:$L$480)))))) -> 0 | L126: 0 | M126: 0 | N126: 0 | O126: 0 | P126: =SUMIF('Cadastro de Produtos em Linha'!$A$6:$A$457,Q126,'Cadastro de Produtos em Linha'!$E$6:$E$457)*H126 -> 0 | Q126: =IF(TODAY()<$AK$26,IF(A126<>"",SUMIF('Custo Básico dos Produtos'!$B$7:$B$457,A126,'Custo Básico dos Produtos'!$A$7:$A$457),0),0) -> 0 | R126: =IF('Aferi (Variáveis)'!$C$12="Venda para Exportar",0,IF('Aferi (Variáveis)'!$C$12="ALC",0,IF('Aferi (Variáveis)'!$C$12="ZFM",0,IF('Aferi (Variáveis)'!$C$12="Exportação",0,IF('Aferi (Variáveis)'!$C$12="AO",0,E126/(100+(0*'Aferi (Variáveis)'!$K$12/100))*100*K126%/100*'Aferi (Variáveis)'!$K$12))))) -> 0 | S126: 0 | T126: =(E126*'Aferi (Variáveis)'!$K$12/100) -> 0 | U126: 0 | V126: =IF('Aferi (Variáveis)'!$F$20="Venda para Exportar",0,IF('Aferi (Variáveis)'!$F$20="ALC",0,IF('Aferi (Variáveis)'!$F$20="ZFM",0,IF('Aferi (Variáveis)'!$F$20="Exportação",0,IF('Aferi (Variáveis)'!$F$20="AO",7*T126/100,T126*'Aferi (Variáveis)'!$F$20/100))))) -> 0 | W126: 0 | X126: =IF('Aferi (Variáveis)'!$C$12="ZFM",0,IF('Aferi (Variáveis)'!$C$12="Exportação",0,3*T126/100)) -> 0 | Y126: =IF('Aferi (Variáveis)'!$C$12="ZFM",0,IF('Aferi (Variáveis)'!$C$12="Exportação",0,0.65*T126/100)) -> 0 | Z126: 0 | AA126: 0 | AB126: 0 | AC126: 0 | AD126: 0 | AE126: 0 | AF126: 0 | AG126: 0 | AH126: 0 | AI126: =SUMIF('Custo Básico dos Produtos'!$B$7:$B$480,A126,'Custo Básico dos Produtos'!$K$7:$K$480) -> 0 | AL126: 0 | AM126: 0 | AN126: 0 | AO126: 0 | AP126: 0 | AQ126: 0
B127: =IF(Q127<>0,VLOOKUP(Q127,'Custo Básico dos Produtos'!$A$7:$J$480,3),"") ->  | D127: =SUMIF('Custo Básico dos Produtos'!$A$7:$A$480,Q127,'Custo Básico dos Produtos'!$J$7:$J$480) -> 0 | F127: 0 | G127: =IF(B127="",0,SUMIF('Cadastro de Produtos em Linha'!$B$7:$B$457,A127,'Cadastro de Produtos em Linha'!$D$7:$D$457)) -> 0 | I127: 0 | J127: 0 | K127: =IF('Aferi (Variáveis)'!$C$12="ALC",0,IF('Aferi (Variáveis)'!$C$12="ZFM",0,IF('Aferi (Variáveis)'!$C$12="Exportação",0,IF('Aferi (Variáveis)'!$C$12="Venda para Exportar",0,IF('Aferi (Variáveis)'!$C$12="AO",0,SUMIF('Custo Básico dos Produtos'!$A$7:$A$480,Q127,'Custo Básico dos Produtos'!$L$7:$L$480)))))) -> 0 | L127: 0 | M127: 0 | N127: 0 | O127: 0 | P127: =SUMIF('Cadastro de Produtos em Linha'!$A$6:$A$457,Q127,'Cadastro de Produtos em Linha'!$E$6:$E$457)*H127 -> 0 | Q127: =IF(TODAY()<$AK$26,IF(A127<>"",SUMIF('Custo Básico dos Produtos'!$B$7:$B$457,A127,'Custo Básico dos Produtos'!$A$7:$A$457),0),0) -> 0 | R127: =IF('Aferi (Variáveis)'!$C$12="Venda para Exportar",0,IF('Aferi (Variáveis)'!$C$12="ALC",0,IF('Aferi (Variáveis)'!$C$12="ZFM",0,IF('Aferi (Variáveis)'!$C$12="Exportação",0,IF('Aferi (Variáveis)'!$C$12="AO",0,E127/(100+(0*'Aferi (Variáveis)'!$K$12/100))*100*K127%/100*'Aferi (Variáveis)'!$K$12))))) -> 0 | S127: 0 | T127: =(E127*'Aferi (Variáveis)'!$K$12/100) -> 0 | U127: 0 | V127: =IF('Aferi (Variáveis)'!$F$20="Venda para Exportar",0,IF('Aferi (Variáveis)'!$F$20="ALC",0,IF('Aferi (Variáveis)'!$F$20="ZFM",0,IF('Aferi (Variáveis)'!$F$20="Exportação",0,IF('Aferi (Variáveis)'!$F$20="AO",7*T127/100,T127*'Aferi (Variáveis)'!$F$20/100))))) -> 0 | W127: 0 | X127: =IF('Aferi (Variáveis)'!$C$12="ZFM",0,IF('Aferi (Variáveis)'!$C$12="Exportação",0,3*T127/100)) -> 0 | Y127: =IF('Aferi (Variáveis)'!$C$12="ZFM",0,IF('Aferi (Variáveis)'!$C$12="Exportação",0,0.65*T127/100)) -> 0 | Z127: 0 | AA127: 0 | AB127: 0 | AC127: 0 | AD127: 0 | AE127: 0 | AF127: 0 | AG127: 0 | AH127: 0 | AI127: =SUMIF('Custo Básico dos Produtos'!$B$7:$B$480,A127,'Custo Básico dos Produtos'!$K$7:$K$480) -> 0 | AL127: 0 | AM127: 0 | AN127: 0 | AO127: 0 | AP127: 0 | AQ127: 0
B128: =IF(Q128<>0,VLOOKUP(Q128,'Custo Básico dos Produtos'!$A$7:$J$480,3),"") ->  | D128: =SUMIF('Custo Básico dos Produtos'!$A$7:$A$480,Q128,'Custo Básico dos Produtos'!$J$7:$J$480) -> 0 | F128: 0 | G128: =IF(B128="",0,SUMIF('Cadastro de Produtos em Linha'!$B$7:$B$457,A128,'Cadastro de Produtos em Linha'!$D$7:$D$457)) -> 0 | I128: 0 | J128: 0 | K128: =IF('Aferi (Variáveis)'!$C$12="ALC",0,IF('Aferi (Variáveis)'!$C$12="ZFM",0,IF('Aferi (Variáveis)'!$C$12="Exportação",0,IF('Aferi (Variáveis)'!$C$12="Venda para Exportar",0,IF('Aferi (Variáveis)'!$C$12="AO",0,SUMIF('Custo Básico dos Produtos'!$A$7:$A$480,Q128,'Custo Básico dos Produtos'!$L$7:$L$480)))))) -> 0 | L128: 0 | M128: 0 | N128: 0 | O128: 0 | P128: =SUMIF('Cadastro de Produtos em Linha'!$A$6:$A$457,Q128,'Cadastro de Produtos em Linha'!$E$6:$E$457)*H128 -> 0 | Q128: =IF(TODAY()<$AK$26,IF(A128<>"",SUMIF('Custo Básico dos Produtos'!$B$7:$B$457,A128,'Custo Básico dos Produtos'!$A$7:$A$457),0),0) -> 0 | R128: =IF('Aferi (Variáveis)'!$C$12="Venda para Exportar",0,IF('Aferi (Variáveis)'!$C$12="ALC",0,IF('Aferi (Variáveis)'!$C$12="ZFM",0,IF('Aferi (Variáveis)'!$C$12="Exportação",0,IF('Aferi (Variáveis)'!$C$12="AO",0,E128/(100+(0*'Aferi (Variáveis)'!$K$12/100))*100*K128%/100*'Aferi (Variáveis)'!$K$12))))) -> 0 | S128: 0 | T128: =(E128*'Aferi (Variáveis)'!$K$12/100) -> 0 | U128: 0 | V128: =IF('Aferi (Variáveis)'!$F$20="Venda para Exportar",0,IF('Aferi (Variáveis)'!$F$20="ALC",0,IF('Aferi (Variáveis)'!$F$20="ZFM",0,IF('Aferi (Variáveis)'!$F$20="Exportação",0,IF('Aferi (Variáveis)'!$F$20="AO",7*T128/100,T128*'Aferi (Variáveis)'!$F$20/100))))) -> 0 | W128: 0 | X128: =IF('Aferi (Variáveis)'!$C$12="ZFM",0,IF('Aferi (Variáveis)'!$C$12="Exportação",0,3*T128/100)) -> 0 | Y128: =IF('Aferi (Variáveis)'!$C$12="ZFM",0,IF('Aferi (Variáveis)'!$C$12="Exportação",0,0.65*T128/100)) -> 0 | Z128: 0 | AA128: 0 | AB128: 0 | AC128: 0 | AD128: 0 | AE128: 0 | AF128: 0 | AG128: 0 | AH128: 0 | AI128: =SUMIF('Custo Básico dos Produtos'!$B$7:$B$480,A128,'Custo Básico dos Produtos'!$K$7:$K$480) -> 0 | AL128: 0 | AM128: 0 | AN128: 0 | AO128: 0 | AP128: 0 | AQ128: 0
B129: =IF(Q129<>0,VLOOKUP(Q129,'Custo Básico dos Produtos'!$A$7:$J$480,3),"") ->  | D129: =SUMIF('Custo Básico dos Produtos'!$A$7:$A$480,Q129,'Custo Básico dos Produtos'!$J$7:$J$480) -> 0 | F129: 0 | G129: =IF(B129="",0,SUMIF('Cadastro de Produtos em Linha'!$B$7:$B$457,A129,'Cadastro de Produtos em Linha'!$D$7:$D$457)) -> 0 | I129: 0 | J129: 0 | K129: =IF('Aferi (Variáveis)'!$C$12="ALC",0,IF('Aferi (Variáveis)'!$C$12="ZFM",0,IF('Aferi (Variáveis)'!$C$12="Exportação",0,IF('Aferi (Variáveis)'!$C$12="Venda para Exportar",0,IF('Aferi (Variáveis)'!$C$12="AO",0,SUMIF('Custo Básico dos Produtos'!$A$7:$A$480,Q129,'Custo Básico dos Produtos'!$L$7:$L$480)))))) -> 0 | L129: 0 | M129: 0 | N129: 0 | O129: 0 | P129: =SUMIF('Cadastro de Produtos em Linha'!$A$6:$A$457,Q129,'Cadastro de Produtos em Linha'!$E$6:$E$457)*H129 -> 0 | Q129: =IF(TODAY()<$AK$26,IF(A129<>"",SUMIF('Custo Básico dos Produtos'!$B$7:$B$457,A129,'Custo Básico dos Produtos'!$A$7:$A$457),0),0) -> 0 | R129: =IF('Aferi (Variáveis)'!$C$12="Venda para Exportar",0,IF('Aferi (Variáveis)'!$C$12="ALC",0,IF('Aferi (Variáveis)'!$C$12="ZFM",0,IF('Aferi (Variáveis)'!$C$12="Exportação",0,IF('Aferi (Variáveis)'!$C$12="AO",0,E129/(100+(0*'Aferi (Variáveis)'!$K$12/100))*100*K129%/100*'Aferi (Variáveis)'!$K$12))))) -> 0 | S129: 0 | T129: =(E129*'Aferi (Variáveis)'!$K$12/100) -> 0 | U129: 0 | V129: =IF('Aferi (Variáveis)'!$F$20="Venda para Exportar",0,IF('Aferi (Variáveis)'!$F$20="ALC",0,IF('Aferi (Variáveis)'!$F$20="ZFM",0,IF('Aferi (Variáveis)'!$F$20="Exportação",0,IF('Aferi (Variáveis)'!$F$20="AO",7*T129/100,T129*'Aferi (Variáveis)'!$F$20/100))))) -> 0 | W129: 0 | X129: =IF('Aferi (Variáveis)'!$C$12="ZFM",0,IF('Aferi (Variáveis)'!$C$12="Exportação",0,3*T129/100)) -> 0 | Y129: =IF('Aferi (Variáveis)'!$C$12="ZFM",0,IF('Aferi (Variáveis)'!$C$12="Exportação",0,0.65*T129/100)) -> 0 | Z129: 0 | AA129: 0 | AB129: 0 | AC129: 0 | AD129: 0 | AE129: 0 | AF129: 0 | AG129: 0 | AH129: 0 | AI129: =SUMIF('Custo Básico dos Produtos'!$B$7:$B$480,A129,'Custo Básico dos Produtos'!$K$7:$K$480) -> 0 | AL129: 0 | AM129: 0 | AN129: 0 | AO129: 0 | AP129: 0 | AQ129: 0
B130: =IF(Q130<>0,VLOOKUP(Q130,'Custo Básico dos Produtos'!$A$7:$J$480,3),"") ->  | D130: =SUMIF('Custo Básico dos Produtos'!$A$7:$A$480,Q130,'Custo Básico dos Produtos'!$J$7:$J$480) -> 0 | F130: 0 | G130: =IF(B130="",0,SUMIF('Cadastro de Produtos em Linha'!$B$7:$B$457,A130,'Cadastro de Produtos em Linha'!$D$7:$D$457)) -> 0 | I130: 0 | J130: 0 | K130: =IF('Aferi (Variáveis)'!$C$12="ALC",0,IF('Aferi (Variáveis)'!$C$12="ZFM",0,IF('Aferi (Variáveis)'!$C$12="Exportação",0,IF('Aferi (Variáveis)'!$C$12="Venda para Exportar",0,IF('Aferi (Variáveis)'!$C$12="AO",0,SUMIF('Custo Básico dos Produtos'!$A$7:$A$480,Q130,'Custo Básico dos Produtos'!$L$7:$L$480)))))) -> 0 | L130: 0 | M130: 0 | N130: 0 | O130: 0 | P130: =SUMIF('Cadastro de Produtos em Linha'!$A$6:$A$457,Q130,'Cadastro de Produtos em Linha'!$E$6:$E$457)*H130 -> 0 | Q130: =IF(TODAY()<$AK$26,IF(A130<>"",SUMIF('Custo Básico dos Produtos'!$B$7:$B$457,A130,'Custo Básico dos Produtos'!$A$7:$A$457),0),0) -> 0 | R130: =IF('Aferi (Variáveis)'!$C$12="Venda para Exportar",0,IF('Aferi (Variáveis)'!$C$12="ALC",0,IF('Aferi (Variáveis)'!$C$12="ZFM",0,IF('Aferi (Variáveis)'!$C$12="Exportação",0,IF('Aferi (Variáveis)'!$C$12="AO",0,E130/(100+(0*'Aferi (Variáveis)'!$K$12/100))*100*K130%/100*'Aferi (Variáveis)'!$K$12))))) -> 0 | S130: 0 | T130: =(E130*'Aferi (Variáveis)'!$K$12/100) -> 0 | U130: 0 | V130: =IF('Aferi (Variáveis)'!$F$20="Venda para Exportar",0,IF('Aferi (Variáveis)'!$F$20="ALC",0,IF('Aferi (Variáveis)'!$F$20="ZFM",0,IF('Aferi (Variáveis)'!$F$20="Exportação",0,IF('Aferi (Variáveis)'!$F$20="AO",7*T130/100,T130*'Aferi (Variáveis)'!$F$20/100))))) -> 0 | W130: 0 | X130: =IF('Aferi (Variáveis)'!$C$12="ZFM",0,IF('Aferi (Variáveis)'!$C$12="Exportação",0,3*T130/100)) -> 0 | Y130: =IF('Aferi (Variáveis)'!$C$12="ZFM",0,IF('Aferi (Variáveis)'!$C$12="Exportação",0,0.65*T130/100)) -> 0 | Z130: 0 | AA130: 0 | AB130: 0 | AC130: 0 | AD130: 0 | AE130: 0 | AF130: 0 | AG130: 0 | AH130: 0 | AI130: =SUMIF('Custo Básico dos Produtos'!$B$7:$B$480,A130,'Custo Básico dos Produtos'!$K$7:$K$480) -> 0 | AL130: 0 | AM130: 0 | AN130: 0 | AO130: 0 | AP130: 0 | AQ130: 0
B131: =IF(Q131<>0,VLOOKUP(Q131,'Custo Básico dos Produtos'!$A$7:$J$480,3),"") ->  | D131: =SUMIF('Custo Básico dos Produtos'!$A$7:$A$480,Q131,'Custo Básico dos Produtos'!$J$7:$J$480) -> 0 | F131: 0 | G131: =IF(B131="",0,SUMIF('Cadastro de Produtos em Linha'!$B$7:$B$457,A131,'Cadastro de Produtos em Linha'!$D$7:$D$457)) -> 0 | I131: 0 | J131: 0 | K131: =IF('Aferi (Variáveis)'!$C$12="ALC",0,IF('Aferi (Variáveis)'!$C$12="ZFM",0,IF('Aferi (Variáveis)'!$C$12="Exportação",0,IF('Aferi (Variáveis)'!$C$12="Venda para Exportar",0,IF('Aferi (Variáveis)'!$C$12="AO",0,SUMIF('Custo Básico dos Produtos'!$A$7:$A$480,Q131,'Custo Básico dos Produtos'!$L$7:$L$480)))))) -> 0 | L131: 0 | M131: 0 | N131: 0 | O131: 0 | P131: =SUMIF('Cadastro de Produtos em Linha'!$A$6:$A$457,Q131,'Cadastro de Produtos em Linha'!$E$6:$E$457)*H131 -> 0 | Q131: =IF(TODAY()<$AK$26,IF(A131<>"",SUMIF('Custo Básico dos Produtos'!$B$7:$B$457,A131,'Custo Básico dos Produtos'!$A$7:$A$457),0),0) -> 0 | R131: =IF('Aferi (Variáveis)'!$C$12="Venda para Exportar",0,IF('Aferi (Variáveis)'!$C$12="ALC",0,IF('Aferi (Variáveis)'!$C$12="ZFM",0,IF('Aferi (Variáveis)'!$C$12="Exportação",0,IF('Aferi (Variáveis)'!$C$12="AO",0,E131/(100+(0*'Aferi (Variáveis)'!$K$12/100))*100*K131%/100*'Aferi (Variáveis)'!$K$12))))) -> 0 | S131: 0 | T131: =(E131*'Aferi (Variáveis)'!$K$12/100) -> 0 | U131: 0 | V131: =IF('Aferi (Variáveis)'!$F$20="Venda para Exportar",0,IF('Aferi (Variáveis)'!$F$20="ALC",0,IF('Aferi (Variáveis)'!$F$20="ZFM",0,IF('Aferi (Variáveis)'!$F$20="Exportação",0,IF('Aferi (Variáveis)'!$F$20="AO",7*T131/100,T131*'Aferi (Variáveis)'!$F$20/100))))) -> 0 | W131: 0 | X131: =IF('Aferi (Variáveis)'!$C$12="ZFM",0,IF('Aferi (Variáveis)'!$C$12="Exportação",0,3*T131/100)) -> 0 | Y131: =IF('Aferi (Variáveis)'!$C$12="ZFM",0,IF('Aferi (Variáveis)'!$C$12="Exportação",0,0.65*T131/100)) -> 0 | Z131: 0 | AA131: 0 | AB131: 0 | AC131: 0 | AD131: 0 | AE131: 0 | AF131: 0 | AG131: 0 | AH131: 0 | AI131: =SUMIF('Custo Básico dos Produtos'!$B$7:$B$480,A131,'Custo Básico dos Produtos'!$K$7:$K$480) -> 0 | AL131: 0 | AM131: 0 | AN131: 0 | AO131: 0 | AP131: 0 | AQ131: 0
B132: =IF(Q132<>0,VLOOKUP(Q132,'Custo Básico dos Produtos'!$A$7:$J$480,3),"") ->  | D132: =SUMIF('Custo Básico dos Produtos'!$A$7:$A$480,Q132,'Custo Básico dos Produtos'!$J$7:$J$480) -> 0 | F132: 0 | G132: =IF(B132="",0,SUMIF('Cadastro de Produtos em Linha'!$B$7:$B$457,A132,'Cadastro de Produtos em Linha'!$D$7:$D$457)) -> 0 | I132: 0 | J132: 0 | K132: =IF('Aferi (Variáveis)'!$C$12="ALC",0,IF('Aferi (Variáveis)'!$C$12="ZFM",0,IF('Aferi (Variáveis)'!$C$12="Exportação",0,IF('Aferi (Variáveis)'!$C$12="Venda para Exportar",0,IF('Aferi (Variáveis)'!$C$12="AO",0,SUMIF('Custo Básico dos Produtos'!$A$7:$A$480,Q132,'Custo Básico dos Produtos'!$L$7:$L$480)))))) -> 0 | L132: 0 | M132: 0 | N132: 0 | O132: 0 | P132: =SUMIF('Cadastro de Produtos em Linha'!$A$6:$A$457,Q132,'Cadastro de Produtos em Linha'!$E$6:$E$457)*H132 -> 0 | Q132: =IF(TODAY()<$AK$26,IF(A132<>"",SUMIF('Custo Básico dos Produtos'!$B$7:$B$457,A132,'Custo Básico dos Produtos'!$A$7:$A$457),0),0) -> 0 | R132: =IF('Aferi (Variáveis)'!$C$12="Venda para Exportar",0,IF('Aferi (Variáveis)'!$C$12="ALC",0,IF('Aferi (Variáveis)'!$C$12="ZFM",0,IF('Aferi (Variáveis)'!$C$12="Exportação",0,IF('Aferi (Variáveis)'!$C$12="AO",0,E132/(100+(0*'Aferi (Variáveis)'!$K$12/100))*100*K132%/100*'Aferi (Variáveis)'!$K$12))))) -> 0 | S132: 0 | T132: =(E132*'Aferi (Variáveis)'!$K$12/100) -> 0 | U132: 0 | V132: =IF('Aferi (Variáveis)'!$F$20="Venda para Exportar",0,IF('Aferi (Variáveis)'!$F$20="ALC",0,IF('Aferi (Variáveis)'!$F$20="ZFM",0,IF('Aferi (Variáveis)'!$F$20="Exportação",0,IF('Aferi (Variáveis)'!$F$20="AO",7*T132/100,T132*'Aferi (Variáveis)'!$F$20/100))))) -> 0 | W132: 0 | X132: =IF('Aferi (Variáveis)'!$C$12="ZFM",0,IF('Aferi (Variáveis)'!$C$12="Exportação",0,3*T132/100)) -> 0 | Y132: =IF('Aferi (Variáveis)'!$C$12="ZFM",0,IF('Aferi (Variáveis)'!$C$12="Exportação",0,0.65*T132/100)) -> 0 | Z132: 0 | AA132: 0 | AB132: 0 | AC132: 0 | AD132: 0 | AE132: 0 | AF132: 0 | AG132: 0 | AH132: 0 | AI132: =SUMIF('Custo Básico dos Produtos'!$B$7:$B$480,A132,'Custo Básico dos Produtos'!$K$7:$K$480) -> 0 | AL132: 0 | AM132: 0 | AN132: 0 | AO132: 0 | AP132: 0 | AQ132: 0
B133: =IF(Q133<>0,VLOOKUP(Q133,'Custo Básico dos Produtos'!$A$7:$J$480,3),"") ->  | D133: =SUMIF('Custo Básico dos Produtos'!$A$7:$A$480,Q133,'Custo Básico dos Produtos'!$J$7:$J$480) -> 0 | F133: 0 | G133: =IF(B133="",0,SUMIF('Cadastro de Produtos em Linha'!$B$7:$B$457,A133,'Cadastro de Produtos em Linha'!$D$7:$D$457)) -> 0 | I133: 0 | J133: 0 | K133: =IF('Aferi (Variáveis)'!$C$12="ALC",0,IF('Aferi (Variáveis)'!$C$12="ZFM",0,IF('Aferi (Variáveis)'!$C$12="Exportação",0,IF('Aferi (Variáveis)'!$C$12="Venda para Exportar",0,IF('Aferi (Variáveis)'!$C$12="AO",0,SUMIF('Custo Básico dos Produtos'!$A$7:$A$480,Q133,'Custo Básico dos Produtos'!$L$7:$L$480)))))) -> 0 | L133: 0 | M133: 0 | N133: 0 | O133: 0 | P133: =SUMIF('Cadastro de Produtos em Linha'!$A$6:$A$457,Q133,'Cadastro de Produtos em Linha'!$E$6:$E$457)*H133 -> 0 | Q133: =IF(TODAY()<$AK$26,IF(A133<>"",SUMIF('Custo Básico dos Produtos'!$B$7:$B$457,A133,'Custo Básico dos Produtos'!$A$7:$A$457),0),0) -> 0 | R133: =IF('Aferi (Variáveis)'!$C$12="Venda para Exportar",0,IF('Aferi (Variáveis)'!$C$12="ALC",0,IF('Aferi (Variáveis)'!$C$12="ZFM",0,IF('Aferi (Variáveis)'!$C$12="Exportação",0,IF('Aferi (Variáveis)'!$C$12="AO",0,E133/(100+(0*'Aferi (Variáveis)'!$K$12/100))*100*K133%/100*'Aferi (Variáveis)'!$K$12))))) -> 0 | S133: 0 | T133: =(E133*'Aferi (Variáveis)'!$K$12/100) -> 0 | U133: 0 | V133: =IF('Aferi (Variáveis)'!$F$20="Venda para Exportar",0,IF('Aferi (Variáveis)'!$F$20="ALC",0,IF('Aferi (Variáveis)'!$F$20="ZFM",0,IF('Aferi (Variáveis)'!$F$20="Exportação",0,IF('Aferi (Variáveis)'!$F$20="AO",7*T133/100,T133*'Aferi (Variáveis)'!$F$20/100))))) -> 0 | W133: 0 | X133: =IF('Aferi (Variáveis)'!$C$12="ZFM",0,IF('Aferi (Variáveis)'!$C$12="Exportação",0,3*T133/100)) -> 0 | Y133: =IF('Aferi (Variáveis)'!$C$12="ZFM",0,IF('Aferi (Variáveis)'!$C$12="Exportação",0,0.65*T133/100)) -> 0 | Z133: 0 | AA133: 0 | AB133: 0 | AC133: 0 | AD133: 0 | AE133: 0 | AF133: 0 | AG133: 0 | AH133: 0 | AI133: =SUMIF('Custo Básico dos Produtos'!$B$7:$B$480,A133,'Custo Básico dos Produtos'!$K$7:$K$480) -> 0 | AL133: 0 | AM133: 0 | AN133: 0 | AO133: 0 | AP133: 0 | AQ133: 0
B134: =IF(Q134<>0,VLOOKUP(Q134,'Custo Básico dos Produtos'!$A$7:$J$480,3),"") ->  | D134: =SUMIF('Custo Básico dos Produtos'!$A$7:$A$480,Q134,'Custo Básico dos Produtos'!$J$7:$J$480) -> 0 | F134: 0 | G134: =IF(B134="",0,SUMIF('Cadastro de Produtos em Linha'!$B$7:$B$457,A134,'Cadastro de Produtos em Linha'!$D$7:$D$457)) -> 0 | I134: 0 | J134: 0 | K134: =IF('Aferi (Variáveis)'!$C$12="ALC",0,IF('Aferi (Variáveis)'!$C$12="ZFM",0,IF('Aferi (Variáveis)'!$C$12="Exportação",0,IF('Aferi (Variáveis)'!$C$12="Venda para Exportar",0,IF('Aferi (Variáveis)'!$C$12="AO",0,SUMIF('Custo Básico dos Produtos'!$A$7:$A$480,Q134,'Custo Básico dos Produtos'!$L$7:$L$480)))))) -> 0 | L134: 0 | M134: 0 | N134: 0 | O134: 0 | P134: =SUMIF('Cadastro de Produtos em Linha'!$A$6:$A$457,Q134,'Cadastro de Produtos em Linha'!$E$6:$E$457)*H134 -> 0 | Q134: =IF(TODAY()<$AK$26,IF(A134<>"",SUMIF('Custo Básico dos Produtos'!$B$7:$B$457,A134,'Custo Básico dos Produtos'!$A$7:$A$457),0),0) -> 0 | R134: =IF('Aferi (Variáveis)'!$C$12="Venda para Exportar",0,IF('Aferi (Variáveis)'!$C$12="ALC",0,IF('Aferi (Variáveis)'!$C$12="ZFM",0,IF('Aferi (Variáveis)'!$C$12="Exportação",0,IF('Aferi (Variáveis)'!$C$12="AO",0,E134/(100+(0*'Aferi (Variáveis)'!$K$12/100))*100*K134%/100*'Aferi (Variáveis)'!$K$12))))) -> 0 | S134: 0 | T134: =(E134*'Aferi (Variáveis)'!$K$12/100) -> 0 | U134: 0 | V134: =IF('Aferi (Variáveis)'!$F$20="Venda para Exportar",0,IF('Aferi (Variáveis)'!$F$20="ALC",0,IF('Aferi (Variáveis)'!$F$20="ZFM",0,IF('Aferi (Variáveis)'!$F$20="Exportação",0,IF('Aferi (Variáveis)'!$F$20="AO",7*T134/100,T134*'Aferi (Variáveis)'!$F$20/100))))) -> 0 | W134: 0 | X134: =IF('Aferi (Variáveis)'!$C$12="ZFM",0,IF('Aferi (Variáveis)'!$C$12="Exportação",0,3*T134/100)) -> 0 | Y134: =IF('Aferi (Variáveis)'!$C$12="ZFM",0,IF('Aferi (Variáveis)'!$C$12="Exportação",0,0.65*T134/100)) -> 0 | Z134: 0 | AA134: 0 | AB134: 0 | AC134: 0 | AD134: 0 | AE134: 0 | AF134: 0 | AG134: 0 | AH134: 0 | AI134: =SUMIF('Custo Básico dos Produtos'!$B$7:$B$480,A134,'Custo Básico dos Produtos'!$K$7:$K$480) -> 0 | AL134: 0 | AM134: 0 | AN134: 0 | AO134: 0 | AP134: 0 | AQ134: 0
B135: =IF(Q135<>0,VLOOKUP(Q135,'Custo Básico dos Produtos'!$A$7:$J$480,3),"") ->  | D135: =SUMIF('Custo Básico dos Produtos'!$A$7:$A$480,Q135,'Custo Básico dos Produtos'!$J$7:$J$480) -> 0 | F135: 0 | G135: =IF(B135="",0,SUMIF('Cadastro de Produtos em Linha'!$B$7:$B$457,A135,'Cadastro de Produtos em Linha'!$D$7:$D$457)) -> 0 | I135: 0 | J135: 0 | K135: =IF('Aferi (Variáveis)'!$C$12="ALC",0,IF('Aferi (Variáveis)'!$C$12="ZFM",0,IF('Aferi (Variáveis)'!$C$12="Exportação",0,IF('Aferi (Variáveis)'!$C$12="Venda para Exportar",0,IF('Aferi (Variáveis)'!$C$12="AO",0,SUMIF('Custo Básico dos Produtos'!$A$7:$A$480,Q135,'Custo Básico dos Produtos'!$L$7:$L$480)))))) -> 0 | L135: 0 | M135: 0 | N135: 0 | O135: 0 | P135: =SUMIF('Cadastro de Produtos em Linha'!$A$6:$A$457,Q135,'Cadastro de Produtos em Linha'!$E$6:$E$457)*H135 -> 0 | Q135: =IF(TODAY()<$AK$26,IF(A135<>"",SUMIF('Custo Básico dos Produtos'!$B$7:$B$457,A135,'Custo Básico dos Produtos'!$A$7:$A$457),0),0) -> 0 | R135: =IF('Aferi (Variáveis)'!$C$12="Venda para Exportar",0,IF('Aferi (Variáveis)'!$C$12="ALC",0,IF('Aferi (Variáveis)'!$C$12="ZFM",0,IF('Aferi (Variáveis)'!$C$12="Exportação",0,IF('Aferi (Variáveis)'!$C$12="AO",0,E135/(100+(0*'Aferi (Variáveis)'!$K$12/100))*100*K135%/100*'Aferi (Variáveis)'!$K$12))))) -> 0 | S135: 0 | T135: =(E135*'Aferi (Variáveis)'!$K$12/100) -> 0 | U135: 0 | V135: =IF('Aferi (Variáveis)'!$F$20="Venda para Exportar",0,IF('Aferi (Variáveis)'!$F$20="ALC",0,IF('Aferi (Variáveis)'!$F$20="ZFM",0,IF('Aferi (Variáveis)'!$F$20="Exportação",0,IF('Aferi (Variáveis)'!$F$20="AO",7*T135/100,T135*'Aferi (Variáveis)'!$F$20/100))))) -> 0 | W135: 0 | X135: =IF('Aferi (Variáveis)'!$C$12="ZFM",0,IF('Aferi (Variáveis)'!$C$12="Exportação",0,3*T135/100)) -> 0 | Y135: =IF('Aferi (Variáveis)'!$C$12="ZFM",0,IF('Aferi (Variáveis)'!$C$12="Exportação",0,0.65*T135/100)) -> 0 | Z135: 0 | AA135: 0 | AB135: 0 | AC135: 0 | AD135: 0 | AE135: 0 | AF135: 0 | AG135: 0 | AH135: 0 | AI135: =SUMIF('Custo Básico dos Produtos'!$B$7:$B$480,A135,'Custo Básico dos Produtos'!$K$7:$K$480) -> 0 | AL135: 0 | AM135: 0 | AN135: 0 | AO135: 0 | AP135: 0 | AQ135: 0
B136: =IF(Q136<>0,VLOOKUP(Q136,'Custo Básico dos Produtos'!$A$7:$J$480,3),"") ->  | D136: =SUMIF('Custo Básico dos Produtos'!$A$7:$A$480,Q136,'Custo Básico dos Produtos'!$J$7:$J$480) -> 0 | F136: 0 | G136: =IF(B136="",0,SUMIF('Cadastro de Produtos em Linha'!$B$7:$B$457,A136,'Cadastro de Produtos em Linha'!$D$7:$D$457)) -> 0 | I136: 0 | J136: 0 | K136: =IF('Aferi (Variáveis)'!$C$12="ALC",0,IF('Aferi (Variáveis)'!$C$12="ZFM",0,IF('Aferi (Variáveis)'!$C$12="Exportação",0,IF('Aferi (Variáveis)'!$C$12="Venda para Exportar",0,IF('Aferi (Variáveis)'!$C$12="AO",0,SUMIF('Custo Básico dos Produtos'!$A$7:$A$480,Q136,'Custo Básico dos Produtos'!$L$7:$L$480)))))) -> 0 | L136: 0 | M136: 0 | N136: 0 | O136: 0 | P136: =SUMIF('Cadastro de Produtos em Linha'!$A$6:$A$457,Q136,'Cadastro de Produtos em Linha'!$E$6:$E$457)*H136 -> 0 | Q136: =IF(TODAY()<$AK$26,IF(A136<>"",SUMIF('Custo Básico dos Produtos'!$B$7:$B$457,A136,'Custo Básico dos Produtos'!$A$7:$A$457),0),0) -> 0 | R136: =IF('Aferi (Variáveis)'!$C$12="Venda para Exportar",0,IF('Aferi (Variáveis)'!$C$12="ALC",0,IF('Aferi (Variáveis)'!$C$12="ZFM",0,IF('Aferi (Variáveis)'!$C$12="Exportação",0,IF('Aferi (Variáveis)'!$C$12="AO",0,E136/(100+(0*'Aferi (Variáveis)'!$K$12/100))*100*K136%/100*'Aferi (Variáveis)'!$K$12))))) -> 0 | S136: 0 | T136: =(E136*'Aferi (Variáveis)'!$K$12/100) -> 0 | U136: 0 | V136: =IF('Aferi (Variáveis)'!$F$20="Venda para Exportar",0,IF('Aferi (Variáveis)'!$F$20="ALC",0,IF('Aferi (Variáveis)'!$F$20="ZFM",0,IF('Aferi (Variáveis)'!$F$20="Exportação",0,IF('Aferi (Variáveis)'!$F$20="AO",7*T136/100,T136*'Aferi (Variáveis)'!$F$20/100))))) -> 0 | W136: 0 | X136: =IF('Aferi (Variáveis)'!$C$12="ZFM",0,IF('Aferi (Variáveis)'!$C$12="Exportação",0,3*T136/100)) -> 0 | Y136: =IF('Aferi (Variáveis)'!$C$12="ZFM",0,IF('Aferi (Variáveis)'!$C$12="Exportação",0,0.65*T136/100)) -> 0 | Z136: 0 | AA136: 0 | AB136: 0 | AC136: 0 | AD136: 0 | AE136: 0 | AF136: 0 | AG136: 0 | AH136: 0 | AI136: =SUMIF('Custo Básico dos Produtos'!$B$7:$B$480,A136,'Custo Básico dos Produtos'!$K$7:$K$480) -> 0 | AL136: 0 | AM136: 0 | AN136: 0 | AO136: 0 | AP136: 0 | AQ136: 0
B137: =IF(Q137<>0,VLOOKUP(Q137,'Custo Básico dos Produtos'!$A$7:$J$480,3),"") ->  | D137: =SUMIF('Custo Básico dos Produtos'!$A$7:$A$480,Q137,'Custo Básico dos Produtos'!$J$7:$J$480) -> 0 | F137: 0 | G137: =IF(B137="",0,SUMIF('Cadastro de Produtos em Linha'!$B$7:$B$457,A137,'Cadastro de Produtos em Linha'!$D$7:$D$457)) -> 0 | I137: 0 | J137: 0 | K137: =IF('Aferi (Variáveis)'!$C$12="ALC",0,IF('Aferi (Variáveis)'!$C$12="ZFM",0,IF('Aferi (Variáveis)'!$C$12="Exportação",0,IF('Aferi (Variáveis)'!$C$12="Venda para Exportar",0,IF('Aferi (Variáveis)'!$C$12="AO",0,SUMIF('Custo Básico dos Produtos'!$A$7:$A$480,Q137,'Custo Básico dos Produtos'!$L$7:$L$480)))))) -> 0 | L137: 0 | M137: 0 | N137: 0 | O137: 0 | P137: =SUMIF('Cadastro de Produtos em Linha'!$A$6:$A$457,Q137,'Cadastro de Produtos em Linha'!$E$6:$E$457)*H137 -> 0 | Q137: =IF(TODAY()<$AK$26,IF(A137<>"",SUMIF('Custo Básico dos Produtos'!$B$7:$B$457,A137,'Custo Básico dos Produtos'!$A$7:$A$457),0),0) -> 0 | R137: =IF('Aferi (Variáveis)'!$C$12="Venda para Exportar",0,IF('Aferi (Variáveis)'!$C$12="ALC",0,IF('Aferi (Variáveis)'!$C$12="ZFM",0,IF('Aferi (Variáveis)'!$C$12="Exportação",0,IF('Aferi (Variáveis)'!$C$12="AO",0,E137/(100+(0*'Aferi (Variáveis)'!$K$12/100))*100*K137%/100*'Aferi (Variáveis)'!$K$12))))) -> 0 | S137: 0 | T137: =(E137*'Aferi (Variáveis)'!$K$12/100) -> 0 | U137: 0 | V137: =IF('Aferi (Variáveis)'!$F$20="Venda para Exportar",0,IF('Aferi (Variáveis)'!$F$20="ALC",0,IF('Aferi (Variáveis)'!$F$20="ZFM",0,IF('Aferi (Variáveis)'!$F$20="Exportação",0,IF('Aferi (Variáveis)'!$F$20="AO",7*T137/100,T137*'Aferi (Variáveis)'!$F$20/100))))) -> 0 | W137: 0 | X137: =IF('Aferi (Variáveis)'!$C$12="ZFM",0,IF('Aferi (Variáveis)'!$C$12="Exportação",0,3*T137/100)) -> 0 | Y137: =IF('Aferi (Variáveis)'!$C$12="ZFM",0,IF('Aferi (Variáveis)'!$C$12="Exportação",0,0.65*T137/100)) -> 0 | Z137: 0 | AA137: 0 | AB137: 0 | AC137: 0 | AD137: 0 | AE137: 0 | AF137: 0 | AG137: 0 | AH137: 0 | AI137: =SUMIF('Custo Básico dos Produtos'!$B$7:$B$480,A137,'Custo Básico dos Produtos'!$K$7:$K$480) -> 0 | AL137: 0 | AM137: 0 | AN137: 0 | AO137: 0 | AP137: 0 | AQ137: 0
